Workbook

Sheet 36. 가계 및 주택담보 대출 잔액
A1: 36. 가계 및 주택담보 대출 잔액 Household & Mortgage Loan Outstanding
A3: 단위 : 억원 | F3: Hundred million won
A4: 연월말 | C4: 가계대출1) Loans to Households
D5: 예금은행2) Banks CBs & SBs | F5: 비은행금융기관4) Nonbank
A6: End of | E6: 주택담보대출3) Mortgage
A8: 2004 | C8: 3,555,400 | D8: 2,763,266 | E8: - | F8: 792,135
A9: 2005 | C9: 3,932,395 | D9: 3,055,139 | E9: 2,084,220 | F9: 877,256
A10: 2006 | C10: 4,433,482 | D10: 3,462,223 | E10: 2,409,514 | F10: 971,259
A11: 2007 | C11: =C69 -> 4,740,944 | D11: =D69 -> 3,636,809 | E11: =E69 -> 2,457,635 | F11: =F69 -> 1,104,135
A12: 2008 | C12: =C82 -> 5,152,640 | D12: =D82 -> 3,885,732 | E12: =E82 -> 2,547,357 | F12: =F82 -> 1,266,908
A13: 2009 | C13: =C95 -> 5,497,600 | D13: =D95 -> 4,095,040 | E13: =E95 -> 2,736,870 | F13: =F95 -> 1,402,559
A14: 2010 | C14: =C108 -> 5,935,404 | D14: =D108 -> 4,314,572 | E14: =E108 -> 2,896,230 | F14: =F108 -> 1,620,833
A15: 2011 | C15: =C121 -> 6,396,056 | D15: =D121 -> 4,558,567 | E15: =E121 -> 3,088,765 | F15: =F121 -> 1,837,489
A16: 2012 | C16: =C134 -> 6,598,583 | D16: =D134 -> 4,672,686 | E16: =E134 -> 3,182,267 | F16: =F134 -> 1,925,897
A17: 2013 | C17: =C147 -> 6,871,864 | D17: =D147 -> 4,811,313 | E17: 3,289,231 | F17: 2,060,551
A19: 2004 | B19: 1 | C19: 3,207,698 | D19: 2,532,639 | E19: - | F19: 675,059
B20: 2 | C20: 3,244,794 | D20: 2,560,231 | E20: - | F20: 684,563
B21: 3 | C21: 3,285,572 | D21: 2,589,650 | E21: - | F21: 695,921
B22: 3 | C22: 3,316,508 | D22: 2,608,907 | E22: - | F22: 707,602
B23: 5 | C23: 3,348,954 | D23: 2,635,585 | E23: - | F23: 713,369
B24: 6 | C24: 3,381,345 | D24: 2,652,903 | E24: - | F24: 728,442
B25: 7 | C25: 3,399,628 | D25: 2,665,121 | E25: - | F25: 734,507
B26: 8 | C26: 3,438,990 | D26: 2,695,353 | E26: - | F26: 743,637
B27: 9 | C27: 3,459,633 | D27: 2,706,434 | E27: - | F27: 753,199
B28: 10 | C28: 3,484,318 | D28: 2,725,472 | E28: - | F28: 758,846
B29: 11 | C29: 3,521,181 | D29: 2,753,671 | E29: - | F29: 767,510
B30: 12 | C30: 3,555,400 | D30: 2,763,266 | E30: - | F30: 792,135
A32: 2005 | B32: 1 | C32: 3,548,023 | D32: 2,763,221 | E32: - | F32: 784,802
B33: 2 | C33: 3,568,159 | D33: 2,781,058 | E33: - | F33: 787,101
B34: 3 | C34: 3,587,179 | D34: 2,791,784 | E34: - | F34: 795,396
B35: 4 | C35: 3,627,320 | D35: 2,822,500 | E35: - | F35: 804,820
B36: 5 | C36: 3,684,188 | D36: 2,864,272 | E36: - | F36: 819,916
B37: 6 | C37: 3,740,728 | D37: 2,905,873 | E37: - | F37: 834,854
B38: 7 | C38: 3,768,705 | D38: 2,929,736 | E38: - | F38: 838,968
B39: 8 | C39: 3,823,732 | D39: 2,974,208 | E39: - | F39: 849,525
B40: 9 | C40: 3,843,655 | D40: 2,994,865 | E40: - | F40: 848,790
B41: 10 | C41: 3,868,136 | D41: 3,012,577 | E41: - | F41: 855,560
B42: 11 | C42: 3,897,658 | D42: 3,034,696 | E42: - | F42: 862,961
B43: 12 | C43: 3,932,395 | D43: 3,055,139 | E43: 2,084,220 | F43: 877,256
A45: 2006 | B45: 1 | C45: 3,919,554 | D45: 3,050,378 | E45: 2,066,791 | F45: 869,176
B46: 2 | C46: 3,948,993 | D46: 3,078,995 | E46: 2,103,045 | F46: 869,999
B47: 3 | C47: 3,980,582 | D47: 3,105,169 | E47: 2,121,394 | F47: 875,413
B48: 4 | C48: 4,024,145 | D48: 3,141,649 | E48: 2,156,674 | F48: 882,496
B49: 5 | C49: 4,078,420 | D49: 3,186,514 | E49: 2,191,807 | F49: 891,907
B50: 6 | C50: 4,125,835 | D50: 3,229,902 | E50: 2,220,910 | F50: 895,933
B51: 7 | C51: 4,161,510 | D51: 3,254,514 | E51: 2,244,345 | F51: 906,995
B52: 8 | C52: 4,196,832 | D52: 3,281,631 | E52: 2,257,950 | F52: 915,200
B53: 9 | C53: 4,245,846 | D53: 3,315,993 | E53: 2,286,074 | F53: 929,853
B54: 10 | C54: 4,292,950 | D54: 3,354,805 | E54: 2,317,577 | F54: 938,145
B55: 11 | C55: 4,363,981 | D55: 3,413,061 | E55: 2,367,090 | F55: 950,919
B56: 12 | C56: 4,433,482 | D56: 3,462,223 | E56: 2,409,514 | F56: 971,258
A58: 2007 | B58: 1 | C58: 4,421,163 | D58: 3,460,135 | E58: 2,418,247 | F58: 961,029
B59: 2 | C59: 4,451,137 | D59: 3,479,405 | E59: 2,428,107 | F59: 971,731
B60: 3 | C60: 4,465,596 | D60: 3,486,401 | E60: 2,435,687 | F60: 979,195
B61: 4 | C61: 4,488,978 | D61: 3,499,467 | E61: 2,436,872 | F61: 989,511
B62: 5 | C62: 4,503,690 | D62: 3,501,005 | E62: 2,424,484 | F62: 1,002,686
B63: 6 | C63: 4,530,638 | D63: 3,508,287 | E63: 2,429,787 | F63: 1,022,352
B64: 7 | C64: 4,559,715 | D64: 3,525,439 | E64: 2,432,609 | F64: 1,034,277
B65: 8 | C65: 4,609,296 | D65: 3,559,036 | E65: 2,437,269 | F65: 1,050,260
B66: 9 | C66: 4,628,070 | D66: 3,568,401 | E66: 2,440,438 | F66: 1,059,668
B67: 10 | C67: 4,678,709 | D67: 3,607,003 | E67: 2,449,389 | F67: 1,071,706
B68: 11 | C68: 4,726,983 | D68: 3,639,761 | E68: 2,462,375 | F68: 1,087,221
B69: 12 | C69: 4,740,944 | D69: 3,636,809 | E69: 2,457,635 | F69: 1,104,135
A71: 2008 | B71: 1 | C71: 4,736,069 | D71: 3,630,143 | E71: 2,458,371 | F71: 1,105,926
B72: 2 | C72: 4,769,194 | D72: 3,653,463 | E72: 2,442,899 | F72: 1,115,732
B73: 3 | C73: 4,804,146 | D73: 3,677,144 | E73: 2,448,204 | F73: 1,127,002
B74: 4 | C74: 4,853,029 | D74: 3,710,910 | E74: 2,467,750 | F74: 1,142,119
B75: 5 | C75: 4,896,206 | D75: 3,738,545 | E75: 2,480,676 | F75: 1,157,661
B76: 6 | C76: 4,949,537 | D76: 3,769,701 | E76: 2,487,484 | F76: 1,179,835
B77: 7 | C77: 4,988,164 | D77: 3,793,603 | E77: 2,505,065 | F77: 1,194,561
B78: 8 | C78: 5,024,795 | D78: 3,815,378 | E78: 2,510,631 | F78: 1,209,417
B79: 9 | C79: 5,063,797 | D79: 3,836,391 | E79: 2,519,899 | F79: 1,227,406
B80: 10 | C80: 5,091,778 | D80: 3,850,755 | E80: 2,521,466 | F80: 1,241,024
B81: 11 | C81: 5,119,939 | D81: 3,869,932 | E81: 2,532,200 | F81: 1,250,007
B82: 12 | C82: 5,152,640 | D82: 3,885,732 | E82: 2,547,357 | F82: 1,266,908
A84: 2009 | B84: 1 | C84: 5,119,983 | D84: 3,871,912 | E84: 2,560,073 | F84: 1,248,072
B85: 2 | C85: 5,147,894 | D85: 3,901,695 | E85: 2,585,108 | F85: 1,246,198
B86: 3 | C86: 5,166,258 | D86: 3,921,182 | E86: 2,604,438 | F86: 1,245,076
B87: 4 | C87: 5,188,711 | D87: 3,934,259 | E87: 2,612,211 | F87: 1,254,453
B88: 5 | C88: 5,222,173 | D88: 3,963,067 | E88: 2,633,413 | F88: 1,259,106
B89: 6 | C89: 5,276,868 | D89: 4,003,218 | E89: 2,664,852 | F89: 1,273,651
B90: 7 | C90: 5,320,476 | D90: 4,029,801 | E90: 2,694,945 | F90: 1,290,674
B91: 8 | C91: 5,366,755 | D91: 4,059,604 | E91: 2,718,801 | F91: 1,307,151
B92: 9 | C92: 5,377,876 | D92: 4,050,309 | E92: 2,700,488 | F92: 1,327,567
B93: 10 | C93: 5,411,117 | D93: 4,064,478 | E93: 2,712,437 | F93: 1,346,639
B94: 11 | C94: 5,457,935 | D94: 4,090,474 | E94: 2,723,526 | F94: 1,367,461
A95: 2009 | B95: 12 | C95: 5,497,600 | D95: 4,095,040 | E95: 2,736,870 | F95: 1,402,559
A97: 2010 | B97: 1 | C97: 5,487,233 | D97: 4,085,140 | E97: 2,738,222 | F97: 1,402,094
A98: 2010 | B98: 2 | C98: 5,494,629 | D98: 4,082,828 | E98: 2,741,287 | F98: 1,411,801
A99: 2010 | B99: 3 | C99: 5,531,397 | D99: 4,102,411 | E99: 2,754,690 | F99: 1,428,986
A100: 2010 | B100: 4 | C100: 5,565,802 | D100: 4,120,088 | E100: 2,769,276 | F100: 1,445,714
A101: 2010 | B101: 5 | C101: 5,627,714 | D101: 4,163,864 | E101: 2,782,730 | F101: 1,463,850
A102: 2010 | B102: 6 | C102: 5,667,413 | D102: 4,188,889 | E102: 2,805,508 | F102: 1,478,524
A103: 2010 | B103: 7 | C103: 5,698,755 | D103: 4,203,641 | E103: 2,825,382 | F103: 1,495,113
A104: 2010 | B104: 8 | C104: 5,733,158 | D104: 4,213,354 | E104: 2,819,610 | F104: 1,519,805
A105: 2010 | B105: 9 | C105: 5,764,247 | D105: 4,226,345 | E105: 2,833,115 | F105: 1,537,902
A106: 2010 | B106: 10 | C106: 5,817,351 | D106: 4,252,915 | E106: 2,851,137 | F106: 1,564,436
A107: 2010 | B107: 11 | C107: 5,880,765 | D107: 4,293,593 | E107: 2,874,187 | F107: 1,587,172
A108: 2010 | B108: 12 | C108: 5,935,404 | D108: 4,314,572 | E108: 2,896,230 | F108: 1,620,833
B110: 1 | C110: 5,935,059 | D110: 4,312,114 | E110: 2,907,487 | F110: 1,622,945
B111: 2 | C111: 5,965,319 | D111: 4,333,961 | E111: 2,923,696 | F111: 1,631,358
B112: 3 | C112: 5,993,738 | D112: 4,351,271 | E112: 2,941,476 | F112: 1,642,466
B113: 4 | C113: 6,037,546 | D113: 4,376,679 | E113: 2,963,781 | F113: 1,660,868
A114: 2011 | B114: 5 | C114: 6,091,532 | D114: 4,409,341 | E114: 2,976,184 | F114: 1,682,191
A115: 2011 | B115: 6 | C115: 6,146,391 | D115: 4,442,790 | E115: 2,992,230 | F115: 1,703,601
A116: 2011 | B116: 7 | C116: 6,189,847 | D116: 4,465,114 | E116: 3,011,424 | F116: 1,724,733
A117: 2011 | B117: 8 | C117: 6,240,492 | D117: 4,490,360 | E117: 3,022,484 | F117: 1,750,132
A118: 2011 | B118: 9 | C118: 6,254,194 | D118: 4,496,305 | E118: 3,032,583 | F118: 1,757,889
A119: 2011 | B119: 10 | C119: 6,311,171 | D119: 4,527,887 | E119: 3,053,972 | F119: 1,783,285
A120: 2011 | B120: 11 | C120: 6,348,600 | D120: 4,541,539 | E120: 3,064,376 | F120: 1,807,061
A121: 2011 | B121: 12 | C121: 6,396,056 | D121: 4,558,567 | E121: 3,088,765 | F121: 1,837,489
A123: 2012 | B123: 1 | C123: 6,362,009 | D123: 4,530,819 | E123: 3,079,821 | F123: 1,831,190
A124: 2012 | B124: 2 | C124: 6,372,116 | D124: 4,535,449 | E124: 3,085,933 | F124: 1,836,667
B125: 3 | C125: 6,371,238 | D125: 4,531,407 | E125: 3,094,633 | F125: 1,839,831
B126: 4 | C126: 6,395,839 | D126: 4,544,649 | E126: 3,104,695 | F126: 1,851,190
B127: 5 | C127: 6,427,411 | D127: 4,566,627 | E127: 3,113,088 | F127: 1,860,783
B128: 6 | C128: 6,458,549 | D128: 4,578,932 | E128: 3,124,124 | F128: 1,879,617
B129: 7 | C129: 6,475,524 | D129: 4,585,954 | E129: 3,127,359 | F129: 1,889,570
B130: 8 | C130: 6,498,189 | D130: 4,601,102 | E130: 3,134,226 | F130: 1,897,087
B131: 9 | C131: 6,485,123 | D131: 4,593,304 | E131: 3,133,341 | F131: 1,891,819
B132: 10 | C132: 6,511,328 | D132: 4,613,394 | E132: 3,137,246 | F132: 1,897,934
B133: 11 | C133: 6,531,023 | D133: 4,624,253 | E133: 3,134,347 | F133: 1,906,770
B134: 12 | C134: 6,598,583 | D134: 4,672,686 | E134: 3,182,267 | F134: 1,925,897
A136: 2013 | B136: 1 | C136: 6,562,433 | D136: 4,638,416 | E136: 3,160,242 | F136: 1,924,017
B137: 2 | C137: 6,544,459 | D137: 4,622,611 | E137: 3,151,485 | F137: 1,921,848
B138: 3 | C138: 6,550,639 | D138: 4,623,797 | E138: 3,159,728 | F138: 1,926,841
B139: 4 | C139: 6,564,792 | D139: 4,633,204 | E139: 3,158,268 | F139: 1,931,587
B140: 5 | C140: 6,598,771 | D140: 4,659,235 | E140: 3,177,705 | F140: 1,939,536
B141: 6 | C141: 6,664,234 | D141: 4,706,501 | E141: 3,212,027 | F141: 1,957,733
B142: 7 | C142: 6,675,459 | D142: 4,707,458 | E142: 3,211,824 | F142: 1,968,001
B143: 8 | C143: 6,708,275 | D143: 4,725,891 | E143: 3,219,749 | F143: 1,982,384
B144: 9 | C144: 6,720,722 | D144: 4,727,395 | E144: 3,222,463 | F144: 1,993,327
B145: 10 | C145: 6,760,777 | D145: 4,752,025 | E145: 3,240,119 | F145: 2,008,752
B146: 11 | C146: 6,811,213 | D146: 4,782,299 | E146: 3,261,007 | F146: 2,028,914
B147: 12 | C147: 6,871,864 | D147: 4,811,313 | E147: 3,289,231 | F147: 2,060,551
A149: 2014 | B149: 1 | C149: 6,851,807 | D149: 4,785,164 | E149: 3,281,530 | F149: 2,066,644
A151: 1) 주체별 원화대출금 중 가계(가계봉사형 민간비영리단체 및 기타대출 제외)
A152: 2) 일반은행, 특수은행을 포괄
A153: 3) 주택담보대출+주택관련 집단대출, 전세자금대출 등 주택관련 대출 모두 포괄 ('13.9월부터 주택대출, 주택담보대출 일원화)
A154: 4) 상호저축은행, 신용협동조합, 새마을금고, 상호금융, 신탁 및 우체국 예금을 포괄. 2012.5월 신용협동조합의 차주 분류기준을 변경 적용함에 따라 통계 변경
A156: 자료 : 한국은행

Sheet 37. 기업 및 가계대출 연체율
A1: 37. 기업 및 가계대출 연체율1) Delinquency Ratio
A3: 단위 : % | Q3: %
A4: 연월말 | C4: 일반은행 | H4: 특수은행2) | M4: 은행전체3)
C5: Domestic Commercial Bank | H5: Special Bank | M5: All Banks
A6: End of | C6: 기업 | E6: 가계 | G6: 신용 카드4) | H6: 기업 | J6: 가계 | L6: 신용 카드4) | M6: 기업 | O6: 가계 | Q6: 신용 카드4)
C7: Enter -prise | D7: 중소 기업 S&M | E7: House -holds | F7: 주택담보 Mortgage | G7: Credit Card | H7: Enter -prise | I7: 중소 기업 S&M | J7: House -holds | K7: 주택담보 Mortgage | L7: Credit Card | M7: Enter -prise | N7: 중소 기업 S&M | O7: House -holds | P7: 주택담보 Mortgage | Q7: Credit Card
A8: 원계열 Not seasonally adjusted
A9: 2004 | C9: 2.1 | D9: 2.3 | E9: 1.8 | F9: 1.9 | G9: 4.1 | H9: 1.4 | I9: 1.7 | J9: 1.3 | K9: 0.9 | L9: 3.9 | M9: 1.8 | N9: 2.1 | O9: 1.7 | P9: 1.8 | Q9: 4.1
A10: 2005 | C10: 1.5 | D10: 1.7 | E10: 1.2 | F10: 1.2 | G10: 2.2 | H10: 1.0 | I10: 1.2 | J10: 0.9 | K10: 0.5 | L10: 2.0 | M10: 1.3 | N10: 1.5 | O10: 1.1 | P10: 1.1 | Q10: 2.2
A11: 2006 | C11: 1.2 | D11: 1.2 | E11: 0.7 | F11: 0.6 | G11: 1.7 | H11: 0.8 | I11: 0.8 | J11: 0.5 | K11: 0.3 | L11: 1.4 | M11: 1.0 | N11: 1.1 | O11: 0.7 | P11: 0.6 | Q11: 1.7
A12: 2007 | C12: 1.0 | D12: 1.1 | E12: 0.6 | F12: 0.4 | G12: 1.4 | H12: 0.7 | I12: 0.8 | J12: 0.5 | K12: 0.3 | L12: 1.2 | M12: 0.9 | N12: 1.0 | O12: 0.6 | P12: 0.4 | Q12: 1.3
A13: 2008 | C13: 1.6 | D13: 1.8 | E13: 0.6 | F13: 0.5 | G13: 1.8 | H13: 1.3 | I13: 1.6 | J13: 0.6 | K13: 0.4 | L13: 1.7 | M13: 1.5 | N13: 1.7 | O13: 0.6 | P13: 0.5 | Q13: 1.8
A14: 2009 | C14: 1.0 | D14: 1.1 | E14: 0.5 | F14: 0.3 | G14: 1.4 | H14: 0.9 | I14: 1.1 | J14: 0.5 | K14: 0.5 | L14: 1.5 | M14: 1.0 | N14: 1.1 | O14: 0.5 | P14: 0.3 | Q14: 1.4
A15: 2010 | C15: 1.1 | D15: 1.3 | E15: 0.6 | F15: 0.5 | G15: 1.4 | H15: 1.1 | I15: 1.3 | J15: 0.6 | K15: 0.7 | L15: 1.1 | M15: 1.1 | N15: 1.3 | O15: 0.6 | P15: 0.5 | Q15: 1.3
A16: 2011 | C16: 1.1 | D16: 1.4 | E16: 0.6 | F16: 0.6 | G16: 2.2 | H16: 1.0 | I16: 1.3 | J16: 0.8 | K16: 0.9 | L16: 1.5 | M16: 1.1 | N16: 1.3 | O16: 0.7 | P16: 0.6 | Q16: 1.9
A17: 2012 | C17: 1.2 | D17: 1.3 | E17: 0.7 | F17: 0.7 | G17: 2.2 | H17: 1.1 | I17: 1.2 | J17: 1.1 | K17: 1.2 | L17: 1.3 | M17: 1.2 | N17: 1.3 | O17: 0.8 | P17: 0.7 | Q17: 1.9
A19: 2004 | B19: 1 | C19: 2.6 | D19: - | E19: 2.2 | F19: - | G19: 12.4 | H19: 1.9 | I19: - | J19: 2.2 | K19: - | L19: 11.2 | M19: 2.4 | N19: - | O19: 2.2 | P19: - | Q19: 12.0
B20: 3 | C20: 2.6 | D20: - | E20: 2.2 | F20: - | G20: 12.0 | H20: 2.0 | I20: - | J20: 2.4 | K20: - | L20: 9.7 | M20: 2.4 | N20: - | O20: 2.3 | P20: - | Q20: 11.4
B21: 4 | C21: 2.8 | D21: - | E21: 2.3 | F21: - | G21: 12.7 | H21: 2.1 | I21: - | J21: 2.3 | K21: - | L21: 9.6 | M21: 2.6 | N21: - | O21: 2.3 | P21: - | Q21: 12.0
B22: 5 | C22: 3.0 | D22: - | E22: 2.4 | F22: - | G22: 13.0 | H22: 2.2 | I22: - | J22: 2.1 | K22: - | L22: 11.1 | M22: 2.7 | N22: - | O22: 2.3 | P22: - | Q22: 12.5
B23: 6 | C23: 2.2 | D23: - | E23: 2.0 | F23: - | G23: 10.3 | H23: 1.7 | I23: - | J23: 1.7 | K23: - | L23: 9.4 | M23: 2.0 | N23: - | O23: 1.9 | P23: - | Q23: 10.0
B24: 7 | C24: 2.6 | D24: - | E24: 2.1 | F24: - | G24: 10.7 | H24: 1.9 | I24: - | J24: 1.9 | K24: - | L24: 9.5 | M24: 2.3 | N24: - | O24: 2.1 | P24: - | Q24: 10.3
B25: 8 | C25: 2.7 | D25: - | E25: 2.2 | F25: - | G25: 11.9 | H25: 2.1 | I25: - | J25: 2.0 | K25: - | L25: 9.0 | M25: 2.5 | N25: - | O25: 2.2 | P25: - | Q25: 11.2
B26: 9 | C26: 2.4 | D26: - | E26: 1.9 | F26: - | G26: 11.3 | H26: 2.1 | I26: - | J26: 1.7 | K26: - | L26: 7.3 | M26: 2.2 | N26: - | O26: 1.9 | P26: - | Q26: 10.4
B27: 10 | C27: 2.6 | D27: - | E27: 2.1 | F27: - | G27: 10.1 | H27: 2.2 | I27: - | J27: 2.0 | K27: - | L27: 8.2 | M27: 2.4 | N27: - | O27: 2.0 | P27: - | Q27: 9.6
B28: 11 | C28: 2.6 | D28: - | E28: 2.0 | F28: - | G28: 10.3 | H28: 2.0 | I28: - | J28: 1.6 | K28: - | L28: 7.8 | M28: 2.4 | N28: - | O28: 2.0 | P28: - | Q28: 9.8
B29: 12 | C29: 2.1 | D29: - | E29: 1.8 | F29: - | G29: 5.5 | H29: 1.4 | I29: - | J29: 1.3 | K29: - | L29: 5.4 | M29: 1.8 | N29: - | O29: 1.7 | P29: - | Q29: 5.5
A31: 2005 | B31: 1 | C31: 2.5 | D31: 2.8 | E31: 1.9 | F31: - | G31: 6.5 | H31: 1.9 | I31: 1.9 | J31: 1.5 | K31: - | L31: 6.1 | M31: 2.2 | N31: 2.5 | O31: 1.9 | P31: - | Q31: 6.4
B32: 2 | C32: 2.7 | D32: 3.0 | E32: 2.0 | F32: - | G32: 7.9 | H32: 2.0 | I32: 2.4 | J32: 1.8 | K32: - | L32: 6.7 | M32: 2.4 | N32: 2.8 | O32: 2.0 | P32: - | Q32: 7.6
B33: 3 | C33: 2.4 | D33: 2.7 | E33: 1.9 | F33: - | G33: 5.9 | H33: 1.9 | I33: 2.2 | J33: 1.7 | K33: - | L33: 5.5 | M33: 2.2 | N33: 2.5 | O33: 1.8 | P33: - | Q33: 5.8
B34: 4 | C34: 2.6 | D34: 2.9 | E34: 1.9 | F34: - | G34: 6.6 | H34: 1.9 | I34: 2.2 | J34: 1.7 | K34: - | L34: 5.4 | M34: 2.3 | N34: 2.7 | O34: 1.9 | P34: - | Q34: 6.3
B35: 5 | C35: 2.7 | D35: 3.1 | E35: 1.9 | F35: - | G35: 6.4 | H35: 1.9 | I35: 2.3 | J35: 1.7 | K35: - | L35: 4.8 | M35: 2.4 | N35: 2.8 | O35: 1.9 | P35: - | Q35: 6.1
B36: 6 | C36: 2.0 | D36: 2.3 | E36: 1.6 | F36: - | G36: 4.4 | H36: 1.3 | I36: 1.6 | J36: 1.2 | K36: - | L36: 4.1 | M36: 1.8 | N36: 2.0 | O36: 1.5 | P36: - | Q36: 4.4
B37: 7 | C37: 2.3 | D37: 2.6 | E37: 1.6 | F37: - | G37: 5.1 | H37: 1.5 | I37: 1.8 | J37: 1.3 | K37: - | L37: 4.5 | M37: 2.0 | N37: 2.3 | O37: 1.6 | P37: - | Q37: 5.0
B38: 8 | C38: 2.3 | D38: 2.7 | E38: 1.7 | F38: - | G38: 5.2 | H38: 1.7 | I38: 2.0 | J38: 1.4 | K38: - | L38: 4.4 | M38: 2.1 | N38: 2.4 | O38: 1.6 | P38: - | Q38: 5.0
B39: 9 | C39: 1.9 | D39: 2.2 | E39: 1.4 | F39: - | G39: 3.9 | H39: 1.6 | I39: 1.9 | J39: 1.2 | K39: - | L39: 3.8 | M39: 1.8 | N39: 2.1 | O39: 1.4 | P39: - | Q39: 3.9
B40: 10 | C40: 2.1 | D40: 2.4 | E40: 1.4 | F40: - | G40: 4.3 | H40: 1.7 | I40: 2.1 | J40: 1.3 | K40: - | L40: 4.0 | M40: 1.9 | N40: 2.3 | O40: 1.4 | P40: - | Q40: 4.3
B41: 11 | C41: 2.0 | D41: 2.3 | E41: 1.4 | F41: - | G41: 4.4 | H41: 1.4 | I41: 1.7 | J41: 1.1 | K41: - | L41: 3.9 | M41: 1.8 | N41: 2.1 | O41: 1.4 | P41: - | Q41: 4.3
B42: 12 | C42: 1.5 | D42: 1.7 | E42: 1.2 | F42: - | G42: 3.3 | H42: 1.0 | I42: 1.2 | J42: 0.9 | K42: - | L42: 3.0 | M42: 1.3 | N42: 1.5 | O42: 1.1 | P42: - | Q42: 3.2
A44: 2006 | B44: 1 | C44: 1.8 | D44: 2.1 | E44: 1.4 | F44: 1.4 | G44: 2.6 | H44: 1.4 | I44: 1.7 | J44: 1.1 | K44: 0.6 | L44: 2.2 | M44: 1.7 | N44: 1.9 | O44: 1.3 | P44: 1.3 | Q44: 2.5
B45: 2 | C45: 1.9 | D45: 2.2 | E45: 1.4 | F45: 1.4 | G45: 2.8 | H45: 1.4 | I45: 1.7 | J45: 1.3 | K45: 0.8 | L45: 2.4 | M45: 1.7 | N45: 2.0 | O45: 1.4 | P45: 1.3 | Q45: 2.7
B46: 3 | C46: 1.6 | D46: 1.8 | E46: 1.2 | F46: 1.2 | G46: 2.1 | H46: 1.3 | I46: 1.6 | J46: 1.2 | K46: 0.7 | L46: 2.1 | M46: 1.5 | N46: 1.7 | O46: 1.2 | P46: 1.1 | Q46: 2.1
B47: 4 | C47: 1.7 | D47: 2.0 | E47: 1.3 | F47: 1.2 | G47: 2.3 | H47: 1.3 | I47: 1.6 | J47: 1.2 | K47: 0.7 | L47: 2.1 | M47: 1.6 | N47: 1.8 | O47: 1.2 | P47: 1.2 | Q47: 2.3
B48: 5 | C48: 1.8 | D48: 2.0 | E48: 1.3 | F48: 1.3 | G48: 2.6 | H48: 1.4 | I48: 1.7 | J48: 1.3 | K48: 0.7 | L48: 2.1 | M48: 1.7 | N48: 1.9 | O48: 1.3 | P48: 1.2 | Q48: 2.5
B49: 6 | C49: 1.4 | D49: 1.5 | E49: 1.0 | F49: 1.0 | G49: 2.0 | H49: 1.0 | I49: 1.1 | J49: 0.9 | K49: 0.4 | L49: 1.7 | M49: 1.2 | N49: 1.2 | O49: 1.0 | P49: 0.9 | Q49: 1.9
B50: 7 | C50: 1.6 | D50: 1.8 | E50: 1.2 | F50: 1.1 | G50: 2.4 | H50: 1.2 | I50: 1.4 | J50: 1.0 | K50: 0.6 | L50: 1.8 | M50: 1.5 | N50: 1.6 | O50: 1.1 | P50: 1.0 | Q50: 2.2
B51: 8 | C51: 1.7 | D51: 1.8 | E51: 1.2 | F51: 1.1 | G51: 2.8 | H51: 1.3 | I51: 1.5 | J51: 1.1 | K51: 0.6 | L51: 1.8 | M51: 1.5 | N51: 1.7 | O51: 1.2 | P51: 1.0 | Q51: 2.5
B52: 9 | C52: 1.5 | D52: 1.6 | E52: 1.0 | F52: 0.9 | G52: 2.1 | H52: 1.1 | I52: 1.2 | J52: 0.8 | K52: 0.4 | L52: 1.6 | M52: 1.3 | N52: 1.4 | O52: 0.9 | P52: 0.8 | Q52: 1.9
B53: 10 | C53: 1.7 | D53: 1.8 | E53: 1.1 | F53: 1.0 | G53: 2.8 | H53: 1.2 | I53: 1.3 | J53: 0.9 | K53: 0.5 | L53: 1.6 | M53: 1.5 | N53: 1.6 | O53: 1.1 | P53: 0.9 | Q53: 2.4
B54: 11 | C54: 1.6 | D54: 1.6 | E54: 0.9 | F54: 0.8 | G54: 3.0 | H54: 1.1 | I54: 1.2 | J54: 0.8 | K54: 0.4 | L54: 1.6 | M54: 1.4 | N54: 1.4 | O54: 0.9 | P54: 0.7 | Q54: 2.5
B55: 12 | C55: 1.2 | D55: 1.2 | E55: 0.7 | F55: 0.6 | G55: 1.7 | H55: 0.8 | I55: 0.8 | J55: 0.5 | K55: 0.3 | L55: 1.4 | M55: 1.0 | N55: 1.1 | O55: 0.7 | P55: 0.6 | Q55: 1.7
A57: 2007 | B57: 1 | C57: 1.4 | D57: 1.5 | E57: 0.9 | F57: 0.7 | G57: 2.0 | H57: 1.0 | I57: 1.1 | J57: 0.7 | K57: 0.4 | L57: 1.4 | M57: 1.2 | N57: 1.3 | O57: 0.8 | P57: 0.7 | Q57: 1.9
B58: 2 | C58: 1.5 | D58: 1.5 | E58: 0.9 | F58: 0.8 | G58: 2.2 | H58: 1.1 | I58: 1.2 | J58: 0.9 | K58: 0.5 | L58: 1.5 | M58: 1.3 | N58: 1.4 | O58: 0.9 | P58: 0.7 | Q58: 2.1
B59: 3 | C59: 1.2 | D59: 1.3 | E59: 0.8 | F59: 0.6 | G59: 1.7 | H59: 1.1 | I59: 1.2 | J59: 0.8 | K59: 0.4 | L59: 1.5 | M59: 1.2 | N59: 1.3 | O59: 0.8 | P59: 0.6 | Q59: 1.7
B60: 4 | C60: 1.3 | D60: 1.4 | E60: 0.8 | F60: 0.6 | G60: 1.9 | H60: 1.2 | I60: 1.3 | J60: 0.8 | K60: 0.4 | L60: 1.5 | M60: 1.3 | N60: 1.4 | O60: 0.8 | P60: 0.6 | Q60: 1.8
B61: 5 | C61: 1.3 | D61: 1.4 | E61: 0.9 | F61: 0.7 | G61: 2.0 | H61: 1.1 | I61: 1.2 | J61: 0.9 | K61: 0.5 | L61: 1.2 | M61: 1.2 | N61: 1.3 | O61: 0.9 | P61: 0.7 | Q61: 1.8
B62: 6 | C62: 1.0 | D62: 1.1 | E62: 0.6 | F62: 0.5 | G62: 0.1 | H62: 0.8 | I62: 0.8 | J62: 0.6 | K62: 0.3 | L62: 0.1 | M62: 0.9 | N62: 1.0 | O62: 0.6 | P62: 0.5 | Q62: 1.4
B63: 7 | C63: 1.2 | D63: 1.3 | E63: 0.7 | F63: 0.6 | G63: 1.6 | H63: 1.0 | I63: 1.0 | J63: 0.8 | K63: 0.4 | L63: 1.3 | M63: 1.1 | N63: 1.2 | O63: 0.7 | P63: 0.6 | Q63: 1.6
B64: 8 | C64: 1.3 | D64: 1.4 | E64: 0.8 | F64: 0.7 | G64: 1.8 | H64: 1.1 | I64: 1.2 | J64: 0.8 | K64: 0.5 | L64: 1.4 | M64: 1.2 | N64: 1.3 | O64: 0.8 | P64: 0.6 | Q64: 1.8
B65: 9 | C65: 1.2 | D65: 1.3 | E65: 0.7 | F65: 0.5 | G65: 1.6 | H65: 1.0 | I65: 1.1 | J65: 0.6 | K65: 0.4 | L65: 0.1 | M65: 1.1 | N65: 1.2 | O65: 0.7 | P65: 0.5 | Q65: 0.1
B66: 10 | C66: 1.3 | D66: 1.4 | E66: 0.7 | F66: 0.6 | G66: 1.7 | H66: 1.1 | I66: 1.2 | J66: 0.8 | K66: 0.6 | L66: 1.3 | M66: 1.2 | N66: 1.4 | O66: 0.7 | P66: 0.6 | Q66: 1.6
B67: 11 | C67: 1.2 | D67: 1.3 | E67: 0.6 | F67: 0.5 | G67: 1.8 | H67: 1.1 | I67: 1.2 | J67: 0.8 | K67: 0.6 | L67: 1.3 | M67: 1.1 | N67: 1.3 | O67: 0.7 | P67: 0.5 | Q67: 1.7
B68: 12 | C68: 1.0 | D68: 1.1 | E68: 0.6 | F68: 0.4 | G68: 1.4 | H68: 0.7 | I68: 0.8 | J68: 0.5 | K68: 0.3 | L68: 1.2 | M68: 0.9 | N68: 1.0 | O68: 0.6 | P68: 0.4 | Q68: 1.3
B70: 1 | C70: 1.2 | D70: 1.4 | E70: 0.6 | F70: 0.5 | G70: 1.6 | H70: 1.0 | I70: 1.1 | J70: 0.8 | K70: 0.6 | L70: 1.3 | M70: 1.1 | N70: 1.3 | O70: 0.7 | P70: 0.5 | Q70: 1.6
B71: 2 | C71: 1.4 | D71: 1.5 | E71: 0.7 | F71: 0.6 | G71: 2.0 | H71: 1.0 | I71: 1.2 | J71: 0.9 | K71: 0.6 | L71: 1.6 | M71: 1.2 | N71: 1.4 | O71: 0.8 | P71: 0.6 | Q71: 1.9
B72: 3 | C72: 1.2 | D72: 1.3 | E72: 0.6 | F72: 0.5 | G72: 1.4 | H72: 1.1 | I72: 1.2 | J72: 0.8 | K72: 0.4 | L72: 1.4 | M72: 1.2 | N72: 1.3 | O72: 0.6 | P72: 0.5 | Q72: 1.4
B73: 4 | C73: 1.3 | D73: 1.5 | E73: 0.6 | F73: 0.5 | G73: 1.6 | H73: 1.2 | I73: 1.3 | J73: 0.8 | K73: 0.5 | L73: 1.4 | M73: 1.3 | N73: 1.4 | O73: 0.7 | P73: 0.5 | Q73: 1.5
B74: 5 | C74: 1.4 | D74: 1.6 | E74: 0.7 | F74: 0.5 | G74: 1.8 | H74: 1.2 | I74: 1.4 | J74: 0.9 | K74: 0.5 | L74: 1.5 | M74: 1.3 | N74: 1.5 | O74: 0.7 | P74: 0.5 | Q74: 1.8
A75: 2008 | B75: 6 | C75: 1.1 | D75: 1.2 | E75: 0.5 | F75: 0.4 | G75: 1.5 | H75: 0.9 | I75: 1.1 | J75: 0.6 | K75: 0.3 | L75: 1.4 | M75: 1.0 | N75: 1.1 | O75: 0.5 | P75: 0.4 | Q75: 1.4
B76: 7 | C76: 1.3 | D76: 1.5 | E76: 0.6 | F76: 0.4 | G76: 1.7 | H76: 1.1 | I76: 1.3 | J76: 0.7 | K76: 0.4 | L76: 1.5 | M76: 1.2 | N76: 1.4 | O76: 0.6 | P76: 0.4 | Q76: 1.6
B77: 8 | C77: 1.4 | D77: 1.6 | E77: 0.7 | F77: 0.5 | G77: 1.9 | H77: 1.2 | I77: 1.4 | J77: 0.8 | K77: 0.5 | L77: 1.7 | M77: 1.3 | N77: 1.5 | O77: 0.7 | P77: 0.5 | Q77: 1.9
A78: 2008 | B78: 9 | C78: 1.3 | D78: 1.5 | E78: 0.6 | F78: 0.4 | G78: 1.6 | H78: 1.2 | I78: 1.4 | J78: 0.6 | K78: 0.4 | L78: 1.6 | M78: 1.3 | N78: 1.5 | O78: 0.6 | P78: 0.4 | Q78: 1.6
B79: 10 | C79: 1.6 | D79: 1.9 | E79: 0.7 | F79: 0.5 | G79: 1.9 | H79: 1.4 | I79: 1.7 | J79: 0.7 | K79: 0.4 | L79: 1.7 | M79: 1.5 | N79: 1.8 | O79: 0.7 | P79: 0.5 | Q79: 1.8
B80: 11 | C80: 1.6 | D80: 1.9 | E80: 0.7 | F80: 0.5 | G80: 2.1 | H80: 1.5 | I80: 1.8 | J80: 0.7 | K80: 0.4 | L80: 2.0 | M80: 1.7 | N80: 1.9 | O80: 0.7 | P80: 0.5 | Q80: 2.1
B81: 12 | C81: 1.6 | D81: 1.8 | E81: 0.6 | F81: 0.5 | G81: 1.8 | H81: 1.3 | I81: 1.6 | J81: 0.6 | K81: 0.4 | L81: 1.7 | M81: 1.5 | N81: 1.7 | O81: 0.6 | P81: 0.5 | Q81: 1.8
A83: 2009 | B83: 1 | C83: 2.1 | D83: 2.4 | E83: 0.8 | F83: 0.7 | G83: 2.4 | H83: 1.9 | I83: 2.2 | J83: 0.9 | K83: 0.7 | L83: 2.2 | M83: 2.0 | N83: 2.4 | O83: 0.8 | P83: 0.7 | Q83: 2.4
B84: 2 | C84: 2.4 | D84: 2.8 | E84: 0.8 | F84: 0.7 | G84: 2.8 | H84: 2.1 | I84: 2.4 | J84: 1.1 | K84: 0.8 | L84: 2.5 | M84: 2.3 | N84: 2.7 | O84: 0.9 | P84: 0.7 | Q84: 2.8
B85: 3 | C85: 2.1 | D85: 2.4 | E85: 0.7 | F85: 0.6 | G85: 0.1 | H85: 2.0 | I85: 2.2 | J85: 0.8 | K85: 0.6 | L85: 0.1 | M85: 2.0 | N85: 2.3 | O85: 0.7 | P85: 0.6 | Q85: 0.1
B86: 4 | C86: 2.3 | D86: 2.6 | E86: 0.7 | F86: 0.5 | G86: 2.5 | H86: 2.2 | I86: 2.6 | J86: 0.9 | K86: 0.6 | L86: 2.2 | M86: 2.3 | N86: 2.6 | O86: 0.8 | P86: 0.5 | Q86: 2.4
B87: 5 | C87: 2.3 | D87: 2.6 | E87: 0.7 | F87: 0.5 | G87: 2.8 | H87: 2.2 | I87: 2.5 | J87: 0.9 | K87: 0.6 | L87: 2.5 | M87: 2.3 | N87: 2.6 | O87: 0.8 | P87: 0.6 | Q87: 2.7
B88: 6 | C88: 1.6 | D88: 1.8 | E88: 0.6 | F88: 0.4 | G88: 2.1 | H88: 1.8 | I88: 1.9 | J88: 0.6 | K88: 0.4 | L88: 2.0 | M88: 1.7 | N88: 1.9 | O88: 0.6 | P88: 0.4 | Q88: 2.1
B89: 7 | C89: 1.9 | D89: 2.1 | E89: 0.6 | F89: 0.4 | G89: 2.3 | H89: 1.9 | I89: 2.1 | J89: 0.7 | K89: 0.5 | L89: 2.1 | M89: 1.9 | N89: 2.1 | O89: 0.6 | P89: 0.4 | Q89: 2.3
B90: 8 | C90: 1.9 | D90: 2.2 | E90: 0.6 | F90: 0.4 | G90: 2.5 | H90: 2.0 | I90: 2.2 | J90: 0.8 | K90: 0.6 | L90: 2.3 | M90: 1.9 | N90: 2.2 | O90: 0.7 | P90: 0.5 | Q90: 2.4
B91: 9 | C91: 1.6 | D91: 1.7 | E91: 0.5 | F91: 0.4 | G91: 1.8 | H91: 1.6 | I91: 1.7 | J91: 0.6 | K91: 0.6 | L91: 1.8 | M91: 1.6 | N91: 1.7 | O91: 0.6 | P91: 0.4 | Q91: 1.8
B92: 10 | C92: 1.6 | D92: 1.8 | E92: 0.6 | F92: 0.4 | G92: 2.0 | H92: 1.7 | I92: 1.9 | J92: 0.7 | K92: 0.7 | L92: 1.9 | M92: 1.7 | N92: 1.8 | O92: 0.6 | P92: 0.4 | Q92: 2.0
B93: 11 | C93: 1.5 | D93: 1.7 | E93: 0.5 | F93: 0.4 | G93: 1.9 | H93: 1.7 | I93: 1.8 | J93: 0.7 | K93: 0.6 | L93: 2.1 | M93: 1.6 | N93: 1.7 | O93: 0.6 | P93: 0.4 | Q93: 1.9
A94: 2009 | B94: 12 | C94: 1.0 | D94: 1.1 | E94: 0.5 | F94: 0.3 | G94: 1.4 | H94: 0.9 | I94: 1.1 | J94: 0.5 | K94: 0.5 | L94: 1.5 | M94: 1.0 | N94: 1.1 | O94: 0.5 | P94: 0.3 | Q94: 1.4
B96: 1 | C96: 1.4 | D96: 1.5 | E96: 0.6 | F96: 0.3 | G96: 1.7 | H96: 1.3 | I96: 1.4 | J96: 0.8 | K96: 0.7 | L96: 1.8 | M96: 1.4 | N96: 1.5 | O96: 0.6 | P96: 0.4 | Q96: 1.7
B97: 2 | C97: 1.6 | D97: 1.7 | E97: 0.6 | F97: 0.4 | G97: 1.8 | H97: 1.5 | I97: 1.6 | J97: 0.8 | K97: 0.7 | L97: 1.8 | M97: 1.6 | N97: 1.6 | O97: 0.6 | P97: 0.4 | Q97: 1.8
B98: 3 | C98: 1.5 | D98: 1.5 | E98: 0.5 | F98: 0.3 | G98: 1.4 | H98: 1.4 | I98: 1.6 | J98: 0.7 | K98: 0.6 | L98: 1.6 | M98: 1.5 | N98: 1.6 | O98: 0.5 | P98: 0.4 | Q98: 1.4
B99: 4 | C99: 1.5 | D99: 1.7 | E99: 0.5 | F99: 0.3 | G99: 1.6 | H99: 1.5 | I99: 1.7 | J99: 0.8 | K99: 0.7 | L99: 1.6 | M99: 1.5 | N99: 1.7 | O99: 0.6 | P99: 0.4 | Q99: 1.6
B100: 5 | C100: 1.7 | D100: 1.9 | E100: 0.6 | F100: 0.4 | G100: 1.8 | H100: 1.7 | I100: 1.8 | J100: 0.8 | K100: 0.7 | L100: 1.8 | M100: 1.7 | N100: 1.9 | O100: 0.6 | P100: 0.4 | Q100: 1.8
B101: 6 | C101: 1.2 | D101: 1.3 | E101: 0.6 | F101: 0.4 | G101: 1.5 | H101: 1.5 | I101: 1.7 | J101: 0.7 | K101: 0.6 | L101: 1.3 | M101: 1.3 | N101: 1.4 | O101: 0.6 | P101: 0.4 | Q101: 1.5
B102: 7 | C102: 1.7 | D102: 1.7 | E102: 0.6 | F102: 0.5 | G102: 1.7 | H102: 1.9 | I102: 2.1 | J102: 0.9 | K102: 0.8 | L102: 1.5 | M102: 1.7 | N102: 1.9 | O102: 0.7 | P102: 0.5 | Q102: 1.7
B103: 8 | C103: 2.0 | D103: 2.2 | E103: 0.7 | F103: 0.6 | G103: 1.9 | H103: 2.1 | I103: 2.3 | J103: 0.9 | K103: 0.9 | L103: 1.6 | M103: 2.1 | N103: 2.2 | O103: 0.8 | P103: 0.6 | Q103: 1.8
B104: 9 | C104: 1.6 | D104: 1.9 | E104: 0.7 | F104: 0.5 | G104: 1.5 | H104: 1.7 | I104: 1.9 | J104: 0.8 | K104: 0.8 | L104: 1.3 | M104: 1.7 | N104: 1.9 | O104: 0.7 | P104: 0.6 | Q104: 1.5
B105: 10 | C105: 1.7 | D105: 2.0 | E105: 0.7 | F105: 0.6 | G105: 1.8 | H105: 1.8 | I105: 1.9 | J105: 0.8 | K105: 0.9 | L105: 1.5 | M105: 1.7 | N105: 2.0 | O105: 0.7 | P105: 0.6 | Q105: 1.7
B106: 11 | C106: 1.6 | D106: 1.9 | E106: 0.7 | F106: 0.5 | G106: 1.7 | H106: 1.8 | I106: 1.9 | J106: 0.9 | K106: 0.9 | L106: 1.6 | M106: 1.7 | N106: 1.9 | O106: 0.7 | P106: 0.6 | Q106: 1.7
A107: 2010 | B107: 12 | C107: 1.1 | D107: 1.3 | E107: 0.6 | F107: 0.5 | G107: 1.4 | H107: 1.1 | I107: 1.3 | J107: 0.6 | K107: 0.7 | L107: 1.1 | M107: 1.1 | N107: 1.3 | O107: 0.6 | P107: 0.5 | Q107: 1.3
B109: 1 | C109: 1.4 | D109: 1.6 | E109: 0.7 | F109: 0.5 | G109: 1.6 | H109: 1.2 | I109: 1.5 | J109: 0.7 | K109: 0.7 | L109: 1.3 | M109: 1.3 | N109: 1.5 | O109: 0.7 | P109: 0.6 | Q109: 1.6
B110: 2 | C110: 1.6 | D110: 1.8 | E110: 0.7 | F110: 0.5 | G110: 1.9 | H110: 1.4 | I110: 1.6 | J110: 0.8 | K110: 0.8 | L110: 1.6 | M110: 1.5 | N110: 1.7 | O110: 0.7 | P110: 0.5 | Q110: 1.9
B111: 3 | C111: 1.6 | D111: 1.7 | E111: 0.6 | F111: 0.5 | G111: 1.7 | H111: 1.2 | I111: 1.4 | J111: 0.7 | K111: 0.7 | L111: 1.3 | M111: 1.4 | N111: 1.6 | O111: 0.6 | P111: 0.5 | Q111: 1.6
B112: 4 | C112: 1.8 | D112: 2.0 | E112: 0.6 | F112: 0.5 | G112: 2.0 | H112: 1.3 | I112: 1.6 | J112: 0.7 | K112: 0.7 | L112: 1.2 | M112: 1.6 | N112: 1.8 | O112: 0.7 | P112: 0.5 | Q112: 1.7
B113: 5 | C113: 1.9 | D113: 2.2 | E113: 0.7 | F113: 0.6 | G113: 2.1 | H113: 1.5 | I113: 1.9 | J113: 0.8 | K113: 0.8 | L113: 1.6 | M113: 1.7 | N113: 2.1 | O113: 0.8 | P113: 0.6 | Q113: 1.9
B114: 6 | C114: 1.2 | D114: 1.5 | E114: 0.7 | F114: 0.6 | G114: 0.2 | H114: 1.1 | I114: 1.4 | J114: 0.9 | K114: 1.0 | L114: 0.0 | M114: 1.2 | N114: 1.4 | O114: 0.7 | P114: 0.7 | Q114: 0.1
B115: 7 | C115: 1.5 | D115: 1.8 | E115: 0.7 | F115: 0.6 | G115: 2.0 | H115: 1.3 | I115: 1.6 | J115: 0.9 | K115: 1.1 | L115: 1.8 | M115: 1.4 | N115: 1.7 | O115: 0.8 | P115: 0.7 | Q115: 2.0
B116: 8 | C116: 1.6 | D116: 1.9 | E116: 0.8 | F116: 0.6 | G116: 2.2 | H116: 1.5 | I116: 1.7 | J116: 1.0 | K116: 1.2 | L116: 1.8 | M116: 1.6 | N116: 1.8 | O116: 0.8 | P116: 0.7 | Q116: 2.1
B117: 9 | C117: 1.4 | D117: 1.6 | E117: 0.7 | F117: 0.6 | G117: 1.9 | H117: 1.3 | I117: 1.4 | J117: 0.9 | K117: 1.0 | L117: 1.5 | M117: 1.3 | N117: 1.6 | O117: 0.7 | P117: 0.6 | Q117: 1.8
B118: 10 | C118: 1.6 | D118: 1.9 | E118: 0.7 | F118: 0.6 | G118: 2.3 | H118: 1.9 | I118: 1.7 | J118: 0.9 | K118: 1.0 | L118: 1.8 | M118: 1.7 | N118: 1.8 | O118: 0.8 | P118: 0.7 | Q118: 2.1
B119: 11 | C119: 1.8 | D119: 2.0 | E119: 0.7 | F119: 0.6 | G119: 2.5 | H119: 2.2 | I119: 2.0 | J119: 1.0 | K119: 1.1 | L119: 1.8 | M119: 2.0 | N119: 2.0 | O119: 0.8 | P119: 0.7 | Q119: 2.3
A120: 2011 | B120: 12 | C120: 1.1 | D120: 1.4 | E120: 0.6 | F120: 0.6 | G120: 2.2 | H120: 1.0 | I120: 1.3 | J120: 0.8 | K120: 0.9 | L120: 1.5 | M120: 1.1 | N120: 1.3 | O120: 0.7 | P120: 0.6 | Q120: 1.9
A122: 2012 | B122: 1 | C122: 1.3 | D122: 1.6 | E122: 0.7 | F122: 0.6 | G122: 2.5 | H122: 1.4 | I122: 1.8 | J122: 1.0 | K122: 1.1 | L122: 1.7 | M122: 1.3 | N122: 1.6 | O122: 0.8 | P122: 0.7 | Q122: 2.2
B123: 2 | C123: 1.4 | D123: 1.7 | E123: 0.8 | F123: 0.7 | G123: 2.8 | H123: 1.4 | I123: 1.7 | J123: 1.1 | K123: 1.1 | L123: 1.9 | M123: 1.4 | N123: 1.7 | O123: 0.8 | P123: 0.7 | Q123: 2.6
B124: 3 | C124: 1.3 | D124: 1.5 | E124: 0.8 | F124: 0.7 | G124: 2.4 | H124: 1.3 | I124: 1.6 | J124: 1.0 | K124: 1.1 | L124: 1.5 | M124: 1.3 | N124: 1.6 | O124: 0.8 | P124: 0.8 | Q124: 2.1
A125: 2012 | B125: 4 | C125: 1.5 | D125: 1.7 | E125: 0.8 | F125: 0.7 | G125: 2.6 | H125: 1.5 | I125: 1.9 | J125: 1.1 | K125: 1.1 | L125: 1.6 | M125: 1.5 | N125: 1.7 | O125: 0.9 | P125: 0.8 | Q125: 2.3
A126: 2012 | B126: 5 | C126: 1.7 | D126: 1.8 | E126: 0.9 | F126: 0.8 | G126: 2.8 | H126: 1.8 | I126: 2.1 | J126: 1.2 | K126: 1.2 | L126: 1.7 | M126: 1.7 | N126: 1.9 | O126: 1.0 | P126: 0.9 | Q126: 2.4
A127: 2012 | B127: 6 | C127: 1.3 | D127: 1.5 | E127: 0.8 | F127: 0.7 | G127: 2.4 | H127: 1.3 | I127: 1.5 | J127: 1.0 | K127: 1.0 | L127: 1.3 | M127: 1.3 | N127: 1.5 | O127: 0.8 | P127: 0.7 | Q127: 2.1
A128: 2012 | B128: 7 | C128: 1.6 | D128: 1.7 | E128: 0.9 | F128: 0.8 | G128: 2.6 | H128: 1.9 | I128: 1.8 | J128: 1.2 | K128: 1.2 | L128: 1.5 | M128: 1.7 | N128: 1.8 | O128: 0.9 | P128: 0.8 | Q128: 2.2
A129: 2012 | B129: 8 | C129: 1.8 | D129: 1.8 | E129: 1.0 | F129: 0.8 | G129: 2.8 | H129: 2.3 | I129: 1.9 | J129: 1.2 | K129: 1.2 | L129: 1.7 | M129: 2.0 | N129: 1.9 | O129: 1.0 | P129: 0.9 | Q129: 2.5
A130: 2012 | B130: 9 | C130: 1.4 | D130: 1.5 | E130: 0.9 | F130: 0.8 | G130: 2.4 | H130: 1.4 | I130: 1.6 | J130: 1.1 | K130: 1.1 | L130: 1.4 | M130: 1.4 | N130: 1.6 | O130: 0.9 | P130: 0.9 | Q130: 2.1
A131: 2012 | B131: 10 | C131: 1.7 | D131: 1.7 | E131: 0.9 | F131: 0.9 | G131: 2.7 | H131: 1.6 | I131: 1.8 | J131: 1.3 | K131: 1.3 | L131: 1.5 | M131: 1.6 | N131: 1.8 | O131: 1.0 | P131: 0.9 | Q131: 2.3
A132: 2012 | B132: 11 | C132: 1.6 | D132: 1.6 | E132: 0.9 | F132: 0.8 | G132: 2.8 | H132: 1.5 | I132: 1.8 | J132: 1.3 | K132: 1.3 | L132: 1.6 | M132: 1.6 | N132: 1.7 | O132: 1.0 | P132: 0.9 | Q132: 2.4
A133: 2012 | B133: 12 | C133: 1.2 | D133: 1.3 | E133: 0.7 | F133: 0.7 | G133: 2.2 | H133: 1.1 | I133: 1.2 | J133: 1.1 | K133: 1.2 | L133: 1.3 | M133: 1.2 | N133: 1.3 | O133: 0.8 | P133: 0.7 | Q133: 1.9
A135: 2013 | B135: 1 | C135: 1.4 | D135: 1.5 | E135: 0.9 | F135: 0.8 | G135: 2.5 | H135: 1.2 | I135: 1.5 | J135: 1.3 | K135: 1.4 | L135: 1.5 | M135: 1.3 | N135: 1.5 | O135: 1.0 | P135: 0.9 | Q135: 2.2
B136: 2 | C136: 1.5 | D136: 1.7 | E136: 1.0 | F136: 0.9 | G136: 3.0 | H136: 1.4 | I136: 1.7 | J136: 1.3 | K136: 1.4 | L136: 1.8 | M136: 1.4 | N136: 1.7 | O136: 1.0 | P136: 1.0 | Q136: 2.6
B137: 3 | C137: 1.3 | D137: 1.4 | E137: 0.9 | F137: 0.8 | G137: 2.6 | H137: 1.3 | I137: 1.5 | J137: 1.2 | K137: 1.4 | L137: 1.5 | M137: 1.3 | N137: 1.5 | O137: 1.0 | P137: 0.9 | Q137: 2.2
B138: 4 | C138: 1.5 | D138: 1.6 | E138: 0.9 | F138: 0.8 | G138: 2.9 | H138: 1.5 | I138: 1.8 | J138: 1.2 | K138: 1.3 | L138: 1.5 | M138: 1.5 | N138: 1.6 | O138: 1.0 | P138: 0.9 | Q138: 2.4
B139: 5 | C139: 1.5 | D139: 1.6 | E139: 1.0 | F139: 0.9 | G139: 3.2 | H139: 1.5 | I139: 1.7 | J139: 1.2 | K139: 1.3 | L139: 1.6 | M139: 1.5 | N139: 1.6 | O139: 1.0 | P139: 0.9 | Q139: 2.5
B140: 6 | C140: 1.1 | D140: 1.2 | E140: 0.8 | F140: 0.7 | G140: 2.6 | H140: 1.0 | I140: 1.2 | J140: 1.0 | K140: 1.1 | L140: 1.3 | M140: 1.1 | N140: 1.2 | O140: 0.9 | P140: 0.8 | Q140: 2.1
B141: 7 | C141: 1.2 | D141: 1.3 | E141: 0.9 | F141: 0.8 | G141: 2.7 | H141: 1.1 | I141: 1.3 | J141: 1.1 | K141: 1.2 | L141: 1.3 | M141: 1.2 | N141: 1.3 | O141: 0.9 | P141: 0.8 | Q141: 2.1
B142: 8 | C142: 1.3 | D142: 1.4 | E142: 1.0 | F142: 0.8 | G142: 3.0 | H142: 1.2 | I142: 1.4 | J142: 1.1 | K142: 1.2 | L142: 1.5 | M142: 1.2 | N142: 1.4 | O142: 1.0 | P142: 0.9 | Q142: 2.4
B143: 9 | C143: 1.1 | D143: 1.3 | E143: 0.8 | F143: 0.7 | G143: 2.4 | H143: 1.1 | I143: 1.1 | J143: 0.9 | K143: 1.0 | L143: 1.2 | M143: 1.1 | N143: 1.2 | O143: 0.9 | P143: 0.8 | Q143: 1.9
B144: 10 | C144: 1.2 | D144: 1.3 | E144: 0.8 | F144: 0.7 | G144: 2.7 | H144: 1.3 | I144: 1.3 | J144: 0.9 | K144: 1.0 | L144: 1.3 | M144: 1.2 | N144: 1.3 | O144: 0.9 | P144: 0.8 | Q144: 2.1
B145: 11 | C145: 1.2 | D145: 1.4 | E145: 0.9 | F145: 0.7 | G145: 3.0 | H145: 1.4 | I145: 1.3 | J145: 1.0 | K145: 1.0 | L145: 1.4 | M145: 1.3 | N145: 1.4 | O145: 0.9 | P145: 0.8 | Q145: 2.3
A146: 계절조정치 Seasonally adjusted
A147: 2004 | C147: 2.5 | D147: - | E147: 2.1 | F147: - | G147: 5.3 | H147: 1.9 | I147: - | J147: 1.7 | K147: - | L147: 4.8 | M147: 2.3 | N147: - | O147: 2.0 | P147: - | Q147: 5.2
A148: 2005 | C148: 1.9 | D148: - | E148: 1.4 | F148: - | G148: 2.9 | H148: 1.4 | I148: - | J148: 1.2 | K148: - | L148: 2.5 | M148: 1.7 | N148: - | O148: 1.3 | P148: - | Q148: 2.8
A149: 2006 | C149: 1.4 | D149: - | E149: 0.9 | F149: - | G149: 2.2 | H149: 1.0 | I149: - | J149: 0.7 | K149: - | L149: 1.5 | M149: 1.2 | N149: - | O149: 0.8 | P149: - | Q149: 2.0
A150: 2007 | C150: 1.2 | D150: - | E150: 0.7 | F150: - | G150: 1.8 | H150: 1.0 | I150: - | J150: 0.7 | K150: - | L150: 1.4 | M150: 1.2 | N150: - | O150: 0.7 | P150: - | Q150: 1.7
A151: 2008 | C151: 1.9 | D151: - | E151: 0.7 | F151: - | G151: 2.3 | H151: 1.8 | I151: - | J151: 0.8 | K151: - | L151: 2.0 | M151: 1.8 | N151: - | O151: 0.7 | P151: - | Q151: 2.2
A152: 2009 | C152: 1.2 | D152: - | E152: 0.6 | F152: - | G152: 1.7 | H152: 1.3 | I152: - | J152: 0.8 | K152: - | L152: 1.9 | M152: 1.2 | N152: - | O152: 0.6 | P152: - | Q152: 1.8
A153: 2010 | C153: 1.4 | D153: - | E153: 0.7 | F153: - | G153: 1.7 | H153: 1.6 | I153: - | J153: 0.9 | K153: - | L153: 1.4 | M153: 1.4 | N153: - | O153: 0.8 | P153: - | Q153: 1.7
A154: 2011 | C154: 1.4 | D154: - | E154: 0.8 | F154: - | G154: 2.6 | H154: 1.5 | I154: - | J154: 1.1 | K154: - | L154: 1.7 | M154: 1.4 | N154: - | O154: 0.8 | P154: - | Q154: 2.3
A155: 2012 | C155: 1.7 | D155: - | E155: 0.8 | F155: - | G155: 2.7 | H155: 1.5 | I155: - | J155: 1.4 | K155: - | L155: 1.6 | M155: 1.6 | N155: - | O155: 1.0 | P155: - | Q155: 2.4
A157: 2007 | B157: 1 | C157: 1.4 | D157: - | E157: 0.9 | F157: - | G157: 2.1 | H157: 1.0 | I157: - | J157: 0.7 | K157: - | L157: 1.5 | M157: 1.2 | N157: - | O157: 0.8 | P157: - | Q157: 2.0
B158: 2 | C158: 1.4 | D158: - | E158: 0.8 | F158: - | G158: 2.0 | H158: 1.0 | I158: - | J158: 0.8 | K158: - | L158: 1.4 | M158: 1.2 | N158: - | O158: 0.8 | P158: - | Q158: 2.0
B159: 3 | C159: 1.3 | D159: - | E159: 0.8 | F159: - | G159: 1.8 | H159: 1.1 | I159: - | J159: 0.8 | K159: - | L159: 1.5 | M159: 1.2 | N159: - | O159: 0.8 | P159: - | Q159: 1.7
B160: 4 | C160: 1.2 | D160: - | E160: 0.8 | F160: - | G160: 1.7 | H160: 1.1 | I160: - | J160: 0.7 | K160: - | L160: 1.4 | M160: 1.2 | N160: - | O160: 0.8 | P160: - | Q160: 1.7
B161: 5 | C161: 1.2 | D161: - | E161: 0.8 | F161: - | G161: 1.7 | H161: 1.0 | I161: - | J161: 0.8 | K161: - | L161: 1.1 | M161: 1.1 | N161: - | O161: 0.8 | P161: - | Q161: 1.6
B162: 6 | C162: 1.2 | D162: - | E162: 0.7 | F162: - | G162: 1.6 | H162: 1.0 | I162: - | J162: 0.7 | K162: - | L162: 1.2 | M162: 1.1 | N162: - | O162: 0.7 | P162: - | Q162: 1.5
B163: 7 | C163: 1.2 | D163: - | E163: 0.7 | F163: - | G163: 1.6 | H163: 1.0 | I163: - | J163: 0.8 | K163: - | L163: 1.2 | M163: 1.1 | N163: - | O163: 0.7 | P163: - | Q163: 1.5
B164: 8 | C164: 1.2 | D164: - | E164: 0.8 | F164: - | G164: 1.6 | H164: 1.0 | I164: - | J164: 0.8 | K164: - | L164: 1.3 | M164: 1.1 | N164: - | O164: 0.8 | P164: - | Q164: 1.6
B165: 9 | C165: 1.3 | D165: - | E165: 0.7 | F165: - | G165: 1.6 | H165: 1.0 | I165: - | J165: 0.7 | K165: - | L165: 1.5 | M165: 1.2 | N165: - | O165: 0.7 | P165: - | Q165: 1.6
B166: 10 | C166: 1.3 | D166: - | E166: 0.7 | F166: - | G166: 1.7 | H166: 1.0 | I166: - | J166: 0.8 | K166: - | L166: 1.4 | M166: 1.2 | N166: - | O166: 0.7 | P166: - | Q166: 1.6
B167: 11 | C167: 1.1 | D167: - | E167: 0.6 | F167: - | G167: 1.7 | H167: 1.1 | I167: - | J167: 0.9 | K167: - | L167: 1.3 | M167: 1.1 | N167: - | O167: 0.7 | P167: - | Q167: 1.6
B168: 12 | C168: 1.2 | D168: - | E168: 0.7 | F168: - | G168: 1.8 | H168: 1.0 | I168: - | J168: 0.7 | K168: - | L168: 1.4 | M168: 1.2 | N168: - | O168: 0.7 | P168: - | Q168: 1.7
D169: - | F169: - | I169: - | K169: - | N169: - | P169: -
B170: 1 | C170: 1.3 | D170: - | E170: 0.7 | F170: - | G170: 1.8 | H170: 1.0 | I170: - | J170: 0.8 | K170: - | L170: 1.4 | M170: 1.2 | N170: - | O170: 0.7 | P170: - | Q170: 1.7
B171: 2 | C171: 1.3 | D171: - | E171: 0.7 | F171: - | G171: 1.8 | H171: 1.0 | I171: - | J171: 0.8 | K171: - | L171: 1.5 | M171: 1.2 | N171: - | O171: 0.7 | P171: - | Q171: 1.7
B172: 3 | C172: 1.3 | D172: - | E172: 0.6 | F172: - | G172: 1.6 | H172: 1.0 | I172: - | J172: 0.7 | K172: - | L172: 1.3 | M172: 1.2 | N172: - | O172: 0.6 | P172: - | Q172: 1.5
B173: 4 | C173: 1.3 | D173: - | E173: 0.6 | F173: - | G173: 1.5 | H173: 1.1 | I173: - | J173: 0.7 | K173: - | L173: 1.3 | M173: 1.2 | N173: - | O173: 0.6 | P173: - | Q173: 1.5
B174: 5 | C174: 1.3 | D174: - | E174: 0.6 | F174: - | G174: 1.6 | H174: 1.1 | I174: - | J174: 0.7 | K174: - | L174: 1.4 | M174: 1.2 | N174: - | O174: 0.6 | P174: - | Q174: 1.6
A175: 2008 | B175: 6 | C175: 1.2 | D175: - | E175: 0.6 | F175: - | G175: 1.7 | H175: 1.2 | I175: - | J175: 0.7 | K175: - | L175: 1.5 | M175: 1.2 | N175: - | O175: 0.6 | P175: - | Q175: 1.7
B176: 7 | C176: 1.3 | D176: - | E176: 0.6 | F176: - | G176: 1.7 | H176: 1.1 | I176: - | J176: 0.7 | K176: - | L176: 1.4 | M176: 1.2 | N176: - | O176: 0.6 | P176: - | Q176: 1.6
B177: 8 | C177: 1.3 | D177: - | E177: 0.6 | F177: - | G177: 1.7 | H177: 1.1 | I177: - | J177: 0.7 | K177: - | L177: 1.6 | M177: 1.2 | N177: - | O177: 0.6 | P177: - | Q177: 1.7
A178: 2008 | B178: 9 | C178: 1.4 | D178: - | E178: 0.6 | F178: - | G178: 1.7 | H178: 1.2 | I178: - | J178: 0.7 | K178: - | L178: 1.7 | M178: 1.3 | N178: - | O178: 0.6 | P178: - | Q178: 1.7
B179: 10 | C179: 1.5 | D179: - | E179: 0.7 | F179: - | G179: 1.8 | H179: 1.3 | I179: - | J179: 0.7 | K179: - | L179: 1.7 | M179: 1.4 | N179: - | O179: 0.7 | P179: - | Q179: 1.7
B180: 11 | C180: 1.6 | D180: - | E180: 0.7 | F180: - | G180: 1.9 | H180: 1.4 | I180: - | J180: 0.8 | K180: - | L180: 2.0 | M180: 1.7 | N180: - | O180: 0.7 | P180: - | Q180: 1.9
B181: 12 | C181: 1.9 | D181: - | E181: 0.7 | F181: - | G181: 2.3 | H181: 1.8 | I181: - | J181: 0.8 | K181: - | L181: 2.0 | M181: 1.8 | N181: - | O181: 0.7 | P181: - | Q181: 2.2
D182: - | F182: - | I182: - | K182: - | N182: - | P182: -
A183: 2009 | B183: 1 | C183: 2.1 | D183: - | E183: 0.8 | F183: - | G183: 2.6 | H183: 2.0 | I183: - | J183: 1.0 | K183: - | L183: 2.3 | M183: 2.1 | N183: - | O183: 0.8 | P183: - | Q183: 2.6
A184: 2009 | B184: 2 | C184: 2.3 | D184: - | E184: 0.8 | F184: - | G184: 2.6 | H184: 2.0 | I184: - | J184: 0.9 | K184: - | L184: 2.4 | M184: 2.2 | N184: - | O184: 0.8 | P184: - | Q184: 2.6
B185: 3 | C185: 2.2 | D185: - | E185: 0.7 | F185: - | G185: 2.4 | H185: 1.9 | I185: - | J185: 0.8 | K185: - | L185: 2.2 | M185: 2.1 | N185: - | O185: 0.7 | P185: - | Q185: 2.4
B186: 4 | C186: 2.2 | D186: - | E186: 0.7 | F186: - | G186: 2.4 | H186: 2.1 | I186: - | J186: 0.8 | K186: - | L186: 2.0 | M186: 2.1 | N186: - | O186: 0.7 | P186: - | Q186: 2.3
B187: 5 | C187: 2.1 | D187: - | E187: 0.6 | F187: - | G187: 2.5 | H187: 2.0 | I187: - | J187: 0.8 | K187: - | L187: 2.2 | M187: 2.1 | N187: - | O187: 0.7 | P187: - | Q187: 2.4
B188: 6 | C188: 1.9 | D188: - | E188: 0.7 | F188: - | G188: 2.4 | H188: 2.2 | I188: - | J188: 0.7 | K188: - | L188: 2.1 | M188: 2.0 | N188: - | O188: 0.7 | P188: - | Q188: 2.4
B189: 7 | C189: 1.9 | D189: - | E189: 0.6 | F189: - | G189: 2.3 | H189: 1.9 | I189: - | J189: 0.7 | K189: - | L189: 2.0 | M189: 1.9 | N189: - | O189: 0.6 | P189: - | Q189: 2.2
B190: 8 | C190: 1.8 | D190: - | E190: 0.6 | F190: - | G190: 2.1 | H190: 1.8 | I190: - | J190: 0.7 | K190: - | L190: 2.2 | M190: 1.8 | N190: - | O190: 0.6 | P190: - | Q190: 2.1
B191: 9 | C191: 1.7 | D191: - | E191: 0.6 | F191: - | G191: 1.8 | H191: 1.6 | I191: - | J191: 0.7 | K191: - | L191: 2.0 | M191: 1.6 | N191: - | O191: 0.6 | P191: - | Q191: 1.9
B192: 10 | C192: 1.5 | D192: - | E192: 0.6 | F192: - | G192: 1.9 | H192: 1.5 | I192: - | J192: 0.7 | K192: - | L192: 1.9 | M192: 1.6 | N192: - | O192: 0.6 | P192: - | Q192: 1.9
B193: 11 | C193: 1.4 | D193: - | E193: 0.5 | F193: - | G193: 1.7 | H193: 1.6 | I193: - | J193: 0.8 | K193: - | L193: 2.1 | M193: 1.5 | N193: - | O193: 0.6 | P193: - | Q193: 1.7
A194: 2009 | B194: 12 | C194: 1.2 | D194: - | E194: 0.6 | F194: - | G194: 1.7 | H194: 1.3 | I194: - | J194: 0.8 | K194: - | L194: 1.9 | M194: 1.2 | N194: - | O194: 0.6 | P194: - | Q194: 1.8
D195: - | F195: - | I195: - | K195: - | N195: - | P195: -
B196: 1 | C196: 1.4 | D196: - | E196: 0.5 | F196: - | G196: 1.8 | H196: 1.4 | I196: - | J196: 0.8 | K196: - | L196: 1.8 | M196: 1.4 | N196: - | O196: 0.6 | P196: - | Q196: 1.8
B197: 2 | C197: 1.5 | D197: - | E197: 0.6 | F197: - | G197: 1.6 | H197: 1.4 | I197: - | J197: 0.7 | K197: - | L197: 1.7 | M197: 1.5 | N197: - | O197: 0.6 | P197: - | Q197: 1.6
B198: 3 | C198: 1.6 | D198: - | E198: 0.5 | F198: - | G198: 1.4 | H198: 1.4 | I198: - | J198: 0.6 | K198: - | L198: 1.5 | M198: 1.5 | N198: - | O198: 0.5 | P198: - | Q198: 1.5
B199: 4 | C199: 1.5 | D199: - | E199: 0.5 | F199: - | G199: 1.6 | H199: 1.4 | I199: - | J199: 0.7 | K199: - | L199: 1.5 | M199: 1.4 | N199: - | O199: 0.6 | P199: - | Q199: 1.5
B200: 5 | C200: 1.5 | D200: - | E200: 0.5 | F200: - | G200: 1.6 | H200: 1.5 | I200: - | J200: 0.7 | K200: - | L200: 1.6 | M200: 1.5 | N200: - | O200: 0.6 | P200: - | Q200: 1.6
B201: 6 | C201: 1.4 | D201: - | E201: 0.6 | F201: - | G201: 1.7 | H201: 1.9 | I201: - | J201: 0.8 | K201: - | L201: 1.4 | M201: 1.6 | N201: - | O201: 0.6 | P201: - | Q201: 1.7
B202: 7 | C202: 1.6 | D202: - | E202: 0.6 | F202: - | G202: 1.7 | H202: 2.0 | I202: - | J202: 0.9 | K202: - | L202: 1.4 | M202: 1.7 | N202: - | O202: 0.7 | P202: - | Q202: 1.6
B203: 8 | C203: 1.9 | D203: - | E203: 0.7 | F203: - | G203: 1.7 | H203: 1.9 | I203: - | J203: 0.9 | K203: - | L203: 1.5 | M203: 1.9 | N203: - | O203: 0.7 | P203: - | Q203: 1.6
B204: 9 | C204: 1.7 | D204: - | E204: 0.7 | F204: - | G204: 1.6 | H204: 1.7 | I204: - | J204: 0.7 | K204: - | L204: 1.5 | M204: 1.7 | N204: - | O204: 0.7 | P204: - | Q204: 1.6
B205: 10 | C205: 1.6 | D205: - | E205: 0.7 | F205: - | G205: 1.8 | H205: 1.6 | I205: - | J205: 0.8 | K205: - | L205: 1.6 | M205: 1.6 | N205: - | O205: 0.7 | P205: - | Q205: 1.7
B206: 11 | C206: 1.5 | D206: - | E206: 0.7 | F206: - | G206: 1.5 | H206: 1.7 | I206: - | J206: 0.9 | K206: - | L206: 1.7 | M206: 1.6 | N206: - | O206: 0.7 | P206: - | Q206: 1.6
A207: 2010 | B207: 12 | C207: 1.4 | D207: - | E207: 0.7 | F207: - | G207: 1.7 | H207: 1.6 | I207: - | J207: 0.9 | K207: - | L207: 1.4 | M207: 1.4 | N207: - | O207: 0.8 | P207: - | Q207: 1.7
D208: - | F208: - | I208: - | K208: - | N208: - | P208: -
B209: 1 | C209: 1.4 | D209: - | E209: 0.7 | F209: - | G209: 1.8 | H209: 1.2 | I209: - | J209: 0.8 | K209: - | L209: 1.3 | M209: 1.3 | N209: - | O209: 0.7 | P209: - | Q209: 1.7
B210: 2 | C210: 1.5 | D210: - | E210: 0.6 | F210: - | G210: 1.7 | H210: 1.3 | I210: - | J210: 0.7 | K210: - | L210: 1.5 | M210: 1.4 | N210: - | O210: 0.6 | P210: - | Q210: 1.7
B211: 3 | C211: 1.6 | D211: - | E211: 0.6 | F211: - | G211: 1.8 | H211: 1.1 | I211: - | J211: 0.6 | K211: - | L211: 1.2 | M211: 1.4 | N211: - | O211: 0.6 | P211: - | Q211: 1.7
B212: 4 | C212: 1.6 | D212: - | E212: 0.6 | F212: - | G212: 1.9 | H212: 1.2 | I212: - | J212: 0.7 | K212: - | L212: 1.1 | M212: 1.5 | N212: - | O212: 0.6 | P212: - | Q212: 1.6
... 36 more rows

Sheet 38. 예금은행 가중평균 대출금리
A1: 38. 예금은행 가중평균 대출금리1) CBs & SBs Weighted Average of Interest Rates
A3: 단위 : % | J3: %
A4: 연ㆍ월 | C4: 대출평균 | D4: 기업대출3) | E4: 가계대출3) | J4: 공공및기타 부문대출3)
F5: 소액대출 (500만원이하) | G5: 주택담보대출 | H5: 예·적금 담보대출 | I5: 일반신용대출4)
A6: Year or Month | C6: Average rate | D6: Loans to corporation | E6: Loans to households | F6: Loans of 5million won or less | G6: Mortgage | H6: Deposit | I6: Credits | J6: Loans to public & other sectors
A8: 신규액취급기준2) Based on Newly Extended
A9: 2004 | C9: 5.90 | D9: 5.92 | E9: 5.88 | F9: 6.25 | G9: 5.86 | H9: 5.93 | J9: 5.51
A10: 2005 | C10: 5.59 | D10: 5.65 | E10: 5.49 | F10: 5.99 | G10: 5.39 | H10: 5.53 | I10: 6.32 | J10: 4.91
A11: 2006 | C11: 5.99 | D11: 6.08 | E11: 5.80 | F11: 6.27 | G11: 5.64 | H11: 5.64 | I11: 6.89 | J11: 5.42
A12: 2007 | C12: 6.55 | D12: 6.60 | E12: 6.48 | F12: 6.57 | G12: 6.34 | H12: 6.11 | I12: 7.46 | J12: 5.65
A13: 2008 | C13: 7.17 | D13: 7.17 | E13: 7.19 | F13: 7.28 | G13: 7.00 | H13: 6.84 | I13: 8.44 | J13: 6.70
A14: 2009 | C14: 5.65 | D14: 5.65 | E14: 5.73 | F14: 6.85 | G14: 5.54 | H14: 6.07 | I14: 7.09 | J14: 5.21
A15: 2010 | C15: 5.51 | D15: 5.56 | E15: 5.38 | F15: 6.55 | G15: 5.00 | H15: 5.36 | I15: 7.19 | J15: 5.10
A16: 2011 | C16: 5.76 | D16: 5.86 | E16: 5.47 | F16: 6.67 | G16: 4.92 | H16: 5.38 | I16: 7.82 | J16: 5.20
A17: 2012 | C17: 5.40 | D17: 5.49 | E17: 5.22 | F17: 6.60 | G17: 4.63 | H17: 5.11 | I17: 7.43 | J17: 4.56
A18: 2013 | C18: 4.64 | D18: 4.74 | E18: 4.35 | F18: 5.95 | G18: 3.86 | H18: 4.54 | I18: 6.28 | J18: 4.31
A20: 2004 | B20: 1 | C20: 6.25 | D20: 6.23 | E20: 6.34 | F20: 7.16 | G20: 6.29 | H20: 6.02 | J20: 6.01
A21: 2004 | B21: 2 | C21: 6.09 | D21: 6.11 | E21: 6.08 | F21: 4.84 | G21: 6.15 | H21: 6.13 | J21: 5.13
A22: 2004 | B22: 3 | C22: 6.12 | D22: 6.13 | E22: 6.11 | F22: 5.95 | G22: 5.98 | H22: 6.07 | J22: 5.10
A23: 2004 | B23: 4 | C23: 6.02 | D23: 6.01 | E23: 6.07 | F23: 6.87 | G23: 6.03 | H23: 6.03 | J23: 6.21
A24: 2004 | B24: 5 | C24: 5.97 | D24: 5.95 | E24: 6.02 | F24: 6.59 | G24: 6.01 | H24: 5.93 | J24: 5.91
A25: 2004 | B25: 6 | C25: 6.06 | D25: 6.08 | E25: 6.00 | F25: 6.76 | G25: 5.99 | H25: 5.98 | J25: 6.22
A26: 2004 | B26: 7 | C26: 5.96 | D26: 5.97 | E26: 5.92 | F26: 6.61 | G26: 5.93 | H26: 5.95 | J26: 5.77
A27: 2004 | B27: 8 | C27: 5.81 | D27: 5.86 | E27: 5.69 | F27: 4.69 | G27: 5.80 | H27: 5.88 | J27: 5.02
A28: 2004 | B28: 9 | C28: 5.74 | D28: 5.77 | E28: 5.66 | F28: 6.09 | G28: 5.63 | H28: 5.92 | J28: 5.21
A29: 2004 | B29: 10 | C29: 5.71 | D29: 5.73 | E29: 5.62 | F29: 6.50 | G29: 5.57 | H29: 5.88 | I29: 5.63 | J29: 5.77
A30: 2004 | B30: 11 | C30: 5.60 | D30: 5.63 | E30: 5.57 | F30: 6.51 | G30: 5.47 | H30: 5.75 | I30: 5.98 | J30: 4.93
A31: 2004 | B31: 12 | C31: 5.52 | D31: 5.54 | E31: 5.48 | F31: 6.46 | G31: 5.41 | H31: 5.67 | I31: 6.24 | J31: 4.78
A33: 2005 | B33: 1 | C33: 5.58 | D33: 5.64 | E33: 5.51 | F33: 6.15 | G33: 5.45 | H33: 5.75 | I33: 6.13 | J33: 4.51
A34: 2005 | B34: 2 | C34: 5.53 | D34: 5.63 | E34: 5.52 | F34: 4.21 | G34: 5.53 | H34: 5.66 | I34: 5.64 | J34: 3.71
A35: 2005 | B35: 3 | C35: 5.63 | D35: 5.65 | E35: 5.60 | F35: 5.84 | G35: 5.48 | H35: 5.65 | I35: 6.37 | J35: 5.13
A36: 2005 | B36: 4 | C36: 5.59 | D36: 5.66 | E36: 5.43 | F36: 6.25 | G36: 5.32 | H36: 5.56 | I36: 6.28 | J36: 4.63
A37: 2005 | B37: 5 | C37: 5.50 | D37: 5.57 | E37: 5.34 | F37: 6.22 | G37: 5.15 | H37: 5.55 | I37: 6.18 | J37: 5.20
A38: 2005 | B38: 6 | C38: 5.50 | D38: 5.60 | E38: 5.28 | F38: 6.25 | G38: 5.13 | H38: 5.48 | I38: 6.16 | J38: 5.19
A39: 2005 | B39: 7 | C39: 5.51 | D39: 5.58 | E39: 5.34 | F39: 6.13 | G39: 5.18 | H39: 5.51 | I39: 6.20 | J39: 5.17
A40: 2005 | B40: 8 | C40: 5.49 | D40: 5.53 | E40: 5.38 | F40: 5.70 | G40: 5.26 | H40: 5.49 | I40: 6.31 | J40: 5.51
A41: 2005 | B41: 9 | C41: 5.61 | D41: 5.67 | E41: 5.50 | F41: 6.08 | G41: 5.36 | H41: 5.42 | I41: 6.51 | J41: 4.76
A42: 2005 | B42: 10 | C42: 5.73 | D42: 5.75 | E42: 5.70 | F42: 6.50 | G42: 5.61 | H42: 5.47 | I42: 6.66 | J42: 5.01
A43: 2005 | B43: 11 | C43: 5.71 | D43: 5.75 | E43: 5.64 | F43: 6.29 | G43: 5.59 | H43: 5.45 | I43: 6.65 | J43: 5.14
A44: 2005 | B44: 12 | C44: 5.74 | D44: 5.80 | E44: 5.63 | F44: 6.25 | G44: 5.60 | H44: 5.41 | I44: 6.73 | J44: 5.01
A46: 2006 | B46: 1 | C46: 5.79 | D46: 5.85 | E46: 5.69 | F46: 6.25 | G46: 5.64 | H46: 5.47 | I46: 6.74 | J46: 4.97
A47: 2006 | B47: 2 | C47: 5.76 | D47: 5.94 | E47: 5.71 | F47: 6.17 | G47: 5.58 | H47: 5.49 | I47: 6.68 | J47: 4.47
A48: 2006 | B48: 3 | C48: 5.89 | D48: 5.99 | E48: 5.68 | F48: 6.27 | G48: 5.46 | H48: 5.48 | I48: 6.93 | J48: 5.11
A49: 2006 | B49: 4 | C49: 5.83 | D49: 5.92 | E49: 5.62 | F49: 6.28 | G49: 5.42 | H49: 5.52 | I49: 6.98 | J49: 5.79
A50: 2006 | B50: 5 | C50: 5.89 | D50: 5.99 | E50: 5.64 | F50: 6.28 | G50: 5.41 | H50: 5.59 | I50: 6.97 | J50: 5.59
A51: 2006 | B51: 6 | C51: 5.98 | D51: 6.09 | E51: 5.72 | F51: 6.52 | G51: 5.48 | H51: 5.63 | I51: 7.00 | J51: 5.24
A52: 2006 | B52: 7 | C52: 6.10 | D52: 6.16 | E52: 5.95 | F52: 6.39 | G52: 5.79 | H52: 5.66 | I52: 7.13 | J52: 5.71
A53: 2006 | B53: 8 | C53: 6.16 | D53: 6.20 | E53: 6.03 | F53: 5.92 | G53: 5.86 | H53: 5.73 | I53: 6.81 | J53: 5.73
A54: 2006 | B54: 9 | C54: 6.13 | D54: 6.21 | E54: 5.90 | F54: 6.03 | G54: 5.77 | H54: 5.64 | I54: 6.98 | J54: 5.51
A55: 2006 | B55: 10 | C55: 6.09 | D55: 6.18 | E55: 5.84 | F55: 6.38 | G55: 5.69 | H55: 5.75 | I55: 6.89 | J55: 5.69
A56: 2006 | B56: 11 | C56: 6.04 | D56: 6.16 | E56: 5.82 | F56: 6.39 | G56: 5.69 | H56: 5.81 | I56: 6.83 | J56: 5.79
A57: 2006 | B57: 12 | C57: 6.19 | D57: 6.30 | E57: 5.97 | F57: 6.32 | G57: 5.88 | H57: 5.92 | I57: 6.75 | J57: 5.45
A59: 2007 | B59: 1 | C59: 6.32 | D59: 6.39 | E59: 6.20 | F59: 6.36 | G59: 6.11 | H59: 5.87 | I59: 7.18 | J59: 5.55
A60: 2007 | B60: 2 | C60: 6.34 | D60: 6.43 | E60: 6.25 | F60: 6.28 | G60: 6.18 | H60: 5.87 | I60: 7.11 | J60: 5.13
A61: 2007 | B61: 3 | C61: 6.37 | D61: 6.41 | E61: 6.32 | F61: 6.31 | G61: 6.20 | H61: 5.90 | I61: 7.42 | J61: 5.30
A62: 2007 | B62: 4 | C62: 6.35 | D62: 6.37 | E62: 6.30 | F62: 6.46 | G62: 6.13 | H62: 5.98 | I62: 7.34 | J62: 5.71
A63: 2007 | B63: 5 | C63: 6.48 | D63: 6.51 | E63: 6.39 | F63: 6.61 | G63: 6.17 | H63: 5.98 | I63: 7.50 | J63: 6.00
A64: 2007 | B64: 6 | C64: 6.42 | D64: 6.47 | E64: 6.33 | F64: 6.61 | G64: 6.13 | H64: 6.03 | I64: 7.41 | J64: 5.48
A65: 2007 | B65: 7 | C65: 6.41 | D65: 6.46 | E65: 6.38 | F65: 6.49 | G65: 6.24 | H65: 6.08 | I65: 7.33 | J65: 5.58
A66: 2007 | B66: 8 | C66: 6.56 | D66: 6.59 | E66: 6.51 | F66: 6.52 | G66: 6.38 | H66: 6.09 | I66: 7.28 | J66: 5.72
A67: 2007 | B67: 9 | C67: 6.70 | D67: 6.74 | E67: 6.66 | F67: 6.66 | G67: 6.52 | H67: 6.24 | I67: 7.64 | J67: 5.63
A68: 2007 | B68: 10 | C68: 6.79 | D68: 6.82 | E68: 6.71 | F68: 6.78 | G68: 6.55 | H68: 6.29 | I68: 7.68 | J68: 6.41
A69: 2007 | B69: 11 | C69: 6.80 | D69: 6.82 | E69: 6.75 | F69: 6.75 | G69: 6.59 | H69: 6.37 | I69: 7.73 | J69: 6.16
A70: 2007 | B70: 12 | C70: 7.08 | D70: 7.16 | E70: 6.99 | F70: 6.96 | G70: 6.85 | H70: 6.60 | I70: 7.85 | J70: 5.14
A72: 2008 | B72: 1 | C72: 7.25 | D72: 7.26 | E72: 7.21 | F72: 7.09 | G72: 7.08 | H72: 6.65 | I72: 8.17 | J72: 7.03
A73: 2008 | B73: 2 | C73: 6.90 | D73: 6.93 | E73: 6.95 | F73: 7.32 | G73: 6.72 | H73: 6.58 | I73: 7.75 | J73: 5.22
A74: 2008 | B74: 3 | C74: 6.90 | D74: 6.92 | E74: 6.89 | F74: 7.04 | G74: 6.70 | H74: 6.61 | I74: 7.80 | J74: 6.21
A75: 2008 | B75: 4 | C75: 6.91 | D75: 6.91 | E75: 6.99 | F75: 6.98 | G75: 6.80 | H75: 6.68 | I75: 8.18 | J75: 6.39
A76: 2008 | B76: 5 | C76: 6.96 | D76: 6.96 | E76: 6.95 | F76: 6.90 | G76: 6.79 | H76: 6.70 | I76: 8.13 | J76: 6.77
A77: 2008 | B77: 6 | C77: 7.02 | D77: 7.04 | E77: 6.93 | F77: 7.18 | G77: 6.77 | H77: 6.75 | I77: 8.27 | J77: 6.85
A78: 2008 | B78: 7 | C78: 7.12 | D78: 7.12 | E78: 7.12 | F78: 7.41 | G78: 6.92 | H78: 6.79 | I78: 8.51 | J78: 6.99
A79: 2008 | B79: 8 | C79: 7.31 | D79: 7.30 | E79: 7.35 | F79: 7.56 | G79: 7.16 | H79: 6.90 | I79: 8.76 | J79: 6.65
A80: 2008 | B80: 9 | C80: 7.44 | D80: 7.44 | E80: 7.45 | F80: 7.40 | G80: 7.25 | H80: 6.99 | I80: 8.97 | J80: 6.96
A81: 2008 | B81: 10 | C81: 7.79 | D81: 7.80 | E81: 7.77 | F81: 7.69 | G81: 7.58 | H81: 7.12 | I81: 9.20 | J81: 7.40
A82: 2008 | B82: 11 | C82: 7.53 | D82: 7.51 | E82: 7.62 | F82: 7.55 | G82: 7.42 | H82: 7.14 | I82: 9.18 | J82: 7.40
A83: 2008 | B83: 12 | C83: 6.89 | D83: 6.87 | E83: 7.01 | F83: 7.19 | G83: 6.81 | H83: 7.13 | I83: 8.35 | J83: 6.53
A85: 2009 | B85: 1 | C85: 5.91 | D85: 5.94 | E85: 5.84 | F85: 6.85 | G85: 5.63 | H85: 6.64 | I85: 7.01 | J85: 5.57
A86: 2009 | B86: 2 | C86: 5.57 | D86: 5.56 | E86: 5.73 | F86: 7.17 | G86: 5.38 | H86: 6.49 | I86: 6.79 | J86: 4.28
A87: 2009 | B87: 3 | C87: 5.50 | D87: 5.48 | E87: 5.62 | F87: 6.62 | G87: 5.43 | H87: 6.49 | I87: 6.83 | J87: 5.28
A88: 2009 | B88: 4 | C88: 5.40 | D88: 5.43 | E88: 5.50 | F88: 6.80 | G88: 5.30 | H88: 6.08 | I88: 6.68 | J88: 4.14
A89: 2009 | B89: 5 | C89: 5.42 | D89: 5.43 | E89: 5.48 | F89: 6.71 | G89: 5.25 | H89: 6.02 | I89: 6.66 | J89: 4.55
A90: 2009 | B90: 6 | C90: 5.47 | D90: 5.53 | E90: 5.47 | F90: 6.80 | G90: 5.25 | H90: 6.06 | I90: 6.88 | J90: 4.12
A91: 2009 | B91: 7 | C91: 5.53 | D91: 5.53 | E91: 5.58 | F91: 7.06 | G91: 5.29 | H91: 6.11 | I91: 7.17 | J91: 5.15
A92: 2009 | B92: 8 | C92: 5.61 | D92: 5.60 | E92: 5.63 | F92: 6.16 | G92: 5.45 | H92: 6.01 | I92: 7.09 | J92: 6.04
A93: 2009 | B93: 9 | C93: 5.82 | D93: 5.78 | E93: 5.96 | F93: 6.86 | G93: 5.77 | H93: 6.00 | I93: 7.48 | J93: 5.75
A94: 2009 | B94: 10 | C94: 5.88 | D94: 5.84 | E94: 6.05 | F94: 7.19 | G94: 5.90 | H94: 5.82 | I94: 7.62 | J94: 6.16
A95: 2009 | B95: 11 | C95: 5.87 | D95: 5.84 | E95: 6.00 | F95: 7.12 | G95: 5.87 | H95: 5.58 | I95: 7.66 | J95: 6.04
A96: 2009 | B96: 12 | C96: 5.81 | D96: 5.79 | E96: 5.95 | F96: 6.91 | G96: 5.90 | H96: 5.48 | I96: 7.25 | J96: 5.45
A98: 2010 | B98: 1 | C98: 5.94 | D98: 5.92 | E98: 6.02 | F98: 6.88 | G98: 5.88 | H98: 5.43 | I98: 7.64 | J98: 5.82
A99: 2010 | B99: 2 | C99: 5.84 | D99: 5.83 | E99: 5.92 | F99: 5.95 | G99: 5.75 | H99: 5.44 | I99: 7.41 | J99: 5.25
A100: 2010 | B100: 3 | C100: 5.69 | D100: 5.74 | E100: 5.80 | F100: 6.63 | G100: 5.47 | H100: 5.42 | I100: 7.42 | J100: 4.36
A101: 2010 | B101: 4 | C101: 5.49 | D101: 5.51 | E101: 5.46 | F101: 6.66 | G101: 5.07 | H101: 5.20 | I101: 7.01 | J101: 4.62
A102: 2010 | B102: 5 | C102: 5.40 | D102: 5.48 | E102: 5.16 | F102: 6.32 | G102: 4.78 | H102: 5.21 | I102: 6.27 | J102: 4.98
A103: 2010 | B103: 6 | C103: 5.32 | D103: 5.40 | E103: 5.15 | F103: 6.64 | G103: 4.62 | H103: 5.33 | I103: 7.06 | J103: 4.31
A104: 2010 | B104: 7 | C104: 5.39 | D104: 5.45 | E104: 5.13 | F104: 6.73 | G104: 4.70 | H104: 5.42 | I104: 7.22 | J104: 5.55
A105: 2010 | B105: 8 | C105: 5.51 | D105: 5.57 | E105: 5.26 | F105: 5.86 | G105: 4.81 | H105: 5.48 | I105: 7.22 | J105: 5.62
A106: 2010 | B106: 9 | C106: 5.45 | D106: 5.51 | E106: 5.22 | F106: 6.56 | G106: 4.80 | H106: 5.43 | I106: 7.22 | J106: 5.46
A107: 2010 | B107: 10 | C107: 5.37 | D107: 5.41 | E107: 5.21 | F107: 6.79 | G107: 4.74 | H107: 5.38 | I107: 7.36 | J107: 5.46
A108: 2010 | B108: 11 | C108: 5.34 | D108: 5.40 | E108: 5.15 | F108: 6.97 | G108: 4.65 | H108: 5.35 | I108: 7.35 | J108: 5.10
A109: 2010 | B109: 12 | C109: 5.40 | D109: 5.52 | E109: 5.08 | F109: 6.65 | G109: 4.67 | H109: 5.26 | I109: 7.10 | J109: 4.67
A111: 2011 | B111: 1 | C111: 5.64 | D111: 5.71 | E111: 5.30 | F111: 6.33 | G111: 4.80 | H111: 5.20 | I111: 7.44 | J111: 5.84
A112: 2011 | B112: 2 | C112: 5.66 | D112: 5.81 | E112: 5.26 | F112: 5.74 | G112: 4.86 | H112: 5.31 | I112: 7.33 | J112: 4.95
A113: 2011 | B113: 3 | C113: 5.78 | D113: 5.96 | E113: 5.41 | F113: 6.66 | G113: 4.89 | H113: 5.31 | I113: 7.76 | J113: 4.71
A114: 2011 | B114: 4 | C114: 5.70 | D114: 5.80 | E114: 5.42 | F114: 6.85 | G114: 4.88 | H114: 5.33 | I114: 7.70 | J114: 5.00
A115: 2011 | B115: 5 | C115: 5.76 | D115: 5.83 | E115: 5.49 | F115: 7.06 | G115: 4.90 | H115: 5.39 | I115: 7.70 | J115: 5.42
A116: 2011 | B116: 6 | C116: 5.80 | D116: 5.89 | E116: 5.47 | F116: 7.02 | G116: 4.87 | H116: 5.39 | I116: 7.53 | J116: 5.37
A117: 2011 | B117: 7 | C117: 5.86 | D117: 5.98 | E117: 5.46 | F117: 6.83 | G117: 4.90 | H117: 5.43 | I117: 7.79 | J117: 5.38
A118: 2011 | B118: 8 | C118: 5.84 | D118: 5.92 | E118: 5.58 | F118: 6.21 | G118: 4.97 | H118: 5.43 | I118: 7.96 | J118: 5.38
A119: 2011 | B119: 9 | C119: 5.76 | D119: 5.87 | E119: 5.66 | F119: 6.41 | G119: 5.00 | H119: 5.42 | I119: 8.27 | J119: 4.78
A120: 2011 | B120: 10 | C120: 5.77 | D120: 5.86 | E120: 5.56 | F120: 7.02 | G120: 5.01 | H120: 5.47 | I120: 8.22 | J120: 5.00
A121: 2011 | B121: 11 | C121: 5.83 | D121: 5.90 | E121: 5.60 | F121: 7.18 | G121: 5.01 | H121: 5.48 | I121: 8.27 | J121: 5.47
A122: 2011 | B122: 12 | C122: 5.69 | D122: 5.81 | E122: 5.37 | F122: 6.73 | G122: 4.95 | H122: 5.35 | I122: 7.90 | J122: 5.10
A124: 2012 | B124: 1 | C124: 5.79 | D124: 5.83 | E124: 5.80 | F124: 6.39 | G124: 5.06 | H124: 5.29 | I124: 8.16 | J124: 4.98
A125: 2012 | B125: 2 | C125: 5.71 | D125: 5.74 | E125: 5.67 | F125: 6.17 | G125: 5.02 | H125: 5.31 | I125: 8.05 | J125: 4.97
A126: 2012 | B126: 3 | C126: 5.74 | D126: 5.79 | E126: 5.62 | F126: 6.52 | G126: 5.00 | H126: 5.27 | I126: 8.14 | J126: 4.95
A127: 2012 | B127: 4 | C127: 5.71 | D127: 5.76 | E127: 5.54 | F127: 6.89 | G127: 4.94 | H127: 5.10 | I127: 8.15 | J127: 5.53
A128: 2012 | B128: 5 | C128: 5.66 | D128: 5.74 | E128: 5.51 | F128: 7.05 | G128: 4.85 | H128: 5.22 | I128: 7.95 | J128: 4.86
A129: 2012 | B129: 6 | C129: 5.58 | D129: 5.67 | E129: 5.38 | F129: 6.99 | G129: 4.76 | H129: 5.20 | I129: 7.89 | J129: 4.62
A130: 2012 | B130: 7 | C130: 5.45 | D130: 5.53 | E130: 5.20 | F130: 6.81 | G130: 4.64 | H130: 5.11 | I130: 6.71 | J130: 4.98
A131: 2012 | B131: 8 | C131: 5.22 | D131: 5.36 | E131: 4.90 | F131: 6.23 | G131: 4.41 | H131: 5.03 | I131: 6.28 | J131: 4.22
A132: 2012 | B132: 9 | C132: 5.13 | D132: 5.30 | E132: 4.86 | F132: 6.58 | G132: 4.29 | H132: 4.99 | I132: 6.94 | J132: 3.94
A133: 2012 | B133: 10 | C133: 4.98 | D133: 5.08 | E133: 4.84 | F133: 6.63 | G133: 4.23 | H133: 4.97 | I133: 7.02 | J133: 3.94
A134: 2012 | B134: 11 | C134: 4.94 | D134: 5.05 | E134: 4.74 | F134: 6.61 | G134: 4.19 | H134: 4.93 | I134: 7.03 | J134: 3.91
A135: 2012 | B135: 12 | C135: 4.84 | D135: 5.01 | E135: 4.54 | F135: 6.27 | G135: 4.16 | H135: 4.88 | I135: 6.87 | J135: 3.87
A137: 2013 | B137: 1 | C137: 5.00 | D137: 5.04 | E137: 4.84 | F137: 6.01 | G137: 4.17 | H137: 4.79 | I137: 7.02 | J137: 4.59
B138: 2 | C138: 4.91 | D138: 5.03 | E138: 4.61 | F138: 5.69 | G138: 4.06 | H138: 4.80 | I138: 6.75 | J138: 4.10
B139: 3 | C139: 4.77 | D139: 4.86 | E139: 4.55 | F139: 6.23 | G139: 3.97 | H139: 4.74 | I139: 6.62 | J139: 4.15
B140: 4 | C140: 4.73 | D140: 4.82 | E140: 4.42 | F140: 6.33 | G140: 3.86 | H140: 4.65 | I140: 6.55 | J140: 4.93
B141: 5 | C141: 4.62 | D141: 4.73 | E141: 4.30 | F141: 6.25 | G141: 3.77 | H141: 4.61 | I141: 6.41 | J141: 4.43
B142: 6 | C142: 4.52 | D142: 4.70 | E142: 4.11 | F142: 6.10 | G142: 3.73 | H142: 4.55 | I142: 6.19 | J142: 4.29
B143: 7 | C143: 4.60 | D143: 4.69 | E143: 4.31 | F143: 6.01 | G143: 3.77 | H143: 4.47 | I143: 6.25 | J143: 4.13
B144: 8 | C144: 4.55 | D144: 4.61 | E144: 4.33 | F144: 5.53 | G144: 3.80 | H144: 4.45 | I144: 6.13 | J144: 4.30
B145: 9 | C145: 4.54 | D145: 4.59 | E145: 4.26 | F145: 5.70 | G145: 3.82 | H145: 4.42 | I145: 5.87 | J145: 4.69
B146: 10 | C146: 4.46 | D146: 4.56 | E146: 4.21 | F146: 5.87 | G146: 3.81 | H146: 4.39 | I146: 5.87 | J146: 3.96
B147: 11 | C147: 4.50 | D147: 4.58 | E147: 4.19 | F147: 5.90 | G147: 3.77 | H147: 4.32 | I147: 5.90 | J147: 4.17
B148: 12 | C148: 4.52 | D148: 4.67 | E148: 4.10 | F148: 5.79 | G148: 3.74 | H148: 4.28 | I148: 5.80 | J148: 3.97
A150: 2014 | B150: 1 | C150: 4.53 | D150: 4.62 | E150: 4.15 | F150: 5.43 | G150: 3.75 | H150: 4.28 | I150: 5.85 | J150: 4.11
A151: 잔액기준 Based on Outstanding
A152: 2004 | C152: 6.34 | D152: 6.37 | E152: 6.33 | F152: 9.11 | J152: 5.64
A153: 2005 | C153: 6.35 | D153: 6.40 | E153: 6.33 | F153: 8.31 | J153: 5.64
A154: 2006 | C154: 6.59 | D154: 6.66 | E154: 6.56 | F154: 8.23 | J154: 5.89
A155: 2007 | C155: 7.16 | D155: 7.22 | E155: 7.13 | F155: 8.71 | J155: 6.30
A156: 2008 | C156: 7.50 | D156: 7.69 | E156: 7.31 | F156: 8.81 | J156: 6.69
A157: 2009 | C157: 5.85 | D157: 6.24 | E157: 5.43 | F157: 8.06 | G157: 4.85 | H157: 5.61 | I157: 7.59 | J157: 5.15
A158: 2010 | C158: 5.70 | D158: 6.02 | E158: 5.35 | F158: 8.05 | G158: 4.71 | H158: 5.46 | I158: 7.48 | J158: 5.19
A159: 2011 | C159: 6.01 | D159: 6.20 | E159: 5.82 | F159: 8.20 | G159: 5.20 | H159: 5.48 | I159: 7.93 | J159: 5.42
A160: 2012 | C160: 5.31 | D160: 5.43 | E160: 5.17 | F160: 7.55 | G160: 4.60 | H160: 5.06 | I160: 7.12 | J160: 4.97
A161: 2013 | C161: 4.72 | D161: 4.87 | E161: 4.54 | F161: 6.87 | G161: 4.04 | H161: 4.44 | I161: 6.33 | J161: 4.54
A163: 2004 | B163: 1 | C163: 6.92 | D163: 6.77 | E163: 7.08 | F163: 9.84 | J163: 6.25
A164: 2004 | B164: 2 | C164: 6.91 | D164: 6.76 | E164: 7.07 | F164: 9.63 | J164: 6.24
A165: 2004 | B165: 3 | C165: 6.85 | D165: 6.74 | E165: 6.97 | F165: 9.60 | J165: 6.02
A166: 2004 | B166: 4 | C166: 6.79 | D166: 6.71 | E166: 6.88 | F166: 9.58 | J166: 6.01
A167: 2004 | B167: 5 | C167: 6.75 | D167: 6.69 | E167: 6.81 | F167: 9.49 | J167: 5.97
A168: 2004 | B168: 6 | C168: 6.70 | D168: 6.67 | E168: 6.75 | F168: 9.45 | J168: 5.99
A169: 2004 | B169: 7 | C169: 6.68 | D169: 6.66 | E169: 6.73 | F169: 9.43 | J169: 5.98
A170: 2004 | B170: 8 | C170: 6.65 | D170: 6.64 | E170: 6.68 | F170: 9.24 | J170: 5.89
A171: 2004 | B171: 9 | C171: 6.56 | D171: 6.57 | E171: 6.57 | F171: 9.21 | J171: 5.86
A172: 2004 | B172: 10 | C172: 6.47 | D172: 6.49 | E172: 6.46 | F172: 9.21 | J172: 5.85
A173: 2004 | B173: 11 | C173: 6.44 | D173: 6.46 | E173: 6.43 | F173: 9.19 | J173: 5.78
A174: 2004 | B174: 12 | C174: 6.34 | D174: 6.37 | E174: 6.33 | F174: 9.11 | J174: 5.64
A176: 2005 | B176: 1 | C176: 6.31 | D176: 6.36 | E176: 6.28 | F176: 9.06 | J176: 5.55
A177: 2005 | B177: 2 | C177: 6.30 | D177: 6.35 | E177: 6.28 | F177: 8.85 | J177: 5.57
A178: 2005 | B178: 3 | C178: 6.32 | D178: 6.37 | E178: 6.29 | F178: 8.79 | J178: 5.61
A179: 2005 | B179: 4 | C179: 6.31 | D179: 6.36 | E179: 6.27 | F179: 8.74 | J179: 5.62
A180: 2005 | B180: 5 | C180: 6.27 | D180: 6.33 | E180: 6.24 | F180: 8.70 | J180: 5.64
A181: 2005 | B181: 6 | C181: 6.23 | D181: 6.30 | E181: 6.18 | F181: 8.66 | J181: 5.60
A182: 2005 | B182: 7 | C182: 6.20 | D182: 6.28 | E182: 6.14 | F182: 8.64 | J182: 5.61
A183: 2005 | B183: 8 | C183: 6.15 | D183: 6.26 | E183: 6.07 | F183: 8.35 | J183: 5.53
A184: 2005 | B184: 9 | C184: 6.14 | D184: 6.27 | E184: 6.05 | F184: 8.23 | J184: 5.48
A185: 2005 | B185: 10 | C185: 6.23 | D185: 6.32 | E185: 6.17 | F185: 8.40 | J185: 5.53
A186: 2005 | B186: 11 | C186: 6.30 | D186: 6.36 | E186: 6.26 | F186: 8.34 | J186: 5.60
A187: 2005 | B187: 12 | C187: 6.35 | D187: 6.40 | E187: 6.33 | F187: 8.31 | J187: 5.64
A189: 2006 | B189: 1 | C189: 6.40 | D189: 6.45 | E189: 6.38 | F189: 8.34 | J189: 5.62
A190: 2006 | B190: 2 | C190: 6.45 | D190: 6.49 | E190: 6.45 | F190: 8.29 | J190: 5.49
A191: 2006 | B191: 3 | C191: 6.50 | D191: 6.54 | E191: 6.49 | F191: 8.22 | J191: 5.60
A192: 2006 | B192: 4 | C192: 6.50 | D192: 6.53 | E192: 6.50 | F192: 8.27 | J192: 5.62
A193: 2006 | B193: 5 | C193: 6.51 | D193: 6.55 | E193: 6.50 | F193: 8.30 | J193: 5.64
A194: 2006 | B194: 6 | C194: 6.52 | D194: 6.57 | E194: 6.51 | F194: 8.31 | J194: 5.67
A195: 2006 | B195: 7 | C195: 6.57 | D195: 6.61 | E195: 6.56 | F195: 8.34 | J195: 5.68
A196: 2006 | B196: 8 | C196: 6.63 | D196: 6.66 | E196: 6.63 | F196: 8.23 | J196: 5.74
A197: 2006 | B197: 9 | C197: 6.64 | D197: 6.66 | E197: 6.65 | F197: 8.19 | J197: 5.79
A198: 2006 | B198: 10 | C198: 6.64 | D198: 6.68 | E198: 6.63 | F198: 8.22 | J198: 5.77
A199: 2006 | B199: 11 | C199: 6.59 | D199: 6.65 | E199: 6.57 | F199: 8.26 | J199: 5.72
A200: 2006 | B200: 12 | C200: 6.59 | D200: 6.66 | E200: 6.56 | F200: 8.23 | J200: 5.89
A202: 2007 | B202: 1 | C202: 6.66 | D202: 6.72 | E202: 6.62 | F202: 8.26 | J202: 5.91
A203: 2007 | B203: 2 | C203: 6.71 | D203: 6.76 | E203: 6.68 | F203: 8.17 | J203: 5.91
A204: 2007 | B204: 3 | C204: 6.75 | D204: 6.79 | E204: 6.74 | F204: 8.16 | J204: 5.95
A205: 2007 | B205: 4 | C205: 6.76 | D205: 6.81 | E205: 6.75 | F205: 8.16 | J205: 5.96
A206: 2007 | B206: 5 | C206: 6.78 | D206: 6.83 | E206: 6.77 | F206: 8.16 | J206: 5.99
A207: 2007 | B207: 6 | C207: 6.79 | D207: 6.84 | E207: 6.78 | F207: 8.30 | J207: 5.98
A208: 2007 | B208: 7 | C208: 6.81 | D208: 6.86 | E208: 6.80 | F208: 8.33 | J208: 5.96
A209: 2007 | B209: 8 | C209: 6.85 | D209: 6.90 | E209: 6.83 | F209: 8.23 | J209: 5.97
A210: 2007 | B210: 9 | C210: 6.91 | D210: 6.96 | E210: 6.89 | F210: 8.22 | J210: 6.02
A211: 2007 | B211: 10 | C211: 6.97 | D211: 7.02 | E211: 6.96 | F211: 8.25 | J211: 6.10
A212: 2007 | B212: 11 | C212: 7.04 | D212: 7.08 | E212: 7.02 | F212: 8.28 | J212: 6.16
A213: 2007 | B213: 12 | C213: 7.16 | D213: 7.22 | E213: 7.13 | F213: 8.71 | J213: 6.30
A215: 2008 | B215: 1 | C215: 7.28 | D215: 7.33 | E215: 7.26 | F215: 8.88 | J215: 6.43
A216: 2008 | B216: 2 | C216: 7.28 | D216: 7.33 | E216: 7.26 | F216: 8.78 | J216: 6.42
A217: 2008 | B217: 3 | C217: 7.20 | D217: 7.28 | E217: 7.15 | F217: 8.74 | J217: 6.34
A218: 2008 | B218: 4 | C218: 7.13 | D218: 7.24 | E218: 7.04 | F218: 8.73 | J218: 6.26
... 74 more rows

Sheet 39. 국내은행의 대출행태지수
A1: 39. 국내은행의 대출행태지수 Diffution Index of Banks
A4: 연월중 | C4: 대출수요지수 | F4: 대출태도지수 | I4: 신용위험지수
C5: Consumers' attitude towards borrowing | F5: Lenders' attitude towards lending | I5: Credit Risk
A6: During | C6: 종 합 | D6: 가계일반 | E6: 가계주택 | F6: 종 합 | G6: 가계일반 | H6: 가계주택 | I6: 종 합 | J6: 가계
C7: Total | D7: Household | E7: Housing | F7: Total | G7: Household | H7: Housing | I7: Total | J7: Household
A8: 2001 | B8: 1/4 | C8: -1 | D8: 11 | E8: -4 | F8: 25 | G8: 38 | H8: 49 | I8: 11 | J8: 9
B9: 2/4 | C9: 13 | D9: 28 | E9: 11 | F9: 30 | G9: 43 | H9: 46 | I9: -7 | J9: -3
B10: 3/4 | C10: 9 | D10: 29 | E10: 19 | F10: 29 | G10: 41 | H10: 30 | I10: 10 | J10: 9
B11: 4/4 | C11: 22 | D11: 38 | E11: 19 | F11: 24 | G11: 29 | H11: 35 | I11: 3 | J11: 10
A13: 2002 | B13: 1/4 | E13: 26 | F13: 22 | G13: 22 | H13: 23 | I13: -3 | J13: 7
B14: 2/4 | C14: 16 | D14: 23 | E14: 13 | F14: 8 | G14: 10 | H14: 3 | I14: -5 | J14: 11
B15: 3/4 | C15: 20 | D15: 24 | E15: 23 | F15: -8 | G15: -3 | H15: -11 | I15: 5 | J15: 18
B16: 3/4 | C16: 20 | D16: 24 | E16: 23 | F16: -8 | G16: -3 | H16: -11 | I16: 5 | J16: 18
A18: 2003 | B18: 1/4 | C18: -4 | D18: -4 | E18: -8 | F18: -8 | G18: -14 | H18: -13 | I18: 17 | J18: 30
B19: 2/4 | C19: 21 | D19: 11 | E19: 13 | F19: -31 | G19: -23 | H19: -20 | I19: 29 | J19: 33
B20: 3/4 | C20: 10 | D20: 10 | E20: 3 | F20: -21 | G20: -19 | H20: -11 | I20: 31 | J20: 36
B21: 4/4 | C21: 16 | D21: 11 | E21: 4 | F21: -22 | G21: -25 | H21: -35 | I21: 29 | J21: 35
B23: 1/4 | C23: 12 | D23: 7 | E23: 4 | F23: -17 | G23: -19 | H23: -20 | I23: 31 | J23: 32
B24: 2/4 | C24: 5 | D24: 7 | E24: 3 | F24: 0 | G24: -4 | H24: 4 | I24: 18 | J24: 16
B25: 3/4 | C25: 1 | D25: 6 | E25: 3 | F25: -6 | G25: -10 | H25: 0 | I25: 19 | J25: 19
A26: 2004 | B26: 4/4 | C26: -3 | D26: -3 | E26: -6 | F26: -1 | G26: -6 | H26: 4 | I26: 18 | J26: 18
B28: 1/4 | C28: 14 | D28: 9 | E28: 15 | F28: 6 | G28: 0 | H28: 0 | I28: 15 | J28: 12
B29: 2/4 | C29: 24 | D29: 26 | E29: 29 | F29: 12 | G29: 3 | H29: 9 | I29: 5 | J29: 6
B30: 3/4 | C30: 7 | D30: 6 | E30: -6 | F30: 2 | G30: 3 | H30: -24 | I30: 4 | J30: 3
A31: 2005 | B31: 4/4 | C31: 6 | D31: 6 | E31: -15 | F31: 8 | G31: 3 | H31: -12 | I31: -3 | J31: 0
B33: 1/4 | C33: 15 | D33: 9 | E33: 6 | F33: 18 | G33: 3 | H33: -3 | I33: 5 | J33: 9
B34: 2/4 | C34: 16 | D34: 9 | E34: 0 | F34: 16 | G34: 3 | H34: -3 | I34: 14 | J34: 16
B35: 3/4 | C35: 12 | D35: 6 | E35: -9 | F35: 8 | G35: -3 | H35: -6 | I35: 9 | J35: 9
A36: 2006 | B36: 4/4 | C36: 18 | D36: 6 | E36: 13 | F36: 8 | G36: 3 | H36: -9 | I36: 8 | J36: 6
A38: 2007 | B38: 1/4 | C38: 11 | D38: -3 | E38: -9 | F38: 3 | G38: 9 | H38: -41 | I38: 9 | J38: 9
A39: 2007 | B39: 2/4 | C39: 2 | D39: 6 | E39: -25 | F39: -1 | G39: 3 | H39: -25 | I39: 12 | J39: 19
B40: 3/4 | C40: 4 | D40: 9 | E40: -22 | F40: -3 | G40: 3 | H40: -3 | I40: 15 | J40: 16
B41: 4/4 | C41: 13 | D41: 13 | E41: -13 | F41: -19 | G41: -3 | H41: -13 | I41: 17 | J41: 9
A43: 2008 | B43: 1/4 | C43: 6 | D43: 0 | E43: -9 | F43: -11 | G43: -3 | H43: -6 | I43: 26 | J43: 13
B44: 2/4 | C44: 13 | D44: 3 | E44: -6 | F44: -13 | G44: -3 | H44: -6 | I44: 24 | J44: 13
B45: 3/4 | C45: 11 | D45: 0 | E45: -13 | F45: -22 | G45: -13 | H45: -6 | I45: 35 | J45: 22
B46: 4/4 | C46: 24 | D46: 6 | E46: -6 | F46: -23 | G46: -19 | H46: -16 | I46: 44 | J46: 25
A48: 2009 | B48: 1/4 | C48: 18 | D48: -3 | E48: -3 | F48: -2 | G48: -9 | H48: 3 | I48: 38 | J48: 25
B49: 2/4 | C49: 16 | D49: 0 | E49: 22 | F49: 7 | G49: -3 | H49: 9 | I49: 34 | J49: 25
B50: 3/4 | C50: 17 | D50: 13 | E50: 22 | F50: -2 | G50: 9 | H50: -19 | I50: 24 | J50: 16
B51: 4/4 | C51: 8 | D51: 6 | E51: 6 | F51: -4 | G51: 3 | H51: -13 | I51: 24 | J51: 19
A53: 2010 | B53: 1/4 | C53: -6 | D53: -12 | E53: 0 | F53: 8 | G53: 9 | H53: 9 | I53: 18 | J53: 13
B54: 2/4 | C54: -3 | D54: -13 | E54: -6 | F54: 4 | G54: 9 | H54: 9 | I54: 16 | J54: 9
B55: 3/4 | C55: 7 | D55: 0 | E55: 6 | F55: 11 | G55: 6 | H55: 13 | I55: 16 | J55: 16
B56: 4/4 | C56: 22 | D56: 13 | E56: 19 | F56: 16 | G56: 6 | H56: 3 | I56: 12 | J56: 9
A58: 2011 | B58: 1/4 | C58: 20 | D58: 3 | E58: 16 | F58: 15 | G58: 6 | H58: 6 | I58: 6 | J58: 9
B59: 2/4 | C59: 13 | D59: 6 | E59: 13 | F59: 15 | G59: 6 | H59: 6 | I59: 12 | J59: 9
B60: 3/4 | C60: 17 | D60: 13 | E60: 6 | F60: 5 | G60: -9 | H60: -25 | I60: 7 | J60: 3
B61: 4/4 | C61: 16 | D61: 13 | E61: 3 | F61: 5 | G61: 0 | H61: -9 | I61: 9 | J61: 6
A63: 2012 | B63: 1/4 | C63: 12 | D63: 0 | E63: 3 | F63: 7 | G63: 0 | H63: -6 | I63: 13 | J63: 9
B64: 2/4 | C64: 17 | D64: 6 | E64: 9 | F64: 7 | G64: -3 | H64: -3 | I64: 24 | J64: 22
B65: 3/4 | C65: 9 | D65: 0 | E65: 0 | F65: 3 | G65: -6 | H65: -6 | I65: 27 | J65: 28
B66: 4/4 | C66: 11 | D66: 9 | E66: 13 | F66: 2 | G66: -3 | H66: 3 | I66: 30 | J66: 31
A68: 2013 | B68: 1/4 | C68: 8 | D68: -3 | E68: 0 | F68: 9 | G68: 6 | H68: 6 | I68: 28 | J68: 28
B69: 2/4 | C69: 18 | D69: -3 | E69: 25 | F69: 11 | G69: 3 | H69: 13 | I69: 22 | J69: 22
B70: 3/4 | C70: 24 | D70: 3 | E70: 25 | F70: 8 | G70: 3 | H70: 13 | I70: 26 | J70: 22
B71: 4/4r | C71: 22 | D71: 6 | E71: 22 | F71: 4 | G71: 3 | H71: 6 | I71: 26 | J71: 19
A73: 2014 | B73: 1/4p | C73: 22 | D73: 6 | E73: 16 | F73: 4 | G73: 0 | H73: 6 | I73: 27 | J73: 22
A75: ※ 조사방법 : 여신업무 총괄담당 책임자를 대상으로 면담조사를 실시
A76: - 2005년 2/4분기 이전 조사기관 : 총 41개 금융기관(국내은행 17개, 외은지점 5개, 상호저축은행 16개, 생명보험회사 3개)
A77: - 2005년 3/4 ~ 2006년 1/4분기 조사기관 : 총 17개 국내은행(산업, 수출입은행 제외)
A78: - 2006년 2/4분기 ~ 현재 조사기관 : 총 16개 국내은행(산업, 수출입은행 제외)
A79: - 지수 산정 = {'크게 완화(증가)' 비중×1.0＋'다소 완화(증가)' 비중×0.5}－{'크게 강화(감소)' 비중×1.0＋'다소 강화(감소)' 비중×0.5}×100
A80: ※ 가장 최근 분기는 전망치, 여타 분기는 실적치 기준
A82: 자료 : 한국은행

Sheet 40. 채권수익률
A1: 40. 채권수익률 Bond Yields
A3: 단위 : % | H3: %
A4: 연월말 | C4: 국고채권(1년) | D4: 국고채권(3년) | E4: 국고채권(5년) | F4: 국고채권(10년) | G4: 국민주택1종(5년) | H4: CD (91일)1)
A6: End of | C6: 1-Year KTB | D6: 3-Year KTB | E6: 5-Year KTB | F6: 10-Year KTB | G6: National housing bonds type1 (5-Year) | H6: CD(91days)
A8: 2004 | C8: 3.31 | D8: 3.28 | E8: 3.39 | F8: 3.81 | G8: 3.51 | H8: 3.43
A9: 2005 | C9: 4.70 | D9: 5.08 | E9: 5.36 | F9: 5.62 | G9: 5.52 | H9: 4.09
A10: 2006 | C10: 4.95 | D10: 4.92 | E10: 5.00 | F10: 5.06 | G10: 5.11 | H10: 4.86
A11: 2007 | C11: 5.67 | D11: 5.74 | E11: 5.78 | F11: 5.70 | G11: 6.16 | H11: 5.82
A12: 2008 | C12: 3.26 | D12: 3.41 | E12: 3.77 | F12: 4.22 | G12: 4.60 | H12: 3.93
A13: 2009 | C13: 3.48 | D13: 4.41 | E13: 4.92 | F13: 5.39 | G13: 5.40 | H13: 2.86
A14: 2010 | C14: 2.89 | D14: 3.38 | E14: 4.08 | F14: 4.52 | G14: 4.30 | H14: 2.80
A15: 2011 | C15: 3.40 | D15: 3.34 | E15: 3.46 | F15: 3.79 | G15: 3.78 | H15: 3.55
A16: 2012 | C16: 2.78 | D16: 2.82 | E16: 2.97 | F16: 3.16 | G16: 3.10 | H16: 2.89
A17: 2013 | C17: =+C109 -> 2.67 | D17: =+D109 -> 2.86 | E17: 3.23 | F17: 3.58 | G17: 3.47 | H17: 2.66
A18: 2014 | C18: =+C112 -> 2.64 | D18: =+D112 -> 2.85 | E18: 3.13 | F18: 3.50 | G18: 3.30 | H18: 2.65
A20: 2007 | B20: 1 | C20: 5.02 | D20: 5.02 | E20: 5.03 | F20: 5.06 | G20: 5.14 | H20: 4.96
A21: 2007 | B21: 2 | C21: 4.94 | D21: 4.86 | E21: 4.88 | F21: 4.96 | G21: 5.00 | H21: 4.94
A22: 2007 | B22: 3 | C22: 4.87 | D22: 4.76 | E22: 4.80 | F22: 4.93 | G22: 4.97 | H22: 4.94
A23: 2007 | B23: 4 | C23: 5.08 | D23: 5.05 | E23: 5.06 | F23: 5.15 | G23: 5.20 | H23: 5.00
A24: 2007 | B24: 5 | C24: 5.09 | D24: 5.17 | E24: 5.21 | F24: 5.32 | G24: 5.30 | H24: 5.06
A25: 2007 | B25: 6 | C25: 5.19 | D25: 5.26 | E25: 5.38 | F25: 5.51 | G25: 5.49 | H25: 5.00
A26: 2007 | B26: 7 | C26: 5.25 | D26: 5.22 | E26: 5.28 | F26: 5.37 | G26: 5.39 | H26: 5.10
A27: 2007 | B27: 8 | C27: 5.39 | D27: 5.43 | E27: 5.47 | F27: 5.57 | G27: 5.60 | H27: 5.29
A28: 2007 | B28: 9 | C28: 5.41 | D28: 5.46 | E28: 5.52 | F28: 5.60 | G28: 5.67 | H28: 5.35
A29: 2007 | B29: 10 | C29: 5.32 | D29: 5.43 | E29: 5.49 | F29: 5.56 | G29: 5.65 | H29: 5.35
A30: 2007 | B30: 11 | C30: 5.48 | D30: 5.77 | E30: 5.84 | F30: 5.69 | G30: 6.15 | H30: 5.60
A31: 2007 | B31: 12 | C31: 5.67 | D31: 5.74 | E31: 5.78 | F31: 5.70 | G31: 6.16 | H31: 5.82
A33: 2008 | B33: 1 | C33: 5.06 | D33: 5.04 | E33: 5.11 | F33: 5.24 | G33: 5.32 | H33: 5.50
A34: 2008 | B34: 2 | C34: 4.93 | D34: 4.97 | E34: 5.08 | F34: 5.23 | G34: 5.27 | H34: 5.18
A35: 2008 | B35: 3 | C35: 5.11 | D35: 5.10 | E35: 5.13 | F35: 5.29 | G35: 5.37 | H35: 5.38
A36: 2008 | B36: 4 | C36: 4.95 | D36: 4.88 | E36: 4.96 | F36: 5.14 | G36: 5.25 | H36: 5.36
A37: 2008 | B37: 5 | C37: 5.07 | D37: 5.46 | E37: 5.54 | F37: 5.70 | G37: 5.80 | H37: 5.36
A38: 2008 | B38: 6 | C38: 5.35 | D38: 5.90 | E38: 5.98 | F38: 6.05 | G38: 6.21 | H38: 5.37
A39: 2008 | B39: 7 | C39: 5.40 | D39: 5.80 | E39: 5.86 | F39: 5.92 | G39: 6.16 | H39: 5.68
A40: 2008 | B40: 8 | C40: 5.44 | D40: 5.77 | E40: 5.86 | F40: 5.96 | G40: 6.26 | H40: 5.79
A41: 2008 | B41: 9 | C41: 5.55 | D41: 5.74 | E41: 5.75 | F41: 5.86 | G41: 6.25 | H41: 5.83
A42: 2008 | B42: 10 | C42: 4.90 | D42: 4.47 | E42: 4.72 | F42: 5.49 | G42: 5.58 | H42: 5.98
A43: 2008 | B43: 11 | C43: 4.88 | D43: 4.87 | E43: 5.04 | F43: 5.75 | G43: 6.16 | H43: 5.45
A44: 2008 | B44: 12 | C44: 3.26 | D44: 3.41 | E44: 3.77 | F44: 4.22 | G44: 4.60 | H44: 3.93
A46: 2009 | B46: 1 | C46: 2.53 | D46: 3.59 | E46: 4.07 | F46: 4.71 | G46: 4.66 | H46: 2.96
A47: 2009 | B47: 2 | C47: 2.54 | D47: 3.82 | E47: 4.57 | F47: 5.06 | G47: 5.10 | H47: 2.49
A48: 2009 | B48: 3 | C48: 2.70 | D48: 3.94 | E48: 4.69 | F48: 5.17 | G48: 5.04 | H48: 2.43
A49: 2009 | B49: 4 | C49: 2.53 | D49: 3.59 | E49: 4.17 | F49: 4.69 | G49: 4.64 | H49: 2.41
A50: 2009 | B50: 5 | C50: 2.46 | D50: 3.83 | E50: 4.67 | F50: 5.17 | G50: 5.03 | H50: 2.41
A51: 2009 | B51: 6 | C51: 2.95 | D51: 4.16 | E51: 4.64 | F51: 5.19 | G51: 5.08 | H51: 2.41
A52: 2009 | B52: 7 | C52: 2.72 | D52: 4.15 | E52: 4.67 | F52: 5.25 | G52: 5.23 | H52: 2.41
A53: 2009 | B53: 8 | C53: 3.42 | D53: 4.38 | E53: 4.91 | F53: 5.46 | G53: 5.34 | H53: 2.57
A54: 2009 | B54: 9 | C54: 3.54 | D54: 4.39 | E54: 4.81 | F54: 5.34 | G54: 5.30 | H54: 2.75
A55: 2009 | B55: 10 | C55: 3.51 | D55: 4.44 | E55: 4.94 | F55: 5.43 | G55: 5.35 | H55: 2.79
A56: 2009 | B56: 11 | C56: 3.12 | D56: 4.10 | E56: 4.61 | F56: 5.25 | G56: 5.11 | H56: 2.79
A57: 2009 | B57: 12 | C57: 3.48 | D57: 4.41 | E57: 4.92 | F57: 5.39 | G57: 5.40 | H57: 2.86
A59: 2010 | B59: 1 | C59: 3.22 | D59: 4.27 | E59: 4.82 | F59: 5.34 | G59: 5.22 | H59: 2.88
A60: 2010 | B60: 2 | C60: 3.07 | D60: 4.10 | E60: 4.62 | F60: 5.14 | G60: 4.91 | H60: 2.88
A61: 2010 | B61: 3 | C61: 2.70 | D61: 3.89 | E61: 4.52 | F61: 4.95 | G61: 4.69 | H61: 2.78
A62: 2010 | B62: 4 | C62: 2.65 | D62: 3.61 | E62: 4.27 | F62: 4.82 | G62: 4.52 | H62: 2.45
A63: 2010 | B63: 5 | C63: 2.75 | D63: 3.58 | E63: 4.36 | F63: 4.93 | G63: 4.68 | H63: 2.45
A64: 2010 | B64: 6 | C64: 3.09 | D64: 3.86 | E64: 4.44 | F64: 4.95 | G64: 4.80 | H64: 2.46
A65: 2010 | B65: 7 | C65: 3.12 | D65: 3.80 | E65: 4.38 | F65: 4.84 | G65: 4.74 | H65: 2.63
A66: 2010 | B66: 8 | C66: 3.13 | D66: 3.55 | E66: 4.00 | F66: 4.38 | G66: 4.36 | H66: 2.66
A67: 2010 | B67: 9 | C67: 2.84 | D67: 3.32 | E67: 3.71 | F67: 4.11 | G67: 3.89 | H67: 2.66
A68: 2010 | B68: 10 | C68: 2.78 | D68: 3.25 | E68: 3.86 | F68: 4.36 | G68: 4.06 | H68: 2.66
A69: 2010 | B69: 11 | C69: 2.80 | D69: 3.19 | E69: 3.88 | F69: 4.38 | G69: 4.09 | H69: 2.80
A70: 2010 | B70: 12 | C70: 2.89 | D70: 3.38 | E70: 4.08 | F70: 4.52 | G70: 4.30 | H70: 2.80
A72: 2011 | B72: 1 | C72: 3.33 | D72: 3.96 | E72: 4.41 | F72: 4.72 | G72: 4.59 | H72: 3.05
A73: 2011 | B73: 2 | C73: 3.40 | D73: 3.84 | E73: 4.28 | F73: 4.67 | G73: 4.45 | H73: 3.17
A74: 2011 | B74: 3 | C74: 3.42 | D74: 3.73 | E74: 4.11 | F74: 4.48 | G74: 4.30 | H74: 3.39
A75: 2011 | B75: 4 | C75: 3.48 | D75: 3.77 | E75: 4.10 | F75: 4.48 | G75: 4.27 | H75: 3.42
A76: 2011 | B76: 5 | C76: 3.41 | D76: 3.59 | E76: 3.87 | F76: 4.23 | G76: 4.07 | H76: 3.46
A77: 2011 | B77: 6 | C77: 3.56 | D77: 3.76 | E77: 4.01 | F77: 4.29 | G77: 4.20 | H77: 3.57
A78: 2011 | B78: 7 | C78: 3.68 | D78: 3.85 | E78: 4.02 | F78: 4.20 | G78: 4.19 | H78: 3.59
A79: 2011 | B79: 8 | C79: 3.46 | D79: 3.49 | E79: 3.62 | F79: 3.86 | G79: 3.85 | H79: 3.59
A80: 2011 | B80: 9 | C80: 3.49 | D80: 3.55 | E80: 3.66 | F80: 3.95 | G80: 3.90 | H80: 3.58
A81: 2011 | B81: 10 | C81: 3.51 | D81: 3.51 | E81: 3.63 | F81: 3.87 | G81: 3.95 | H81: 3.57
A82: 2011 | B82: 11 | C82: 3.39 | D82: 3.38 | E82: 3.49 | F82: 3.77 | G82: 3.78 | H82: 3.55
A83: 2011 | B83: 12 | C83: 3.40 | D83: 3.34 | E83: 3.46 | F83: 3.79 | G83: 3.78 | H83: 3.55
A85: 2012 | B85: 1 | C85: 3.39 | D85: 3.38 | E85: 3.49 | F85: 3.77 | G85: 3.76 | H85: 3.54
A86: 2012 | B86: 2 | C86: 3.43 | D86: 3.45 | E86: 3.55 | F86: 3.82 | G86: 3.78 | H86: 3.54
A87: 2012 | B87: 3 | C87: 3.47 | D87: 3.55 | E87: 3.70 | F87: 3.96 | G87: 3.90 | H87: 3.55
A88: 2012 | B88: 4 | C88: 3.43 | D88: 3.45 | E88: 3.56 | F88: 3.81 | G88: 3.78 | H88: 3.54
B89: 5 | C89: 3.31 | D89: 3.32 | E89: 3.43 | F89: 3.69 | G89: 3.67 | H89: 3.54
B90: 6 | C90: 3.31 | D90: 3.30 | E90: 3.42 | F90: 3.62 | G90: 3.65 | H90: 3.54
B91: 7 | C91: 2.84 | D91: 2.85 | E91: 2.97 | F91: 3.14 | G91: 3.14 | H91: 3.20
B92: 8 | C92: 2.81 | D92: 2.76 | E92: 2.86 | F92: 3.02 | G92: 2.98 | H92: 3.16
B93: 9 | C93: 2.84 | D93: 2.79 | E93: 2.87 | F93: 3.02 | G93: 3.02 | H93: 3.09
B94: 10 | C94: 2.77 | D94: 2.77 | E94: 2.84 | F94: 2.96 | G94: 2.99 | H94: 2.85
B95: 11 | C95: 2.84 | D95: 2.84 | E95: 2.91 | F95: 3.03 | G95: 3.04 | H95: 2.85
B96: 12 | C96: 2.78 | D96: 2.82 | E96: 2.97 | F96: 3.16 | G96: 3.10 | H96: 2.89
A98: 2013 | B98: 1 | C98: 2.75 | D98: 2.76 | E98: 2.89 | F98: 3.10 | G98: 3.00 | H98: 2.84
B99: 2 | C99: 2.63 | D99: 2.63 | E99: 2.74 | F99: 2.94 | G99: 2.86 | H99: 2.82
B100: 3 | C100: 2.55 | D100: 2.52 | E100: 2.58 | F100: 2.80 | G100: 2.73 | H100: 2.81
B101: 4 | C101: 2.56 | D101: 2.49 | E101: 2.56 | F101: 2.77 | G101: 2.68 | H101: 2.81
B102: 5 | C102: 2.66 | D102: 2.78 | E102: 2.90 | F102: 3.12 | G102: 3.02 | H102: 2.69
B103: 6 | C103: 2.67 | D103: 2.88 | E103: 3.14 | F103: 3.40 | G103: 3.28 | H103: 2.69
B104: 7 | C104: 2.69 | D104: 2.92 | E104: 3.20 | F104: 3.49 | G104: 3.37 | H104: 2.66
B105: 8 | C105: 2.65 | D105: 2.88 | E105: 3.17 | F105: 3.53 | G105: 3.37 | H105: 2.66
B106: 9 | C106: 2.64 | D106: 2.82 | E106: 3.05 | F106: 3.42 | G106: 3.27 | H106: 2.66
B107: 10 | C107: 2.66 | D107: 2.82 | E107: 3.05 | F107: 3.40 | G107: 3.29 | H107: 2.65
B108: 11 | C108: 2.72 | D108: 3.01 | E108: 3.35 | F108: 3.67 | G108: 3.56 | H108: 2.65
B109: 12 | C109: 2.67 | D109: 2.86 | E109: 3.23 | F109: 3.58 | G109: 3.47 | H109: 2.66
A111: 2014 | B111: 1 | C111: 2.65 | D111: 2.88 | E111: 3.22 | F111: 3.61 | G111: 3.46 | H111: 2.65
B112: 2 | C112: 2.64 | D112: 2.85 | E112: 3.13 | F112: 3.50 | G112: 3.30 | H112: 2.65
A114: 1) 신용평가 등급이 AAA인 시중은행 발행분 기준
A116: 자료 : 금융투자협회 (구 한국증권업협회)

Sheet 41. ABS 발행현황
A1: 41. ABS 발행현황1) Issuance of ABS(Asset-Backed Securities)
A3: 단위 : 억원 | K3: Hundred million won
A4: 연월중 | C4: 합계 | D4: 방식별 By type | I4: 자산보유자별
D5: 공모사채 | H5: 사모사채 등2) | I5: By Issuer
A6: During | C6: Total | D6: Public offering bond | E6: P-CBO | F6: S-CBO | G6: 일반 | H6: Private placement bond and so on | I6: 금융회사 | J6: 공공기업 | K6: 일반기업
E7: Primary CBO | F7: Secondary CBO | G7: Others | I7: Banks | J7: Public corporation | K7: Enterprise
A8: 2004 | C8: 269,764 | D8: 161,903 | E8: 9,069 | F8: 18,147 | G8: 134,687 | H8: 107,863 | I8: 181,429 | J8: 49,784 | K8: 38,551
A9: 2005 | C9: 286,072 | D9: 168,229 | E9: 7,125 | F9: 7,322 | G9: 153,782 | H9: 117,844 | I9: 151,615 | J9: 76,001 | K9: 58,456
A10: 2006 | C10: 232,223 | D10: 139,387 | E10: 2,082 | F10: 0 | G10: 137,305 | H10: 92,836 | I10: 103,343 | J10: 87,890 | K10: 40,990
A11: 2007 | C11: 197,751 | D11: 98,503 | E11: 5,732 | F11: 0 | G11: 92,771 | H11: 99,248 | I11: 112,992 | J11: 50,055 | K11: 34,704
A12: 2008 | C12: =SUM(C57:C68) -> 206,047 | D12: =SUM(D57:D68) -> 86,962 | E12: 17,011 | F12: 0 | G12: 69,951 | H12: 122,484 | I12: 146,384 | J12: 47,072 | K12: 12,591
A13: 2009 | C13: =SUM(C70:C81) -> 359,713 | D13: 191,395 | E13: 49,828 | F13: 29,150 | G13: 112,417 | H13: 168,320 | I13: 186,715 | J13: =SUM(J70:J81) -> 114,121 | K13: 58,877
A14: 2010 | C14: =SUM(C83:C94) -> 280,028 | D14: 111,233 | E14: 28,807 | F14: 0 | G14: 82,426 | H14: 168,795 | I14: 130,754 | J14: 106,056 | K14: 43,218
A15: 2011 | C15: 323,980 | D15: 141,360 | E15: 20,697 | F15: =SUM(F96:F133) -> 0 | G15: 120,663 | H15: 182,621 | I15: 177,339 | J15: 115,902 | K15: =SUM(K96:K107) -> 30,739
A16: 2012 | C16: 475,493 | D16: 186,964 | E16: 31,040 | F16: 0 | G16: 155,924 | H16: 288,529 | I16: 168,404 | J16: 215,024 | K16: 92,066
A17: 2013 | C17: =SUM(C122:C133) -> 512,617 | D17: =SUM(D122:D133) -> 211,924 | E17: 29,934 | F17: 0 | G17: 181,990 | H17: 300,694 | I17: 191,309 | J17: 238,329 | K17: 82,980
A19: 2005 | B19: 1 | C19: 13,343 | D19: 11,615 | E19: 0 | F19: 170 | G19: 11,445 | H19: 1,728 | I19: 9,003 | J19: 0 | K19: 4,340
B20: 2 | C20: 25,756 | D20: 21,525 | E20: 1,718 | F20: 0 | G20: 19,807 | H20: 4,231 | I20: 18,270 | J20: 0 | K20: 7,486
B21: 2 | C21: 25,756 | D21: 21,525 | E21: 1,718 | F21: 0 | G21: 19,807 | H21: 4,231 | I21: 18,270 | J21: 0 | K21: 7,486
B22: 4 | C22: 5,930 | D22: 5,199 | E22: 0 | F22: 1,679 | G22: 3,520 | H22: 731 | I22: 4,440 | J22: 0 | K22: 1,490
B23: 5 | C23: 23,708 | D23: 6,546 | E23: 439 | F23: 800 | G23: 5,307 | H23: 17,162 | I23: 6,359 | J23: 13,202 | K23: 4,147
B24: 6 | C24: 41,112 | D24: 29,521 | E24: 695 | F24: 0 | G24: 28,826 | H24: 11,591 | I24: 27,278 | J24: 4,590 | K24: 9,244
B25: 7 | C25: 25,362 | D25: 19,639 | E25: 0 | F25: 1,100 | G25: 18,539 | H25: 5,723 | I25: 10,757 | J25: 4,540 | K25: 10,065
B26: 8 | C26: 25,877 | D26: 12,442 | E26: 0 | F26: 0 | G26: 12,442 | H26: 13,435 | I26: 13,687 | J26: 4,840 | K26: 7,350
B27: 9 | C27: 14,460 | D27: 8,272 | E27: 1,009 | F27: 0 | G27: 7,263 | H27: 6,188 | I27: 5,796 | J27: 4,000 | K27: 4,664
B28: 10 | C28: 17,091 | D28: 10,988 | E28: 0 | F28: 0 | G28: 10,988 | H28: 6,103 | I28: 6,191 | J28: 5,770 | K28: 5,130
B29: 11 | C29: 27,586 | D29: 14,483 | E29: 1,776 | F29: 0 | G29: 12,707 | H29: 13,103 | I29: 15,324 | J29: 8,313 | K29: 3,949
B30: 12 | C30: 33,151 | D30: 19,212 | E30: 902 | F30: 895 | G30: 17,415 | H30: 13,939 | I30: 23,253 | J30: 0 | K30: 9,899
A32: 2006 | B32: 1 | C32: 11,313 | D32: 5,849 | E32: 0 | F32: 0 | G32: 5,849 | H32: 5,464 | I32: 1,903 | J32: 3,800 | K32: 5,610
B33: 2 | C33: 9,190 | D33: 8,404 | E33: 0 | F33: 0 | G33: 8,404 | H33: 786 | I33: 6,426 | J33: 0 | K33: 2,764
B34: 3 | C34: 29,831 | D34: 11,444 | E34: 0 | F34: 0 | G34: 11,444 | H34: 18,387 | I34: 17,907 | J34: 3,415 | K34: 8,509
B35: 4 | C35: 15,369 | D35: 8,663 | E35: 0 | F35: 0 | G35: 8,663 | H35: 6,706 | I35: 1,839 | J35: 4,750 | K35: 8,780
B36: 5 | C36: 24,454 | D36: 15,586 | E36: 0 | F36: 0 | G36: 15,586 | H36: 8,868 | I36: 7,416 | J36: 5,022 | K36: 12,016
B37: 6 | C37: 18,970 | D37: 15,634 | E37: 0 | F37: 0 | G37: 15,634 | H37: 3,336 | I37: 8,726 | J37: 0 | K37: 10,244
B38: 7 | C38: 17,075 | D38: 12,759 | E38: 332 | F38: 0 | G38: 12,427 | H38: 4,316 | I38: 9,943 | J38: 3,742 | K38: 3,390
B39: 8 | C39: 3,649 | D39: 3,350 | E39: 0 | F39: 0 | G39: 3,350 | H39: 299 | I39: 1,599 | J39: 0 | K39: 2,050
B40: 9 | C40: 20,342 | D40: 10,031 | E40: 531 | F40: 0 | G40: 9,500 | H40: 10,311 | I40: 12,132 | J40: 0 | K40: 8,210
B41: 10 | C41: 18,240 | D41: 13,760 | E41: 0 | F41: 0 | G41: 13,760 | H41: 4,480 | I41: 6,056 | J41: 4,049 | K41: 8,135
B42: 11 | C42: 33,091 | D42: 12,900 | E42: 1,219 | F42: 0 | G42: 11,681 | H42: 20,191 | I42: 19,133 | J42: 4,017 | K42: 9,941
B43: 12 | C43: 22,272 | D43: 21,007 | E43: 0 | F43: 0 | G43: 21,007 | H43: 1,265 | I43: 10,027 | J43: 5,003 | K43: 7,242
B44: 1 | C44: 4,195 | D44: 3,699 | E44: 0 | F44: 0 | G44: 3,699 | H44: 496 | I44: 3,345 | J44: 0 | K44: 850
B45: 2 | C45: 11,454 | D45: 3,510 | E45: 0 | F45: 0 | G45: 3,510 | H45: 7,944 | I45: 2,336 | J45: 3,489 | K45: 5,629
B46: 3 | C46: 17,627 | D46: 13,780 | E46: 0 | F46: 0 | G46: 13,780 | H46: 3,847 | I46: 10,510 | J46: 0 | K46: 7,117
B47: 4 | C47: 12,737 | D47: 5,923 | E47: 0 | F47: 0 | G47: 5,923 | H47: 6,814 | I47: 4,692 | J47: 3,812 | K47: 4,233
B48: 5 | C48: 21,009 | D48: 5,659 | E48: 326 | F48: 0 | G48: 5,333 | H48: 15,350 | I48: 17,038 | J48: 0 | K48: 3,971
B49: 6 | C49: 24,840 | D49: 8,793 | E49: 0 | F49: 0 | G49: 8,793 | H49: 16,047 | I49: 13,436 | J49: 11,004 | K49: 400
B50: 7 | C50: 9,400 | D50: 5,490 | E50: 580 | F50: 0 | G50: 4,910 | H50: 3,910 | I50: 5,122 | J50: 3,578 | K50: 700
A51: 2007 | B51: 8 | C51: 19,739 | D51: 12,136 | E51: 0 | F51: 0 | G51: 12,136 | H51: 7,603 | I51: 1,664 | J51: 14,466 | K51: 3,610
B52: 9 | C52: 8,611 | D52: 3,840 | E52: 0 | F52: 0 | G52: 3,840 | H52: 4,771 | I52: 2,837 | J52: 3,374 | K52: 2,400
B53: 10 | C53: 9,556 | D53: 4,966 | E53: 1,326 | F53: 0 | G53: 3,640 | H53: 4,590 | I53: 5,136 | J53: 3,920 | K53: 500
B54: 11 | C54: 12,966 | D54: 7,996 | E54: 0 | F54: 0 | G54: 7,996 | H54: 4,970 | I54: 5,238 | J54: 4,028 | K54: 3,700
B55: 12 | C55: 43,338 | D55: 21,711 | E55: 0 | F55: 0 | G55: 21,711 | H55: 21,627 | I55: 38,791 | J55: 3,014 | K55: 1,533
A57: 2008 | B57: 1 | C57: =D57+H57 -> 12,993 | D57: =SUM(E57:G57) -> 6,859 | E57: 0 | F57: 0 | G57: 6,859 | H57: 6,134 | I57: 7,875 | J57: 3,398 | K57: 1,720
B58: 2 | C58: 20,488 | D58: =SUM(E58:G58) -> 8,756 | E58: 0 | F58: 0 | G58: 8,756 | H58: 11,204 | I58: 10,467 | J58: 9,804 | K58: 217
B59: 3 | C59: =D59+H59 -> 12,014 | D59: 3,638 | E59: 0 | F59: 0 | G59: 3,638 | H59: 8,376 | I59: 2,730 | J59: 7,396 | K59: 1,888
B60: 4 | C60: 10,159 | D60: 2,760 | E60: 0 | F60: 0 | G60: 2,760 | H60: 7,399 | I60: 2,870 | J60: 3,689 | K60: 3,600
B61: 5 | C61: 16,145 | D61: 3,653 | E61: 0 | F61: 0 | G61: 3,653 | H61: 12,492 | I61: 6,248 | J61: 8,097 | K61: 1,800
B62: 6 | C62: 39,882 | D62: 9,136 | E62: 0 | F62: 0 | G62: 9,136 | H62: 30,746 | I62: 35,876 | J62: 3,025 | K62: 983
B63: 7 | C63: 21,253 | D63: 9,820 | E63: 1,283 | F63: 0 | G63: 8,537 | H63: 11,433 | I63: 17,356 | J63: 3,897 | K63: 0
B64: 8 | C64: 23,895 | D64: 4,213 | E64: 0 | F64: 0 | G64: 4,213 | H64: 19,682 | I64: 16,129 | J64: 7,766 | K64: 0
B65: 9 | C65: 7,444 | D65: 4,611 | E65: 241 | F65: 0 | G65: 4,370 | H65: 2,834 | I65: 6,484 | J65: 0 | K65: 960
B66: 10 | C66: 2,003 | D66: 1,500 | E66: 0 | F66: 0 | G66: 1,500 | H66: 503 | I66: 2,003 | J66: 0 | K66: 0
B67: 11 | C67: 21,878 | D67: 15,618 | E67: 4,418 | F67: 0 | G67: 11,200 | H67: 6,260 | I67: 21,378 | J67: 0 | K67: 500
B68: 12 | C68: 17,893 | D68: 16,398 | E68: 11,069 | F68: 0 | G68: 5,329 | H68: 1,495 | I68: 16,393 | J68: 0 | K68: 1,500
B70: 1 | C70: =D70+H70 -> 32,291 | D70: 19,958 | E70: 9,661 | F70: 0 | G70: 10,297 | H70: 12,333 | I70: 26,798 | J70: 5,493 | K70: 0
B71: 2 | C71: =D71+H71 -> 8,467 | D71: 2,355 | E71: 0 | F71: 0 | G71: 2,355 | H71: 6,112 | I71: 2,777 | J71: 5,690 | K71: 0
B72: 3 | C72: 37,098 | D72: 24,662 | E72: 14,033 | F72: 0 | G72: 10,629 | H72: 12,436 | I72: 22,916 | J72: 8,607 | K72: 5,575
B73: 4 | C73: 40,015 | D73: 16,836 | E73: 1,936 | F73: 10,040 | G73: 4,860 | H73: 23,180 | I73: 17,201 | J73: 22,814 | K73: 0
B74: 5 | C74: 39,119 | D74: 23,953 | E74: 10,387 | F74: 0 | G74: 13,566 | H74: 15,166 | I74: 24,223 | J74: 0 | K74: 14,896
B75: 6 | C75: 28,755 | D75: 21,931 | E75: 4,100 | F75: 7,930 | G75: 9,901 | H75: 6,824 | I75: 22,192 | J75: 3,292 | K75: 3,270
B76: 7 | C76: 25,301 | D76: 13,433 | E76: 0 | F76: 0 | G76: 13,433 | H76: 11,868 | I76: 9,030 | J76: 10,241 | K76: 6,030
B77: 8 | C77: 11,053 | D77: 1,700 | E77: 0 | F77: 0 | G77: 1,700 | H77: 9,353 | I77: 0 | J77: 9,353 | K77: 1,700
B78: 9 | C78: 49,106 | D78: 11,931 | E78: 5,185 | F78: 0 | G78: 6,746 | H78: 37,175 | I78: 22,858 | J78: 25,898 | K78: 350
A79: 2009 | B79: 10 | C79: 14,932 | D79: 6,274 | E79: 0 | F79: 0 | G79: 6,274 | H79: 8,658 | I79: 1,346 | J79: 5,891 | K79: 7,695
B80: 11 | C80: 29,731 | D80: 19,263 | E80: 2,118 | F80: 6,690 | G80: 10,455 | H80: 10,468 | I80: 15,471 | J80: 8,605 | K80: 5,655
B81: 12 | C81: 43,845 | D81: 29,099 | E81: 2,408 | F81: 4,490 | G81: 22,201 | H81: 14,747 | I81: 21,902 | J81: 8,237 | K81: 13,706
B83: 1 | C83: 15,775 | D83: 4,484 | E83: 0 | F83: 0 | G83: 4,484 | H83: 11,291 | I83: 11,468 | J83: 4,307 | K83: 0
B84: 2 | C84: 9,802 | D84: 3,923 | E84: 0 | F84: 0 | G84: 3,923 | H84: 5,879 | I84: 5,173 | J84: 4,629 | K84: 0
B85: 3 | C85: 13,671 | D85: 4,226 | E85: 0 | F85: 0 | G85: 4,226 | H85: 9,446 | I85: 8,470 | J85: 4,506 | K85: 695
B86: 4 | C86: 21,674 | D86: 12,240 | E86: 4,530 | F86: 0 | G86: 7,710 | H86: 9,434 | I86: 14,537 | J86: 4,137 | K86: 3,000
B87: 5 | C87: 18,244 | D87: 17,715 | E87: 13,275 | F87: 0 | G87: 4,440 | H87: 529 | I87: 14,775 | J87: 429 | K87: 3,040
B88: 6 | C88: 30,595 | D88: 7,430 | E88: 1,110 | F88: 0 | G88: 6,320 | H88: 23,165 | I88: 17,900 | J88: 9,695 | K88: 3,000
B89: 7 | C89: =D89+H89 -> 18,822 | D89: 11,333 | E89: 0 | F89: 0 | G89: =C89-D89-E89-F89 -> 7,489 | H89: 7,489 | I89: 3,711 | J89: 13,711 | K89: 1,400
B90: 8 | C90: =D90+H90 -> 19,144 | D90: 16,609 | E90: 0 | F90: 0 | G90: =C90-D90-E90-F90 -> 2,535 | H90: 2,535 | I90: 2,835 | J90: 13,809 | K90: 2,500
B91: 9 | C91: 31,155 | D91: 17,095 | E91: 3,355 | F91: 0 | G91: 13,740 | H91: 14,060 | I91: 14,078 | J91: 17,077 | K91: 0
B92: 10 | C92: 8,179 | D92: 5,221 | E92: 0 | F92: 0 | G92: 5,221 | H92: 2,958 | I92: 3,949 | J92: 3,230 | K92: 1,000
B93: 11 | C93: 46,249 | D93: 28,825 | E93: 2,718 | F93: 0 | G93: 26,107 | H93: 17,424 | I93: 13,692 | J93: 17,173 | K93: 15,384
A94: 2010 | B94: 12 | C94: 46,718 | D94: 27,017 | E94: 3,819 | F94: 0 | G94: 23,198 | H94: 19,701 | I94: 22,723 | J94: 13,352 | K94: 10,643
B96: 1 | C96: 17,962 | D96: =SUM(E96:G96) -> 4,520 | E96: 0 | F96: 0 | G96: 4,520 | H96: 13,442 | I96: 10,688 | J96: 4,774 | K96: 2,500
B97: 2 | C97: 18,221 | D97: =SUM(E97:G97) -> 9,690 | E97: 0 | F97: 0 | G97: 9,690 | H97: 8,531 | I97: 14,400 | J97: 3,821 | K97: 0
B98: 3 | C98: 18,464 | D98: 4,736 | E98: 3,325 | F98: 0 | G98: 1,411 | H98: 13,728 | I98: 15,268 | J98: 2,985 | K98: 211
A99: 2011 | B99: 4 | C99: 34,687 | D99: 19,399 | E99: 0 | F99: 0 | G99: 19,399 | H99: 15,287 | I99: 6,625 | J99: 23,981 | K99: 4,080
B100: 5 | C100: 20,005 | D100: 7,172 | E100: 5,172 | F100: 0 | G100: 2,000 | H100: 12,834 | I100: 10,318 | J100: 9,687 | K100: 0
B101: 6 | C101: 37,820 | D101: 15,800 | E101: 2,613 | F101: 0 | G101: 13,187 | H101: 22,020 | I101: 27,581 | J101: 7,602 | K101: 2,637
A102: 2011 | B102: 7 | C102: 15,665 | D102: 7,437 | E102: 0 | F102: 0 | G102: 7,437 | H102: 8,228 | I102: 2,147 | J102: 12,778 | K102: 740
B103: 8 | C103: 26,512 | D103: 10,364 | E103: 0 | F103: 0 | G103: 10,364 | H103: 16,148 | I103: 21,921 | J103: 3,847 | K103: 744
B104: 9 | C104: 23,092 | D104: 5,795 | E104: 3,845 | F104: 0 | G104: 1,950 | H104: 17,297 | I104: 15,968 | J104: 7,124 | K104: 0
A105: 2011 | B105: 10 | C105: 26,228 | D105: 15,945 | E105: 1,502 | F105: 0 | G105: 14,443 | H105: 10,283 | I105: 13,390 | J105: 8,395 | K105: 4,443
B106: 11 | C106: 33,501 | D106: 17,520 | E106: 750 | F106: 0 | G106: 16,770 | H106: 15,981 | I106: 11,751 | J106: 9,158 | K106: 12,592
B107: 12 | C107: 51,826 | D107: 22,982 | E107: 3,490 | F107: 0 | G107: 19,492 | H107: 28,844 | I107: 27,283 | J107: 21,751 | K107: 2,792
A109: 2012 | B109: 1 | C109: 4,433 | D109: 3,400 | E109: 0 | F109: 0 | G109: 3,400 | H109: 1,033 | I109: 1,033 | J109: 0 | K109: 3,400
B110: 2 | C110: 37,589 | D110: 22,527 | E110: 0 | F110: 0 | G110: 22,527 | H110: 15,062 | I110: 15,811 | J110: 11,681 | K110: 10,097
B111: 3 | C111: 47,472 | D111: 25,196 | E111: 4,084 | F111: 0 | G111: 21,112 | H111: 22,276 | I111: 18,194 | J111: 21,487 | K111: 7,791
A112: 2012 | B112: 4 | C112: 26,307 | D112: 14,525 | E112: 3,055 | F112: 0 | G112: 11,470 | H112: 11,782 | I112: 10,185 | J112: 10,022 | K112: 6,100
B113: 5 | C113: 26,168 | D113: 15,457 | E113: 1,537 | F113: 0 | G113: 13,920 | H113: 10,711 | I113: 4,417 | J113: 10,711 | K113: 11,040
B114: 6 | C114: 55,632 | D114: 16,501 | E114: 3,985 | F114: 0 | G114: 12,516 | H114: 39,131 | I114: 27,790 | J114: 16,885 | K114: 10,956
B115: 7 | C115: 26,320 | D115: 5,560 | E115: 0 | F115: 0 | G115: 5,560 | H115: 20,760 | I115: 8,470 | J115: 17,150 | K115: 700
B116: 8 | C116: 39,625 | D116: 14,182 | E116: 0 | F116: 0 | G116: 14,182 | H116: 25,443 | I116: 4,175 | J116: 23,268 | K116: 12,182
B117: 9 | C117: 52,795 | D117: 20,390 | E117: 9,900 | F117: 0 | G117: 10,490 | H117: 32,404 | I117: 23,041 | J117: 25,004 | K117: 4,750
B118: 10 | C118: 50,340 | D118: 17,234 | E118: 1,539 | F118: 0 | G118: 15,695 | H118: 33,106 | I118: 9,889 | J118: 26,256 | K118: 14,195
B119: 11 | C119: 63,566 | D119: 9,729 | E119: 5,604 | F119: 0 | G119: 4,125 | H119: 53,838 | I119: 14,150 | J119: 48,102 | K119: 1,315
B120: 12 | C120: 45,247 | D120: 22,264 | E120: 1,337 | F120: 0 | G120: 20,927 | H120: 22,983 | I120: 31,249 | J120: 4,458 | K120: 9,540 | M120: 카드, 캐피탈 | N120: 증권, 일반기업
L121: 증권
A122: 2013 | B122: 1 | C122: 36,655 | D122: 2,935 | E122: 0 | F122: 0 | G122: 2,935 | H122: 33,720 | I122: 3,803 | J122: 32,852 | K122: 0
B123: 2 | C123: 65,480 | D123: 34,078 | E123: 1,038 | F123: 0 | G123: 33,040 | H123: 31,402 | I123: 13,100 | J123: 36,050 | K123: 16,330
B124: 3 | C124: 32,061 | D124: 12,750 | E124: 1,540 | F124: 0 | G124: 11,210 | H124: 19,312 | I124: 13,133 | J124: 18,378 | K124: 550
B125: 4 | C125: 62,612 | D125: 26,392 | E125: 5,477 | F125: 0 | G125: 20,915 | H125: 36,220 | I125: 13,130 | J125: 35,712 | K125: 13,770
B126: 5 | C126: 25,707 | D126: 8,816 | E126: 3,746 | F126: 0 | G126: 5,070 | H126: 16,892 | I126: 10,591 | J126: 13,816 | K126: 1,300
B127: 6 | C127: 45,267 | D127: 20,177 | E127: 2,007 | F127: 0 | G127: 18,170 | H127: 25,090 | I127: 23,456 | J127: 11,531 | K127: 10,280
B128: 7 | C128: 39,400 | D128: 7,724 | E128: 1,514 | F128: 0 | G128: 6,210 | H128: 31,676 | I128: 8,800 | J128: 28,270 | K128: 2,330
B129: 8 | C129: 42,361 | D129: 16,865 | E129: 0 | F129: 0 | G129: 16,865 | H129: 25,496 | I129: 13,991 | J129: 18,937 | K129: 9,433
B130: 9 | C130: 32,927 | D130: 7,910 | E130: 2,580 | F130: 0 | G130: 5,330 | H130: 25,017 | I130: 15,666 | J130: 15,661 | K130: 1,600
B131: 10 | C131: 43,677 | D131: 30,084 | E131: 4,554 | F131: 0 | G131: 25,530 | H131: 13,593 | I131: 17,676 | J131: 12,096 | K131: 13,905
B132: 11 | C132: 38,358 | D132: 19,340 | E132: 4,430 | F132: 0 | G132: 14,910 | H132: 19,018 | I132: 28,233 | J132: 10,125 | K132: 0
B133: 12 | C133: 48,112 | D133: 24,854 | E133: 3,049 | F133: 0 | G133: 21,805 | H133: 23,258 | I133: 29,730 | J133: 4,900 | K133: 13,481
A135: 1) 전체 ABS 중 공모사채에 해당하는 금액만 직접금융 자금조달 실적으로 집계
A136: 2) 사모사채 등 : 사모사채, 수익증권, 출자증서가 포함
A138: 자료 : 금융감독원

Sheet 42. 미국의 주요 지표금리 및 모기지론 금리
A1: 42. 미국의 주요 지표금리 및 모기지론 금리 Benchmark Interest Rates & Mortgage Interest Rates in U.S.
A3: 단위 : % | M3: %
A4: 연월중 | C4: 주요 지표금리 | J4: 모기지론 금리
C5: Benchmark rates | J5: Mortgage rates
A6: During | C6: Federal Funds | D6: Bank Prime | E6: 3-Month Treasury | F6: 1-Year Treasury | G6: 5-Year Treasury | H6: 10-Year Treasury | I6: 20-Year Treasury | J6: 1-Year Adjustable | K6: 5-Year Adjustable | L6: 15-Year Fixed | M6: 30-Year Fixed
A8: 2004 | C8: 1.35 | D8: 4.34 | E8: 1.40 | F8: 1.89 | G8: 3.43 | H8: 4.27 | I8: 5.04 | J8: 3.90 | K8: - | L8: 5.21 | M8: 5.84
A9: 2005 | C9: 3.22 | D9: 6.19 | E9: 3.22 | F9: 3.62 | G9: 4.05 | H9: 4.29 | I9: 4.64 | J9: 4.49 | K9: 5.32 | L9: 5.42 | M9: 5.87
A10: 2006 | C10: 4.97 | D10: 7.96 | E10: 4.85 | F10: 4.94 | G10: 4.75 | H10: 4.80 | I10: 5.00 | J10: 5.54 | K10: 6.08 | L10: 6.07 | M10: 6.41
A11: 2007 | C11: 5.02 | D11: 8.05 | E11: 4.48 | F11: 4.53 | G11: 4.43 | H11: 4.63 | I11: 4.91 | J11: 5.56 | K11: 6.07 | L11: 6.03 | M11: 6.34
A12: 2008 | C12: 1.92 | D12: 5.09 | E12: 1.40 | F12: 1.83 | G12: 2.80 | H12: 3.66 | I12: 4.36 | J12: 5.17 | K12: 5.74 | L12: 5.62 | M12: 6.03
A13: 2009 | C13: 0.16 | D13: 3.25 | E13: 0.15 | F13: 0.47 | G13: 2.20 | H13: 3.26 | I13: 4.11 | J13: 4.70 | K13: 4.75 | L13: 4.57 | M13: 5.04
A14: 2010 | C14: 0.18 | D14: 3.25 | E14: 0.14 | F14: 0.32 | G14: 1.93 | H14: 3.22 | I14: 4.03 | J14: 3.78 | K14: 3.82 | L14: 4.10 | M14: 4.69
A15: 2011 | C15: 0.10 | D15: 3.25 | E15: 0.05 | F15: 0.18 | G15: 1.52 | H15: 2.78 | I15: 3.62 | J15: 3.03 | K15: 3.31 | L15: 3.68 | M15: 4.45
A16: 2012 | C16: 0.14 | D16: 3.25 | E16: 0.09 | F16: 0.17 | G16: 0.76 | H16: 1.80 | I16: 2.54 | J16: 2.69 | K16: 2.78 | L16: 2.93 | M16: 3.65
A17: 2013 | C17: 0.11 | D17: 3.25 | E17: 0.06 | F17: 0.13 | G17: 1.17 | H17: 2.35 | I17: 3.12 | J17: 2.62 | K17: 2.88 | L17: 3.11 | M17: 3.98
A19: 2004 | B19: 1 | C19: 1.00 | D19: 4.00 | E19: 0.90 | F19: 1.24 | G19: 3.12 | H19: 4.15 | I19: 5.01 | J19: 3.63 | K19: - | L19: 5.02 | M19: 5.71
B20: 2 | C20: 1.01 | D20: 4.00 | E20: 0.94 | F20: 1.24 | G20: 3.07 | H20: 4.08 | I20: 4.94 | J20: 3.55 | K20: - | L20: 4.94 | M20: 5.64
B21: 2 | C21: 1.00 | D21: 4.00 | E21: 0.95 | F21: 1.19 | G21: 2.79 | H21: 3.83 | I21: 4.72 | J21: 3.55 | K21: - | L21: 4.94 | M21: 5.64
B22: 4 | C22: 1.00 | D22: 4.00 | E22: 0.96 | F22: 1.43 | G22: 3.39 | H22: 4.35 | I22: 5.16 | J22: 3.65 | K22: - | L22: 5.16 | M22: 5.83
B23: 5 | C23: 1.00 | D23: 4.00 | E23: 1.04 | F23: 1.78 | G23: 3.85 | H23: 4.72 | I23: 5.46 | J23: 3.88 | K23: - | L23: 5.64 | M23: 6.27
B24: 6 | C24: 1.03 | D24: 4.01 | E24: 1.29 | F24: 2.12 | G24: 3.93 | H24: 4.73 | I24: 5.45 | J24: 4.10 | K24: - | L24: 5.66 | M24: 6.29
B25: 7 | C25: 1.26 | D25: 4.25 | E25: 1.36 | F25: 2.10 | G25: 3.69 | H25: 4.50 | I25: 5.24 | J25: 4.11 | K25: - | L25: 5.46 | M25: 6.06
B26: 8 | C26: 1.43 | D26: 4.43 | E26: 1.50 | F26: 2.02 | G26: 3.47 | H26: 4.28 | I26: 5.07 | J26: 4.06 | K26: - | L26: 5.26 | M26: 5.87
B27: 9 | C27: 1.61 | D27: 4.58 | E27: 1.68 | F27: 2.12 | G27: 3.36 | H27: 4.13 | I27: 4.89 | J27: 3.99 | K27: - | L27: 5.14 | M27: 5.75
B28: 10 | C28: 1.76 | D28: 4.75 | E28: 1.79 | F28: 2.23 | G28: 3.35 | H28: 4.10 | I28: 4.85 | J28: 4.02 | K28: - | L28: 5.12 | M28: 5.72
B29: 11 | C29: 1.93 | D29: 4.93 | E29: 2.11 | F29: 2.50 | G29: 3.53 | H29: 4.19 | I29: 4.89 | J29: 4.15 | K29: - | L29: 5.14 | M29: 5.73
B30: 12 | C30: 2.16 | D30: 5.15 | E30: 2.22 | F30: 2.67 | G30: 3.60 | H30: 4.23 | I30: 4.88 | J30: 4.18 | K30: - | L30: 5.18 | M30: 5.75
A32: 2005 | B32: 1 | C32: 2.28 | D32: 5.25 | E32: 2.37 | F32: 2.86 | G32: 3.71 | H32: 4.22 | I32: 4.77 | J32: 4.12 | K32: 5.04 | L32: 5.17 | M32: 5.71
B33: 2 | C33: 2.50 | D33: 5.49 | E33: 2.58 | F33: 3.03 | G33: 3.77 | H33: 4.17 | I33: 4.61 | J33: 4.16 | K33: 5.02 | L33: 5.15 | M33: 5.63
B34: 3 | C34: 2.63 | D34: 5.58 | E34: 2.80 | F34: 3.30 | G34: 4.17 | H34: 4.50 | I34: 4.89 | J34: 4.23 | K34: 5.30 | L34: 5.46 | M34: 5.93
B35: 4 | C35: 2.79 | D35: 5.75 | E35: 2.84 | F35: 3.32 | G35: 4.00 | H35: 4.34 | I35: 4.75 | J35: 4.25 | K35: 5.27 | L35: 5.41 | M35: 5.86
B36: 5 | C36: 3.00 | D36: 5.98 | E36: 2.90 | F36: 3.33 | G36: 3.85 | H36: 4.14 | I36: 4.56 | J36: 4.23 | K36: 5.13 | L36: 5.28 | M36: 5.72
B37: 6 | C37: 3.04 | D37: 6.01 | E37: 3.04 | F37: 3.36 | G37: 3.77 | H37: 4.00 | I37: 4.35 | J37: 4.24 | K37: 5.06 | L37: 5.17 | M37: 5.58
B38: 7 | C38: 3.26 | D38: 6.25 | E38: 3.29 | F38: 3.64 | G38: 3.98 | H38: 4.18 | I38: 4.48 | J38: 4.40 | K38: 5.22 | L38: 5.28 | M38: 5.70
B39: 8 | C39: 3.50 | D39: 6.44 | E39: 3.52 | F39: 3.87 | G39: 4.12 | H39: 4.26 | I39: 4.53 | J39: 4.55 | K39: 5.34 | L39: 5.40 | M39: 5.82
B40: 9 | C40: 3.62 | D40: 6.59 | E40: 3.49 | F40: 3.85 | G40: 4.01 | H40: 4.20 | I40: 4.51 | J40: 4.51 | K40: 5.31 | L40: 5.36 | M40: 5.77
B41: 10 | C41: 3.78 | D41: 6.75 | E41: 3.79 | F41: 4.18 | G41: 4.33 | H41: 4.46 | I41: 4.74 | J41: 4.86 | K41: 5.57 | L41: 5.63 | M41: 6.07
B42: 11 | C42: 4.00 | D42: 7.00 | E42: 3.97 | F42: 4.33 | G42: 4.45 | H42: 4.54 | I42: 4.83 | J42: 5.14 | K42: 5.80 | L42: 5.86 | M42: 6.33
B43: 12 | C43: 4.16 | D43: 7.15 | E43: 3.97 | F43: 4.35 | G43: 4.39 | H43: 4.47 | I43: 4.73 | J43: 5.17 | K43: 5.78 | L43: 5.82 | M43: 6.27
A45: 2006 | B45: 1 | C45: 4.29 | D45: 7.26 | E45: 4.34 | F45: 4.45 | G45: 4.35 | H45: 4.42 | I45: 4.65 | J45: 5.17 | K45: 5.76 | L45: 5.71 | M45: 6.15
B46: 2 | C46: 4.49 | D46: 7.50 | E46: 4.54 | F46: 4.68 | G46: 4.57 | H46: 4.57 | I46: 4.73 | J46: 5.34 | K46: 5.92 | L46: 5.86 | M46: 6.25
B47: 3 | C47: 4.59 | D47: 7.53 | E47: 4.63 | F47: 4.77 | G47: 4.72 | H47: 4.72 | I47: 4.91 | J47: 5.42 | K47: 5.98 | L47: 5.97 | M47: 6.32
B48: 4 | C48: 4.79 | D48: 7.75 | E48: 4.72 | F48: 4.90 | G48: 4.90 | H48: 4.99 | I48: 5.22 | J48: 5.62 | K48: 6.15 | L48: 6.16 | M48: 6.51
B49: 5 | C49: 4.94 | D49: 7.93 | E49: 4.84 | F49: 5.00 | G49: 5.00 | H49: 5.11 | I49: 5.35 | J49: 5.63 | K49: 6.22 | L49: 6.21 | M49: 6.60
B50: 6 | C50: 4.99 | D50: 8.02 | E50: 4.92 | F50: 5.16 | G50: 5.07 | H50: 5.11 | I50: 5.29 | J50: 5.71 | K50: 6.28 | L50: 6.31 | M50: 6.68
B51: 7 | C51: 5.24 | D51: 8.25 | E51: 5.08 | F51: 5.22 | G51: 5.04 | H51: 5.09 | I51: 5.25 | J51: 5.79 | K51: 6.36 | L51: 6.39 | M51: 6.76
B52: 8 | C52: 5.25 | D52: 8.25 | E52: 5.09 | F52: 5.08 | G52: 4.82 | H52: 4.88 | I52: 5.08 | J52: 5.64 | K52: 6.18 | L52: 6.20 | M52: 6.52
B53: 9 | C53: 5.25 | D53: 8.25 | E53: 4.93 | F53: 4.97 | G53: 4.67 | H53: 4.72 | I53: 4.93 | J53: 5.56 | K53: 6.08 | L53: 6.08 | M53: 6.40
B54: 10 | C54: 5.25 | D54: 8.25 | E54: 5.05 | F54: 5.01 | G54: 4.69 | H54: 4.73 | I54: 4.94 | J54: 5.55 | K54: 6.09 | L54: 6.05 | M54: 6.36
B55: 11 | C55: 5.25 | D55: 8.25 | E55: 5.07 | F55: 5.01 | G55: 4.58 | H55: 4.60 | I55: 4.78 | J55: 5.51 | K55: 6.02 | L55: 5.96 | M55: 6.24
B56: 12 | C56: 5.24 | D56: 8.25 | E56: 4.97 | F56: 4.94 | G56: 4.53 | H56: 4.56 | I56: 4.78 | J56: 5.45 | K56: 5.95 | L56: 5.88 | M56: 6.14
B58: 1 | C58: 5.25 | D58: 8.25 | E58: 5.11 | F58: 5.06 | G58: 4.75 | H58: 4.76 | I58: 4.95 | J58: 5.47 | K58: 6.02 | L58: 5.97 | M58: 6.22
B59: 2 | C59: 5.26 | D59: 8.25 | E59: 5.16 | F59: 5.05 | G59: 4.71 | H59: 4.72 | I59: 4.93 | J59: 5.51 | K59: 6.00 | L59: 6.02 | M59: 6.29
B60: 3 | C60: 5.26 | D60: 8.25 | E60: 5.08 | F60: 4.92 | G60: 4.48 | H60: 4.56 | I60: 4.81 | J60: 5.44 | K60: 5.90 | L60: 5.88 | M60: 6.16
B61: 4 | C61: 5.25 | D61: 8.25 | E61: 5.01 | F61: 4.93 | G61: 4.59 | H61: 4.69 | I61: 4.95 | J61: 5.45 | K61: 5.91 | L61: 5.88 | M61: 6.18
B62: 5 | C62: 5.25 | D62: 8.25 | E62: 4.87 | F62: 4.91 | G62: 4.67 | H62: 4.75 | I62: 4.98 | J62: 5.52 | K62: 5.98 | L62: 5.97 | M62: 6.26
B63: 6 | C63: 5.25 | D63: 8.25 | E63: 4.74 | F63: 4.96 | G63: 5.03 | H63: 5.10 | I63: 5.29 | J63: 5.68 | K63: 6.31 | L63: 6.34 | M63: 6.66
B64: 7 | C64: 5.26 | D64: 8.25 | E64: 4.96 | F64: 4.96 | G64: 4.88 | H64: 5.00 | I64: 5.19 | J64: 5.71 | K64: 6.32 | L64: 6.36 | M64: 6.70
B65: 8 | C65: 5.02 | D65: 8.25 | E65: 4.32 | F65: 4.47 | G65: 4.43 | H65: 4.67 | I65: 5.00 | J65: 5.67 | K65: 6.33 | L65: 6.23 | M65: 6.57
A66: 2007 | B66: 9 | C66: 4.94 | D66: 8.03 | E66: 3.99 | F66: 4.14 | G66: 4.20 | H66: 4.52 | I66: 4.84 | J66: 5.66 | K66: 6.21 | L66: 6.05 | M66: 6.38
B67: 10 | C67: 4.76 | D67: 7.74 | E67: 4.00 | F67: 4.10 | G67: 4.20 | H67: 4.53 | I67: 4.83 | J67: 5.68 | K67: 6.09 | L67: 6.04 | M67: 6.38
B68: 11 | C68: 4.49 | D68: 7.50 | E68: 3.35 | F68: 3.50 | G68: 3.67 | H68: 4.15 | I68: 4.56 | J68: 5.48 | K68: 5.91 | L68: 5.85 | M68: 6.21
B69: 12 | C69: 4.24 | D69: 7.33 | E69: 3.07 | F69: 3.26 | G69: 3.49 | H69: 4.10 | I69: 4.57 | J69: 5.50 | K69: 5.86 | L69: 5.75 | M69: 6.10
A71: 2008 | B71: 1 | C71: 3.94 | D71: 6.98 | E71: 2.82 | F71: 2.71 | G71: 2.98 | H71: 3.74 | I71: 4.35 | J71: 5.23 | K71: 5.45 | L71: 5.29 | M71: 5.76
B72: 2 | C72: 2.98 | D72: 6.00 | E72: 2.17 | F72: 2.05 | G72: 2.78 | H72: 3.74 | I72: 4.49 | J72: 5.03 | K72: 5.30 | L72: 5.44 | M72: 5.92
A73: 2008 | B73: 3 | C73: 2.61 | D73: 5.66 | E73: 1.28 | F73: 1.54 | G73: 2.48 | H73: 3.51 | I73: 4.36 | J73: 5.12 | K73: 5.54 | L73: 5.42 | M73: 5.97
B74: 4 | C74: 2.28 | D74: 5.24 | E74: 1.31 | F74: 1.74 | G74: 2.84 | H74: 3.68 | I74: 4.44 | J74: 5.19 | K74: 5.58 | L74: 5.47 | M74: 5.92
B75: 5 | C75: 1.98 | D75: 5.00 | E75: 1.76 | F75: 2.06 | G75: 3.15 | H75: 3.88 | I75: 4.60 | J75: 5.24 | K75: 5.64 | L75: 5.60 | M75: 6.04
B76: 6 | C76: 2.00 | D76: 5.00 | E76: 1.89 | F76: 2.42 | G76: 3.49 | H76: 4.10 | I76: 4.74 | J76: 5.15 | K76: 5.77 | L76: 5.91 | M76: 6.32
B77: 7 | C77: 2.01 | D77: 5.00 | E77: 1.66 | F77: 2.28 | G77: 3.30 | H77: 4.01 | I77: 4.62 | J77: 5.24 | K77: 5.93 | L77: 5.97 | M77: 6.43
B78: 8 | C78: 2.00 | D78: 5.00 | E78: 1.75 | F78: 2.18 | G78: 3.14 | H78: 3.89 | I78: 4.53 | J78: 5.26 | K78: 6.02 | L78: 6.03 | M78: 6.48
B79: 9 | C79: 1.81 | D79: 5.00 | E79: 1.15 | F79: 1.91 | G79: 2.88 | H79: 3.69 | I79: 4.32 | J79: 5.14 | K79: 5.88 | L79: 5.64 | M79: 6.04
B80: 10 | C80: 0.97 | D80: 4.56 | E80: 0.69 | F80: 1.42 | G80: 2.73 | H80: 3.81 | I80: 4.45 | J80: 5.21 | K80: 6.09 | L80: 5.89 | M80: 6.20
B81: 11 | C81: 0.39 | D81: 4.00 | E81: 0.19 | F81: 1.07 | G81: 2.29 | H81: 3.53 | I81: 4.27 | J81: 5.26 | K81: 5.98 | L81: 5.79 | M81: 6.09
A82: 2008 | B82: 12 | C82: 0.16 | D82: 3.61 | E82: 0.03 | F82: 0.49 | G82: 1.52 | H82: 2.42 | I82: 3.18 | J82: 4.97 | K82: 5.65 | L82: 5.04 | M82: 5.29
B84: 1 | C84: 0.15 | D84: 3.25 | E84: 0.13 | F84: 0.44 | G84: 1.60 | H84: 2.52 | I84: 3.46 | J84: 4.92 | K84: 5.31 | L84: 4.72 | M84: 5.05
B85: 2 | C85: 0.22 | D85: 3.25 | E85: 0.30 | F85: 0.62 | G85: 1.87 | H85: 2.87 | I85: 3.83 | J85: 4.87 | K85: 5.15 | L85: 4.77 | M85: 5.13
B86: 3 | C86: 0.18 | D86: 3.25 | E86: 0.22 | F86: 0.64 | G86: 1.82 | H86: 2.82 | I86: 3.78 | J86: 4.86 | K86: 5.00 | L86: 4.64 | M86: 5.00
B87: 4 | C87: 0.15 | D87: 3.25 | E87: 0.16 | F87: 0.55 | G87: 1.86 | H87: 2.93 | I87: 3.84 | J87: 4.82 | K87: 4.88 | L87: 4.50 | M87: 4.81
B88: 5 | C88: 0.18 | D88: 3.25 | E88: 0.18 | F88: 0.50 | G88: 2.13 | H88: 3.29 | I88: 4.22 | J88: 4.75 | K88: 4.83 | L88: 4.52 | M88: 4.86
B89: 6 | C89: 0.21 | D89: 3.25 | E89: 0.18 | F89: 0.51 | G89: 2.71 | H89: 3.72 | I89: 4.51 | J89: 4.93 | K89: 5.00 | L89: 4.90 | M89: 5.42
B90: 7 | C90: 0.16 | D90: 3.25 | E90: 0.18 | F90: 0.48 | G90: 2.46 | H90: 3.56 | I90: 4.38 | J90: 4.82 | K90: 4.80 | L90: 4.69 | M90: 5.22
B91: 8 | C91: 0.16 | D91: 3.25 | E91: 0.17 | F91: 0.46 | G91: 2.57 | H91: 3.59 | I91: 4.33 | J91: 4.72 | K91: 4.68 | L91: 4.61 | M91: 5.19
B92: 9 | C92: 0.15 | D92: 3.25 | E92: 0.12 | F92: 0.40 | G92: 2.37 | H92: 3.40 | I92: 4.14 | J92: 4.59 | K92: 4.53 | L92: 4.49 | M92: 5.06
B93: 10 | C93: 0.12 | D93: 3.25 | E93: 0.07 | F93: 0.37 | G93: 2.33 | H93: 3.39 | I93: 4.16 | J93: 4.55 | K93: 4.39 | L93: 4.39 | M93: 4.95
B94: 11 | C94: 0.12 | D94: 3.25 | E94: 0.05 | F94: 0.31 | G94: 2.23 | H94: 3.40 | I94: 4.24 | J94: 4.41 | K94: 4.27 | L94: 4.34 | M94: 4.88
A95: 2009 | B95: 12 | C95: 0.12 | D95: 3.25 | E95: 0.05 | F95: 0.37 | G95: 2.34 | H95: 3.59 | I95: 4.40 | J95: 4.31 | K95: 4.33 | L95: 4.39 | M95: 4.93
B97: 1 | C97: 0.11 | D97: 3.25 | E97: 0.06 | F97: 0.35 | G97: 2.48 | H97: 3.73 | I97: 4.50 | J97: 4.33 | K97: 4.32 | L97: 4.44 | M97: 5.03
B98: 2 | C98: 0.13 | D98: 3.25 | E98: 0.11 | F98: 0.35 | G98: 2.36 | H98: 3.69 | I98: 4.48 | J98: 4.23 | K98: 4.19 | L98: 4.37 | M98: 4.99
B99: 3 | C99: 0.16 | D99: 3.25 | E99: 0.15 | F99: 0.40 | G99: 2.43 | H99: 3.73 | I99: 4.49 | J99: 4.20 | K99: 4.10 | L99: 4.33 | M99: 4.97
B100: 4 | C100: 0.20 | D100: 3.25 | E100: 0.16 | F100: 0.45 | G100: 2.58 | H100: 3.85 | I100: 4.53 | J100: 4.16 | K100: 4.09 | L100: 4.42 | M100: 5.10
B101: 5 | C101: 0.20 | D101: 3.25 | E101: 0.16 | F101: 0.37 | G101: 2.18 | H101: 3.42 | I101: 4.11 | J101: 4.01 | K101: 3.95 | L101: 4.28 | M101: 4.89
B102: 6 | C102: 0.18 | D102: 3.25 | E102: 0.12 | F102: 0.32 | G102: 2.00 | H102: 3.20 | I102: 3.95 | J102: 3.86 | K102: 3.90 | L102: 4.18 | M102: 4.74
B103: 7 | C103: 0.18 | D103: 3.25 | E103: 0.16 | F103: 0.29 | G103: 1.76 | H103: 3.01 | I103: 3.80 | J103: 3.73 | K103: 3.79 | L103: 4.04 | M103: 4.56
B104: 8 | C104: 0.19 | D104: 3.25 | E104: 0.16 | F104: 0.26 | G104: 1.47 | H104: 2.70 | I104: 3.52 | J104: 3.53 | K104: 3.58 | L104: 3.91 | M104: 4.43
B105: 9 | C105: 0.19 | D105: 3.25 | E105: 0.15 | F105: 0.26 | G105: 1.41 | H105: 2.65 | I105: 3.47 | J105: 3.46 | K105: 3.54 | L105: 3.81 | M105: 4.35
B106: 10 | C106: 0.19 | D106: 3.25 | E106: 0.13 | F106: 0.23 | G106: 1.18 | H106: 2.54 | I106: 3.52 | J106: 3.36 | K106: 3.45 | L106: 3.66 | M106: 4.23
B107: 11 | C107: 0.19 | D107: 3.25 | E107: 0.14 | F107: 0.25 | G107: 1.35 | H107: 2.76 | I107: 3.82 | J107: 3.25 | K107: 3.37 | L107: 3.68 | M107: 4.30
A108: 2010 | B108: 12 | C108: 0.18 | D108: 3.25 | E108: 0.14 | F108: 0.29 | G108: 1.93 | H108: 3.29 | I108: 4.17 | J108: 3.31 | K108: 3.68 | L108: 4.06 | M108: 4.71
B110: 1 | C110: 0.17 | D110: 3.25 | E110: 0.15 | F110: 0.27 | G110: 1.99 | H110: 3.39 | I110: 4.28 | J110: 3.25 | K110: 3.72 | L110: 4.09 | M110: 4.76
B111: 2 | C111: 0.16 | D111: 3.25 | E111: 0.13 | F111: 0.29 | G111: 2.26 | H111: 3.58 | I111: 4.42 | J111: 3.35 | K111: 3.82 | L111: 4.22 | M111: 4.95
B112: 3 | C112: 0.14 | D112: 3.25 | E112: 0.10 | F112: 0.26 | G112: 2.11 | H112: 3.41 | I112: 4.27 | J112: 3.22 | K112: 3.67 | L112: 4.08 | M112: 4.84
B113: 4 | C113: 0.10 | D113: 3.25 | E113: 0.06 | F113: 0.25 | G113: 2.17 | H113: 3.46 | I113: 4.28 | J113: 3.20 | K113: 3.66 | L113: 4.06 | M113: 4.84
A114: 2011 | B114: 5 | C114: 0.09 | D114: 3.25 | E114: 0.04 | F114: 0.19 | G114: 1.84 | H114: 3.17 | I114: 4.01 | J114: 3.13 | K114: 3.44 | L114: 3.82 | M114: 4.64
B115: 6 | C115: 0.09 | D115: 3.25 | E115: 0.04 | F115: 0.18 | G115: 1.58 | H115: 3.00 | I115: 3.91 | J115: 3.00 | K115: 3.29 | L115: 3.69 | M115: 4.51
A116: 2011 | B116: 7 | C116: 0.07 | D116: 3.25 | E116: 0.04 | F116: 0.19 | G116: 1.54 | H116: 3.00 | I116: 3.95 | J116: 2.97 | K116: 3.28 | L116: 3.68 | M116: 4.55
B117: 8 | C117: 0.10 | D117: 3.25 | E117: 0.02 | F117: 0.11 | G117: 1.02 | H117: 2.30 | I117: 3.24 | J117: 2.93 | K117: 3.12 | L117: 3.46 | M117: 4.27
A118: 2011 | B118: 9 | C118: 0.08 | D118: 3.25 | E118: 0.01 | F118: 0.10 | G118: 0.90 | H118: 1.98 | I118: 2.83 | J118: 2.84 | K118: 2.99 | L118: 3.32 | M118: 4.11
A119: 2011 | B119: 10 | C119: 0.07 | D119: 3.25 | E119: 0.02 | F119: 0.11 | G119: 1.06 | H119: 2.15 | I119: 2.87 | J119: 2.92 | K119: 3.03 | L119: 3.35 | M119: 4.07
A120: 2011 | B120: 11 | C120: 0.08 | D120: 3.25 | E120: 0.01 | F120: 0.11 | G120: 0.91 | H120: 2.01 | I120: 2.72 | J120: 2.90 | K120: 2.96 | L120: 3.31 | M120: 3.99
A121: 2011 | B121: 12 | C121: 0.07 | D121: 3.25 | E121: 0.01 | F121: 0.12 | G121: 0.89 | H121: 1.98 | I121: 2.67 | J121: 2.79 | K121: 2.88 | L121: 3.25 | M121: 3.96
A123: 2012 | B123: 1 | C123: 0.08 | D123: 3.25 | E123: 0.03 | F123: 0.12 | G123: 0.84 | H123: 1.97 | I123: 2.70 | J123: 2.76 | K123: 2.84 | L123: 3.20 | M123: 3.92
A124: 2012 | B124: 2 | C124: 0.10 | D124: 3.25 | E124: 0.09 | F124: 0.16 | G124: 0.83 | H124: 1.97 | I124: 2.75 | J124: 2.78 | K124: 2.81 | L124: 3.16 | M124: 3.89
A125: 2012 | B125: 3 | C125: 0.13 | D125: 3.25 | E125: 0.08 | F125: 0.19 | G125: 1.02 | H125: 2.17 | I125: 2.94 | J125: 2.77 | K125: 2.87 | L125: 3.20 | M125: 3.95
A126: 2012 | B126: 4 | C126: 0.14 | D126: 3.25 | E126: 0.08 | F126: 0.18 | G126: 0.89 | H126: 2.05 | I126: 2.82 | J126: 2.78 | K126: 2.84 | L126: 3.14 | M126: 3.91
A127: 2012 | B127: 5 | C127: 0.16 | D127: 3.25 | E127: 0.09 | F127: 0.19 | G127: 0.76 | H127: 1.80 | I127: 2.53 | J127: 2.74 | K127: 2.83 | L127: 3.03 | M127: 3.80
A128: 2012 | B128: 6 | C128: 0.16 | D128: 3.25 | E128: 0.09 | F128: 0.19 | G128: 0.71 | H128: 1.62 | I128: 2.31 | J128: 2.76 | K128: 2.80 | L128: 2.95 | M128: 3.68
B129: 7 | C129: 0.16 | D129: 3.25 | E129: 0.10 | F129: 0.19 | G129: 0.62 | H129: 1.53 | I129: 2.22 | J129: 2.69 | K129: 2.74 | L129: 2.85 | M129: 3.55
B130: 8 | C130: 0.13 | D130: 3.25 | E130: 0.10 | F130: 0.18 | G130: 0.71 | H130: 1.68 | I130: 2.40 | J130: 2.67 | K130: 2.77 | L130: 2.86 | M130: 3.60
B131: 9 | C131: 0.14 | D131: 3.25 | E131: 0.11 | F131: 0.18 | G131: 0.67 | H131: 1.72 | I131: 2.49 | J131: 2.60 | K131: 2.73 | L131: 2.78 | M131: 3.47
B132: 10 | C132: 0.16 | D132: 3.25 | E132: 0.10 | F132: 0.18 | G132: 0.71 | H132: 1.75 | I132: 2.51 | J132: 2.59 | K132: 2.74 | L132: 2.69 | M132: 3.38
B133: 11 | C133: 0.16 | D133: 3.25 | E133: 0.09 | F133: 0.18 | G133: 0.67 | H133: 1.65 | I133: 2.39 | J133: 2.57 | K133: 2.73 | L133: 2.66 | M133: 3.35
B134: 12 | C134: 0.16 | D134: 3.25 | E134: 0.07 | F134: 0.16 | G134: 0.70 | H134: 1.72 | I134: 2.47 | J134: 2.54 | K134: 2.70 | L134: 2.66 | M134: 3.35
A136: 2013 | B136: 1 | C136: 0.14 | D136: 3.25 | E136: 0.07 | F136: 0.15 | G136: 0.81 | H136: 1.91 | I136: 2.68 | J136: 2.58 | K136: 2.68 | L136: 2.70 | M136: 3.41
B137: 2 | C137: 0.15 | D137: 3.25 | E137: 0.10 | F137: 0.16 | G137: 0.85 | H137: 1.98 | I137: 2.78 | J137: 2.61 | K137: 2.63 | L137: 2.77 | M137: 3.53
B138: 3 | C138: 0.14 | D138: 3.25 | E138: 0.09 | F138: 0.15 | G138: 0.82 | H138: 1.96 | I138: 2.78 | J138: 2.63 | K138: 2.63 | L138: 2.76 | M138: 3.57
B139: 4 | C139: 0.15 | D139: 3.25 | E139: 0.06 | F139: 0.12 | G139: 0.71 | H139: 1.76 | I139: 2.55 | J139: 2.63 | K139: 2.61 | L139: 2.66 | M139: 3.45
B140: 5 | C140: 0.11 | D140: 3.25 | E140: 0.04 | F140: 0.12 | G140: 0.84 | H140: 1.93 | I140: 2.73 | J140: 2.55 | K140: 2.61 | L140: 2.72 | M140: 3.54
B141: 6 | C141: 0.09 | D141: 3.25 | E141: 0.05 | F141: 0.14 | G141: 1.20 | H141: 2.30 | I141: 3.07 | J141: 2.60 | K141: 2.85 | L141: 3.17 | M141: 4.07
B142: 7 | C142: 0.09 | D142: 3.25 | E142: 0.04 | F142: 0.12 | G142: 1.40 | H142: 2.58 | I142: 3.31 | J142: 2.66 | K142: 3.17 | L142: 3.43 | M142: 4.37
B143: 8 | C143: 0.08 | D143: 3.25 | E143: 0.04 | F143: 0.13 | G143: 1.52 | H143: 2.74 | I143: 3.49 | J143: 2.65 | K143: 3.21 | L143: 3.49 | M143: 4.46
B144: 9 | C144: 0.08 | D144: 3.25 | E144: 0.02 | F144: 0.12 | G144: 1.60 | H144: 2.81 | I144: 3.53 | J144: 2.67 | K144: 3.17 | L144: 3.52 | M144: 4.49
B145: 10 | C145: 0.09 | D145: 3.25 | E145: 0.05 | F145: 0.12 | G145: 1.37 | H145: 2.62 | I145: 3.38 | J145: 2.63 | K145: 3.02 | L145: 3.27 | M145: 4.19
B146: 11 | C146: 0.08 | D146: 3.25 | E146: 0.07 | F146: 0.12 | G146: 1.37 | H146: 2.72 | I146: 3.50 | J146: 2.61 | K146: 2.97 | L146: 3.30 | M146: 4.26
B147: 12 | C147: 0.09 | D147: 3.25 | E147: 0.07 | F147: 0.13 | G147: 1.58 | H147: 2.90 | I147: 3.63 | J147: 2.56 | K147: 2.97 | L147: 3.48 | M147: 4.46
A149: 2014 | B149: 1 | C149: 0.07 | D149: 3.25 | E149: 0.04 | F149: 0.12 | G149: 1.65 | H149: 2.86 | I149: 3.52 | J149: 2.55 | K149: 3.11 | L149: 3.48 | M149: 4.43
B150: 2 | C150: 0.07 | D150: 3.25 | E150: 0.05 | F150: 0.12 | G150: 1.52 | H150: 2.71 | I150: 3.38 | J150: 2.54 | K150: 3.07 | L150: 3.35 | M150: 4.30
A152: 자료 : FRB(The Federal Reserve Board), Freddie Mac

Sheet 43. 미국의 주택건설 및 주택판매현황
A1: 43. 미국의 주택건설 및 주택판매현황 Housing Construction and Home Sales in U.S.
A3: 단위 : 천호 | G3: Thousands of units
A4: 연월중 | C4: 주택건설 현황1) | F4: 주택판매 현황
C5: Housing Construction | F5: Home Sales
A6: During | C6: 건축허가 | D6: 건축착공 | E6: 건축실적 | F6: 신규주택 판매1) | G6: 주택가격지수2)
C7: Permits | D7: Starting | E7: Completed | F7: New House Sold | G7: House Price Indices
A8: 2005 | C8: 25,921 | D8: 24,875 | E8: 23,152 | F8: 15,347 | G8: =G29 -> 219.6
A9: 2006 | C9: 22,124 | D9: 21,743 | E9: 23,868 | F9: 12,592 | G9: =G42 -> 225.4
A10: 2007 | C10: 16,698 | D10: 16,102 | E10: 18,166 | F10: 9,224 | G10: =G55 -> 218.4
A11: 2008 | C11: 10,750 | D11: 10,800 | E11: 13,522 | F11: 5,786 | G11: =G68 -> 196.6
A12: 2009 | C12: =SUM(C70:C81) -> 6,984 | D12: =SUM(D70:D81) -> 6,648 | E12: 9,546 | F12: 4,491 | G12: =G81 -> 192.7
A13: 2010 | C13: 7,244 | D13: 7,026 | E13: 7,845 | F13: 3,855 | G13: =G94 -> 185.3
A14: 2011 | C14: 7,492 | D14: 7,345 | E14: 7,016 | F14: 3,681 | G14: =G107 -> 183.0
A15: 2012 | C15: 9,606 | D15: 9,366 | E15: 7,706 | F15: 4,387 | G15: =+G120 -> 193.6
A16: 2013 | C16: 11,566 | D16: 11,173 | E16: 9,153 | F16: 5,157p | G16: =G133 -> 208.1
A18: 2005 | B18: 1 | E18: 1,892 | F18: 1,194 | G18: 201.3
A19: 2005 | B19: 2 | C19: 2,114 | D19: 2,207 | E19: 1,908 | F19: 1,247 | G19: 202.8
A20: 2005 | B20: 3 | C20: 2,062 | D20: 1,864 | E20: 1,787 | F20: 1,328 | G20: 204.9
A21: 2005 | B21: 3 | C21: 2,062 | D21: 1,864 | E21: 1,787 | F21: 1,328 | G21: 206.6
A22: 2005 | B22: 5 | C22: 2,085 | D22: 2,025 | E22: 2,103 | F22: 1,286 | G22: 208.3
A23: 2005 | B23: 6 | C23: 2,178 | D23: 2,068 | E23: 1,965 | F23: 1,274 | G23: 210.0
A24: 2005 | B24: 7 | C24: 2,203 | D24: 2,054 | E24: 1,886 | F24: 1,389 | G24: 212.1
A25: 2005 | B25: 8 | C25: 2,219 | D25: 2,095 | E25: 1,952 | F25: 1,255 | G25: 213.7
A26: 2005 | B26: 9 | C26: 2,263 | D26: 2,151 | E26: 1,922 | F26: 1,244 | G26: 215.7
A27: 2005 | B27: 10 | C27: 2,170 | D27: 2,065 | E27: 1,962 | F27: 1,336 | G27: 217.0
A28: 2005 | B28: 11 | C28: 2,218 | D28: 2,147 | E28: 1,907 | F28: 1,214 | G28: 218.4
A29: 2005 | B29: 12 | C29: 2,120 | D29: 1,994 | E29: 1,941 | F29: 1,239 | G29: 219.6
A31: 2006 | B31: 1 | C31: 2,212 | D31: 2,273 | E31: 2,036 | F31: 1,174 | G31: 221.2
A32: 2006 | B32: 2 | C32: 2,141 | D32: 2,119 | E32: 2,048 | F32: 1,061 | G32: 221.6
A33: 2006 | B33: 3 | C33: 2,118 | D33: 1,969 | E33: 2,245 | F33: 1,116 | G33: 222.5
A34: 2006 | B34: 4 | C34: 1,998 | D34: 1,821 | E34: 2,071 | F34: 1,123 | G34: 222.9
A35: 2006 | B35: 5 | C35: 1,905 | D35: 1,942 | E35: 1,897 | F35: 1,086 | G35: 223.6
A36: 2006 | B36: 6 | C36: 1,867 | D36: 1,802 | E36: 2,050 | F36: 1,074 | G36: 223.5
A37: 2006 | B37: 7 | C37: 1,763 | D37: 1,737 | E37: 1,934 | F37: 965 | G37: 223.6
A38: 2006 | B38: 8 | C38: 1,722 | D38: 1,650 | E38: 1,877 | F38: 1,035 | G38: 224.2
A39: 2006 | B39: 9 | C39: 1,655 | D39: 1,720 | E39: 2,011 | F39: 1,016 | G39: 224.0
A40: 2006 | B40: 10 | C40: 1,570 | D40: 1,491 | E40: 1,918 | F40: 941 | G40: 224.5
A41: 2006 | B41: 11 | C41: 1,535 | D41: 1,570 | E41: 1,893 | F41: 1,003 | G41: 225.1
A42: 2006 | B42: 12 | C42: 1,638 | D42: 1,649 | E42: 1,888 | F42: 998 | G42: 225.4
A44: 2007 | B44: 1 | C44: 1,626 | D44: 1,409 | E44: 1,822 | F44: 891 | G44: 226.2
A45: 2007 | B45: 2 | C45: 1,598 | D45: 1,480 | E45: 1,640 | F45: 828 | G45: 226.1
A46: 2007 | B46: 3 | C46: 1,596 | D46: 1,495 | E46: 1,623 | F46: 833 | G46: 227.2
A47: 2007 | B47: 4 | C47: 1,470 | D47: 1,490 | E47: 1,539 | F47: 887 | G47: 227.2
A48: 2007 | B48: 5 | C48: 1,493 | D48: 1,415 | E48: 1,536 | F48: 842 | G48: 226.1
A49: 2007 | B49: 6 | C49: 1,407 | D49: 1,448 | E49: 1,481 | F49: 793 | G49: 225.3
A50: 2007 | B50: 7 | C50: 1,361 | D50: 1,354 | E50: 1,534 | F50: 778 | G50: 224.3
A51: 2007 | B51: 8 | C51: 1,321 | D51: 1,330 | E51: 1,512 | F51: 699 | G51: 223.4
A52: 2007 | B52: 9 | C52: 1,261 | D52: 1,183 | E52: 1,356 | F52: 686 | G52: 222.5
A53: 2007 | B53: 10 | C53: 1,191 | D53: 1,264 | E53: 1,405 | F53: 727 | G53: 220.7
A54: 2007 | B54: 11 | C54: 1,224 | D54: 1,197 | E54: 1,390 | F54: 641 | G54: 219.4
A55: 2007 | B55: 12 | C55: 1,149 | D55: 1,037 | E55: 1,328 | F55: 619 | G55: 218.4
A57: 2008 | B57: 1 | C57: 1,102 | D57: 1,083 | E57: 1,338 | F57: 608 | G57: 216.4
A58: 2008 | B58: 2 | C58: 1,015 | D58: 1,100 | E58: 1,266 | F58: 576 | G58: 215.4
A59: 2008 | B59: 3 | C59: 967 | D59: 1,005 | E59: 1,195 | F59: 509 | G59: 213.5
A60: 2008 | B60: 4 | C60: 1,008 | D60: 1,013 | E60: 1,022 | F60: 536 | G60: 211.2
A61: 2008 | B61: 5 | C61: 995 | D61: 973 | E61: 1,142 | F61: 504 | G61: 208.9
A62: 2008 | B62: 6 | C62: 1,180 | D62: 1,046 | E62: 1,142 | F62: 487 | G62: 207.6
A63: 2008 | B63: 7 | C63: 921 | D63: 923 | E63: 1,087 | F63: 477 | G63: 205.8
A64: 2008 | B64: 8 | C64: 858 | D64: 844 | E64: 1,017 | F64: 435 | G64: 203.9
A65: 2008 | B65: 9 | C65: 797 | D65: 820 | E65: 1,160 | F65: 433 | G65: 202.1
A66: 2008 | B66: 10 | C66: 736 | D66: 777 | E66: 1,055 | F66: 393 | G66: 200.0
A67: 2008 | B67: 11 | C67: 626 | D67: 652 | E67: 1,076 | F67: 389 | G67: 196.7
A68: 2008 | B68: 12 | C68: 554 | D68: 560 | E68: 1,021 | F68: 377 | G68: 196.6
A70: 2009 | B70: 1 | C70: 545 | D70: 490 | E70: 777 | F70: 336 | G70: 198.5
A71: 2009 | B71: 2 | C71: 558 | D71: 582 | E71: 819 | F71: 372 | G71: 198.8
A72: 2009 | B72: 3 | C72: 513 | D72: 505 | E72: 839 | F72: 339 | G72: 196.6
A73: 2009 | B73: 4 | C73: 521 | D73: 478 | E73: 846 | F73: 337 | G73: 195.3
A74: 2009 | B74: 5 | C74: 556 | D74: 540 | E74: 818 | F74: 376 | G74: 194.9
A75: 2009 | B75: 6 | C75: 601 | D75: 585 | E75: 797 | F75: 393 | G75: 194.7
A76: 2009 | B76: 7 | C76: 595 | D76: 594 | E76: 797 | F76: 411 | G76: 194.3
A77: 2009 | B77: 8 | C77: 616 | D77: 586 | E77: 792 | F77: 418 | G77: 193.8
A78: 2009 | B78: 9 | C78: 609 | D78: 585 | E78: 721 | F78: 386 | G78: 193.6
A79: 2009 | B79: 10 | C79: 583 | D79: 534 | E79: 746 | F79: 396 | G79: 194.3
A80: 2009 | B80: 11 | C80: 623 | D80: 588 | E80: 844 | F80: 375 | G80: 194.9
A81: 2009 | B81: 12 | C81: 664 | D81: 581 | E81: 750 | F81: 352 | G81: 192.7
A83: 2010 | B83: 1 | C83: 636 | D83: 615 | E83: 662 | F83: 346 | G83: 193.0
A84: 2010 | B84: 2 | C84: 655 | D84: 603 | E84: 660 | F84: 344 | G84: 191.8
A85: 2010 | B85: 3 | C85: 688 | D85: 626 | E85: 651 | F85: 385 | G85: 192.0
A86: 2010 | B86: 4 | C86: 632 | D86: 687 | E86: 744 | F86: 420 | G86: 192.2
A87: 2010 | B87: 5 | C87: 582 | D87: 580 | E87: 702 | F87: 281 | G87: 192.4
A88: 2010 | B88: 6 | C88: 585 | D88: 539 | E88: 881 | F88: 307 | G88: 190.0
A89: 2010 | B89: 7 | C89: 575 | D89: 550 | E89: 581 | F89: 279 | G89: 188.8
A90: 2010 | B90: 8 | C90: 575 | D90: 606 | E90: 607 | F90: 278 | G90: 188.7
A91: 2010 | B91: 9 | C91: 562 | D91: 597 | E91: 634 | F91: 316 | G91: 186.9
A92: 2010 | B92: 10 | C92: 558 | D92: 543 | E92: 605 | F92: 291 | G92: 187.1
A93: 2010 | B93: 11 | C93: 560 | D93: 545 | E93: 552 | F93: 287 | G93: 186.4
A94: 2010 | B94: 12 | C94: 632 | D94: 539 | E94: 565 | F94: 326 | G94: 185.3
A96: 2011 | B96: 1 | C96: 576 | D96: 630 | E96: 520 | F96: 307 | G96: 184.4
A97: 2011 | B97: 2 | C97: 542 | D97: 517 | E97: 615 | F97: 270 | G97: 182.4
A98: 2011 | B98: 3 | C98: 583 | D98: 600 | E98: 591 | F98: 300 | G98: 180.7
A99: 2011 | B99: 4 | C99: 581 | D99: 554 | E99: 549 | F99: 310 | G99: 181.0
A100: 2011 | B100: 5 | C100: 618 | D100: 561 | E100: 549 | F100: 305 | G100: 180.7
A101: 2011 | B101: 6 | C101: 636 | D101: 608 | E101: 579 | F101: 301 | G101: 181.4
A102: 2011 | B102: 7 | C102: 621 | D102: 623 | E102: 634 | F102: 296 | G102: 181.9
A103: 2011 | B103: 8 | C103: 647 | D103: 585 | E103: 614 | F103: 299 | G103: 181.4
A104: 2011 | B104: 9 | C104: 610 | D104: 650 | E104: 603 | F104: 304 | G104: 182.4
A105: 2011 | B105: 10 | C105: 671 | D105: 610 | E105: 566 | F105: 316 | G105: 181.4
A106: 2011 | B106: 11 | C106: 706 | D106: 711 | E106: 585 | F106: 328 | G106: 182.3
A107: 2011 | B107: 12 | C107: 697 | D107: 694 | E107: 610 | F107: 341 | G107: 183.0
A109: 2012 | B109: 1 | C109: 714 | D109: 723 | E109: 540 | F109: 338 | G109: 182.6
A110: 2012 | B110: 2 | C110: 739 | D110: 713 | E110: 566 | F110: 366 | G110: 183.2
A111: 2012 | B111: 3 | C111: 785 | D111: 707 | E111: 588 | F111: 349 | G111: 185.0
B112: 4 | C112: 749 | D112: 754 | E112: 667 | F112: 352 | G112: 186.3
B113: 5 | C113: 806 | D113: 711 | E113: 613 | F113: 369 | G113: 187.4
B114: 6 | C114: 785 | D114: 757 | E114: 628 | F114: 360 | G114: 188.1
B115: 7 | C115: 839 | D115: 741 | E115: 673 | F115: 369 | G115: 188.4
B116: 8 | C116: 827 | D116: 749 | E116: 686 | F116: 374 | G116: 189.4
B117: 9 | C117: 921 | D117: 854 | E117: 651 | F117: 384 | G117: 190.1
B118: 10 | C118: 908 | D118: 864 | E118: 741 | F118: 365 | G118: 191.4
B119: 11 | C119: 933 | D119: 842 | E119: 677 | F119: 398 | G119: 192.5
B120: 12 | C120: 943 | D120: 983 | E120: 672 | F120: 396 | G120: 193.6
A122: 2013 | B122: 1 | C122: 915 | D122: 898 | E122: 720 | F122: 458 | G122: 194.8
B123: 2 | C123: 952 | D123: 969 | E123: 727 | F123: 445 | G123: 196.4
B124: 3 | C124: 890 | D124: 1005 | E124: 810 | F124: 443 | G124: 199.0
B125: 4 | C125: 1,005 | D125: 852 | E125: 698 | F125: 446 | G125: 199.8
B126: 5 | C126: 985 | D126: 919 | E126: 711 | F126: 429 | G126: 201.7
B127: 6 | C127: 918 | D127: 835 | E127: 759 | F127: 450 | G127: 203.1
B128: 7 | C128: 954 | D128: 891 | E128: 783 | F128: 373 | G128: 204.6
B129: 8 | C129: 926 | D129: 883 | E129: 765 | F129: 388 | G129: 205.4
B130: 9 | C130: 974 | D130: 873 | E130: 762 | F130: 403 | G130: 205.9
B131: 10 | C131: 1,039 | D131: 899 | E131: 814 | F131: 452r | G131: 206.9
B132: 11 | C132: 1,017 | D132: 1,101 | E132: 826 | F132: 448r | G132: 206.7
B133: 12 | C133: 991 | D133: 1024r | E133: 774r | F133: 441r | G133: 208.1
A135: 2014 | B135: 1 | C135: 945r | D135: 909r | E135: 849r | F135: 455r | G135: 209.1
B136: 2 | C136: 1,018p | D136: 907p | E136: 886p | F136: 440p | G136: -
A138: 1) 계절조정(Seasonally adjusted)된 수치임
A139: 2) Purchase-Only Index, 계절조정치(1991.1 = 100)
A141: 자료 : U.S. Census Bureau, FHFA

Sheet 44. 미국의 모기지대출 잔액현황
A1: 44. 미국의 모기지대출 잔액현황 Mortgage Debt Outstanding in U.S.
A3: 단위 : 십억달러 | M3: Billion U.S. dollars
A4: 연월말 | C4: 합계 | D4: 유형별 | H4: 권역별
D5: By type of property | H5: By holder
A6: End of period | C6: Total | D6: One-to four- family residences | E6: Multifamily residences | F6: Nonfarm, nonresidential | G6: Farm | H6: Commercial banks | I6: Savings institutions | J6: Life insurance companies | K6: Federal and related agencies | L6: Mortgage pools or trusts | M6: Individuals and others
A8: 2004 | C8: 10,652 | D8: 8,281 | E8: 600 | F8: 1,676 | G8: 96 | H8: 2,596 | I8: 1,057 | J8: 273 | K8: 703 | L8: 4,836 | M8: 1,187
A9: 2005 | C9: 12,096 | D9: 9,409 | E9: 657 | F9: 1,926 | G9: 105 | H9: 2,958 | I9: 1,153 | J9: 285 | K9: 665 | L9: 5,702 | M9: 1,333
A10: 2006 | C10: 13,509 | D10: 10,488 | E10: 695 | F10: 2,218 | G10: 108 | H10: 3,403 | I10: 1,077 | J10: 304 | K10: 687 | L10: 6,626 | M10: 1,412
A11: 2007 | C11: 14,603 | D11: 11,230 | E11: 779 | F11: 2,482 | G11: 113 | H11: 3,644 | I11: 1,094 | J11: 326 | K11: 725 | L11: 7,432 | M11: 1,381
A12: 2008 | C12: =C25 -> 14,714 | D12: =D25 -> 11,151 | E12: 848 | F12: 2,580 | G12: 135 | H12: 3,841 | I12: 861 | J12: 342 | K12: 801 | L12: 7,580 | M12: 1,289
A14: 2009 | C14: =C33 -> 14,421 | D14: =D33 -> 10,937 | E14: 854 | F14: 2,483 | G14: 146 | H14: 3,819 | I14: 633 | J14: 326 | K14: 816 | L14: 7,624 | M14: 1,203
A16: 2010 | C16: =C41 -> 13,781 | D16: =D41 -> 10,439 | E16: 851 | F16: 2,337 | G16: 154 | H16: 3,651 | I16: 615 | J16: 317 | K16: 5,128 | L16: 3,058 | M16: 1,012
A19: 2008 | B19: 1/4 | C19: 14,765 | D19: 11,317 | E19: 813 | F19: 2,516 | G19: 118 | H19: 3,685 | I19: 1,112 | J19: 331 | K19: 744 | L19: 7,508 | M19: 1,385
A21: 2008 | B21: 2/4 | C21: 14,806 | D21: 11,301 | E21: 828 | F21: 2,552 | G21: 124 | H21: 3,661 | I21: 1,116 | J21: 336 | K21: 759 | L21: 7,568 | M21: 1,365
A23: 2008 | B23: 3/4 | C23: 14,784 | D23: 11,254 | E23: 840 | F23: 2,561 | G23: 129 | H23: 3,853 | I23: 884 | J23: 341 | K23: 760 | L23: 7,608 | M23: 1,338
A25: 2008 | B25: 4/4 | C25: 14,714 | D25: 11,151 | E25: 848 | F25: 2,580 | G25: 135 | H25: 3,841 | I25: 861 | J25: 342 | K25: 801 | L25: 7,580 | M25: 1,289
A27: 2009 | B27: 1/4 | C27: 14,701 | D27: 11,138 | E27: 851 | F27: 2,574 | G27: 137 | H27: 3,853 | I27: 850 | J27: 339 | K27: 823 | L27: 7,571 | M27: 1,265
A29: 2009 | B29: 2/4 | C29: 14,642 | D29: 11,082 | E29: 858 | F29: 2,562 | G29: 140 | H29: 3,898 | I29: 752 | J29: 335 | K29: 815 | L29: 7,598 | M29: 1,243
A31: 2009 | B31: 3/4 | C31: 14,536 | D31: 10,997 | E31: 861 | F31: 2,535 | G31: 143 | H31: 3,795 | I31: 726 | J31: 332 | K31: 820 | L31: 7,633 | M31: 1,229
A33: 2009 | B33: 4/4 | C33: 14,421 | D33: 10,937 | E33: 854 | F33: 2,483 | G33: 146 | H33: 3,819 | I33: 633 | J33: 326 | K33: 816 | L33: 7,624 | M33: 1,203
A35: 2010 | B35: 1/4 | C35: 14,238 | D35: 10,790 | E35: 848 | F35: 2,452 | G35: 148 | H35: 3,761 | I35: 629 | J35: 321 | K35: 5,211 | L35: 3,125 | M35: 1,189
A37: 2010 | B37: 2/4 | C37: 14,123 | D37: 10,720 | E37: 846 | F37: 2,406 | G37: 150 | H37: 3,707 | I37: 619 | J37: 318 | K37: 5,193 | L37: 3,116 | M37: 1,170
A39: 2010 | B39: 3/4 | C39: 14,006 | D39: 10,641 | E39: 850 | F39: 2,364 | G39: 152 | H39: 3,674 | I39: 618 | J39: 318 | K39: 5,142 | L39: 3,091 | M39: 1,163
A41: 2010 | B41: 4/4 | C41: 13,781 | D41: 10,439 | E41: 851 | F41: 2,337 | G41: 154 | H41: 3,651 | I41: 615 | J41: 317 | K41: 5,128 | L41: 3,058 | M41: 1,012
A43: 2011 | B43: 1/4 | C43: 13,687 | D43: 10,363 | E43: 850 | F43: 2,316 | G43: 157 | H43: 3,551 | I43: 600 | J43: 318 | K43: 5,162 | L43: 3,052 | M43: 1,004
B45: 2/4 | C45: 13,601 | D45: 10,299 | E45: 851 | F45: 2,291 | G45: 161 | H45: 3,522 | I45: 591 | J45: 323 | K45: 5,127 | L45: 3,039 | M45: 999
B47: 3/4 | C47: 13,524 | D47: 10,241 | E47: 852 | F47: 2,266 | G47: 164 | H47: 3,516 | I47: 589 | J47: 329 | K47: 5,074 | L47: 3,030 | M47: 986
B49: 4/4 | C49: 13,462 | D49: 10,183 | E49: 857 | F49: 2,255 | G49: 167 | H49: 3,530 | I49: 586 | J49: 332 | K49: 5,034 | L49: 3,004 | M49: 976
A51: 2012 | B51: 1/4 | C51: 13,352 | D51: 10,095 | E51: 855 | F51: 2,234 | G51: 169 | H51: 3,547 | I51: 502 | J51: 337 | K51: 5,034 | L51: 2,970 | M51: 962
B53: 2/4 | C53: 13,287 | D53: 10,035 | E53: 861 | F53: 2,221 | G53: 170 | H53: 3,552 | I53: 498 | J53: 341 | K53: 4,982 | L53: 2,965 | M53: 949
B55: 3/4 | C55: 13,192 | D55: 9,944 | E55: 869 | F55: 2,208 | G55: 172 | H55: 3,551 | I55: 457 | J55: 344 | K55: 4,957 | L55: 2,942 | M55: 942
B57: 4/4 | C57: 13,202 | D57: 9,928 | E57: 879 | F57: 2,221 | G57: 173 | H57: 3,604 | I57: 459 | J57: 344 | K57: 4,935 | L57: 2,931 | M57: 928
A59: 2013 | B59: 1/4 | C59: 13,149 | D59: 9,877 | E59: 883 | F59: 2,214 | G59: 175 | H59: 3,572 | I59: 455 | J59: 344 | K59: 4,938 | L59: 2,918 | M59: 921
B61: 2/4 | C61: 13,151 | D61: 9,850 | E61: 894 | F61: 2,230 | G61: 177 | H61: 3,563 | I61: 456 | J61: 348 | K61: 4,949 | L61: 2,910 | M61: 924
B63: 3/4 | C63: 13,208 | D63: 9,873 | E63: 905 | F63: 2,251 | G63: 179 | H63: 3,559 | I63: 451 | J63: 356 | K63: 4,986 | L63: 2,916 | M63: 940
B65: 4/4 | C65: 13,244 | D65: 9,863 | E65: 917 | F65: 2,282 | G65: 181 | H65: 3,572 | I65: 452 | J65: 359 | K65: 4,997 | L65: 2,930 | M65: 934
A67: 자료 : FRB(The Federal Reserve Board)

Sheet 45. 미국의 주요 기관별 MBS발행현황
A1: 45. 미국의 주요 기관별 MBS 발행현황 MBS Issuance and Outstanding by Agency in U.S.
A3: 단위 : 십억달러 | G3: Billion U.S. dollars
A4: 연중 | C4: GNMA | D4: FHLMC | E4: FNMA | F4: Non-Agency | G4: Total
A6: During
A8: 발행액 Issuance
A9: 2000 | C9: 103.3 | D9: 165.6 | E9: 210.2 | F9: 136.0 | G9: 615.0
A10: 2001 | C10: 172.7 | D10: 389.6 | E10: 525.3 | F10: 267.3 | G10: 1,355.0
A11: 2002 | C11: 172.1 | D11: 547.1 | E11: 723.3 | F11: 414.0 | G11: 1,856.4
A12: 2003 | C12: 217.7 | D12: 713.8 | E12: 1,198.6 | F12: 586.2 | G12: 2,716.3
A13: 2004 | C13: 124.4 | D13: 365.1 | E13: 527.1 | F13: 864.2 | G13: 1,880.8
A14: 2005 | C14: 85.8 | D14: 397.9 | E14: 481.3 | F14: 1,191.3 | G14: 2,156.2
A15: 2006 | C15: 82.3 | D15: 360.0 | E15: 456.9 | F15: 1,145.6 | G15: 2,044.8
A16: 2007 | C16: 95.5 | D16: 444.3 | E16: 617.7 | F16: 707.0 | G16: 1,864.5
A17: 2008 | C17: 269.0 | D17: 357.9 | E17: 542.0 | F17: 58.0 | G17: =SUM(C17:F17) -> 1,226.9
A18: 2009 | C18: 429.5 | D18: 462.0 | E18: 787.5 | F18: 60.4 | G18: =SUM(C18:F18) -> 1,739.4 | I18: 429,504.0 | J18: 461,989.0 | K18: 787,509.0 | L18: 60,351.0 | M18: =SUM(I18:L18) -> 1,739,353.0 | N18: 1,739,352.0
A19: 2010 | C19: 376.1 | D19: 381.3 | E19: 600.1 | F19: 63.8 | G19: =SUM(C19:F19) -> 1,421.3 | I19: 376,142.0 | J19: 381,262.0 | K19: 600,131.0 | L19: 63,795.0 | M19: =SUM(I19:L19) -> 1,421,330.0 | N19: 1,421,330.0
A20: 2011 | C20: 301.7 | D20: 301.8 | E20: 551.0 | F20: 27.6 | G20: =SUM(C20:F20) -> 1,182.1
A21: 2012 | C21: =SUM(C28:C31) -> 394.4 | D21: =SUM(D28:D31) -> 439.7 | E21: 827.9 | F21: 13.2 | G21: =SUM(C21:F21) -> 1,675.2
A23: 2011 | B23: 1/4 | C23: 79.1 | D23: 94.5 | E23: 166.7 | F23: 8.9 | G23: 349.2
B24: 2/4 | C24: 70.8 | D24: 61.6 | E24: 93.4 | F24: 14.7 | G24: 240.4
B25: 3/4 | C25: 76.1 | D25: 67.3 | E25: 107.7 | F25: 2.2 | G25: 253.4
B26: 4/4 | C26: 75.8 | D26: 78.4 | E26: 183.2 | F26: 1.8 | G26: 339.1
A28: 2012 | B28: 1/4 | C28: 80.9 | D28: 108.4 | E28: 196.8 | F28: 5.0 | G28: =SUM(C28:F28) -> 391.2
B29: 2/4 | C29: 100.6 | D29: 98.9 | E29: 175.0 | F29: 3.5 | G29: =SUM(C29:F29) -> 378.0
B30: 3/4 | C30: 103.2 | D30: 106.2 | E30: 229.7 | F30: 1.8 | G30: 440.9
B31: 4/4 | C31: 109.7 | D31: 126.2 | E31: 226.3 | F31: 2.9 | G31: 465.1
A32: 잔액 Outstanding
A33: 2000 | C33: 611.6 | D33: 816.3 | E33: 1,014.3 | F33: 377.5 | G33: 2,819.7
A34: 2001 | C34: 591.4 | D34: 954.1 | E34: 1,242.7 | F34: 463.2 | G34: 3,251.3
A35: 2002 | C35: 537.9 | D35: 1,062.0 | E35: 1,365.8 | F35: 544.1 | G35: 3,509.8
A36: 2003 | C36: 473.7 | D36: 1,129.2 | E36: 1,641.6 | F36: 666.4 | G36: 3,910.9
A37: 2004 | C37: 441.2 | D37: 1,193.4 | E37: 1,694.4 | F37: 1,051.5 | G37: 4,380.6
A38: 2005 | C38: 405.2 | D38: 1,321.0 | E38: 1,780.4 | F38: 1,624.9 | G38: 5,131.5
A39: 2006 | C39: 410.2 | D39: 1,468.6 | E39: 1,932.9 | F39: 2,144.6 | G39: 5,956.3
A40: 2007 | C40: 449.7 | D40: 1,727.3 | E40: 2,259.3 | F40: 2,184.4 | G40: 6,620.6
A41: 2008 | C41: 597.2 | D41: 1,812.4 | E41: 2,545.1 | F41: 1,872.5 | G41: 6,827.2
A42: 2009 | C42: 836.8 | D42: 1,852.6 | E42: 2,741.0 | F42: 1,554.0 | G42: 6,984.4
A43: 2010 | C43: 1,037.5 | D43: 1,707.5 | E43: 2,582.8 | F43: 1,281.9 | G43: 6,609.8
A44: 2011 | C44: 1,186.4 | D44: 1,610.7 | E44: 2,552.2 | F44: 1,087.9 | G44: 6,437.2
A46: 2011 | B46: 1/4 | C46: 1,081.8 | D46: 1,683.2 | E46: 2,587.6 | F46: 1,241.5 | G46: =SUM(C46:F46) -> 6,594.0 | I46: 1,000.0
B47: 2/4 | C47: 1,124.6 | D47: 1,672.0 | E47: 2,612.0 | F47: 1,192.5 | G47: =SUM(C47:F47) -> 6,601.1
B48: 3/4 | C48: 1,163.6 | D48: 1,656.9 | E48: 2,595.5 | F48: 1,148.0 | G48: 6,564.0
B49: 4/4 | C49: 1,186.4 | D49: 1,610.7 | E49: 2,552.2 | F49: 1,103.3 | G49: 6,452.6
A51: 2012 | B51: 1/4 | C51: 1,207.7 | D51: 1,602.0 | E51: 2,571.5 | F51: 1,057.9 | G51: =SUM(C51:F51) -> 6,439.0
B52: 2/4 | C52: 1,247.9 | D52: 1,574.9 | E52: 2,559.0 | F52: 1,010.5 | G52: =SUM(C52:F52) -> 6,392.3
B53: 3/4 | C53: 1,274.0 | D53: 1,545.6 | E53: 2,574.6 | F53: 964.2 | G53: 6,358.4
B54: 4/4 | C54: 1,295.3 | D54: 1,533.6 | E54: 2,612.8 | F54: 923.8 | G54: =SUM(C54:F54) -> 6,365.5
A56: 자료 : Inside Mortgage Finance

Sheet 46. 주택유형별 건축허가 및 착공현황
A1: 46. 주택유형별 건축허가 및 착공현황 | M1: Permits Authorized for Building Construction by Housing Type
A3: 단위 : 동, 천㎡ | X3: Building, 1000㎡
C4: 합계 Total | E4: 단독주택 Detached house | M4: 공동주택 Apartment House
A5: 연월중 | G5: 단독주택 Single detached house | I5: 다가구주택 Multi detached house | K5: 기타 Others | O5: 아파트 Apartment | Q5: 다세대주택 Multifamily housing | S5: 연립주택 Row house | U5: 기타 Others | W5: 연월중
A6: During | C6: 허가 | D6: 착공 | E6: 허가 | F6: 착공 | G6: 허가 | H6: 착공 | I6: 허가 | J6: 착공 | K6: 허가 | L6: 착공 | M6: 허가 | N6: 착공 | O6: 허가 | P6: 착공 | Q6: 허가 | R6: 착공 | S6: 허가 | T6: 착공 | U6: 허가 | V6: 착공 | W6: During
C7: Permits | D7: Starting | E7: Permits | F7: Starting | G7: Permits | H7: Starting | I7: Permits | J7: Starting | K7: Permits | L7: Starting | M7: Permits | N7: Starting | O7: Permits | P7: Starting | Q7: Permits | R7: Starting | S7: Permits | T7: Starting | U7: Permits | V7: Starting
A8: 동수 | M8: Number of buildings
A9: 2004 | C9: =E9+M9 -> 45,878 | D9: 38,189 | E9: 36,701 | F9: 30,911 | G9: 23,824 | H9: 20,907 | I9: 12,751 | J9: 9,901 | K9: =E9-G9-I9 -> 126 | L9: =F9-H9-J9 -> 103 | M9: 9,177 | N9: 7,278 | O9: 5,702 | P9: 3,682 | Q9: 3,109 | R9: 3,323 | S9: 264 | T9: 208 | U9: =M9-O9-Q9-S9 -> 102 | V9: =N9-P9-R9-T9 -> 65 | W9: 2004
A10: 2005 | C10: 37,799 | D10: 32,710 | E10: 29,103 | F10: 27,100 | G10: 21,253 | H10: 18,541 | I10: 7,671 | J10: 8,420 | K10: 179 | L10: =F10-H10-J10 -> 139 | M10: 8,696 | N10: 5,610 | O10: 5,638 | P10: 3,181 | Q10: 2,509 | R10: 2,149 | S10: 418 | T10: 181 | U10: 131 | V10: =N10-P10-R10-T10 -> 99 | W10: 2005
A11: 2006 | C11: 53,225 | D11: 43,737 | E11: 44,423 | F11: 38,574 | G11: 33,419 | H11: 27,923 | I11: 10,556 | J11: 10,270 | K11: =E11-G11-I11 -> 448 | L11: =F11-H11-J11 -> 381 | M11: 8,802 | N11: 5,163 | O11: 5,904 | P11: 2,786 | Q11: 2,296 | R11: 1,993 | S11: 451 | T11: 247 | U11: =M11-O11-Q11-S11 -> 151 | V11: =N11-P11-R11-T11 -> 137 | W11: 2006
A12: 2007 | C12: 73,488 | D12: 60,375 | E12: 62,768 | F12: 53,778 | G12: 47,237 | H12: 39,801 | I12: 14,945 | J12: 13,454 | K12: 586 | L12: 523 | M12: 10,720 | N12: 6,597 | O12: 6,409 | P12: 2,797 | Q12: 3,534 | R12: 3,277 | S12: 575 | T12: 375 | U12: 202 | V12: 148 | W12: 2007
A13: 2008 | C13: 76,357 | D13: 63,943 | E13: 64,342 | F13: 57,009 | G13: 48,312 | H13: 42,654 | I13: 15,514 | J13: 13,743 | K13: 516 | L13: 612 | M13: 12,015 | N13: 6,934 | O13: 4,287 | P13: 520 | Q13: 7,072 | R13: 5,958 | S13: 428 | T13: 260 | U13: 228 | V13: 196 | W13: 2008
A14: 2009 | C14: 72,879 | D14: 63,190 | E14: 65,722 | F14: 58,164 | G14: 48,940 | H14: 43,442 | I14: 15,981 | J14: 14,037 | K14: 801 | L14: 685 | M14: 7,157 | N14: 5,026 | O14: 3,378 | P14: 1,515 | Q14: 3,228 | R14: 3,109 | S14: 413 | T14: 266 | U14: 150 | V14: 136 | W14: 2009
A15: 2010 | C15: 83,183 | D15: =SUM(D98:D109) -> 72,243 | E15: 72,050 | F15: 65,012 | G15: 51,300 | H15: 45,876 | I15: 19,397 | J15: 17,853 | K15: 1,353 | L15: 1,283 | M15: 11,133 | N15: 7,231 | O15: 4,439 | P15: 1,622 | Q15: 4,611 | R15: 4,362 | S15: 491 | T15: 338 | U15: 1,592 | V15: 909 | W15: 2010
A16: 2011 | C16: 100,992 | D16: =SUM(D111:D122) -> 87,773 | E16: =SUM(E111:E122) -> 83,415 | F16: 74,527 | G16: 56,450 | H16: 50,369 | I16: 25,524 | J16: 22,817 | K16: 1,441 | L16: 1,341 | M16: 17,577 | N16: 13,246 | O16: 5,085 | P16: 2,999 | Q16: 9,570 | R16: 8,453 | S16: 775 | T16: 535 | U16: 2,147 | V16: 1,259 | W16: 2011
A17: 2012 | C17: =+SUM(C124:C135) -> 101,423 | D17: =+SUM(D124:D135) -> 88,101 | E17: 81,497 | F17: 72,845 | G17: 58,237 | H17: 51,575 | I17: 22,361 | J17: 20,347 | K17: 899 | L17: 923 | M17: 19,926 | N17: 15,256 | O17: 5,888 | P17: 3,367 | Q17: 10,296 | R17: 9,522 | S17: 1,020 | T17: 775 | U17: 2,722 | V17: 1,592 | W17: 2012
A18: 2013 | C18: =SUM(C137:C148) -> 95,711 | D18: =SUM(D137:D148) -> 86,969 | E18: 80,437 | F18: 73,976 | G18: 58,508 | H18: 52,895 | I18: 20,993 | J18: 18,474 | K18: 936 | L18: 810 | M18: 15,274 | N18: 12,993 | O18: 4,469 | P18: 3,428 | Q18: 7,866 | R18: 7,404 | S18: 602 | T18: 586 | U18: 2,337 | V18: 1,575 | W18: 2013
A20: 2004 | B20: 1 | C20: 2,241 | D20: 1,650 | E20: 1,787 | F20: 1,290 | G20: 1,090 | H20: 833 | I20: 686 | J20: 449 | K20: 11 | L20: 8 | M20: 454 | N20: 360 | O20: 175 | P20: 156 | Q20: 259 | R20: 189 | S20: 17 | T20: 13 | U20: 3 | V20: 2 | W20: J | X20: 2,004
A21: 2004 | B21: 2 | C21: 0
A22: 2004 | B22: 3 | C22: 4,933 | D22: 5,033 | E22: 4,372 | F22: 4,090 | G22: 3,119 | H22: 2,730 | I22: 1,235 | J22: 1,348 | K22: 18 | L22: 12 | M22: 561 | N22: 943 | O22: 270 | P22: 442 | Q22: 266 | R22: 478 | S22: 18 | T22: 21 | U22: 7 | V22: 2 | W22: M
A23: 2004 | B23: 4 | C23: 4,987 | D23: 4,553 | E23: 4,368 | F23: 3,887 | G23: 2,817 | H23: 2,703 | I23: 1,543 | J23: 1,172 | K23: 8 | L23: 12 | M23: 619 | N23: 666 | O23: 279 | P23: 233 | Q23: 292 | R23: 404 | S23: 30 | T23: 21 | U23: 18 | V23: 8 | W23: A
A24: 2004 | B24: 5 | C24: 6,589 | D24: 3,870 | E24: 5,713 | F24: 3,169 | G24: 2,424 | H24: 2,060 | I24: 3,272 | J24: 1,101 | K24: 17 | L24: 8 | M24: 876 | N24: 701 | O24: 406 | P24: 347 | Q24: 438 | R24: 329 | S24: 24 | T24: 23 | U24: 8 | V24: 2 | W24: M
A25: 2004 | B25: 6 | C25: 3,866 | D25: 3,696 | E25: 3,027 | F25: 2,680 | G25: 2,056 | H25: 1,863 | I25: 964 | J25: 809 | K25: 7 | L25: 8 | M25: 839 | N25: 1,016 | O25: 550 | P25: 587 | Q25: 252 | R25: 394 | S25: 32 | T25: 27 | U25: 5 | V25: 8 | W25: J
A26: 2004 | B26: 7 | C26: 3,499 | D26: 3,115 | E26: 2,757 | F26: 2,497 | G26: 1,965 | H26: 1,739 | I26: 783 | J26: 752 | K26: 9 | L26: 6 | M26: 742 | N26: 618 | O26: 425 | P26: 322 | Q26: 285 | R26: 264 | S26: 16 | T26: 22 | U26: 16 | V26: 10 | W26: J
A27: 2004 | B27: 8 | C27: 2,978 | D27: 2,637 | E27: 2,284 | F27: 2,131 | G27: 1,651 | H27: 1,512 | I27: 630 | J27: 614 | K27: 3 | L27: 5 | M27: 694 | N27: 506 | O27: 407 | P27: 257 | Q27: 254 | R27: 230 | S27: 28 | T27: 11 | U27: 5 | V27: 8 | W27: A
A28: 2004 | B28: 9 | C28: 3,031 | D28: 2,709 | E28: 2,487 | F28: 2,221 | G28: 1,808 | H28: 1,517 | I28: 665 | J28: 692 | K28: 14 | L28: 12 | M28: 544 | N28: 488 | O28: 270 | P28: 247 | Q28: 243 | R28: 210 | S28: 17 | T28: 22 | U28: 14 | V28: 9 | W28: S
A29: 2004 | B29: 10 | C29: 3,413 | D29: 3,225 | E29: 2,665 | F29: 2,574 | G29: 1,842 | H29: 1,727 | I29: 810 | J29: 841 | K29: 13 | L29: 6 | M29: 748 | N29: 651 | O29: 492 | P29: 448 | Q29: 237 | R29: 181 | S29: 14 | T29: 18 | U29: 5 | V29: 4 | W29: O
A30: 2004 | B30: 11 | C30: 3,136 | D30: 2,716 | E30: 2,458 | F30: 2,323 | G30: 1,719 | H30: 1,627 | I30: 728 | J30: 682 | K30: 11 | L30: 14 | M30: 678 | N30: 393 | O30: 484 | P30: 230 | Q30: 171 | R30: 149 | S30: 17 | T30: 10 | U30: 6 | V30: 4 | W30: N
A31: 2004 | B31: 12 | C31: 3,834 | D31: 2,108 | E31: 2,065 | F31: 1,777 | G31: 1,516 | H31: 1,262 | I31: 541 | J31: 509 | K31: 8 | L31: 6 | M31: 1,769 | N31: 331 | O31: 1,584 | P31: 175 | Q31: 152 | R31: 147 | S31: 27 | T31: 6 | U31: 6 | V31: 3 | W31: D
A33: 2005 | B33: 1 | C33: 2,100 | D33: 1,491 | E33: 1,449 | F33: 1,221 | G33: 1,040 | H33: 850 | I33: 407 | J33: 371 | K33: 2 | L33: 0 | M33: 651 | N33: 270 | O33: 499 | P33: 143 | Q33: 117 | R33: 117 | S33: 31 | T33: 8 | U33: 4 | V33: 2 | W33: J | X33: 2,005
A34: 2005 | B34: 2 | C34: 1,541 | D34: 1,389 | E34: 1,221 | F34: 1,106 | G34: 910 | H34: 697 | I34: 305 | J34: 404 | K34: 6 | L34: 5 | M34: 320 | N34: 283 | O34: 224 | P34: 178 | Q34: 76 | R34: 91 | S34: 13 | T34: 12 | U34: 7 | V34: 2 | W34: F
A35: 2005 | B35: 3 | C35: 3,478 | D35: 3,620 | E35: 2,869 | F35: 3,021 | G35: 2,198 | H35: 2,028 | I35: 665 | J35: 984 | K35: 6 | L35: 9 | M35: 609 | N35: 599 | O35: 424 | P35: 384 | Q35: 124 | R35: 176 | S35: 40 | T35: 26 | U35: 21 | V35: 13 | W35: M
A36: 2005 | B36: 4 | C36: 3,816 | D36: 3,892 | E36: 3,194 | F36: 3,264 | G36: 2,476 | H36: 2,293 | I36: 709 | J36: 963 | K36: 9 | L36: 8 | M36: 622 | N36: 628 | O36: 427 | P36: 401 | Q36: 173 | R36: 200 | S36: 16 | T36: 18 | U36: 6 | V36: 9 | W36: A
A37: 2005 | B37: 5 | C37: 3,773 | D37: 3,858 | E37: 2,890 | F37: 3,172 | G37: 2,198 | H37: 2,212 | I37: 678 | J37: 943 | K37: 14 | L37: 17 | M37: 883 | N37: 686 | O37: 604 | P37: 429 | Q37: 245 | R37: 232 | S37: 21 | T37: 13 | U37: 13 | V37: 12 | W37: M
A38: 2005 | B38: 6 | C38: 3,698 | D38: 3,173 | E38: 2,921 | F38: 2,653 | G38: 2,023 | H38: 1,740 | I38: 889 | J38: 908 | K38: 9 | L38: 5 | M38: 777 | N38: 520 | O38: 416 | P38: 243 | Q38: 332 | R38: 257 | S38: 17 | T38: 11 | U38: 12 | V38: 9 | W38: J
A39: 2005 | B39: 7 | C39: 3,320 | D39: 2,538 | E39: 2,568 | F39: 2,189 | G39: 1,748 | H39: 1,458 | I39: 794 | J39: 716 | K39: 26 | L39: 15 | M39: 752 | N39: 349 | O39: 333 | P39: 130 | Q39: 379 | R39: 200 | S39: 24 | T39: 11 | U39: 16 | V39: 8 | W39: J
A40: 2005 | B40: 8 | C40: 2,798 | D40: 2,659 | E40: 2,226 | F40: 2,264 | G40: 1,644 | H40: 1,520 | I40: 560 | J40: 726 | K40: 22 | L40: 18 | M40: 572 | N40: 395 | O40: 341 | P40: 186 | Q40: 201 | R40: 197 | S40: 25 | T40: 6 | U40: 5 | V40: 6 | W40: A
A41: 2005 | B41: 9 | C41: 2,927 | D41: 2,746 | E41: 2,348 | F41: 2,273 | G41: 1,782 | H41: 1,570 | I41: 546 | J41: 688 | K41: 20 | L41: 15 | M41: 579 | N41: 473 | O41: 324 | P41: 243 | Q41: 198 | R41: 210 | S41: 43 | T41: 8 | U41: 14 | V41: 12 | W41: S
A42: 2005 | B42: 10 | C42: 2,997 | D42: 2,774 | E42: 2,316 | F42: 2,336 | G42: 1,734 | H42: 1,671 | I42: 565 | J42: 642 | K42: 17 | L42: 23 | M42: 681 | N42: 438 | O42: 474 | P42: 241 | Q42: 145 | R42: 161 | S42: 52 | T42: 25 | U42: 10 | V42: 11 | W42: O
A43: 2005 | B43: 11 | C43: 2,762 | D43: 2,713 | E43: 2,225 | F43: 2,109 | G43: 1,594 | H43: 1,470 | I43: 606 | J43: 623 | K43: 25 | L43: 16 | M43: 537 | N43: 604 | O43: 301 | P43: 420 | Q43: 166 | R43: 163 | S43: 59 | T43: 15 | U43: 11 | V43: 6 | W43: N
A44: 2005 | B44: 12 | C44: 4,589 | D44: 1,857 | E44: 2,876 | F44: 1,492 | G44: 1,906 | H44: 1,032 | I44: 947 | J44: 452 | K44: 23 | L44: 8 | M44: 1,713 | N44: 365 | O44: 1,271 | P44: 183 | Q44: 353 | R44: 145 | S44: 77 | T44: 28 | U44: 12 | V44: 9 | W44: D
A46: 2006 | B46: 1 | C46: 3,710 | D46: 1,382 | E46: 2,627 | F46: 701 | G46: 1,042 | H46: 701 | I46: 1,551 | J46: 406 | K46: 34 | L46: 6 | M46: 1,083 | N46: 269 | O46: 422 | P46: 117 | Q46: 617 | R46: 136 | S46: 29 | T46: 7 | U46: 15 | V46: 9 | W46: J | X46: 2,006
A47: 2006 | B47: 2 | C47: 2,599 | D47: 2,296 | E47: 2,007 | F47: 1,745 | G47: 1,369 | H47: 960 | I47: 628 | J47: 772 | K47: 10 | L47: 13 | M47: 592 | N47: 551 | O47: 353 | P47: 238 | Q47: 198 | R47: 286 | S47: 35 | T47: 13 | U47: 6 | V47: 14 | W47: F
A48: 2006 | B48: 3 | C48: 3,700 | D48: 3,581 | E48: 3,014 | F48: 3,179 | G48: 2,347 | H48: 2,165 | I48: 651 | J48: 984 | K48: 16 | L48: 30 | M48: 686 | N48: 402 | O48: 526 | P48: 209 | Q48: 113 | R48: 176 | S48: 40 | T48: 13 | U48: 7 | V48: 4 | W48: M
A49: 2006 | B49: 4 | C49: 3,485 | D49: 3,778 | E49: 2,969 | F49: 3,255 | G49: 2,285 | H49: 2,180 | I49: 655 | J49: 1,052 | K49: 29 | L49: 23 | M49: 516 | N49: 523 | O49: 381 | P49: 294 | Q49: 83 | R49: 174 | S49: 41 | T49: 46 | U49: 11 | V49: 9 | W49: A
A50: 2006 | B50: 5 | C50: 4,100 | D50: 4,113 | E50: 3,423 | F50: 3,683 | G50: 2,645 | H50: 2,348 | I50: 735 | J50: 1,302 | K50: 43 | L50: 33 | M50: 677 | N50: 430 | O50: 398 | P50: 256 | Q50: 201 | R50: 151 | S50: 63 | T50: 12 | U50: 15 | V50: 11 | W50: M
A51: 2006 | B51: 6 | C51: 5,060 | D51: 4,179 | E51: 4,331 | F51: 3,629 | G51: 3,306 | H51: 2,670 | I51: 958 | J51: 933 | K51: 67 | L51: 26 | M51: 729 | N51: 550 | O51: 590 | P51: 366 | Q51: 103 | R51: 126 | S51: 24 | T51: 50 | U51: 12 | V51: 8 | W51: J
A52: 2006 | B52: 7 | C52: 5,747 | D52: 3,290 | E52: 4,757 | F52: 2,927 | G52: 3,169 | H52: 2,175 | I52: 1,515 | J52: 709 | K52: 73 | L52: 43 | M52: 990 | N52: 363 | O52: 671 | P52: 193 | Q52: 244 | R52: 136 | S52: 51 | T52: 24 | U52: 24 | V52: 10 | W52: J
A53: 2006 | B53: 8 | C53: 4,595 | D53: 4,103 | E53: 4,043 | F53: 3,774 | G53: 3,402 | H53: 2,819 | I53: 610 | J53: 895 | K53: 31 | L53: 60 | M53: 552 | N53: 329 | O53: 403 | P53: 154 | Q53: 69 | R53: 138 | S53: 70 | T53: 24 | U53: 10 | V53: 13 | W53: A
A54: 2006 | B54: 9 | C54: 5,654 | D54: 4,983 | E54: 5,005 | F54: 4,619 | G54: 4,202 | H54: 3,664 | I54: 753 | J54: 907 | K54: 50 | L54: 48 | M54: 649 | N54: 364 | O54: 499 | P54: 136 | Q54: 128 | R54: 193 | S54: 9 | T54: 22 | U54: 13 | V54: 13 | W54: S
A55: 2006 | B55: 10 | C55: 4,382 | D55: 4,159 | E55: 3,974 | F55: 3,759 | G55: 3,206 | H55: 2,927 | I55: 738 | J55: 791 | K55: 30 | L55: 41 | M55: 408 | N55: 400 | O55: 258 | P55: 241 | Q55: 114 | R55: 138 | S55: 25 | T55: 12 | U55: 11 | V55: 9 | W55: O
A56: 2006 | B56: 11 | C56: 5,148 | D56: 4,562 | E56: 4,594 | F56: 4,053 | G56: 3,538 | H56: 3,148 | I56: 1,015 | J56: 873 | K56: 41 | L56: 32 | M56: 554 | N56: 509 | O56: 348 | P56: 296 | Q56: 168 | R56: 182 | S56: 22 | T56: 11 | U56: 16 | V56: 20 | W56: N
A57: 2006 | B57: 12 | C57: 5,045 | D57: 3,311 | E57: 3,679 | F57: 2,838 | G57: 2,908 | H57: 2,166 | I57: 747 | J57: 646 | K57: 24 | L57: 26 | M57: 1,366 | N57: 473 | O57: 1,055 | P57: 286 | Q57: 258 | R57: 157 | S57: 42 | T57: 13 | U57: 11 | V57: 17 | W57: D
A59: 2007 | B59: 1 | C59: 3,951 | D59: 2,839 | E59: 3,554 | F59: 2,544 | G59: 2,466 | H59: 1,771 | I59: 1,044 | J59: 753 | K59: 44 | L59: 20 | M59: 397 | N59: 295 | O59: 201 | P59: 116 | Q59: 167 | R59: 144 | S59: 14 | T59: 24 | U59: 15 | V59: 11 | W59: J | X59: 2,007
A60: 2007 | B60: 2 | C60: 3,781 | D60: 3,087 | E60: 3,439 | F60: 2,759 | G60: 2,464 | H60: 1,855 | I60: 944 | J60: 876 | K60: 31 | L60: 28 | M60: 342 | N60: 328 | O60: 175 | P60: 167 | Q60: 127 | R60: 148 | S60: 26 | T60: 7 | U60: 14 | V60: 6 | W60: F
A61: 2007 | B61: 3 | C61: 7,505 | D61: 6,426 | E61: 6,779 | F61: 5,956 | G61: 5,038 | H61: 4,165 | I61: 1,652 | J61: 1,711 | K61: 89 | L61: 80 | M61: 726 | N61: 470 | O61: 415 | P61: 206 | Q61: 261 | R61: 235 | S61: 35 | T61: 17 | U61: 15 | V61: 12 | W61: M
A62: 2007 | B62: 4 | C62: 7,321 | D62: 6,604 | E62: 6,837 | F62: 5,992 | G62: 5,222 | H62: 4,588 | I62: 1,561 | J62: 1,341 | K62: 54 | L62: 63 | M62: 484 | N62: 612 | O62: 158 | P62: 322 | Q62: 241 | R62: 248 | S62: 73 | T62: 32 | U62: 12 | V62: 10 | W62: A
A63: 2007 | B63: 5 | C63: 7,222 | D63: 6,523 | E63: 6,285 | F63: 5,906 | G63: 4,723 | H63: 4,411 | I63: 1,497 | J63: 1,434 | K63: 65 | L63: 61 | M63: 937 | N63: 617 | O63: 558 | P63: 226 | Q63: 309 | R63: 320 | S63: 56 | T63: 60 | U63: 14 | V63: 11 | W63: M
A64: 2007 | B64: 6 | C64: 5,861 | D64: 5,484 | E64: 5,262 | F64: 4,663 | G64: 3,996 | H64: 3,542 | I64: 1,205 | J64: 1,079 | K64: 61 | L64: 42 | M64: 599 | N64: 821 | O64: 216 | P64: 474 | Q64: 320 | R64: 292 | S64: 46 | T64: 49 | U64: 17 | V64: 6 | W64: J
A65: 2007 | B65: 7 | C65: 6,500 | D65: 4,823 | E65: 5,575 | F65: 4,292 | G65: 4,160 | H65: 3,180 | I65: 1,332 | J65: 1,061 | K65: 83 | L65: 51 | M65: 925 | N65: 531 | O65: 453 | P65: 145 | Q65: 413 | R65: 311 | S65: 42 | T65: 60 | U65: 17 | V65: 15 | W65: J
A66: 2007 | B66: 8 | C66: 6,044 | D66: 5,247 | E66: 5,193 | F66: 4,524 | G66: 4,098 | H66: 3,407 | I66: 1,063 | J66: 1,066 | K66: 32 | L66: 51 | M66: 851 | N66: 723 | O66: 487 | P66: 368 | Q66: 302 | R66: 309 | S66: 40 | T66: 34 | U66: 22 | V66: 12 | W66: A
A67: 2007 | B67: 9 | C67: 5,222 | D67: 4,395 | E67: =G67+I67+K67 -> 4,603 | F67: 3,942 | G67: 3,451 | H67: 2,899 | I67: 1,133 | J67: 1,013 | K67: 19 | L67: 30 | M67: =O67+Q67+S67+U67 -> 619 | N67: 453 | O67: 244 | P67: 172 | Q67: 318 | R67: 259 | S67: 51 | T67: 11 | U67: 6 | V67: 11 | W67: S
A68: 2007 | B68: 10 | C68: 7,950 | D68: 6,004 | E68: 6,075 | F68: 5,489 | G68: 4,697 | H68: 4,222 | I68: 1,332 | J68: 1,239 | K68: 46 | L68: 28 | M68: 1,875 | N68: 515 | O68: 1,490 | P68: 138 | Q68: 317 | R68: 342 | S68: 52 | T68: 29 | U68: 16 | V68: 6 | W68: O
A69: 2007 | B69: 11 | C69: 6,784 | D69: 5,174 | E69: 5,014 | F69: 4,400 | G69: 3,846 | H69: 3,286 | I69: 1,136 | J69: 1,067 | K69: 32 | L69: 47 | M69: 1,770 | N69: 774 | O69: 1,266 | P69: 388 | Q69: 374 | R69: 317 | S69: 104 | T69: 40 | U69: 26 | V69: 29 | W69: N
A70: 2007 | B70: 12 | C70: 5,347 | D70: 3,769 | E70: 4,152 | F70: 3,311 | G70: 3,076 | H70: 2,475 | I70: 1,046 | J70: 814 | K70: 30 | L70: 22 | M70: 1,195 | N70: 458 | O70: 746 | P70: 75 | Q70: 385 | R70: 352 | S70: 36 | T70: 12 | U70: 28 | V70: 19 | W70: D
A72: 2008 | B72: 1 | C72: 4,542 | D72: 3,454 | E72: 3,870 | F72: 3,054 | G72: 2,703 | H72: 2,119 | I72: 1,146 | J72: 792 | K72: 21 | L72: 143 | M72: 672 | N72: 400 | O72: 271 | P72: 88 | Q72: 347 | R72: 283 | S72: 46 | T72: 8 | U72: 8 | V72: 21 | W72: J | X72: 2,008
A73: 2008 | B73: 2 | C73: 4,366 | D73: 3,209 | E73: 3,838 | F73: 2,859 | G73: 2,818 | H73: 1,989 | I73: 1,006 | J73: 847 | K73: 14 | L73: 23 | M73: 528 | N73: 350 | O73: 105 | P73: 12 | Q73: 379 | R73: 312 | S73: 30 | T73: 14 | U73: 14 | V73: 12 | W73: F
A74: 2008 | B74: 3 | C74: 6,867 | D74: 6,056 | E74: 6,294 | F74: 5,640 | G74: 4,857 | H74: 4,174 | I74: 1,408 | J74: 1,437 | K74: 29 | L74: 29 | M74: 573 | N74: 416 | O74: 137 | P74: 19 | Q74: 387 | R74: 361 | S74: 31 | T74: 23 | U74: 18 | V74: 13 | W74: M
A75: 2008 | B75: 4 | C75: 8,821 | D75: 7,537 | E75: 7,181 | F75: 6,713 | G75: 5,326 | H75: 5,021 | I75: 1,782 | J75: 1,633 | K75: 73 | L75: 59 | M75: 1,640 | N75: 824 | O75: 412 | P75: 21 | Q75: 1,161 | R75: 757 | S75: 47 | T75: 26 | U75: 20 | V75: 20 | W75: A
A76: 2008 | B76: 5 | C76: =E76+M76 -> 7,502 | D76: 6,908 | E76: 6,465 | F76: 6,052 | G76: 4,805 | H76: 4,452 | I76: 1,593 | J76: 1,542 | K76: 67 | L76: 58 | M76: 1,037 | N76: 856 | O76: 189 | P76: 30 | Q76: 790 | R76: 793 | S76: 27 | T76: 20 | U76: 31 | V76: 13 | W76: M
A77: 2008 | B77: 6 | C77: 6,795 | D77: 5,962 | E77: 5,641 | F77: 5,236 | G77: 4,241 | H77: 3,929 | I77: 1,349 | J77: 1,258 | K77: 51 | L77: 49 | M77: 1,154 | N77: 726 | O77: 162 | P77: 14 | Q77: 949 | R77: 658 | S77: 26 | T77: 35 | U77: 17 | V77: 19 | W77: J
A78: 2008 | B78: 7 | C78: 7,556 | D78: 6,156 | E78: 6,235 | F78: 5,330 | G78: 4,651 | H78: 3,969 | I78: 1,534 | J78: 1,322 | K78: 50 | L78: 39 | M78: 1,321 | N78: 826 | O78: 301 | P78: 16 | Q78: 941 | R78: 770 | S78: 49 | T78: 24 | U78: 30 | V78: 16 | W78: J
A79: 2008 | B79: 8 | C79: 5,850 | D79: 5,106 | E79: 4,938 | F79: 4,402 | G79: 3,605 | H79: 3,248 | I79: 1,287 | J79: 1,110 | K79: 46 | L79: 44 | M79: 912 | N79: 704 | O79: 194 | P79: 19 | Q79: 658 | R79: 648 | S79: 42 | T79: 27 | U79: 18 | V79: 10 | W79: A | X79: 2,008
A80: 2008 | B80: 9 | C80: 6,108 | D80: 5,450 | E80: 5,259 | F80: 4,841 | G80: 3,923 | H80: 3,534 | I80: 1,279 | J80: 1,245 | K80: 57 | L80: 62 | M80: 849 | N80: 609 | O80: 244 | P80: 10 | Q80: 549 | R80: 566 | S80: 32 | T80: 12 | U80: 24 | V80: 21 | W80: S
A81: 2008 | B81: 10 | C81: 6,633 | D81: 5,927 | E81: 5,922 | F81: 5,428 | G81: 4,555 | H81: 4,215 | I81: 1,328 | J81: 1,162 | K81: 39 | L81: 51 | M81: 711 | N81: 499 | O81: 232 | P81: 36 | Q81: 432 | R81: 428 | S81: 32 | T81: 18 | U81: 15 | V81: 17 | W81: O
A82: 2008 | B82: 11 | C82: 5,375 | D82: 4,397 | E82: 4,652 | F82: 4,025 | G82: 3,624 | H82: 3,198 | I82: 989 | J82: 792 | K82: 39 | L82: 35 | M82: 723 | N82: 372 | O82: 428 | P82: 138 | Q82: 250 | R82: 216 | S82: 29 | T82: 5 | U82: 16 | V82: 13 | W82: N
A83: 2008 | B83: 12 | C83: 5,942 | D83: 3,781 | E83: 4,047 | F83: 3,429 | G83: 3,204 | H83: 2,806 | I83: 813 | J83: 603 | K83: 30 | L83: 20 | M83: 1,895 | N83: 352 | O83: 1,612 | P83: 117 | Q83: 229 | R83: 166 | S83: 37 | T83: 48 | U83: 17 | V83: 21 | W83: D
A85: 2009 | B85: 1 | C85: 3,166 | D85: 2,049 | E85: 2,920 | F85: 1,903 | G85: 2,217 | H85: 1,510 | I85: 692 | J85: 386 | K85: 11 | L85: 7 | M85: 246 | N85: 146 | O85: 77 | P85: 68 | Q85: 141 | R85: 68 | S85: 12 | T85: 5 | U85: 16 | V85: 5 | W85: J | X85: 2,009
A86: 2009 | B86: 2 | C86: 3,576 | D86: 2,893 | E86: 3,264 | F86: 2,697 | G86: 2,588 | H86: 2,119 | I86: 663 | J86: 559 | K86: 13 | L86: 19 | M86: 312 | N86: 196 | O86: 93 | P86: 18 | Q86: 167 | R86: 161 | S86: 38 | T86: 8 | U86: 14 | V86: 9 | W86: F
A87: 2009 | B87: 3 | C87: 6,032 | D87: 5,515 | E87: 5,701 | F87: 5,093 | G87: 4,597 | H87: 4,063 | I87: 1,084 | J87: 1,001 | K87: 20 | L87: 29 | M87: 331 | N87: 422 | O87: 141 | P87: 200 | Q87: 139 | R87: 183 | S87: 44 | T87: 26 | U87: 7 | V87: 13 | W87: M | X87: 2,009
A88: 2009 | B88: 4 | C88: 6,676 | D88: 6,388 | E88: 6,349 | F88: 6,128 | G88: 5,205 | H88: 4,975 | I88: 1,112 | J88: 1,131 | K88: 32 | L88: 22 | M88: 327 | N88: 260 | O88: 121 | P88: 57 | Q88: 163 | R88: 173 | S88: 33 | T88: 16 | U88: 10 | V88: 14 | W88: A | X88: 2,009
A89: 2009 | B89: 5 | C89: 5,830 | D89: 5,510 | E89: 5,453 | F89: 5,256 | G89: 4,339 | H89: 4,231 | I89: 1,078 | J89: 997 | K89: 36 | L89: 28 | M89: 377 | N89: 254 | O89: 156 | P89: 55 | Q89: 174 | R89: 173 | S89: 32 | T89: 17 | U89: 15 | V89: 9 | W89: M | X89: 2,009
A90: 2009 | B90: 6 | C90: 6,412 | D90: 5,950 | E90: 5,920 | F90: 5,603 | G90: 4,561 | H90: 4,336 | I90: 1,313 | J90: 1,218 | K90: 46 | L90: 49 | M90: 492 | N90: 347 | O90: 285 | P90: 107 | Q90: 190 | R90: 214 | S90: 20 | T90: 16 | U90: 9 | V90: 10 | W90: J
A91: 2009 | B91: 7 | C91: 6,452 | D91: 5,598 | E91: 5,948 | F91: 5,244 | G91: 4,469 | H91: 4,014 | I91: 1,437 | J91: 1,197 | K91: 42 | L91: 33 | M91: 504 | N91: 354 | O91: 147 | P91: 53 | Q91: 296 | R91: 251 | S91: 40 | T91: 37 | U91: 21 | V91: 13 | W91: J | X91: 2,009
A92: 2009 | B92: 8 | C92: 5,797 | D92: 5,302 | E92: 5,291 | F92: 4,718 | G92: 3,806 | H92: 3,344 | I92: 1,406 | J92: 1,304 | K92: 79 | L92: 70 | M92: 506 | N92: 584 | O92: 217 | P92: 246 | Q92: 262 | R92: 291 | S92: 21 | T92: 41 | U92: 6 | V92: 6 | W92: A
A93: 2009 | B93: 9 | C93: 7,523 | D93: 6,506 | E93: 6,702 | F93: 5,972 | G93: 4,616 | H93: 4,073 | I93: 1,945 | J93: 1,762 | K93: 141 | L93: 137 | M93: 821 | N93: 534 | O93: 394 | P93: 77 | Q93: 401 | R93: 421 | S93: 18 | T93: 24 | U93: 8 | V93: 12 | W93: S
A94: 2009 | B94: 10 | C94: 6,713 | D94: 6,375 | E94: 6,114 | F94: 5,784 | G94: 4,154 | H94: 3,839 | I94: 1,827 | J94: 1,823 | K94: 133 | L94: 122 | M94: 599 | N94: 591 | O94: 151 | P94: 182 | Q94: 391 | R94: 389 | S94: 42 | T94: 10 | U94: 15 | V94: 10 | W94: O
A95: 2009 | B95: 11 | C95: 7,004 | D95: 6,033 | E95: 6,201 | F95: 5,512 | G95: 4,315 | H95: 3,894 | I95: 1,755 | J95: 1,528 | K95: 131 | L95: 90 | M95: 803 | N95: 521 | O95: 291 | P95: 122 | Q95: 461 | R95: 378 | S95: 40 | T95: 10 | U95: 11 | V95: 11 | W95: N
A96: 2009 | B96: 12 | C96: 7,698 | D96: 5,071 | E96: 5,859 | F96: 4,254 | G96: 4,073 | H96: 3,044 | I96: 1,669 | J96: 1,131 | K96: 117 | L96: 79 | M96: 1,839 | N96: 817 | O96: 1,305 | P96: 330 | Q96: 443 | R96: 407 | S96: 73 | T96: 56 | U96: 18 | V96: 24 | W96: D | X96: 2,009
A98: 2010 | B98: 1 | C98: =E98+M98 -> 4,165 | D98: =F98+N98 -> 3,424 | E98: =G98+I98+K98 -> 3,691 | F98: 2,829 | G98: 2,588 | H98: 1,986 | I98: 1,033 | J98: 793 | K98: 70 | L98: 50 | M98: =O98+Q98+S98+U98 -> 474 | N98: 595 | O98: 118 | P98: 213 | Q98: 280 | R98: 263 | S98: 22 | T98: 48 | U98: 54 | V98: 71 | W98: J
A99: 2010 | B99: 2 | C99: =E99+M99 -> 4,664 | D99: =F99+N99 -> 3,900 | E99: 4,163 | F99: 3,488 | G99: 2,812 | H99: 2,214 | I99: 1,289 | J99: 1,206 | K99: 62 | L99: 68 | M99: 501 | N99: 412 | O99: 119 | P99: 83 | Q99: 296 | R99: 283 | S99: 28 | T99: 26 | U99: 58 | V99: 20 | W99: F
A100: 2010 | B100: 3 | C100: 8,389 | D100: 6,994 | E100: 7,443 | F100: 6,464 | G100: 5,437 | H100: 4,442 | I100: 1,888 | J100: 1,892 | K100: 118 | L100: 130 | M100: 946 | N100: 530 | O100: 227 | P100: 35 | Q100: 476 | R100: 448 | S100: 31 | T100: 15 | U100: 212 | V100: 32 | W100: M
A101: 2010 | B101: 4 | C101: 9,314 | D101: 8,581 | E101: 8,254 | F101: 7,636 | G101: 5,990 | H101: 5,527 | I101: 2,120 | J101: 1,983 | K101: 144 | L101: 126 | M101: 1,060 | N101: 945 | O101: 317 | P101: 271 | Q101: 527 | R101: 474 | S101: 18 | T101: 22 | U101: 198 | V101: 178 | W101: A
A102: 2010 | B102: 5 | C102: 8,135 | D102: 7,375 | E102: 7,032 | F102: 6,795 | G102: 5,061 | H102: 4,894 | I102: 1,868 | J102: 1,777 | K102: 103 | L102: 124 | M102: 1,103 | N102: 580 | O102: 392 | P102: 46 | Q102: 458 | R102: 483 | S102: 94 | T102: 12 | U102: 159 | V102: 39 | W102: M
A103: 2010 | B103: 6 | C103: 8,009 | D103: 7,231 | E103: 7,150 | F103: 6,492 | G103: 5,158 | H103: 4,687 | I103: 1,880 | J103: 1,698 | K103: 112 | L103: 107 | M103: 859 | N103: 739 | O103: 259 | P103: 182 | Q103: 399 | R103: 433 | S103: 38 | T103: 19 | U103: 163 | V103: 105 | W103: J
A104: 2010 | B104: 7 | C104: 6,536 | D104: 5,875 | E104: =G104+I104+K104 -> 5,850 | F104: =H104+J104+L104 -> 5,250 | G104: 4,150 | H104: 3,843 | I104: 1,573 | J104: 1,296 | K104: 127 | L104: 111 | M104: =O104+Q104+S104+U104 -> 686 | N104: =P104+R104+T104+V104 -> 625 | O104: 222 | P104: 179 | Q104: 292 | R104: 283 | S104: 38 | T104: 35 | U104: 134 | V104: 128 | W104: J
A105: 2010 | B105: 8 | C105: 6,105 | D105: 5,633 | E105: 5,571 | F105: 5,083 | G105: 3,871 | H105: 3,508 | I105: 1,573 | J105: 1,471 | K105: 127 | L105: 104 | M105: 534 | N105: 550 | O105: 145 | P105: 166 | Q105: 317 | R105: 266 | S105: 19 | T105: 14 | U105: 53 | V105: 104 | W105: A
A106: 2010 | B106: 9 | C106: 5,822 | D106: 5,178 | E106: 5,131 | F106: 4,699 | G106: 3,637 | H106: 3,154 | I106: 1,374 | J106: 1,403 | K106: 120 | L106: 142 | M106: 691 | N106: 479 | O106: 218 | P106: 75 | Q106: 327 | R106: 288 | S106: 23 | T106: 33 | U106: 123 | V106: 83 | W106: S
A107: 2010 | B107: 10 | C107: 7,083 | D107: 6,761 | E107: 6,374 | F107: 6,088 | G107: 4,581 | H107: 4,328 | I107: 1,645 | J107: 1,607 | K107: 148 | L107: 153 | M107: 709 | N107: 673 | O107: 223 | P107: 130 | Q107: 355 | R107: 433 | S107: 65 | T107: 43 | U107: 66 | V107: 67 | W107: O
A108: 2010 | B108: 11 | C108: 7,122 | D108: 6,410 | E108: 6,045 | F108: 5,806 | G108: 4,283 | H108: 4,153 | I108: 1,633 | J108: 1,539 | K108: 129 | L108: 114 | M108: 1,077 | N108: 604 | O108: 531 | P108: 158 | Q108: 422 | R108: 366 | S108: 56 | T108: 42 | U108: 68 | V108: 38 | W108: N
A109: 2010 | B109: 12 | C109: 7,839 | D109: 4,881 | E109: 5,346 | F109: 4,382 | G109: 3,732 | H109: 3,140 | I109: 1,521 | J109: 1,188 | K109: 93 | L109: 54 | M109: 2,493 | N109: 499 | O109: 1,668 | P109: 84 | Q109: 462 | R109: 342 | S109: 59 | T109: 29 | U109: 304 | V109: 44 | W109: D | X109: 2010
A111: 2011 | B111: 1 | C111: 5,398 | D111: 3,330 | E111: 4,291 | F111: 2,907 | G111: 2,869 | H111: 2,039 | I111: 1,337 | J111: 821 | K111: 85 | L111: 47 | M111: 1,107 | N111: 423 | O111: 458 | P111: 60 | Q111: 426 | R111: 269 | S111: 32 | T111: 51 | U111: 191 | V111: 43 | W111: J | X111: 2011
A112: 2011 | B112: 2 | C112: =E112+M112 -> 4,982 | D112: =F112+N112 -> 4,182 | E112: =G112+I112+K112 -> 4,248 | F112: =H112+J112+L112 -> 3,582 | G112: 2,713 | H112: 2,188 | I112: 1,449 | J112: 1,323 | K112: 86 | L112: 71 | M112: =O112+Q112+S112+U112 -> 734 | N112: =P112+R112+T112+V112 -> 600 | O112: 190 | P112: 138 | Q112: 419 | R112: 406 | S112: 26 | T112: 14 | U112: 99 | V112: 42 | W112: F
A113: 2011 | B113: 3 | C113: =E113+M113 -> 9,989 | D113: =F113+N113 -> 9,141 | E113: =G113+I113+K113 -> 8,872 | F113: =H113+J113+L113 -> 8,034 | G113: 6,118 | H113: 5,380 | I113: 2,594 | J113: 2,485 | K113: 160 | L113: 169 | M113: =O113+Q113+S113+U113 -> 1,117 | N113: =P113+R113+T113+V113 -> 1,107 | O113: 258 | P113: 231 | Q113: 712 | R113: 737 | S113: 37 | T113: 46 | U113: 110 | V113: 93 | W113: M
A114: 2011 | B114: 4 | C114: =E114+M114 -> 10,767 | D114: =F114+N114 -> 10,013 | E114: =G114+I114+K114 -> 9,263 | F114: 8,842 | G114: 6,513 | H114: 6,150 | I114: 2,599 | J114: 2,553 | K114: 151 | L114: 139 | M114: =O114+Q114+S114+U114 -> 1,504 | N114: =P114+R114+T114+V114 -> 1,171 | O114: 452 | P114: 337 | Q114: 807 | R114: 675 | S114: 42 | T114: 25 | U114: 203 | V114: 134 | W114: A | X114: 2011
A115: 2011 | B115: 5 | C115: =E115+M115 -> 10,031 | D115: =F115+N115 -> 9,203 | E115: =G115+I115+K115 -> 8,573 | F115: =H115+J115+L115 -> 8,020 | G115: 5,892 | H115: 5,634 | I115: 2,539 | J115: 2,245 | K115: 142 | L115: 141 | M115: =O115+Q115+S115+U115 -> 1,458 | N115: =P115+R115+T115+V115 -> 1,183 | O115: 355 | P115: 255 | Q115: 929 | R115: 771 | S115: 86 | T115: 37 | U115: 88 | V115: 120 | W115: M
A116: 2011 | B116: 6 | C116: =E116+M116 -> 9,068 | D116: =F116+N116 -> 8,049 | E116: =G116+I116+K116 -> 7,693 | F116: =H116+J116+L116 -> 6,991 | G116: 5,172 | H116: 4,790 | I116: 2,385 | J116: 2,079 | K116: 136 | L116: 122 | M116: =O116+Q116+S116+U116 -> 1,375 | N116: =P116+R116+T116+V116 -> 1,058 | O116: 242 | P116: 141 | Q116: 897 | R116: 833 | S116: 65 | T116: 35 | U116: 171 | V116: 49 | W116: J
A117: 2011 | B117: 7 | C117: 7,866 | D117: =F117+N117 -> 6,750 | E117: =G117+I117+K117 -> 6,395 | F117: =H117+J117+L117 -> 5,695 | G117: 4,220 | H117: 3,830 | I117: 2,064 | J117: 1,775 | K117: 111 | L117: 90 | M117: =O117+Q117+S117+U117 -> 1,471 | N117: =P117+R117+T117+V117 -> 1,055 | O117: 375 | P117: 151 | Q117: 827 | R117: 763 | S117: 94 | T117: 53 | U117: 175 | V117: 88 | W117: J
A118: 2011 | B118: 8 | C118: 8,452 | D118: 7,297 | E118: 6,656 | F118: 6,069 | G118: 4,556 | H118: 3,856 | I118: 2,003 | J118: 2,083 | K118: 97 | L118: 130 | M118: =O118+Q118+S118+U118 -> 1,796 | N118: =P118+R118+T118+V118 -> 1,228 | O118: 629 | P118: 256 | Q118: 848 | R118: 819 | S118: 80 | T118: 42 | U118: 239 | V118: 111 | W118: A
A119: 2011 | B119: 9 | C119: =E119+M119 -> 8,424 | D119: =F119+N119 -> 7,528 | E119: =G119+I119+K119 -> 6,877 | F119: 6,404 | G119: 4,573 | H119: 4,203 | I119: 2,161 | J119: 2,072 | K119: 143 | L119: 129 | M119: =O119+Q119+S119+U119 -> 1,547 | N119: =P119+R119+T119+V119 -> 1,124 | O119: 577 | P119: 206 | Q119: 727 | R119: 775 | S119: 60 | T119: 55 | U119: 183 | V119: 88 | W119: S
A120: 2011 | B120: 10 | C120: 9,224 | D120: 8,355 | E120: =G120+I120+K120 -> 7,527 | F120: =H120+J120+L120 -> 6,724 | G120: 5,330 | H120: 4,657 | I120: 2,075 | J120: 1,934 | K120: 122 | L120: 133 | M120: 1,697 | N120: 1,631 | O120: 496 | P120: 547 | Q120: 931 | R120: 754 | S120: 57 | T120: 85 | U120: 213 | V120: 245 | W120: O
A121: 2011 | B121: 11 | C121: 7,970 | D121: 7,662 | E121: 6,524 | F121: 6,130 | G121: 4,317 | H121: 4,205 | I121: 2,093 | J121: 1,836 | K121: 114 | L121: 89 | M121: 1,446 | N121: 1,532 | O121: 304 | P121: 455 | Q121: 947 | R121: 857 | S121: 67 | T121: 41 | U121: 128 | V121: 179 | W121: N
A122: 2011 | B122: 12 | C122: 8,821 | D122: 6,263 | E122: 6,496 | F122: 5,129 | G122: 4,177 | H122: 3,437 | I122: 2,225 | J122: 1,611 | K122: 94 | L122: 81 | M122: 2,325 | N122: 1,134 | O122: 749 | P122: 222 | Q122: 1,100 | R122: 794 | S122: 129 | T122: 51 | U122: 347 | V122: 67 | W122: D | X122: 2011
A124: 2012 | B124: 1 | C124: =E124+M124 -> 6,011 | D124: =F124+N124 -> 4,591 | E124: =G124+I124+K124 -> 4,797 | F124: =H124+J124+L124 -> 3,781 | G124: 2,875 | H124: 2,353 | I124: 1,862 | J124: 1,374 | K124: 60 | L124: 54 | M124: =O124+Q124+S124+U124 -> 1,214 | N124: =P124+R124+T124+V124 -> 810 | O124: 393 | P124: 181 | Q124: 645 | R124: 493 | S124: 45 | T124: 57 | U124: 131 | V124: 79 | W124: J
A125: 2012 | B125: 2 | C125: =E125+M125 -> 7,242 | D125: =F125+N125 -> 6,115 | E125: =G125+I125+K125 -> 5,964 | F125: =H125+J125+L125 -> 4,935 | G125: 3,882 | H125: 2,857 | I125: 2,000 | J125: 1,984 | K125: 82 | L125: 94 | M125: =O125+Q125+S125+U125 -> 1,278 | N125: =P125+R125+T125+V125 -> 1,180 | O125: 274 | P125: 255 | Q125: 780 | R125: 751 | S125: 105 | T125: 58 | U125: 119 | V125: 116 | W125: F | X125: 2012
A126: 2012 | B126: 3 | C126: =E126+M126 -> 9,843 | D126: =F126+N126 -> 9,258 | E126: =G126+I126+K126 -> 8,321 | F126: =H126+J126+L126 -> 7,700 | G126: 5,898 | H126: 5,361 | I126: 2,294 | J126: 2,242 | K126: 129 | L126: 97 | M126: =O126+Q126+S126+U126 -> 1,522 | N126: =P126+R126+T126+V126 -> 1,558 | O126: 363 | P126: 364 | Q126: 937 | R126: 990 | S126: 67 | T126: 49 | U126: 155 | V126: 155 | W126: M | X126: 2012
A127: 2012 | B127: 4 | C127: 10,700 | D127: 9,889 | E127: 9,208 | F127: 8,549 | G127: 6,941 | H127: 6,275 | I127: 2,179 | J127: 2,147 | K127: 88 | L127: 127 | M127: 1,492 | N127: 1,340 | O127: 339 | P127: 201 | Q127: 897 | R127: 893 | S127: 119 | T127: 131 | U127: 137 | V127: 115 | W127: A | X127: 2012
A128: 2012 | B128: 5 | C128: =E128+M128 -> 11,224 | D128: =F128+N128 -> 10,299 | E128: =G128+I128+K128 -> 9,295 | F128: =H128+J128+L128 -> 8,815 | G128: 6,979 | H128: 6,589 | I128: 2,225 | J128: 2,132 | K128: 91 | L128: 94 | M128: =O128+Q128+S128+U128 -> 1,929 | N128: =P128+R128+T128+V128 -> 1,484 | O128: 406 | P128: 331 | Q128: 1,184 | R128: 971 | S128: 97 | T128: 63 | U128: 242 | V128: 119 | W128: M | X128: 2012
A129: 2012 | B129: 6 | C129: =E129+M129 -> 9,270 | D129: =F129+N129 -> 8,250 | E129: =G129+I129+K129 -> 7,595 | F129: =H129+J129+L129 -> 6,804 | G129: 5,466 | H129: 5,030 | I129: 2,047 | J129: 1,699 | K129: 82 | L129: 75 | M129: =O129+Q129+S129+U129 -> 1,675 | N129: =P129+R129+T129+V129 -> 1,446 | O129: 416 | P129: 313 | Q129: 963 | R129: 960 | S129: 99 | T129: 71 | U129: 197 | V129: 102 | W129: J | X129: 2012
A130: 2012 | B130: 7 | C130: =E130+M130 -> 8,508 | D130: 7,018 | E130: =G130+I130+K130 -> 6,899 | F130: 5,898 | G130: 4,926 | H130: 4,152 | I130: 1,904 | J130: 1,679 | K130: 69 | L130: 67 | M130: =O130+Q130+S130+U130 -> 1,609 | N130: 1,120 | O130: 422 | P130: 195 | Q130: 880 | R130: 737 | S130: 83 | T130: 83 | U130: 224 | V130: 105 | W130: J | X130: 2012
A131: 2012 | B131: 8 | C131: 7,152 | D131: 6,616 | E131: 5,723 | F131: 5,234 | G131: 4,120 | H131: 3,674 | I131: 1,524 | J131: 1,461 | K131: 79 | L131: 99 | M131: 1,429 | N131: 1,382 | O131: 427 | P131: 299 | Q131: 792 | R131: 878 | S131: 65 | T131: 51 | U131: 145 | V131: 154 | W131: A | X131: 2012
A132: 2012 | B132: 9 | C132: =E132+M132 -> 7,719 | D132: =F132+N132 -> 6,747 | E132: =G132+I132+K132 -> 6,009 | F132: =H132+J132+L132 -> 5,539 | G132: 4,385 | H132: 3,891 | I132: 1,539 | J132: 1,563 | K132: 85 | L132: 85 | M132: =O132+Q132+S132+U132 -> 1,710 | N132: =P132+R132+T132+V132 -> 1,208 | O132: 586 | P132: 300 | Q132: 771 | R132: 716 | S132: 76 | T132: 57 | U132: 277 | V132: 135 | W132: S | X132: 2012
A133: 2012 | B133: 10 | C133: 7,689 | D133: 7,226 | E133: 6,320 | F133: 5,914 | G133: 4,649 | H133: 4,347 | I133: 1,614 | J133: 1,505 | K133: 57 | L133: 62 | M133: 1,369 | N133: 1,312 | O133: 470 | P133: 381 | Q133: 663 | R133: 663 | S133: 48 | T133: 35 | U133: 188 | V133: 233 | W133: O
A134: 2012 | B134: 11 | C134: 7,820 | D134: 7,168 | E134: 6,356 | F134: 5,876 | G134: 4,722 | H134: 4,467 | I134: 1,591 | J134: 1,369 | K134: 43 | L134: 40 | M134: 1,464 | N134: 1,292 | O134: 417 | P134: 365 | Q134: 781 | R134: 693 | S134: 104 | T134: 55 | U134: 162 | V134: 179 | W134: N | X134: 2012
A135: 2012 | B135: 12 | C135: 8,245 | D135: 4,924 | E135: 5,010 | F135: 3,800 | G135: 3,394 | H135: 2,579 | I135: 1,582 | J135: 1,192 | K135: 34 | L135: 29 | M135: 3,235 | N135: 1,124 | O135: 1,375 | P135: 182 | Q135: 1,003 | R135: 777 | S135: 112 | T135: 65 | U135: 745 | V135: 100 | W135: D | X135: 2012
A137: 2013 | B137: 1 | C137: 5,000 | D137: 3,747 | E137: 4,172 | F137: 3,063 | G137: 2,993 | H137: 2,278 | I137: 1,149 | J137: 762 | K137: 30 | L137: 23 | M137: 828 | N137: 684 | O137: 262 | P137: 176 | Q137: 468 | R137: 389 | S137: 23 | T137: 30 | U137: 75 | V137: 89 | W137: J | X137: 2013
A138: 2013 | B138: 2 | C138: 5,246 | D138: 4,612 | E138: 4,508 | F138: 3,727 | G138: 3,208 | H138: 2,594 | I138: 1,261 | J138: 1,093 | K138: 39 | L138: 40 | M138: 738 | N138: 885 | O138: 199 | P138: 274 | Q138: 388 | R138: 473 | S138: 42 | T138: 26 | U138: 109 | V138: 112 | W138: F | X138: 2013
A139: 2013 | B139: 3 | C139: 8,173 | D139: 7,814 | E139: 7,075 | F139: 6,705 | G139: 5,403 | H139: 4,887 | I139: 1,603 | J139: 1,754 | K139: 69 | L139: 64 | M139: 1,098 | N139: 1,109 | O139: 333 | P139: 311 | Q139: 548 | R139: 649 | S139: 44 | T139: 55 | U139: 173 | V139: 94 | W139: M | X139: 2013
A140: 2013 | B140: 4 | C140: 10,631 | D140: 10,207 | E140: 9,485 | F140: 8,959 | G140: 7,222 | H140: 6,872 | I140: 2,153 | J140: 2,003 | K140: 110 | L140: 84 | M140: 1,146 | N140: 1,248 | O140: 238 | P140: 375 | Q140: 729 | R140: 699 | S140: 37 | T140: 52 | U140: 142 | V140: 122 | W140: A | X140: 2013
A141: 2013 | B141: 5 | C141: 10,070 | D141: 11,108 | E141: 8,673 | F141: 9,939 | G141: 6,512 | H141: 6,278 | I141: 2,063 | J141: 1,779 | K141: 98 | L141: 85 | M141: 1,397 | N141: 1,169 | O141: 308 | P141: 212 | Q141: 912 | R141: 768 | S141: 38 | T141: 58 | U141: 139 | V141: 131 | W141: M | X141: 2013
B142: 6 | C142: 8,214 | D142: 7,426 | E142: 6,695 | F142: 6,250 | G142: 4,767 | H142: 4,581 | I142: 1,841 | J142: 1,610 | K142: 87 | L142: 59 | M142: 1,519 | N142: 1,176 | O142: 288 | P142: 303 | Q142: 955 | R142: 676 | S142: 119 | T142: 38 | U142: 157 | V142: 159 | W142: J
B143: 7 | C143: =E143+M143 -> 8,494 | D143: 7,420 | E143: =G143+I143+K143 -> 7,039 | F143: 6,346 | G143: 4,933 | H143: 4,540 | I143: 1,998 | J143: 1,715 | K143: 108 | L143: 91 | M143: =O143+Q143+S143+U143 -> 1,455 | N143: 1,074 | O143: 480 | P143: 179 | Q143: 791 | R143: 757 | S143: 36 | T143: 37 | U143: 148 | V143: 101 | W143: J
B144: 8 | C144: =E144+M144 -> 7,736 | D144: =F144+N144 -> 6,899 | E144: 6,480 | F144: 5,701 | G144: 4,589 | H144: 3,962 | I144: 1,798 | J144: 1,645 | K144: 93 | L144: 94 | M144: 1,256 | N144: 1,198 | O144: 352 | P144: 281 | Q144: 721 | R144: 719 | S144: 48 | T144: 48 | U144: 135 | V144: 150 | W144: A
B145: 9 | C145: =E145+M145 -> 7,675 | D145: =F145+N145 -> 6,703 | E145: 6,269 | F145: 5,806 | G145: 4,418 | H145: 4,087 | I145: 1,767 | J145: 1,621 | K145: 84 | L145: 98 | M145: 1,406 | N145: 897 | O145: 375 | P145: 270 | Q145: 809 | R145: 533 | S145: 51 | T145: 26 | U145: 171 | V145: 68 | W145: S
B146: 10 | C146: 8,363 | D146: 8,038 | E146: 7,173 | F146: 6,780 | G146: 5,412 | H146: 4,986 | I146: 1,672 | J146: 1,724 | K146: 89 | L146: 70 | M146: 1,190 | N146: 1,258 | O146: 375 | P146: 342 | Q146: 476 | R146: 688 | S146: 50 | T146: 81 | U146: 289 | V146: 147 | W146: O
B147: 11 | C147: 7,833 | D147: 7,225 | E147: 6,607 | F147: 6,018 | G147: 4,884 | H147: 4,493 | I147: 1,662 | J147: 1,462 | K147: 61 | L147: 63 | M147: =O147+Q147+S147+U147 -> 1,226 | N147: =P147+R147+T147+V147 -> 1,207 | O147: 441 | P147: 348 | Q147: 498 | R147: 569 | S147: 49 | T147: 49 | U147: 238 | V147: 241 | W147: N
B148: 12 | C148: 8,276 | D148: 5,770 | E148: 6,261 | F148: 4,682 | G148: 4,167 | H148: 3,337 | I148: 2,026 | J148: 1,306 | K148: 68 | L148: 39 | M148: 2,015 | N148: 1,088 | O148: 818 | P148: 357 | Q148: 571 | R148: 484 | S148: 65 | T148: 86 | U148: 561 | V148: 161 | W148: D
A150: 2014 | B150: 1 | C150: =E150+M150 -> 5,362 | D150: =F150+N150 -> 4,168 | E150: =G150+I150+K150 -> 4,437 | F150: =H150+J150+L150 -> 3,420 | G150: 3,089 | H150: 2,455 | I150: 1,293 | J150: 931 | K150: 55 | L150: 34 | M150: =O150+Q150+S150+U150 -> 925 | N150: =P150+R150+T150+V150 -> 748 | O150: 279 | P150: 207 | Q150: 463 | R150: 404 | S150: 32 | T150: 31 | U150: 151 | V150: 106 | W150: J | X150: 2014
B151: 2 | C151: 6,382 | D151: 5,790 | E151: 5,385 | F151: 4,722 | G151: 3,771 | H151: 3,072 | I151: 1,539 | J151: 1,586 | K151: 75 | L151: 64 | M151: 997 | N151: 1,068 | O151: 310 | P151: 336 | Q151: 505 | R151: 563 | S151: 24 | T151: 39 | U151: 158 | V151: 130 | W151: F
A152: 연면적 | M152: Floor area of buildings
A153: 2004 | C153: =E153+M153 -> 50,099 | D153: =F153+N153 -> 34,587 | E153: 7,378 | F153: 6,012 | G153: 3,226 | H153: 2,854 | I153: 4,122 | J153: 3,134 | K153: =(E153-G153-I153)/1000 -> 0 | L153: =(F153-H153-J153)/1000 -> 0 | M153: 42,721 | N153: 28,575 | O153: 40,621 | P153: 26,359 | Q153: 1,508 | R153: 1,732 | S153: 431 | T153: 358 | U153: =(M153-O153-Q153-S153)/1000 -> 0 | V153: =(N153-P153-R153-T153)/1000 -> 0 | W153: 2004
A154: 2005 | C154: =E154+M154 -> 50,281 | D154: =F154+N154 -> 31,502 | E154: 5,306 | F154: 5,359 | G154: 2,865 | H154: 2,570 | I154: 2,400 | J154: 2,757 | K154: 42 | L154: 32 | M154: 44,974 | N154: 26,143 | O154: 42,856 | P154: 24,604 | Q154: 1,134 | R154: 1,019 | S154: 774 | T154: 351 | U154: 210 | V154: 169 | W154: 2005
A155: 2006 | C155: 53,861 | D155: 28,433 | E155: 7,392 | F155: 6,873 | G155: 3,881 | H155: 3,272 | I155: 3,392 | J155: 3,498 | K155: 119 | L155: 103 | M155: 46,469 | N155: 21,560 | O155: 44,293 | P155: 20,046 | Q155: 1,007 | R155: 918 | S155: 873 | T155: 382 | U155: 296 | V155: 213 | W155: 2006
A156: 2007 | C156: =SUM(C203:C214) -> 65,212 | D156: 32,753 | E156: =SUM(E203:E214) -> 10,121 | F156: 8,941 | G156: 5,228 | H156: 4,335 | I156: 4,737 | J156: 4,464 | K156: 156 | L156: 143 | M156: 55,092 | N156: 23,813 | O156: 52,230 | P156: 21,398 | Q156: 1,611 | R156: 1,519 | S156: 977 | T156: 666 | U156: 274 | V156: 229 | W156: 2007
A157: 2008 | C157: 38,462 | D157: 15,663 | E157: 10,150 | F157: 8,944 | G157: 5,222 | H157: 4,415 | I157: 4,787 | J157: 4,358 | K157: 140 | L157: 171 | M157: 28,312 | N157: 6,720 | O157: 23,960 | P157: 3,164 | Q157: 3,417 | R157: 2,916 | S157: 604 | T157: 358 | U157: 331 | V157: 282 | W157: 2008
A158: 2009 | C158: 41,835 | D158: 22,259 | E158: 9,934 | F158: 8,863 | G158: 4,897 | H158: 4,322 | I158: 4,818 | J158: 4,354 | K158: 219 | L158: 187 | M158: 31,901 | N158: 13,396 | O158: 29,497 | P158: 11,121 | Q158: 1,585 | R158: 1,567 | S158: 645 | T158: 428 | U158: 255 | V158: 280 | W158: 2009
A159: 2010 | C159: 56,700 | D159: 26,384 | E159: =SUM(E242:E253) -> 11,803 | F159: 10,901 | G159: 5,130 | H159: 4,613 | I159: 6,283 | J159: 5,918 | K159: 390 | L159: 369 | M159: 44,897 | N159: 15,484 | O159: 36,288 | P159: 10,342 | Q159: 2,364 | R159: 2,393 | S159: 715 | T159: 489 | U159: 5,530 | V159: 2,260 | W159: 2010
A160: 2011 | C160: 63,623 | D160: 41,423 | E160: =SUM(E255:E266) -> 14,938 | F160: =SUM(F255:F266) -> 13,197 | G160: 5,946 | H160: 5,025 | I160: 8,594 | J160: 7,796 | K160: 397 | L160: 376 | M160: 48,685 | N160: 28,225 | O160: 35,339 | P160: 19,073 | Q160: 4,991 | R160: 4,459 | S160: 1,023 | T160: 739 | U160: 7,333 | V160: 3,955 | W160: 2011
A161: 2012 | C161: 66,876 | D161: 43,559 | E161: 13,204 | F161: 12,135 | G161: 5,788 | H161: 5,133 | I161: 7,175 | J161: 6,748 | K161: 241 | L161: 253 | M161: 53,672 | N161: 31,424 | O161: 38,830 | P161: 20,660 | Q161: 5,336 | R161: 4,988 | S161: 1,475 | T161: 1,058 | U161: 8,030 | V161: 4,718 | W161: 2012
A162: 2013 | C162: =SUM(C281:C292) -> 57,050 | D162: 46,583 | E162: 12,387 | F162: 11,192 | G162: 5,547 | H162: 5,006 | I162: 6,619 | J162: 5,984 | K162: 220 | L162: 202 | M162: 44,663 | N162: 35,391 | O162: 32,373 | P162: 25,229 | Q162: 4,293 | R162: 4,123 | S162: 875 | T162: 851 | U162: 7,121 | V162: 5,188 | W162: 2013
A164: 2004 | B164: 1 | C164: =E164+M164 -> 1,677 | D164: =F164+N164 -> 1,196 | E164: 376 | F164: 244 | G164: 149 | H164: 101 | I164: 224 | J164: 141 | K164: 2 | L164: 2 | M164: 1,302 | N164: 952 | O164: 1,140 | P164: 837 | Q164: 130 | R164: 96 | S164: 30 | T164: 18 | U164: 2 | V164: 2 | W164: J | X164: 2,004
A165: 2004 | B165: 2 | C165: 3,153 | D165: 2,127 | E165: 617 | F165: 583 | G165: 348 | H165: 286 | I165: 268 | J165: 296 | K165: 2 | L165: 1 | M165: 2,536 | N165: 1,544 | O165: 2,353 | P165: 1,347 | Q165: 115 | R165: 164 | S165: 51 | T165: 25 | U165: 17 | V165: 7 | W165: F
A166: 2004 | B166: 3 | C166: 2,935 | D166: 4,116 | E166: 858 | F166: 890 | G166: 498 | H166: 471 | I166: 356 | J166: 417 | K166: 4 | L166: 2 | M166: 2,077 | N166: 3,226 | O166: 1,923 | P166: 2,956 | Q166: 129 | R166: 231 | S166: 23 | T166: 38 | U166: 2 | V166: 0 | W166: M
A167: 2004 | B167: 4 | C167: 2,672 | D167: 2,492 | E167: 847 | F167: 699 | G167: 353 | H167: 340 | I167: 493 | J167: 357 | K167: 1 | L167: 3 | M167: 1,825 | N167: 1,794 | O167: 1,616 | P167: 1,545 | Q167: 143 | R167: 201 | S167: 59 | T167: 43 | U167: 7 | V167: 4 | W167: A
A168: 2004 | B168: 5 | C168: 4,860 | D168: 2,981 | E168: 1,507 | F168: 600 | G168: 333 | H168: 264 | I168: 1,168 | J168: 333 | K168: 5 | L168: 2 | M168: 3,354 | N168: 2,381 | O168: 3,087 | P168: 2,170 | Q168: 221 | R168: 178 | S168: 25 | T168: 32 | U168: 20 | V168: 0 | W168: M
A169: 2004 | B169: 6 | C169: 5,240 | D169: 5,860 | E169: 600 | F169: 516 | G169: 255 | H169: 239 | I169: 344 | J169: 275 | K169: 2 | L169: 1 | M169: 4,639 | N169: 5,344 | O169: 4,443 | P169: 5,043 | Q169: 142 | R169: 243 | S169: 43 | T169: 47 | U169: 11 | V169: 11 | W169: J
A170: 2004 | B170: 7 | C170: 3,672 | D170: 3,250 | E170: 497 | F170: 453 | G170: 239 | H170: 216 | I170: 257 | J170: 235 | K170: 1 | L170: 2 | M170: 3,175 | N170: 2,797 | O170: 2,933 | P170: 2,585 | Q170: 141 | R170: 154 | S170: 29 | T170: 48 | U170: 72 | V170: 9 | W170: J
A171: 2004 | B171: 8 | C171: 3,622 | D171: 2,660 | E171: 397 | F171: 402 | G171: 203 | H171: 185 | I171: 194 | J171: 216 | K171: 1 | L171: 2 | M171: 3,225 | N171: 2,258 | O171: 3,053 | P171: 2,061 | Q171: 120 | R171: 114 | S171: 50 | T171: 21 | U171: 2 | V171: 62 | W171: A
A172: 2004 | B172: 9 | C172: 2,647 | D172: 2,174 | E172: 422 | F172: 401 | G172: 221 | H172: 182 | I172: 198 | J172: 216 | K172: 3 | L172: 2 | M172: 2,225 | N172: 1,773 | O172: 2,075 | P172: 1,628 | Q172: 113 | R172: 109 | S172: 25 | T172: 28 | U172: 12 | V172: 7 | W172: S
A173: 2004 | B173: 10 | C173: 4,637 | D173: 505 | E173: 498 | F173: 501 | G173: 252 | H173: 241 | I173: 242 | J173: 258 | K173: 4 | L173: 2 | M173: 4,140 | N173: 3 | O173: 4,006 | P173: 3,360 | Q173: 98 | R173: 91 | S173: 31 | T173: 36 | U173: 5 | V173: 2 | W173: O
A174: 2004 | B174: 11 | C174: 3,794 | D174: 2,171 | E174: 412 | F174: 409 | G174: 194 | H174: 189 | I174: 214 | J174: 216 | K174: 3 | L174: 3 | M174: 3,382 | N174: 1,762 | O174: 3,269 | P174: 1,657 | Q174: 85 | R174: 78 | S174: 22 | T174: 11 | U174: 6 | V174: 17 | W174: N
A175: 2004 | B175: 12 | C175: 11,188 | D175: 1,570 | E175: 347 | F175: 314 | G175: 181 | H175: 139 | I175: 164 | J175: 173 | K175: 2 | L175: 2 | M175: 10,841 | N175: 1,256 | O175: 10,722 | P175: 1,169 | Q175: 71 | R175: 74 | S175: 44 | T175: 10 | U175: 5 | V175: 3 | W175: D
A177: 2005 | B177: 1 | C177: 4,056 | D177: 1,315 | E177: 541 | F177: 220 | G177: 421 | H177: 95 | I177: 120 | J177: 125 | K177: 0 | L177: 0 | M177: 3,515 | N177: 1,096 | O177: 3,396 | P177: 1,031 | Q177: 50 | R177: 52 | S177: 52 | T177: 12 | U177: 17 | V177: 2 | W177: J | X177: 2,005
A178: 2005 | B178: 2 | C178: 1,922 | D178: 1,966 | E178: 207 | F178: 524 | G178: 118 | H178: 388 | I178: 88 | J178: 134 | K178: 0 | L178: 2 | M178: 1,715 | N178: 1,442 | O178: 1,648 | P178: 1,386 | Q178: 38 | R178: 44 | S178: 23 | T178: 12 | U178: 6 | V178: 0 | W178: F
A179: 2005 | B179: 3 | C179: 3,969 | D179: 3,522 | E179: 451 | F179: 572 | G179: 259 | H179: 264 | I179: 190 | J179: 307 | K179: 1 | L179: 1 | M179: 3,518 | N179: 2,950 | O179: 3,339 | P179: 2,818 | Q179: 58 | R179: 84 | S179: 64 | T179: 44 | U179: 57 | V179: 5 | W179: M
A180: 2005 | B180: 4 | C180: 4,131 | D180: 4,383 | E180: 508 | F180: 590 | G180: 296 | H180: 295 | I180: 211 | J180: 293 | K180: 2 | L180: 2 | M180: 3,622 | N180: 3,793 | O180: 3,509 | P180: 3,639 | Q180: 79 | R180: 95 | S180: 21 | T180: 38 | U180: 13 | V180: 21 | W180: A
A181: 2005 | B181: 5 | C181: 6,252 | D181: 3,754 | E181: 456 | F181: 570 | G181: 254 | H181: 271 | I181: 198 | J181: 295 | K181: 3 | L181: 4 | M181: 5,796 | N181: 3,183 | O181: 5,645 | P181: 3,014 | Q181: 113 | R181: 113 | S181: 33 | T181: 21 | U181: 6 | V181: 35 | W181: M
A182: 2005 | B182: 6 | C182: 3,593 | D182: 2,744 | E182: 554 | F182: 527 | G182: 264 | H182: 213 | I182: 288 | J182: 313 | K182: 2 | L182: 2 | M182: 3,039 | N182: 2,217 | O182: 2,812 | P182: 2,024 | Q182: 140 | R182: 122 | S182: 60 | T182: 51 | U182: 26 | V182: 20 | W182: J
A183: 2005 | B183: 7 | C183: 3,076 | D183: 1,768 | E183: 478 | F183: 431 | G183: 216 | H183: 182 | I183: 257 | J183: 246 | K183: 5 | L183: 3 | M183: 2,597 | N183: 1,337 | O183: 2,364 | P183: 1,200 | Q183: 165 | R183: 93 | S183: 38 | T183: 14 | U183: 31 | V183: 29 | W183: J
A184: 2005 | B184: 8 | C184: 3,641 | D184: 2,244 | E184: 371 | F184: 433 | G184: 198 | H184: 192 | I184: 168 | J184: 236 | K184: 5 | L184: 5 | M184: 3,270 | N184: 1,812 | O184: 3,114 | P184: 1,684 | Q184: 88 | R184: 95 | S184: 58 | T184: 10 | U184: 9 | V184: 23 | W184: A
A185: 2005 | B185: 9 | C185: 2,758 | D185: 2,186 | E185: 383 | F185: 417 | G185: 213 | H185: 188 | I185: 164 | J185: 225 | K185: 5 | L185: 4 | M185: 2,376 | N185: 1,769 | O185: 2,174 | P185: 1,647 | Q185: 91 | R185: 99 | S185: 99 | T185: 15 | U185: 11 | V185: 9 | W185: S
A186: 2005 | B186: 10 | C186: 3,944 | D186: 2,232 | E186: 388 | F186: 413 | G186: 200 | H186: 200 | I186: 184 | J186: 209 | K186: 4 | L186: 5 | M186: 3,555 | N186: 1,819 | O186: 3,384 | P186: 1,691 | Q186: 66 | R186: 74 | S186: 95 | T186: 45 | U186: 10 | V186: 10 | W186: O
A187: 2005 | B187: 11 | C187: 3,726 | D187: 3,641 | E187: 380 | F187: 384 | G187: 184 | H187: 167 | I187: 190 | J187: 214 | K187: 6 | L187: 4 | M187: 3,346 | N187: 3,257 | O187: 3,167 | P187: 3,136 | Q187: 78 | R187: 79 | S187: 95 | T187: 36 | U187: 5 | V187: 5 | W187: N
A188: 2005 | B188: 12 | C188: 9,212 | D188: 1,747 | E188: 587 | F188: 278 | G188: 240 | H188: 116 | I188: 342 | J188: 160 | K188: 5 | L188: 2 | M188: 8,625 | N188: 1,469 | O188: 8,304 | P188: 1,336 | Q188: 166 | R188: 70 | S188: 135 | T188: 54 | U188: 20 | V188: 9 | W188: D
A190: 2006 | B190: 1 | C190: 4,053 | D190: 871 | E190: 742 | F190: 82 | G190: 150 | H190: 82 | I190: 582 | J190: 143 | K190: 10 | L190: 2 | M190: 3,311 | N190: 789 | O190: 2,902 | P190: 700 | Q190: 287 | R190: 71 | S190: 42 | T190: 9 | U190: 80 | V190: 9 | W190: J | X190: 2,006
A191: 2006 | B191: 2 | C191: 3,432 | D191: 2,635 | E191: 372 | F191: 386 | G191: 171 | H191: 120 | I191: 199 | J191: 263 | K191: 3 | L191: 4 | M191: 3,059 | N191: 2,249 | O191: 2,874 | P191: 2,009 | Q191: 101 | R191: 141 | S191: 74 | T191: 16 | U191: 10 | V191: 82 | W191: F
A192: 2006 | B192: 3 | C192: 4,406 | D192: 2,204 | E192: 463 | F192: 595 | G192: 274 | H192: 265 | I192: 184 | J192: 321 | K192: 5 | L192: 9 | M192: 3,943 | N192: 1,609 | O192: 3,764 | P192: 1,499 | Q192: 54 | R192: 84 | S192: 77 | T192: 17 | U192: 48 | V192: 9 | W192: M
A193: 2006 | B193: 4 | C193: 3,518 | D193: 2,822 | E193: 605 | F193: 755 | G193: 384 | H193: 389 | I193: 214 | J193: 359 | K193: 8 | L193: 7 | M193: 2,912 | N193: 2,067 | O193: 2,809 | P193: 1,893 | Q193: 36 | R193: 81 | S193: 63 | T193: 85 | U193: 5 | V193: 8 | W193: A
A194: 2006 | B194: 5 | C194: 3,462 | D194: 2,560 | E194: 567 | F194: 759 | G194: 302 | H194: 280 | I194: 253 | J194: 472 | K194: 12 | L194: 8 | M194: 2,895 | N194: 1,801 | O194: 2,670 | P194: 1,709 | Q194: 88 | R194: 66 | S194: 118 | T194: 17 | U194: 19 | V194: 9 | W194: M
A195: 2006 | B195: 6 | C195: 5,384 | D195: 3,462 | E195: 682 | F195: 611 | G195: 360 | H195: 291 | I195: 305 | J195: 313 | K195: 17 | L195: 7 | M195: 4,702 | N195: 2,851 | O195: 4,597 | P195: 2,697 | Q195: 46 | R195: 60 | S195: 46 | T195: 86 | U195: 13 | V195: 8 | W195: J
A196: 2006 | B196: 7 | C196: 7,048 | D196: 1,877 | E196: 1,019 | F196: 512 | G196: 433 | H196: 254 | I196: 565 | J196: 247 | K196: 21 | L196: 10 | M196: 6,029 | N196: 1,365 | O196: 5,802 | P196: 1,253 | Q196: 107 | R196: 62 | S196: 71 | T196: 42 | U196: 49 | V196: 8 | W196: J
A197: 2006 | B197: 8 | C197: 3,499 | D197: 1,997 | E197: 520 | F197: 641 | G197: 352 | H197: 317 | I197: 162 | J197: 307 | K197: 6 | L197: 16 | M197: 2,978 | N197: 1,356 | O197: 2,751 | P197: 1,248 | Q197: 29 | R197: 65 | S197: 192 | T197: 32 | U197: 6 | V197: 11 | W197: A | X197: 2,006
A198: 2006 | B198: 9 | C198: 5,467 | D198: 1,628 | E198: 670 | F198: 713 | G198: 453 | H198: 394 | I198: 205 | J198: 305 | K198: 12 | L198: 14 | M198: 4,797 | N198: 916 | O198: 4,728 | P198: 792 | Q198: 49 | R198: 85 | S198: 10 | T198: 29 | U198: 10 | V198: 10 | W198: S | X198: 2,006
A199: 2006 | B199: 10 | C199: 2,658 | D199: 2,505 | E199: 548 | F199: 599 | G199: 333 | H199: 326 | I199: 208 | J199: 261 | K199: 7 | L199: 12 | M199: 2,110 | N199: 1,906 | O199: 1,995 | P199: 1,817 | Q199: 49 | R199: 61 | S199: 57 | T199: 18 | U199: 9 | V199: 9 | W199: O
A200: 2006 | B200: 11 | C200: 3,638 | D200: 3,066 | E200: 655 | F200: 626 | G200: 362 | H200: 334 | I200: 281 | J200: 283 | K200: 12 | L200: 9 | M200: 2,983 | N200: 2,440 | O200: 2,852 | P200: 2,320 | Q200: 62 | R200: 74 | S200: 47 | T200: 13 | U200: 22 | V200: 33 | W200: N
A201: 2006 | B201: 12 | C201: 7,297 | D201: 2,662 | E201: 548 | F201: 451 | G201: 307 | H201: 221 | I201: 234 | J201: 224 | K201: 7 | L201: 7 | M201: 6,749 | N201: 2,211 | O201: 6,548 | P201: 2,108 | Q201: 98 | R201: 68 | S201: 76 | T201: 17 | U201: 26 | V201: 18 | W201: D
C202: 0 | D202: 0
A203: 2007 | B203: 1 | C203: 2,112 | D203: 1,289 | E203: 632 | F203: 452 | G203: 277 | H203: 180 | I203: 342 | J203: 265 | K203: 13 | L203: 6 | M203: 1,480 | N203: 837 | O203: 1,382 | P203: 714 | Q203: 65 | R203: 59 | S203: 25 | T203: 58 | U203: 9 | V203: 5 | W203: J
A204: 2007 | B204: 2 | C204: 2,438 | D204: 1,767 | E204: 603 | F204: 524 | G204: 281 | H204: 213 | I204: 313 | J204: 304 | K204: 8 | L204: 7 | M204: 1,835 | N204: 1,243 | O204: 1,713 | P204: 1,144 | Q204: 57 | R204: 66 | S204: 46 | T204: 16 | U204: 19 | V204: 17 | W204: F
A205: 2007 | B205: 3 | C205: 3,617 | D205: 2,378 | E205: 1,073 | F205: 1,063 | G205: 550 | H205: 467 | I205: 501 | J205: 574 | K205: 23 | L205: 21 | M205: 2,544 | N205: 1,315 | O205: 2,367 | P205: 1,157 | Q205: 107 | R205: 104 | S205: 55 | T205: 33 | U205: 15 | V205: 22 | W205: M
A206: 2007 | B206: 4 | C206: 2,866 | D206: 3,330 | E206: 1,072 | F206: 967 | G206: 567 | H206: 500 | I206: 490 | J206: 449 | K206: 15 | L206: 18 | M206: 1,794 | N206: 2,362 | O206: 1,508 | P206: 2,202 | Q206: 110 | R206: 109 | S206: 165 | T206: 44 | U206: 11 | V206: 8 | W206: A
A207: 2007 | B207: 5 | C207: 5,096 | D207: 3,132 | E207: 1,004 | F207: 971 | G207: 521 | H207: 486 | I207: 465 | J207: 468 | K207: 18 | L207: 17 | M207: 4,092 | N207: 2,161 | O207: 3,815 | P207: 1,833 | Q207: 153 | R207: 149 | S207: 95 | T207: 164 | U207: 30 | V207: 15 | W207: M
A208: 2007 | B208: 6 | C208: 3,088 | D208: 4,551 | E208: 833 | F208: 735 | G208: 435 | H208: 381 | I208: 380 | J208: 342 | K208: 18 | L208: 12 | M208: 2,255 | N208: 3,816 | O208: 2,029 | P208: 3,567 | Q208: 152 | R208: 142 | S208: 59 | T208: 91 | U208: 15 | V208: 16 | W208: J
A209: 2007 | B209: 7 | C209: 4,554 | D209: 2,829 | E209: 946 | F209: 719 | G209: 466 | H209: 342 | I209: 457 | J209: 364 | K209: 22 | L209: 13 | M209: 3,608 | N209: 2,110 | O209: 3,330 | P209: 1,868 | Q209: 191 | R209: 149 | S209: 68 | T209: 71 | U209: 20 | V209: 22 | W209: J
A210: 2007 | B210: 8 | C210: 4,970 | D210: 3,309 | E210: 798 | F210: 739 | G210: 449 | H210: 368 | I210: 341 | J210: 357 | K210: 7 | L210: 14 | M210: 4,172 | N210: 2,569 | O210: 3,929 | P210: 2,338 | Q210: 144 | R210: 149 | S210: 55 | T210: 52 | U210: 44 | V210: 30 | W210: A
A211: 2007 | B211: 9 | C211: 3,047 | D211: 2,369 | E211: =G211+I211+K211 -> 754 | F211: 686 | G211: 378 | H211: 331 | I211: 372 | J211: 346 | K211: 5 | L211: 8 | M211: =O211+Q211+S211+U211 -> 2,292 | N211: 1,683 | O211: 2,040 | P211: 1,541 | Q211: 154 | R211: 120 | S211: 82 | T211: 14 | U211: 17 | V211: 6 | W211: S
A212: 2007 | B212: 10 | C212: 16,093 | D212: 2,201 | E212: 936 | F212: 891 | G212: 527 | H212: 467 | I212: 397 | J212: 416 | K212: 12 | L212: 8 | M212: 15,157 | N212: 1,310 | O212: 14,871 | P212: 1,093 | Q212: 152 | R212: 154 | S212: 86 | T212: 47 | U212: 47 | V212: 16 | W212: O
A213: 2007 | B213: 11 | C213: 10,865 | D213: 4,358 | E213: 783 | F213: 684 | G213: 423 | H213: 339 | I213: 351 | J213: 333 | K213: 8 | L213: 13 | M213: 10,082 | N213: 3,674 | O213: 9,711 | P213: 3,400 | Q213: 156 | R213: 150 | S213: 177 | T213: 57 | U213: 38 | V213: 67 | W213: N | X213: 2,007
A214: 2007 | B214: 12 | C214: 6,466 | D214: 1,242 | E214: 687 | F214: 508 | G214: 353 | H214: 260 | I214: 328 | J214: 244 | K214: 7 | L214: 5 | M214: 5,779 | N214: 733 | O214: 5,535 | P214: 541 | Q214: 171 | R214: 168 | S214: 64 | T214: 20 | U214: 9 | V214: 5 | W214: D
C215: 0 | D215: 0
... 75 more rows

Sheet 47. 지역별 주택건설실적
A1: 47. 지역별 주택건설실적 | L1: Housing Construction by Region
A3: 단위 : 호 | V3: House
A4: 연월중 | C4: 전국 | D4: 서울 | E4: 부산 | F4: 대구 | G4: 인천 | H4: 광주 | I4: 대전 | J4: 울산 | K4: 세종 | L4: 경기 | M4: 강원 | N4: 충북 | O4: 충남 | P4: 전북 | Q4: 전남 | R4: 경북 | S4: 경남 | T4: 제주 | U4: 연월중
A6: During | C6: Total | D6: Seoul | E6: Busan | F6: Daegu | G6: Incheon | H6: Gwangju | I6: Daejeon | J6: Ulsan | K6: Sejong | L6: Gyeonggi | M6: Gangwon | N6: Chungbuk | O6: Chungnam | P6: Jeonbuk | Q6: Jeonnam | R6: Gyeongbuk | S6: Gyeongnam | T6: Jeju | U6: During
A8: 합계 | L8: Total
A9: 2004 | C9: 463,800 | D9: 58,122 | E9: 20,509 | F9: 25,370 | G9: 22,440 | H9: 12,124 | I9: 15,455 | J9: 12,381 | L9: 125,157 | M9: 20,748 | N9: 26,812 | O9: 32,857 | P9: 15,583 | Q9: 18,763 | R9: 20,108 | S9: 33,940 | T9: 3,431 | U9: 2004
A10: 2005 | C10: 463,641 | D10: 51,797 | E10: 25,458 | F10: 41,600 | G10: 17,588 | H10: 16,850 | I10: 13,724 | J10: 10,479 | L10: 128,516 | M10: 23,691 | N10: 16,252 | O10: 21,326 | P10: 21,752 | Q10: 8,369 | R10: 20,393 | S10: 42,685 | T10: 3,161 | U10: 2005
A11: 2006 | C11: 469,503 | D11: 39,694 | E11: 48,741 | F11: 27,625 | G11: 15,876 | H11: 23,291 | I11: 9,718 | J11: 13,393 | L11: 116,488 | M11: 20,955 | N11: 18,195 | O11: 30,079 | P11: 16,332 | Q11: 13,759 | R11: 27,043 | S11: 44,515 | T11: 3,799 | U11: 2006
A12: 2007 | C12: 555,792 | D12: 62,842 | E12: 41,254 | F12: 18,174 | G12: 41,571 | H12: 13,088 | I12: 11,180 | J12: 24,507 | L12: 198,138 | M12: 10,677 | N12: 19,983 | O12: 29,317 | P12: 11,842 | Q12: 15,255 | R12: 24,285 | S12: 31,503 | T12: 2,176 | U12: 2007
A13: 2008 | C13: 371,285 | D13: 48,417 | E13: 13,594 | F13: 22,880 | G13: 33,632 | H13: 3,945 | I13: 14,556 | J13: 5,897 | L13: 115,531 | M13: 13,235 | N13: 10,014 | O13: 21,657 | P13: 12,063 | Q13: 10,849 | R13: 15,881 | S13: 24,375 | T13: 4,759 | U13: 2008
A14: 2009 | C14: 381,787 | D14: 36,090 | E14: 6,506 | F14: 6,645 | G14: 59,519 | H14: 5,024 | I14: 1,849 | J14: 6,728 | L14: 159,549 | M14: 12,312 | N14: 11,537 | O14: 22,860 | P14: 11,634 | Q14: 8,984 | R14: 13,316 | S14: 17,119 | T14: 2,115 | U14: 2009
A15: 2010 | C15: =SUM(C98:C109) -> 386,542 | D15: =SUM(D98:D109) -> 69,190 | E15: 18,331 | F15: 4,724 | G15: 37,477 | H15: 4,487 | I15: 4,034 | J15: 4,904 | K15: - | L15: 143,551 | M15: 9,312 | N15: 8,504 | O15: 15,331 | P15: 12,299 | Q15: 17,599 | R15: 13,684 | S15: 18,234 | T15: 4,881 | U15: 2010
A16: 2011 | C16: 549,594 | D16: 88,060 | E16: 37,256 | F16: 12,462 | G16: 35,905 | H16: 16,059 | I16: 19,736 | J16: 13,146 | K16: - | L16: 148,191 | M16: 12,989 | N16: 18,010 | O16: 46,794 | P16: 16,117 | Q16: 15,576 | R16: 16,936 | S16: 39,339 | T16: 13,018 | U16: 2011
A17: 2012 | C17: 586,884 | D17: 86,123 | E17: 42,333 | F17: 13,012 | G17: 32,132 | H17: 19,584 | I17: 6,708 | J17: 9,751 | K17: 17,588 | L17: 151,035 | M17: 12,156 | N17: 24,773 | O17: 44,450 | P17: 24,288 | Q17: 22,222 | R17: 25,713 | S17: 44,760 | T17: 10,256 | U17: 2012
A18: 2013 | C18: =SUM(C137:C148) -> 440,116 | D18: =SUM(D137:D148) -> 77,621 | E18: 29,922 | F18: 18,078 | G18: 18,907 | H18: 8,454 | I18: 5,180 | J18: 5,344 | K18: 17,844 | L18: 96,082 | M18: 12,964 | N18: 19,267 | O18: 32,343 | P18: 13,179 | Q18: 20,061 | R18: 23,878 | S18: 34,683 | T18: 6,309 | U18: 2013
A20: 2004 | B20: 1 | C20: 14,358 | D20: 1,411 | E20: 2,337 | F20: 513 | G20: 989 | H20: 48 | I20: 267 | J20: 440 | L20: 1,795 | M20: 759 | N20: 2,236 | O20: 1,954 | P20: 114 | Q20: 208 | R20: 627 | S20: 429 | T20: 231 | U20: J | V20: 2004
A21: 2004 | B21: 2 | C21: 24,797 | D21: 1,218 | E21: 1,497 | F21: 1,292 | G21: 93 | H21: 575 | I21: 3,338 | J21: 179 | L21: 6,977 | M21: 988 | N21: 3,068 | O21: 3,589 | P21: 173 | Q21: 183 | R21: 358 | S21: 1,068 | T21: 201 | U21: F
A22: 2004 | B22: 3 | C22: 24,466 | D22: 9,620 | E22: 376 | F22: 473 | G22: 55 | H22: 442 | I22: 1,018 | J22: 380 | L22: 2,171 | M22: 1,679 | N22: 1,192 | O22: 3,064 | P22: 1,122 | Q22: 639 | R22: 593 | S22: 1,406 | T22: 236 | U22: M
A23: 2004 | B23: 4 | C23: 18,537 | D23: 1,717 | E23: 972 | F23: 307 | G23: 1,473 | H23: 146 | I23: 139 | J23: 1,236 | L23: 4,105 | M23: 1,421 | N23: 510 | O23: 1,881 | P23: 275 | Q23: 1,644 | R23: 760 | S23: 1,705 | T23: 246 | U23: A
A24: 2004 | B24: 5 | C24: 30,426 | D24: 3,149 | E24: 1,965 | F24: 3,503 | G24: 1,256 | H24: 1,031 | I24: 101 | J24: 291 | L24: 6,392 | M24: 1,920 | N24: 1,434 | O24: 2,810 | P24: 772 | Q24: 739 | R24: 1,357 | S24: 3,482 | T24: 224 | U24: M
A25: 2004 | B25: 6 | C25: 41,080 | D25: 3,122 | E25: 1,941 | F25: 4,260 | G25: 3,540 | H25: 104 | I25: 796 | J25: 2,653 | L25: 10,604 | M25: 1,383 | N25: 1,015 | O25: 2,376 | P25: 252 | Q25: 4,297 | R25: 406 | S25: 4,046 | T25: 285 | U25: J
A26: 2004 | B26: 7 | C26: 35,272 | D26: 1,538 | E26: 2,137 | F26: 2,510 | G26: 782 | H26: 1,602 | I26: 2,962 | J26: 248 | L26: 11,658 | M26: 448 | N26: 3,686 | O26: 1,559 | P26: 1,331 | Q26: 2,058 | R26: 764 | S26: 1,778 | T26: 211 | U26: J
A27: 2004 | B27: 8 | C27: 30,104 | D27: 2,398 | E27: 1,689 | F27: 958 | G27: 3,942 | H27: 126 | I27: 2,783 | J27: 2,487 | L27: 7,862 | M27: 2,072 | N27: 176 | O27: 1,874 | P27: 781 | Q27: 347 | R27: 561 | S27: 1,800 | T27: 248 | U27: A
A28: 2004 | B28: 9 | C28: 32,984 | D28: 6,712 | E28: 1,074 | F28: 1,694 | G28: 665 | H28: 136 | I28: 97 | J28: 200 | L28: 7,257 | M28: 2,056 | N28: 2,828 | O28: 971 | P28: 773 | Q28: 254 | R28: 6,620 | S28: 770 | T28: 877 | U28: S
A29: 2004 | B29: 10 | C29: 49,055 | D29: 5,418 | E29: 3,329 | F29: 2,781 | G29: 1,637 | H29: 74 | I29: 706 | J29: 379 | L29: 16,921 | M29: 1,474 | N29: 2,717 | O29: 3,902 | P29: 2,097 | Q29: 2,962 | R29: 1,502 | S29: 2,981 | T29: 175 | U29: O
A30: 2004 | B30: 11 | C30: 38,706 | D30: 4,678 | E30: 2,192 | F30: 5,342 | G30: 2,139 | H30: 1,594 | I30: 2,273 | J30: 1,280 | L30: 3,770 | M30: 634 | N30: 2,390 | O30: 3,362 | P30: 3,327 | Q30: 1,651 | R30: 853 | S30: 2,898 | T30: 323 | U30: N
A31: 2004 | B31: 12 | C31: 124,015 | D31: 17,141 | E31: 1,000 | F31: 1,737 | G31: 5,869 | H31: 6,246 | I31: 975 | J31: 2,608 | L31: 45,645 | M31: 5,914 | N31: 5,560 | O31: 5,515 | P31: 4,566 | Q31: 3,781 | R31: 5,707 | S31: 11,577 | T31: 174 | U31: D
A33: 2005 | B33: 1 | C33: 30,048 | D33: 601 | E33: 1,388 | F33: 852 | G33: 741 | H33: 1,286 | I33: 398 | J33: 351 | L33: 15,318 | M33: 1,383 | N33: 1,469 | O33: 408 | P33: 955 | Q33: 1,386 | R33: 1,210 | S33: 2,158 | T33: 144 | U33: J | V33: 2005
A34: 2005 | B34: 2 | C34: 17,458 | D34: 1,214 | E34: 906 | F34: 1,953 | G34: 1,359 | H34: 189 | I34: 172 | J34: 2,369 | L34: 1,330 | M34: 932 | N34: 573 | O34: 535 | P34: 972 | Q34: 252 | R34: 1,557 | S34: 3,075 | T34: 70 | U34: F
A35: 2005 | B35: 3 | C35: 30,743 | D35: 2,920 | E35: 883 | F35: 1,520 | G35: 3,739 | H35: 1,142 | I35: 761 | J35: 3,767 | L35: 5,107 | M35: 2,441 | N35: 1,955 | O35: 2,421 | P35: 980 | Q35: 226 | R35: 360 | S35: 2,335 | T35: 186 | U35: M
A36: 2005 | B36: 4 | C36: 25,115 | D36: 1,140 | E36: 913 | F36: 786 | G36: 4,527 | H36: 946 | I36: 1,222 | J36: 427 | L36: 2,429 | M36: 2,921 | N36: 1,415 | O36: 2,417 | P36: 1,110 | Q36: 202 | R36: 3,404 | S36: 1,085 | T36: 171 | U36: A
A37: 2005 | B37: 5 | C37: 56,039 | D37: 5,337 | E37: 986 | F37: 4,597 | G37: 227 | H37: 100 | I37: 524 | J37: 156 | L37: 27,859 | M37: 1,253 | N37: 1,323 | O37: 3,154 | P37: 3,306 | Q37: 249 | R37: 3,177 | S37: 3,621 | T37: 170 | U37: M
A38: 2005 | B38: 6 | C38: 32,145 | D38: 6,493 | E38: 2,602 | F38: 4,674 | G38: 151 | H38: 231 | I38: 127 | J38: 1,114 | L38: 3,979 | M38: 2,988 | N38: 1,009 | O38: 2,128 | P38: 1,794 | Q38: 925 | R38: (650) | S38: 4,319 | T38: 261 | U38: J
A39: 2005 | B39: 7 | C39: 26,642 | D39: 2,167 | E39: 2,403 | F39: 4,481 | G39: 689 | H39: 931 | I39: 109 | J39: 878 | L39: 6,131 | M39: 2,401 | N39: 453 | O39: 1,000 | P39: 1,687 | Q39: 207 | R39: 1,568 | S39: 1,392 | T39: 145 | U39: J
A40: 2005 | B40: 8 | C40: 20,202 | D40: 1,094 | E40: 1,271 | F40: 2,333 | G40: 2,043 | H40: 716 | I40: 175 | J40: 295 | L40: 5,999 | M40: 1,031 | N40: 228 | O40: 1,097 | P40: 1,373 | Q40: 343 | R40: 841 | S40: 869 | T40: 494 | U40: A
A41: 2005 | B41: 9 | C41: 25,373 | D41: 1,973 | E41: 1,727 | F41: 4,100 | G41: 39 | H41: 3,253 | I41: 713 | J41: 166 | L41: 5,271 | M41: 655 | N41: 1,327 | O41: 1,377 | P41: 817 | Q41: 728 | R41: 1,328 | S41: 1,690 | T41: 209 | U41: S
A42: 2005 | B42: 10 | C42: 26,024 | D42: 821 | E42: 731 | F42: 1,049 | G42: 489 | H42: 1,873 | I42: 898 | J42: 376 | L42: 8,230 | M42: 1,237 | N42: 1,880 | O42: 864 | P42: 1,029 | Q42: 259 | R42: 901 | S42: 4,587 | T42: 800 | U42: O
A43: 2005 | B43: 11 | C43: 25,822 | D43: 1,139 | E43: 1,224 | F43: 4,859 | G43: 942 | H43: 808 | I43: 946 | J43: 505 | L43: 1,739 | M43: 4,491 | N43: 509 | O43: 3,350 | P43: 873 | Q43: 572 | R43: 407 | S43: 3,301 | T43: 157 | U43: N
A44: 2005 | B44: 12 | C44: 148,030 | D44: 26,898 | E44: 10,424 | F44: 10,396 | G44: 2,642 | H44: 5,375 | I44: 7,679 | J44: 75 | L44: 45,124 | M44: 1,958 | N44: 4,111 | O44: 2,575 | P44: 6,856 | Q44: 3,020 | R44: 6,290 | S44: 14,253 | T44: 354 | U44: D
A46: 2006 | B46: 1 | C46: 30,459 | D46: 3,644 | E46: 3,553 | F46: 542 | G46: 540 | H46: 3,059 | I46: 475 | J46: 209 | L46: 11,212 | M46: 195 | N46: 351 | O46: 793 | P46: 640 | Q46: 678 | R46: 1,176 | S46: 3,219 | T46: 173 | U46: J | V46: 2006
A47: 2006 | B47: 2 | C47: 28,862 | D47: 957 | E47: 968 | F47: 1,235 | G47: 555 | H47: 8,378 | I47: 231 | J47: 71 | L47: 6,630 | M47: 519 | N47: 1,542 | O47: 2,880 | P47: 1,228 | Q47: 766 | R47: 1,193 | S47: 1,511 | T47: 198 | U47: F
A48: 2006 | B48: 3 | C48: 24,470 | D48: 2,384 | E48: 2,153 | F48: 590 | G48: 438 | H48: 829 | I48: 277 | J48: 1,554 | L48: 4,303 | M48: 1,028 | N48: 2,742 | O48: 1,264 | P48: 1,159 | Q48: 314 | R48: 909 | S48: 4,290 | T48: 236 | U48: M
A49: 2006 | B49: 4 | C49: 26,968 | D49: 2,040 | E49: 3,375 | F49: 3,137 | G49: 110 | H49: 193 | I49: 362 | J49: 280 | L49: 5,533 | M49: 1,550 | N49: 1,568 | O49: 1,163 | P49: 1,015 | Q49: 2,604 | R49: 2,197 | S49: 1,297 | T49: 544 | U49: A
A50: 2006 | B50: 5 | C50: 28,227 | D50: 2,474 | E50: 1,630 | F50: 1,114 | G50: 1,045 | H50: 298 | I50: 45 | J50: 1,621 | L50: 2,672 | M50: 1,539 | N50: 1,097 | O50: 689 | P50: 2,867 | Q50: 710 | R50: 3,251 | S50: 7,020 | T50: 155 | U50: M
A51: 2006 | B51: 6 | C51: 42,360 | D51: 6,386 | E51: 11,756 | F51: 2,642 | G51: 491 | H51: 93 | I51: 90 | J51: 551 | L51: 6,757 | M51: 1,102 | N51: 284 | O51: 2,914 | P51: 275 | Q51: 1,854 | R51: 1,952 | S51: 4,871 | T51: 342 | U51: J
A52: 2006 | B52: 7 | C52: 57,265 | D52: 6,317 | E52: 11,830 | F52: 4,751 | G52: 572 | H52: 3,017 | I52: 968 | J52: 1,398 | L52: 9,521 | M52: 3,816 | N52: 299 | O52: 5,412 | P52: 1,678 | Q52: 1,479 | R52: 2,100 | S52: 4,017 | T52: 90 | U52: J
A53: 2006 | B53: 8 | C53: 22,828 | D53: 356 | E53: 2,689 | F53: 56 | G53: 165 | H53: 69 | I53: 40 | J53: 591 | L53: 10,937 | M53: 1,752 | N53: 1,949 | O53: 460 | P53: 1,617 | Q53: 331 | R53: 911 | S53: 812 | T53: 93 | U53: A
A54: 2006 | B54: 9 | C54: 42,119 | D54: 1,126 | E54: 55 | F54: 3,137 | G54: 2,983 | H54: 570 | I54: 3,009 | J54: 436 | L54: 5,044 | M54: 1,067 | N54: 3,468 | O54: 7,829 | P54: 2,971 | Q54: 1,389 | R54: 2,772 | S54: 6,070 | T54: 193 | U54: S
A55: 2006 | B55: 10 | C55: 23,734 | D55: 1,820 | E55: 2,176 | F55: 2,451 | G55: 1,844 | H55: 2,345 | I55: 448 | J55: 645 | L55: 3,593 | M55: 964 | N55: 1,827 | O55: 937 | P55: 268 | Q55: 249 | R55: 2,733 | S55: 1,292 | T55: 142 | U55: O
A56: 2006 | B56: 11 | C56: 30,166 | D56: 779 | E56: 2,244 | F56: 2,366 | G56: 130 | H56: 3,606 | I56: 59 | J56: 2,388 | L56: 6,147 | M56: 1,077 | N56: 409 | O56: 850 | P56: 231 | Q56: 260 | R56: 5,683 | S56: 3,826 | T56: 111 | U56: N
A57: 2006 | B57: 12 | C57: 112,045 | D57: 11,411 | E57: 6,312 | F57: 5,604 | G57: 7,003 | H57: 834 | I57: 3,714 | J57: 3,649 | L57: 44,139 | M57: 6,346 | N57: 2,659 | O57: 4,888 | P57: 2,383 | Q57: 3,125 | R57: 2,166 | S57: 6,290 | T57: 1,522 | U57: D
A59: 2007 | B59: 1 | C59: 12,038 | D59: 1,530 | E59: 455 | F59: 818 | G59: 69 | H59: 1,022 | I59: 55 | J59: 183 | L59: 2,647 | M59: 452 | N59: 188 | O59: 1,004 | P59: 888 | Q59: 206 | R59: 698 | S59: 1,691 | T59: 132 | U59: J | V59: 2007
A60: 2007 | B60: 2 | C60: 17,751 | D60: 794 | E60: 1,099 | F60: 2,731 | G60: 116 | H60: 1,178 | I60: 34 | J60: 1,173 | L60: 2,870 | M60: 190 | N60: 305 | O60: 1,306 | P60: 602 | Q60: 494 | R60: 2,244 | S60: 2,515 | T60: 100 | U60: F
A61: 2007 | B61: 3 | C61: 20,038 | D61: 1,888 | E61: 2,121 | F61: 1,047 | G61: 930 | H61: 1,347 | I61: 65 | J61: 685 | L61: 3,188 | M61: 389 | N61: 694 | O61: 1,890 | P61: 663 | Q61: 391 | R61: 2,314 | S61: 2,321 | T61: 105 | U61: M
A62: 2007 | B62: 4 | C62: 19,186 | D62: 1,963 | E62: 364 | F62: 514 | G62: 3,337 | H62: 226 | I62: 81 | J62: 2,281 | L62: 3,987 | M62: 1,154 | N62: 464 | O62: 701 | P62: 474 | Q62: 1,219 | R62: 1,224 | S62: 1,049 | T62: 148 | U62: A
A63: 2007 | B63: 5 | C63: 31,197 | D63: 1,866 | E63: 897 | F63: 575 | G63: 211 | H63: 2,071 | I63: 511 | J63: 244 | L63: 13,168 | M63: 513 | N63: 680 | O63: 3,087 | P63: 915 | Q63: 353 | R63: 850 | S63: 5,178 | T63: 78 | U63: M
A64: 2007 | B64: 6 | C64: 30,226 | D64: 1,893 | E64: 235 | F64: 887 | G64: 5,349 | H64: 139 | I64: 427 | J64: 1,787 | L64: 7,071 | M64: 1,535 | N64: 2,549 | O64: 1,600 | P64: 323 | Q64: 3,090 | R64: 1,184 | S64: 1,714 | T64: 443 | U64: J
A65: 2007 | B65: 7 | C65: 45,848 | D65: 7,338 | E65: 9,678 | F65: 439 | G65: 1,207 | H65: 1,559 | I65: 54 | J65: 4,248 | L65: 10,964 | M65: 483 | N65: 803 | O65: 1,856 | P65: 315 | Q65: 1,698 | R65: 3,482 | S65: 1,429 | T65: 295 | U65: J
A66: 2007 | B66: 8 | C66: 48,461 | D66: 11,719 | E66: 6,688 | F66: 754 | G66: 1,401 | H66: 478 | I66: 51 | J66: 1,506 | L66: 15,170 | M66: 1,222 | N66: 2,075 | O66: 1,407 | P66: 402 | Q66: 757 | R66: 1,200 | S66: 3,220 | T66: 411 | U66: A
A67: 2007 | B67: 9 | C67: 55,745 | D67: 13,182 | E67: 5,079 | F67: 2,305 | G67: 4,464 | H67: 1,117 | I67: 46 | J67: 4,007 | L67: 15,969 | M67: 913 | N67: 1,202 | O67: 991 | P67: 240 | Q67: 1,762 | R67: 2,711 | S67: 1,714 | T67: 43 | U67: S
A68: 2007 | B68: 10 | C68: 102,670 | D68: 8,146 | E68: 6,098 | F68: 75 | G68: 8,846 | H68: 2,891 | I68: 3,178 | J68: 1,265 | L68: 54,836 | M68: 932 | N68: 2,317 | O68: 4,175 | P68: 1,217 | Q68: 551 | R68: 5,441 | S68: 2,467 | T68: 235 | U68: O
A69: 2007 | B69: 11 | C69: 75,485 | D69: 4,768 | E69: 4,741 | F69: 3,069 | G69: 7,673 | H69: 2,336 | I69: 1,104 | J69: 3,969 | L69: 29,143 | M69: 1,091 | N69: 3,900 | O69: 6,363 | P69: 2,026 | Q69: 2,760 | R69: 812 | S69: 1,617 | T69: 113 | U69: N
A70: 2007 | B70: 12 | C70: 97,147 | D70: 7,755 | E70: 3,799 | F70: 4,960 | G70: 7,968 | H70: (1,276) | I70: 5,574 | J70: 3,159 | L70: 39,125 | M70: 1,803 | N70: 4,806 | O70: 4,937 | P70: 3,777 | Q70: 1,974 | R70: 2,125 | S70: 6,588 | T70: 73 | U70: D
A72: 2008 | B72: 1 | C72: 20,876 | D72: 1,401 | E72: 628 | F72: 6,983 | G72: 931 | H72: 46 | I72: 294 | J72: 1,137 | L72: 3,445 | M72: 1,304 | N72: 664 | O72: 1,098 | P72: 161 | Q72: 196 | R72: 350 | S72: 1,415 | T72: 823 | U72: J
A73: 2008 | B73: 2 | C73: 13,246 | D73: 2,577 | E73: 635 | F73: 97 | G73: 1,760 | H73: 42 | I73: 2,694 | J73: 105 | L73: 2,525 | M73: 213 | N73: 307 | O73: 365 | P73: 235 | Q73: 331 | R73: 615 | S73: 646 | T73: 99 | U73: F
A74: 2008 | B74: 3 | C74: 17,316 | D74: 1,062 | E74: 1,144 | F74: 98 | G74: 1,170 | H74: 3,099 | I74: 55 | J74: 152 | L74: 3,748 | M74: 676 | N74: 515 | O74: 1,501 | P74: 358 | Q74: 964 | R74: 1,535 | S74: 1,007 | T74: 232 | U74: M
A75: 2008 | B75: 4 | C75: 34,190 | D75: 14,590 | E75: 788 | F75: 1,534 | G75: 1,156 | H75: 111 | I75: 1,628 | J75: 391 | L75: 5,330 | M75: 700 | N75: 483 | O75: 3,034 | P75: 1,624 | Q75: 900 | R75: 862 | S75: 853 | T75: 206 | U75: A
A76: 2008 | B76: 5 | C76: 25,999 | D76: 6,269 | E76: 2,321 | F76: 57 | G76: 2,527 | H76: 0 | I76: 142 | J76: 612 | L76: 4,286 | M76: 1,479 | N76: 877 | O76: 1,478 | P76: 292 | Q76: 361 | R76: 1,354 | S76: 3,880 | T76: 64 | U76: M
A77: 2008 | B77: 6 | C77: 23,831 | D77: 5,053 | E77: 351 | F77: 3,303 | G77: 2,081 | H77: 331 | I77: 297 | J77: 174 | L77: 3,285 | M77: 407 | N77: 775 | O77: 2,136 | P77: 593 | Q77: 386 | R77: 827 | S77: 3,744 | T77: 88 | U77: J
A78: 2008 | B78: 7 | C78: 22,805 | D78: 4,388 | E78: 113 | F78: 762 | G78: 3,401 | H78: 46 | I78: 36 | J78: 145 | L78: 7,603 | M78: 529 | N78: 313 | O78: 448 | P78: 1,223 | Q78: 207 | R78: 1,857 | S78: 1,688 | T78: 46 | U78: J | V78: 2008
A79: 2008 | B79: 8 | C79: 22,086 | D79: 2,409 | E79: 113 | F79: 1,097 | G79: 3,116 | H79: 33 | I79: 81 | J79: 104 | L79: 9,575 | M79: 305 | N79: 281 | O79: 311 | P79: 282 | Q79: 950 | R79: 2,035 | S79: 698 | T79: 696 | U79: A
A80: 2008 | B80: 9 | C80: 18,734 | D80: 1,522 | E80: 50 | F80: 703 | G80: 1,546 | H80: 305 | I80: 69 | J80: 1,348 | L80: 3,297 | M80: 1,259 | N80: 826 | O80: 580 | P80: 2,318 | Q80: 298 | R80: 1,866 | S80: 1,787 | T80: 960 | U80: S
A81: 2008 | B81: 10 | C81: 21,746 | D81: 1,521 | E81: 191 | F81: 74 | G81: 1,248 | H81: 67 | I81: 971 | J81: 298 | L81: 8,229 | M81: 958 | N81: 1,172 | O81: 2,202 | P81: 1,250 | Q81: 552 | R81: 945 | S81: 1,650 | T81: 418 | U81: O
A82: 2008 | B82: 11 | C82: 32,403 | D82: 1,603 | E82: 2,099 | F82: 56 | G82: 610 | H82: 1,322 | I82: 1,721 | J82: 213 | L82: 15,821 | M82: 780 | N82: 1,482 | O82: 1,475 | P82: 628 | Q82: 354 | R82: 853 | S82: 2,904 | T82: 482 | U82: N
A83: 2008 | B83: 12 | C83: 121,251 | D83: 6,022 | E83: 5,161 | F83: 8,116 | G83: 14,086 | H83: 1,741 | I83: 6,568 | J83: 1,218 | L83: 48,387 | M83: 4,625 | N83: 2,319 | O83: 7,029 | P83: 3,099 | Q83: 5,350 | R83: 2,782 | S83: 4,103 | T83: 645 | U83: D
A85: 2009 | B85: 1 | C85: 9,363 | D85: 764 | E85: 74 | F85: 25 | G85: 496 | H85: 30 | I85: 15 | J85: 72 | L85: 1,825 | M85: 1,306 | N85: 1,956 | O85: 1,592 | P85: 127 | Q85: 174 | R85: 543 | S85: 322 | T85: 42 | U85: J
A86: 2009 | B86: 2 | C86: 10,454 | D86: 1,852 | E86: 41 | F86: 38 | G86: 2,511 | H86: 539 | I86: 668 | J86: 108 | L86: 1,763 | M86: 237 | N86: 263 | O86: 277 | P86: 1,069 | Q86: 358 | R86: 349 | S86: 346 | T86: 35 | U86: F
A87: 2009 | B87: 3 | C87: 14,127 | D87: 1,256 | E87: 133 | F87: 57 | G87: 2,279 | H87: 78 | I87: 67 | J87: 312 | L87: 4,903 | M87: 677 | N87: 581 | O87: 484 | P87: 964 | Q87: 416 | R87: 940 | S87: 904 | T87: 76 | U87: M
A88: 2009 | B88: 4 | C88: 16,386 | D88: 1,812 | E88: 448 | F88: 700 | G88: 3,643 | H88: 94 | I88: 62 | J88: 169 | L88: 2,616 | M88: 494 | N88: 376 | O88: 573 | P88: 388 | Q88: 717 | R88: 3,374 | S88: 813 | T88: 107 | U88: A
A89: 2009 | B89: 5 | C89: 16,849 | D89: 3,359 | E89: 141 | F89: 76 | G89: 2,556 | H89: 77 | I89: 55 | J89: 101 | L89: 2,872 | M89: 2,066 | N89: 812 | O89: 509 | P89: 326 | Q89: 463 | R89: 1,726 | S89: 992 | T89: 718 | U89: M
A90: 2009 | B90: 6 | C90: 31,781 | D90: 1,386 | E90: 602 | F90: 60 | G90: 1,877 | H90: 59 | I90: 86 | J90: 117 | L90: 9,821 | M90: 2,066 | N90: 383 | O90: 7,330 | P90: 1,958 | Q90: 1,605 | R90: 1,350 | S90: 2,984 | T90: 97 | U90: J
A91: 2009 | B91: 7 | C91: 23,065 | D91: 765 | E91: 247 | F91: 1,189 | G91: 7,431 | H91: 777 | I91: 73 | J91: 96 | L91: 5,311 | M91: 485 | N91: 384 | O91: 1,358 | P91: 2,892 | Q91: 573 | R91: 736 | S91: 616 | T91: 132 | U91: J | V91: 2009
A92: 2009 | B92: 8 | C92: 23,866 | D92: 903 | E92: 436 | F92: 78 | G92: 7,596 | H92: 63 | I92: 129 | J92: 1,752 | L92: 6,290 | M92: 384 | N92: 505 | O92: 2,976 | P92: 257 | Q92: 1,349 | R92: 479 | S92: 520 | T92: 149 | U92: A
A93: 2009 | B93: 9 | C93: 5,184 | D93: 147 | E93: 94 | F93: 108 | G93: 154 | H93: 77 | I93: 198 | J93: 139 | L93: 1,198 | M93: 382 | N93: 338 | O93: 438 | P93: 314 | Q93: 415 | R93: 507 | S93: 586 | T93: 89 | U93: O
A94: 2009 | B94: 10 | C94: 5,184 | D94: 147 | E94: 94 | F94: 108 | G94: 154 | H94: 77 | I94: 198 | J94: 139 | L94: 1,198 | M94: 382 | N94: 338 | O94: 438 | P94: 314 | Q94: 415 | R94: 507 | S94: 586 | T94: 89 | U94: O
A95: 2009 | B95: 11 | C95: 33,739 | D95: 3,520 | E95: 1,973 | F95: 116 | G95: 7,513 | H95: 873 | I95: 154 | J95: 171 | L95: 14,743 | M95: 966 | N95: 337 | O95: 451 | P95: 288 | Q95: 460 | R95: 507 | S95: 1,347 | T95: 320 | U95: N
A96: 2009 | B96: 12 | C96: 145,505 | D96: 16,380 | E96: 1,086 | F96: 4,050 | G96: 16,726 | H96: 2,080 | I96: 81 | J96: 3,520 | L96: 84,234 | M96: 2,780 | N96: 3,802 | O96: 4,984 | P96: 1,898 | Q96: 1,912 | R96: 1,121 | S96: 708 | T96: 143 | U96: D
A98: 2010 | B98: 1 | C98: 9,282 | D98: 1,273 | E98: 466 | F98: 312 | G98: 1,442 | H98: 38 | I98: 53 | J98: 295 | L98: 2,592 | M98: 267 | N98: 262 | O98: 337 | P98: 156 | Q98: 255 | R98: 557 | S98: 826 | T98: 151 | U98: J | V98: 2010
A99: 2010 | B99: 2 | C99: 15,237 | D99: 1,236 | E99: 268 | F99: 65 | G99: 2,314 | H99: 70 | I99: 71 | J99: 118 | L99: 5,593 | M99: 533 | N99: 276 | O99: 989 | P99: 195 | Q99: 314 | R99: 418 | S99: 2,542 | T99: 235 | U99: F | V99: 2010
A100: 2010 | B100: 3 | C100: 25,029 | D100: 4,699 | E100: 577 | F100: 89 | G100: 830 | H100: 114 | I100: 408 | J100: 156 | L100: 11,151 | M100: 602 | N100: 457 | O100: 787 | P100: 1,243 | Q100: 718 | R100: 932 | S100: 2,120 | T100: 146 | U100: M | V100: 2010
A101: 2010 | B101: 4 | C101: 21,077 | D101: 2,945 | E101: 301 | F101: 130 | G101: 1,298 | H101: 567 | I101: 187 | J101: 206 | L101: 7,378 | M101: 1,211 | N101: 533 | O101: 757 | P101: 1,417 | Q101: 2,288 | R101: 786 | S101: 868 | T101: 205 | U101: A
A102: 2010 | B102: 5 | C102: 21,374 | D102: 2,417 | E102: 604 | F102: 137 | G102: 666 | H102: 1,260 | I102: 460 | J102: 135 | L102: 9,675 | M102: 649 | N102: 456 | O102: 717 | P102: 717 | Q102: 541 | R102: 927 | S102: 1,757 | T102: 256 | U102: M
A103: 2010 | B103: 6 | C103: 18,310 | D103: 1,477 | E103: 573 | F103: 110 | G103: 4,052 | H103: 75 | I103: 196 | J103: 398 | L103: 4,142 | M103: 512 | N103: 467 | O103: 588 | P103: 407 | Q103: 1,622 | R103: 1,893 | S103: 964 | T103: 834 | U103: J
A104: 2010 | B104: 7 | C104: 16,812 | D104: 1,718 | E104: 672 | F104: 233 | G104: 1,179 | H104: 64 | I104: 313 | J104: 417 | L104: 5,050 | M104: 460 | N104: 1,148 | O104: 769 | P104: 318 | Q104: 2,629 | R104: 938 | S104: 664 | T104: 240 | U104: J
A105: 2010 | B105: 8 | C105: 14,888 | D105: 2,534 | E105: 420 | F105: 616 | G105: 2,338 | H105: 77 | I105: 476 | J105: 388 | L105: 3,870 | M105: 415 | N105: 404 | O105: 495 | P105: 267 | Q105: 376 | R105: 945 | S105: 897 | T105: 370 | U105: A
A106: 2010 | B106: 9 | C106: 21,285 | D106: 3,516 | E106: 1,935 | F106: 236 | G106: 3,828 | H106: 74 | I106: 471 | J106: 1,067 | L106: 3,663 | M106: 339 | N106: 382 | O106: 467 | P106: 860 | Q106: 1,982 | R106: 742 | S106: 1,385 | T106: 338 | U106: S
A107: 2010 | B107: 10 | C107: 27,437 | D107: 2,809 | E107: 1,270 | F107: 174 | G107: 2,755 | H107: 319 | I107: 410 | J107: 320 | L107: 12,333 | M107: 612 | N107: 426 | O107: 1,471 | P107: 879 | Q107: 1,327 | R107: 1,142 | S107: 786 | T107: 404 | U107: O | V107: 2010
A108: 2010 | B108: 11 | C108: 38,308 | D108: 1,867 | E108: 917 | F108: 556 | G108: 2,573 | H108: 254 | I108: 152 | J108: 247 | L108: 18,030 | M108: 865 | N108: 434 | O108: 6,640 | P108: 396 | Q108: 1,600 | R108: 2,513 | S108: 883 | T108: 381 | U108: N
A109: 2010 | B109: 12 | C109: 157,503 | D109: 42,699 | E109: 10,328 | F109: 2,066 | G109: 14,202 | H109: 1,575 | I109: 837 | J109: 1,157 | L109: 60,074 | M109: 2,847 | N109: 3,259 | O109: 1,314 | P109: 5,444 | Q109: 3,947 | R109: 1,891 | S109: 4,542 | T109: 1,321 | U109: D
A111: 2011 | B111: 1 | C111: 18,500 | D111: 4,907 | E111: 1,292 | F111: 148 | G111: 2,007 | H111: 628 | I111: 507 | J111: 597 | L111: 3,981 | M111: 346 | N111: 386 | O111: 528 | P111: 176 | Q111: 407 | R111: 849 | S111: 1,287 | T111: 454 | U111: J
A112: 2011 | B112: 2 | C112: 19,176 | D112: 4,606 | E112: 1,048 | F112: 109 | G112: 2,170 | H112: 198 | I112: 233 | J112: 115 | L112: 3,459 | M112: 307 | N112: 830 | O112: 598 | P112: 230 | Q112: 395 | R112: 1,734 | S112: 2,683 | T112: 461 | U112: F
A113: 2011 | B113: 3 | C113: 32,853 | D113: 5,098 | E113: 4,546 | F113: 202 | G113: 1,927 | H113: 345 | I113: 343 | J113: 1,334 | L113: 8,891 | M113: 589 | N113: 1,177 | O113: 876 | P113: 733 | Q113: 1,619 | R113: 1,031 | S113: 3,030 | T113: 1,112 | U113: M
A114: 2011 | B114: 4 | C114: 41,156 | D114: 10,620 | E114: 3,640 | F114: 1,011 | G114: 1,406 | H114: 655 | I114: 2,111 | J114: 1,387 | L114: 9,058 | M114: 633 | N114: 963 | O114: 1,161 | P114: 696 | Q114: 2,082 | R114: 1,069 | S114: 3,481 | T114: 1,183 | U114: A
A115: 2011 | B115: 5 | C115: 32,716 | D115: 7,303 | E115: 2,151 | F115: 374 | G115: 2,972 | H115: 2,018 | I115: 303 | J115: 845 | L115: 5,776 | M115: 644 | N115: 688 | O115: 1,502 | P115: 759 | Q115: 2,087 | R115: 1,754 | S115: 2,786 | T115: 754 | U115: M
A116: 2011 | B116: 6 | C116: 31,866 | D116: 7,121 | E116: 2,342 | F116: 1,063 | G116: 5,040 | H116: 1,395 | I116: 315 | J116: 459 | L116: 4,663 | M116: 525 | N116: 990 | O116: 1,167 | P116: 737 | Q116: 1,469 | R116: 1,778 | S116: 2,048 | T116: 754 | U116: J
A117: 2011 | B117: 7 | C117: 37,878 | D117: 6,380 | E117: 2,191 | F117: 387 | G117: 1,463 | H117: 2,618 | I117: 505 | J117: 1,709 | L117: 9,904 | M117: 885 | N117: 807 | O117: 1,900 | P117: 973 | Q117: 1,192 | R117: 996 | S117: 4,911 | T117: 1,057 | U117: J
A118: 2011 | B118: 8 | C118: 40,856 | D118: 3,368 | E118: 2,359 | F118: 299 | G118: 3,895 | H118: 501 | I118: 3,593 | J118: 1,907 | L118: 8,025 | M118: 1,356 | N118: 2,997 | O118: 5,276 | P118: 595 | Q118: 1,285 | R118: 1,150 | S118: 3,321 | T118: 929 | U118: A
A119: 2011 | B119: 9 | C119: 44,251 | D119: 7,276 | E119: 1,397 | F119: 2,331 | G119: 3,278 | H119: 510 | I119: 7,330 | J119: 361 | L119: 8,302 | M119: 1,550 | N119: 1,001 | O119: 3,267 | P119: 882 | Q119: 1,174 | R119: 1,755 | S119: 2,795 | T119: 1,042 | U119: S | V119: 2011
A120: 2011 | B120: 10 | C120: 60,027 | D120: 3,965 | E120: 5,971 | F120: 318 | G120: 5,720 | H120: 515 | I120: -938 | J120: 356 | L120: 20,599 | M120: 2,622 | N120: 936 | O120: 11,170 | P120: 3,516 | Q120: 1,035 | R120: 2,176 | S120: 1,235 | T120: 831 | U120: O
A121: 2011 | B121: 11 | C121: 42,229 | D121: 8,405 | E121: 3,010 | F121: 488 | G121: 1,711 | H121: 2,068 | I121: 3,516 | J121: 1,250 | L121: 7,690 | M121: 490 | N121: 1,291 | O121: 4,784 | P121: 1,521 | Q121: 977 | R121: 803 | S121: 2,992 | T121: 1,233 | U121: N
A122: 2011 | B122: 12 | C122: 148,086 | D122: 19,011 | E122: 7,309 | F122: 5,732 | G122: 4,316 | H122: 4,608 | I122: 1,918 | J122: 2,826 | L122: 57,843 | M122: 3,042 | N122: 5,944 | O122: 14,565 | P122: 5,299 | Q122: 1,854 | R122: 1,841 | S122: 8,770 | T122: 3,208 | U122: D
A124: 2012 | B124: 1 | C124: 29,411 | D124: 4,428 | E124: 2,183 | F124: 689 | G124: 3,772 | H124: 785 | I124: 935 | J124: 1,104 | L124: 6,008 | M124: 286 | N124: 431 | O124: 1,484 | P124: 1,535 | Q124: 1,566 | R124: 1,509 | S124: 1,417 | T124: 1,279 | U124: J
A125: 2012 | B125: 2 | C125: 32,092 | D125: 6,643 | E125: 1,276 | F125: 857 | G125: 1,961 | H125: 1,251 | I125: 464 | J125: 652 | L125: 6,008 | M125: 506 | N125: 1,160 | O125: 2,347 | P125: 1,351 | Q125: 562 | R125: 2,143 | S125: 4,397 | T125: 514 | U125: F
A126: 2012 | B126: 3 | C126: 38,167 | D126: 6,279 | E126: 3,704 | F126: 158 | G126: 929 | H126: 2,255 | I126: 348 | J126: 960 | L126: 5,631 | M126: 649 | N126: 992 | O126: 5,458 | P126: 1,497 | Q126: 2,208 | R126: 1,645 | S126: 4,269 | T126: 1,185 | U126: M
A127: 2012 | B127: 4 | C127: 42,175 | D127: 6,109 | E127: 5,652 | F127: 297 | G127: 737 | H127: 1,622 | I127: 544 | J127: 316 | L127: 10,423 | M127: 1,143 | N127: 3,477 | O127: 3,705 | P127: 1,985 | Q127: 1,474 | R127: 1,735 | S127: 1,827 | T127: 1,129 | U127: A
A128: 2012 | B128: 5 | C128: 46,086 | D128: 5,980 | E128: 4,513 | F128: 1,074 | G128: 1,936 | H128: 1,294 | I128: 306 | J128: 1,331 | L128: 9,492 | M128: 761 | N128: 2,174 | O128: 2,900 | P128: 1,433 | Q128: 6,122 | R128: 2,296 | S128: 3,509 | T128: 965 | U128: M
A129: 2012 | B129: 6 | C129: 50,534 | D129: 6,865 | E129: 3,336 | F129: 763 | G129: 6,304 | H129: 2,230 | I129: 354 | J129: 1,008 | L129: 9,343 | M129: 1,137 | N129: 2,280 | O129: 3,750 | P129: 1,727 | Q129: 1,256 | R129: 1,825 | S129: 6,613 | T129: 1,743 | U129: J
A130: 2012 | B130: 7 | C130: 43,682 | D130: 10,417 | E130: 1,901 | F130: 975 | G130: 2,193 | H130: 3,054 | I130: 1,119 | J130: 269 | K130: 154 | L130: 11,750 | M130: 1,230 | N130: 723 | O130: 1,981 | P130: 1,279 | Q130: 1,059 | R130: 2,220 | S130: 2,672 | T130: 686 | U130: J
A131: 2012 | B131: 8 | C131: 39,030 | D131: 7,686 | E131: 4,659 | F131: 325 | G131: 702 | H131: 375 | I131: 706 | J131: 2,208 | K131: 1,782 | L131: 6,049 | M131: 840 | N131: 2,200 | O131: 4,503 | P131: 1,785 | Q131: 728 | R131: 1,620 | S131: 1,392 | T131: 1,470 | U131: A | V131: 2012
A132: 2012 | B132: 9 | C132: 52,216 | D132: 6,108 | E132: 4,926 | F132: 293 | G132: 3,110 | H132: 2,222 | I132: 233 | J132: 304 | K132: 1,768 | L132: 17,516 | M132: 1,295 | N132: 846 | O132: 2,132 | P132: 2,081 | Q132: 1,596 | R132: 4,141 | S132: 3,205 | T132: 440 | U132: S | V132: 2012
A133: 2012 | B133: 10 | C133: 36,908 | D133: 6,806 | E133: 1,239 | F133: 182 | G133: -454 | H133: 754 | I133: 378 | J133: 561 | K133: 3,656 | L133: 10,640 | M133: 1,207 | N133: 1,129 | O133: 1,189 | P133: 2,064 | Q133: 1,438 | R133: 2,600 | S133: 3,146 | T133: 373 | U133: O | V133: 2012
A134: 2012 | B134: 11 | C134: 37,845 | D134: 8,729 | E134: 2,106 | F134: 1,681 | G134: 733 | H134: 1,407 | I134: -10 | J134: 447 | K134: 1,469 | L134: 11,836 | M134: 674 | N134: 2,852 | O134: 2,002 | P134: 766 | Q134: 1,057 | R134: 1,400 | S134: 335 | T134: 361 | U134: N | V134: 2012
A135: 2012 | B135: 12 | C135: 138,738 | D135: 10,073 | E135: 6,838 | F135: 5,718 | G135: 10,209 | H135: 2,335 | I135: 1,331 | J135: 591 | K135: 8,759 | L135: 46,339 | M135: 2,428 | N135: 6,509 | O135: 12,999 | P135: 6,785 | Q135: 3,156 | R135: 2,579 | S135: 11,978 | T135: 111 | U135: D | V135: 2012
A137: 2013 | B137: 1 | C137: 23,952 | D137: 3,789 | E137: 1,210 | F137: 532 | G137: 402 | H137: 1,359 | I137: 257 | J137: 166 | K137: 67 | L137: 6,254 | M137: 368 | N137: 337 | O137: 700 | P137: 255 | Q137: 497 | R137: 1,740 | S137: 5,644 | T137: 375 | U137: J | V137: 2013
A138: 2013 | B138: 2 | C138: 21,591 | D138: 3,090 | E138: 2,120 | F138: 646 | G138: 459 | H138: 120 | I138: 53 | J138: 134 | K138: 937 | L138: 4,432 | M138: 891 | N138: 1,375 | O138: 2,578 | P138: 811 | Q138: 870 | R138: 825 | S138: 2,044 | T138: 206 | U138: F | V138: 2013
A139: 2013 | B139: 3 | C139: 30,051 | D139: 4,127 | E139: 1,062 | F139: 209 | G139: 385 | H139: 345 | I139: 128 | J139: 179 | K139: 3,262 | L139: 5,341 | M139: 508 | N139: 2,197 | O139: 2,317 | P139: 2,617 | Q139: 2,020 | R139: 1,140 | S139: 3,843 | T139: 371 | U139: M | V139: 2013
A140: 2013 | B140: 4 | C140: 30,915 | D140: 5,314 | E140: 955 | F140: 240 | G140: 932 | H140: 583 | I140: 146 | J140: 1,110 | K140: 1,604 | L140: 6,239 | M140: 1,058 | N140: 1,866 | O140: 2,913 | P140: 1,205 | Q140: 1,045 | R140: 2,599 | S140: 2,249 | T140: 857 | U140: A | V140: 2013
A141: 2013 | B141: 5 | C141: 35,546 | D141: 6,206 | E141: 5,006 | F141: 710 | G141: 4,718 | H141: 508 | I141: 251 | J141: 254 | K141: 760 | L141: 5,721 | M141: 771 | N141: 1,505 | O141: 1,724 | P141: 1,175 | Q141: 991 | R141: 2,406 | S141: 2,453 | T141: 387 | U141: M | V141: 2013
A142: 2013 | B142: 6 | C142: 38,208 | D142: 6,809 | E142: 4,340 | F142: 306 | G142: 2,239 | H142: 1,342 | I142: 1,358 | J142: 300 | K142: 892 | L142: 7,522 | M142: 1,351 | N142: 1,815 | O142: 3,192 | P142: 827 | Q142: 1,971 | R142: 1,266 | S142: 1,098 | T142: 1,580 | U142: J | V142: 2013
A143: 2013 | B143: 7 | C143: 36,255 | D143: 10,730 | E143: 1,745 | F143: 1,134 | G143: 719 | H143: 216 | I143: 350 | J143: 395 | K143: 92 | L143: 9,403 | M143: 959 | N143: 2,231 | O143: 1,263 | P143: 1,366 | Q143: 601 | R143: 1,973 | S143: 2,610 | T143: 468 | U143: J | V143: 2013
A144: 2013 | B144: 8 | C144: 31,979 | D144: 8,794 | E144: 1,302 | F144: 1,291 | G144: 762 | H144: 363 | I144: 670 | J144: 925 | K144: 572 | L144: 5,151 | M144: 1,825 | N144: 2,192 | O144: 1,820 | P144: 688 | Q144: 784 | R144: 1,189 | S144: 3,356 | T144: 295 | U144: A | V144: 2013
B145: 9 | C145: 33,869 | D145: 5,552 | E145: 1,500 | F145: 838 | G145: 955 | H145: 167 | I145: 616 | J145: 565 | K145: 1,150 | L145: 8,914 | M145: 426 | N145: 1,927 | O145: 3,101 | P145: 1,560 | Q145: 860 | R145: 3,595 | S145: 1,844 | T145: 299 | U145: S
B146: 10 | C146: 33,348 | D146: 5,493 | E146: 1,038 | F146: 2,559 | G146: 821 | H146: 772 | I146: 1,159 | J146: 681 | K146: 593 | L146: 7,310 | M146: 1,099 | N146: 828 | O146: 2,586 | P146: 746 | Q146: 1,297 | R146: 4,215 | S146: 1,774 | T146: 377 | U146: O
B147: 11 | C147: 40,257 | D147: 5,400 | E147: 1,539 | F147: 3,084 | G147: 227 | H147: 1,086 | I147: 72 | J147: 172 | K147: 4,429 | L147: 8,668 | M147: 1,147 | N147: 2,533 | O147: 1,127 | P147: 1,484 | Q147: 3,089 | R147: 912 | S147: 4,997 | T147: 291 | U147: N
B148: 12 | C148: 84,145 | D148: 12,317 | E148: 8,105 | F148: 6,529 | G148: 6,288 | H148: 1,593 | I148: 120 | J148: 463 | K148: 3,486 | L148: 21,127 | M148: 2,561 | N148: 461 | O148: 9,022 | P148: 445 | Q148: 6,036 | R148: 2,018 | S148: 2,771 | T148: 803 | U148: D
A150: 2014 | B150: 1 | C150: 24,602 | D150: 4,111 | E150: 530 | F150: 1,108 | G150: 445 | H150: 72 | I150: 238 | J150: 513 | K150: 297 | L150: 7,540 | M150: 318 | N150: 467 | O150: 1,563 | P150: 834 | Q150: 1,317 | R150: 2,533 | S150: 2,359 | T150: 357 | U150: J | V150: 2014
A151: 단독주택 | L151: Single detached house
A152: 2004 | C152: 34,237 | D152: 983 | E152: 756 | F152: 1,129 | G152: 716 | H152: 732 | I152: 638 | J152: 966 | L152: 6,245 | M152: 3,009 | N152: 2,404 | O152: 3,298 | P152: 1,771 | Q152: 2,671 | R152: 3,397 | S152: 4,245 | T152: 1,277 | U152: 2004
A153: 2005 | C153: 27,799 | D153: 812 | E153: 894 | F153: 981 | G153: 547 | H153: 791 | I153: 673 | J153: 902 | L153: 4,446 | M153: 2,015 | N153: 1,785 | O153: 2,478 | P153: 1,520 | Q153: 2,340 | R153: 2,971 | S153: 3,562 | T153: 1,082 | U153: 2005
A154: 2006 | C154: 37,711 | D154: 896 | E154: 530 | F154: 1,237 | G154: 510 | H154: 864 | I154: 736 | J154: 1,248 | L154: 7,492 | M154: 2,843 | N154: 2,555 | O154: 3,485 | P154: 2,311 | Q154: 2,737 | R154: 4,939 | S154: 4,331 | T154: 997 | U154: 2006
A155: 2007 | C155: 51,450 | D155: 774 | E155: 558 | F155: 1,184 | G155: 1,165 | H155: 940 | I155: 562 | J155: 1,660 | L155: 12,730 | M155: 3,874 | N155: 3,458 | O155: 5,047 | P155: 3,034 | Q155: 3,548 | R155: 6,535 | S155: 5,648 | T155: 733 | U155: 2007
A156: 2008 | C156: 53,667 | D156: 1,044 | E156: 769 | F156: 1,476 | G156: 1,885 | H156: 718 | I156: 750 | J156: 1,303 | L156: 13,477 | M156: 4,358 | N156: 3,601 | O156: 4,495 | P156: 3,356 | Q156: 3,664 | R156: 6,216 | S156: 5,864 | T156: 691 | U156: 2008
A157: 2009 | C157: 54,665 | D157: 1,226 | E157: 1,025 | F157: 865 | G157: 2,279 | H157: 675 | I157: 1,074 | J157: 1,324 | K157: - | L157: 12,118 | M157: 4,539 | N157: 3,748 | O157: 4,808 | P157: 3,421 | Q157: 4,510 | R157: 6,068 | S157: 6,194 | T157: 791 | U157: 2009
A158: 2010 | C158: 62,173 | D158: 2,133 | E158: 1,509 | F158: 1,419 | G158: 1,723 | H158: 923 | I158: 1,656 | J158: 1,587 | K158: - | L158: 12,709 | M158: 4,971 | N158: 4,170 | O158: 5,910 | P158: 3,946 | Q158: 4,879 | R158: 6,395 | S158: 7,183 | T158: 1,060 | U158: 2010
A159: 2011 | C159: 73,097 | D159: 2,063 | E159: 1,348 | F159: 2,189 | G159: 1,475 | H159: 1,279 | I159: 1,586 | J159: 1,958 | K159: - | L159: 13,268 | M159: 5,175 | N159: 5,519 | O159: 7,145 | P159: 5,309 | Q159: 6,042 | R159: 7,646 | S159: 9,488 | T159: 1,607 | U159: 2011
A160: 2012 | C160: 71,255 | D160: 1,697 | E160: 927 | F160: 2,047 | G160: 1,192 | H160: 1,318 | I160: 1,087 | J160: 1,921 | K160: 509 | L160: 13,828 | M160: 5,428 | N160: 5,414 | O160: 7,067 | P160: 4,331 | Q160: 5,791 | R160: 8,171 | S160: 8,766 | T160: 1,761 | U160: 2012
A161: 2013 | C161: =SUM(C279:C292) -> 73,635 | D161: =SUM(D279:D292) -> 1,528 | E161: 1,001 | F161: 1,914 | G161: 1,245 | H161: 1,595 | I161: 881 | J161: 1,679 | K161: 1,174 | L161: 13,571 | M161: 5,439 | N161: 5,636 | O161: 6,931 | P161: 4,608 | Q161: 5,782 | R161: 8,984 | S161: 9,258 | T161: 2,409 | U161: 2013
A163: 2004 | B163: 1 | C163: 1,711 | D163: 71 | E163: 69 | F163: 54 | G163: 44 | H163: 21 | I163: 27 | J163: 57 | L163: 290 | M163: 154 | N163: 51 | O163: 179 | P163: 77 | Q163: 177 | R163: 121 | S163: 228 | T163: 91 | U163: J | V163: 2004
A164: 2004 | B164: 2 | C164: 2,388 | D164: 101 | E164: 74 | F164: 87 | G164: 55 | H164: 50 | I164: 41 | J164: 65 | L164: 501 | M164: 174 | N164: 113 | O164: 222 | P164: 123 | Q164: 177 | R164: 207 | S164: 291 | T164: 107 | U164: F
A165: 2004 | B165: 3 | C165: 3,638 | D165: 148 | E165: 105 | F165: 137 | G165: 47 | H165: 56 | I165: 56 | J165: 150 | L165: 572 | M165: 385 | N165: 216 | O165: 330 | P165: 206 | Q165: 229 | R165: 380 | S165: 479 | T165: 142 | U165: M
A166: 2004 | B166: 4 | C166: 3,713 | D166: 101 | E166: 58 | F166: 190 | G166: 68 | H166: 83 | I166: 56 | J166: 118 | L166: 536 | M166: 457 | N166: 249 | O166: 290 | P166: 171 | Q166: 257 | R166: 450 | S166: 529 | T166: 100 | U166: A
A167: 2004 | B167: 5 | C167: 5,259 | D167: 90 | E167: 64 | F167: 255 | G167: 53 | H167: 143 | I167: 59 | J167: 106 | L167: 932 | M167: 637 | N167: 657 | O167: 472 | P167: 156 | Q167: 224 | R167: 751 | S167: 544 | T167: 116 | U167: M
A168: 2004 | B168: 6 | C168: 3,129 | D168: 84 | E168: 79 | F168: 60 | G168: 94 | H168: 84 | I168: 72 | J168: 75 | L168: 616 | M168: 175 | N168: 187 | O168: 416 | P168: 140 | Q168: 324 | R168: 253 | S168: 331 | T168: 139 | U168: J
A169: 2004 | B169: 7 | C169: 2,902 | D169: 92 | E169: 59 | F169: 90 | G169: 60 | H169: 46 | I169: 70 | J169: 65 | L169: 598 | M169: 219 | N169: 217 | O169: 313 | P169: 156 | Q169: 228 | R169: 244 | S169: 297 | T169: 148 | U169: J
A170: 2004 | B170: 8 | C170: 2,266 | D170: 47 | E170: 66 | F170: 46 | G170: 67 | H170: 41 | I170: 52 | J170: 68 | L170: 373 | M170: 158 | N170: 176 | O170: 242 | P170: 162 | Q170: 210 | R170: 182 | S170: 257 | T170: 119 | U170: A
A171: 2004 | B171: 9 | C171: 2,411 | D171: 80 | E171: 46 | F171: 65 | G171: 63 | H171: 57 | I171: 74 | J171: 79 | L171: 445 | M171: 172 | N171: 165 | O171: 218 | P171: 189 | Q171: 214 | R171: 186 | S171: 272 | T171: 86 | U171: S
A172: 2004 | B172: 10 | C172: 2,391 | D172: 69 | E172: 37 | F172: 43 | G172: 90 | H172: 53 | I172: 67 | J172: 67 | L172: 521 | M172: 179 | N172: 154 | O172: 178 | P172: 136 | Q172: 205 | R172: 212 | S172: 294 | T172: 86 | U172: O
A173: 2004 | B173: 11 | C173: 2,246 | D173: 50 | E173: 42 | F173: 59 | G173: 37 | H173: 48 | I173: 39 | J173: 60 | L173: 487 | M173: 147 | N173: 118 | O173: 240 | P173: 127 | Q173: 186 | R173: 235 | S173: 297 | T173: 74 | U173: N
A174: 2004 | B174: 12 | C174: 2,183 | D174: 50 | E174: 57 | F174: 43 | G174: 38 | H174: 50 | I174: 25 | J174: 56 | L174: 374 | M174: 152 | N174: 101 | O174: 198 | P174: 128 | Q174: 240 | R174: 176 | S174: 426 | T174: 69 | U174: D
A176: 2005 | B176: 1 | C176: 1,307 | D176: 25 | E176: 50 | F176: 37 | G176: 43 | H176: 34 | I176: 25 | J176: 54 | L176: 211 | M176: 81 | N176: 56 | O176: 120 | P176: 65 | Q176: 145 | R176: 105 | S176: 174 | T176: 82 | U176: J | V176: 2005
A177: 2005 | B177: 2 | C177: 1,114 | D177: 21 | E177: 39 | F177: 42 | G177: 27 | H177: 37 | I177: 27 | J177: 38 | L177: 199 | M177: 67 | N177: 62 | O177: 85 | P177: 52 | Q177: 84 | R177: 109 | S177: 173 | T177: 52 | U177: F
A178: 2005 | B178: 3 | C178: 2,487 | D178: 60 | E178: 63 | F178: 61 | G178: 45 | H178: 75 | I178: 71 | J178: 90 | L178: 381 | M178: 186 | N178: 212 | O178: 222 | P178: 138 | Q178: 178 | R178: 251 | S178: 347 | T178: 107 | U178: M
A179: 2005 | B179: 4 | C179: 2,676 | D179: 64 | E179: 84 | F179: 80 | G179: 65 | H179: 65 | I179: 81 | J179: 94 | L179: 400 | M179: 222 | N179: 171 | O179: 261 | P179: 193 | Q179: 201 | R179: 267 | S179: 336 | T179: 92 | U179: A
A180: 2005 | B180: 5 | C180: 2,510 | D180: 55 | E180: 105 | F180: 66 | G180: 36 | H180: 61 | I180: 59 | J180: 83 | L180: 377 | M180: 218 | N180: 149 | O180: 240 | P180: 150 | Q180: 209 | R180: 286 | S180: 321 | T180: 95 | U180: M
A181: 2005 | B181: 6 | C181: 3,196 | D181: 85 | E181: 133 | F181: 96 | G181: 41 | H181: 84 | I181: 74 | J181: 99 | L181: 445 | M181: 216 | N181: 157 | O181: 320 | P181: 118 | Q181: 250 | R181: 460 | S181: 506 | T181: 112 | U181: J
A182: 2005 | B182: 7 | C182: 2,402 | D182: 105 | E182: 159 | F182: 86 | G182: 36 | H182: 86 | I182: 51 | J182: 76 | L182: 433 | M182: 166 | N182: 148 | O182: 255 | P182: 124 | Q182: 191 | R182: 295 | S182: 103 | T182: 88 | U182: J
A183: 2005 | B183: 8 | C183: 2,257 | D183: 78 | E183: 29 | F183: 61 | G183: 31 | H183: 59 | I183: 52 | J183: 74 | L183: 366 | M183: 151 | N183: 181 | O183: 205 | P183: 146 | Q183: 222 | R183: 220 | S183: 278 | T183: 104 | U183: A
A184: 2005 | B184: 9 | C184: 2,463 | D184: 60 | E184: 52 | F184: 152 | G184: 31 | H184: 64 | I184: 67 | J184: 62 | L184: 383 | M184: 181 | N184: 164 | O184: 251 | P184: 163 | Q184: 205 | R184: 223 | S184: 301 | T184: 104 | U184: S
A185: 2005 | B185: 10 | C185: 2,227 | D185: 68 | E185: 61 | F185: 74 | G185: 87 | H185: 35 | I185: 39 | J185: 84 | L185: 322 | M185: 173 | N185: 132 | O185: 188 | P185: 125 | Q185: 232 | R185: 229 | S185: 311 | T185: 67 | U185: O
A186: 2005 | B186: 11 | C186: 2,282 | D186: 63 | E186: 63 | F186: 90 | G186: 47 | H186: 106 | I186: 61 | J186: 77 | L186: 355 | M186: 186 | N186: 120 | O186: 139 | P186: 130 | Q186: 219 | R186: 237 | S186: 296 | T186: 93 | U186: N
A187: 2005 | B187: 12 | C187: 2,878 | D187: 128 | E187: 56 | F187: 136 | G187: 58 | H187: 85 | I187: 66 | J187: 71 | L187: 574 | M187: 168 | N187: 233 | O187: 192 | P187: 116 | Q187: 204 | R187: 289 | S187: 416 | T187: 86 | U187: D
A189: 2006 | B189: 1 | C189: 2,642 | D189: 107 | E189: 36 | F189: 208 | G189: 31 | H189: 144 | I189: 111 | J189: 96 | L189: 487 | M189: 158 | N189: 168 | O189: 161 | P189: 138 | Q189: 122 | R189: 402 | S189: 212 | T189: 61 | U189: J | V189: 2006
A190: 2006 | B190: 2 | C190: 1,674 | D190: 44 | E190: 31 | F190: 54 | G190: 16 | H190: 32 | I190: 92 | J190: 59 | L190: 343 | M190: 82 | N190: 93 | O190: 139 | P190: 99 | Q190: 120 | R190: 172 | S190: 205 | T190: 93 | U190: F
A191: 2006 | B191: 3 | C191: 2,528 | D191: 63 | E191: 59 | F191: 83 | G191: 33 | H191: 68 | I191: 73 | J191: 82 | L191: 449 | M191: 192 | N191: 193 | O191: 220 | P191: 144 | Q191: 212 | R191: 246 | S191: 284 | T191: 127 | U191: M
A192: 2006 | B192: 4 | C192: 2,553 | D192: 75 | E192: 58 | F192: 85 | G192: 41 | H192: 74 | I192: 60 | J192: 104 | L192: 436 | M192: 185 | N192: 189 | O192: 178 | P192: 170 | Q192: 204 | R192: 311 | S192: 258 | T192: 125 | U192: A
A193: 2006 | B193: 5 | C193: 3,165 | D193: 93 | E193: 42 | F193: 122 | G193: 46 | H193: 58 | I193: 45 | J193: 130 | L193: 584 | M193: 243 | N193: 182 | O193: 280 | P193: 194 | Q193: 214 | R193: 404 | S193: 419 | T193: 109 | U193: M
A194: 2006 | B194: 6 | C194: 3,780 | D194: 103 | E194: 67 | F194: 135 | G194: 21 | H194: 73 | I194: 50 | J194: 102 | L194: 592 | M194: 294 | N194: 237 | O194: 388 | P194: 259 | Q194: 288 | R194: 534 | S194: 506 | T194: 131 | U194: J
A195: 2006 | B195: 7 | C195: 4,283 | D195: 167 | E195: 41 | F195: 167 | G195: 58 | H195: 109 | I195: 125 | J195: 154 | L195: 1,011 | M195: 266 | N195: 280 | O195: 417 | P195: 222 | Q195: 284 | R195: 534 | S195: 416 | T195: 32 | U195: J
A196: 2006 | B196: 8 | C196: 3,356 | D196: 31 | E196: 30 | F196: 56 | G196: 29 | H196: 63 | I196: 32 | J196: 108 | L196: 690 | M196: 287 | N196: 201 | O196: 381 | P196: 237 | Q196: 293 | R196: 449 | S196: 403 | T196: 66 | U196: A
A197: 2006 | B197: 9 | C197: 4,032 | D197: 62 | E197: 43 | F197: 63 | G197: 55 | H197: 73 | I197: 47 | J197: 112 | L197: 859 | M197: 349 | N197: 290 | O197: 425 | P197: 306 | Q197: 290 | R197: 530 | S197: 472 | T197: 56 | U197: S
A198: 2006 | B198: 10 | C198: 3,121 | D198: 34 | E198: 34 | F198: 85 | G198: 45 | H198: 54 | I198: 40 | J198: 73 | L198: 609 | M198: 246 | N198: 260 | O198: 330 | P198: 217 | Q198: 215 | R198: 422 | S198: 397 | T198: 60 | U198: O
A199: 2006 | B199: 11 | C199: 3,682 | D199: 63 | E199: 47 | F199: 95 | G199: 84 | H199: 63 | I199: 42 | J199: 108 | L199: 789 | M199: 330 | N199: 273 | O199: 326 | P199: 197 | Q199: 260 | R199: 510 | S199: 440 | T199: 55 | U199: N
A200: 2006 | B200: 12 | C200: 2,895 | D200: 54 | E200: 42 | F200: 84 | G200: 51 | H200: 53 | I200: 19 | J200: 120 | L200: 643 | M200: 211 | N200: 189 | O200: 240 | P200: 128 | Q200: 235 | R200: 425 | S200: 319 | T200: 82 | U200: D
A202: 2007 | B202: 1 | C202: 2,910 | D202: 31 | E202: 34 | F202: 115 | G202: 57 | H202: 95 | I202: 40 | J202: 134 | L202: 621 | M202: 193 | N202: 163 | O202: 296 | P202: 126 | Q202: 186 | R202: 475 | S202: 282 | T202: 62 | U202: J | V202: 2007
A203: 2007 | B203: 2 | C203: 2,941 | D203: 63 | E203: 35 | F203: 65 | G203: 97 | H203: 116 | I203: 34 | J203: 149 | L203: 676 | M203: 176 | N203: 193 | O203: 280 | P203: 119 | Q203: 198 | R203: 341 | S203: 341 | T203: 58 | U203: F
A204: 2007 | B204: 3 | C204: 5,148 | D204: 75 | E204: 45 | F204: 120 | G204: 81 | H204: 201 | I204: 57 | J204: 174 | L204: 1,199 | M204: 362 | N204: 426 | O204: 533 | P204: 263 | Q204: 337 | R204: 667 | S204: 559 | T204: 49 | U204: M
A205: 2007 | B205: 4 | C205: 5,762 | D205: 79 | E205: 49 | F205: 163 | G205: 113 | H205: 109 | I205: 81 | J205: 192 | L205: 1,275 | M205: 480 | N205: 406 | O205: 570 | P205: 377 | Q205: 389 | R205: 814 | S205: 584 | T205: 81 | U205: A
A206: 2007 | B206: 5 | C206: 5,065 | D206: 77 | E206: 54 | F206: 86 | G206: 121 | H206: (7) | I206: 90 | J206: 134 | L206: 1,273 | M206: 470 | N206: 348 | O206: 452 | P206: 311 | Q206: 317 | R206: 730 | S206: 535 | T206: 74 | U206: M
A207: 2007 | B207: 7 | C207: 4,477 | D207: 70 | E207: 71 | F207: 163 | G207: 80 | H207: 74 | I207: 38 | J207: 112 | L207: 1,080 | M207: 340 | N207: 314 | O207: 492 | P207: 315 | Q207: 282 | R207: 534 | S207: 462 | T207: 50 | U207: J
A208: 2007 | B208: 8 | C208: 4,264 | D208: 54 | E208: 24 | F208: 58 | G208: 133 | H208: 80 | I208: 40 | J208: 102 | L208: 1,093 | M208: 294 | N208: 248 | O208: 473 | P208: 308 | Q208: 264 | R208: 556 | S208: 486 | T208: 51 | U208: A
A209: 2007 | B209: 9 | C209: 3,803 | D209: 65 | E209: 33 | F209: 48 | G209: 98 | H209: 105 | I209: 30 | J209: 127 | L209: 1,016 | M209: 309 | N209: 229 | O209: 377 | P209: 240 | Q209: 302 | R209: 392 | S209: 389 | T209: 43 | U209: S
A210: 2007 | B210: 10 | C210: 4,799 | D210: 69 | E210: 52 | F210: 75 | G210: 105 | H210: 40 | I210: 42 | J210: 158 | L210: 1,371 | M210: 338 | N210: 348 | O210: 401 | P210: 221 | Q210: 364 | R210: 572 | S210: 554 | T210: 89 | U210: O
A211: 2007 | B211: 11 | C211: 4,349 | D211: 47 | E211: 52 | F211: 89 | G211: 123 | H211: 43 | I211: 42 | J211: 132 | L211: 1,087 | M211: 288 | N211: 289 | O211: 431 | P211: 306 | Q211: 368 | R211: 442 | S211: 551 | T211: 59 | U211: N
A212: 2007 | B212: 12 | C212: 3,384 | D212: 59 | E212: 32 | F212: 89 | G212: 74 | H212: 47 | I212: 21 | J212: 111 | L212: 949 | M212: 209 | N212: 187 | O212: 294 | P212: 163 | Q212: 267 | R212: 364 | S212: 470 | T212: 48 | U212: D
A214: 2008 | B214: 1 | C214: 3,852 | D214: 45 | E214: 27 | F214: 646 | G214: 177 | H214: 34 | I214: 36 | J214: 127 | L214: 892 | M214: 204 | N214: 249 | O214: 237 | P214: 161 | Q214: 177 | R214: 341 | S214: 456 | T214: 43 | U214: J | V214: 2008
A215: 2008 | B215: 2 | C215: 3,390 | D215: 39 | E215: 28 | F215: 90 | G215: 97 | H215: 42 | I215: 38 | J215: 86 | L215: 1,013 | M215: 205 | N215: 211 | O215: 318 | P215: 216 | Q215: 273 | R215: 298 | S215: 376 | T215: 60 | U215: F
A216: 2008 | B216: 3 | C216: 5,479 | D216: 49 | E216: 64 | F216: 98 | G216: 149 | H216: 373 | I216: 55 | J216: 114 | L216: 1,373 | M216: 395 | N216: 438 | O216: 444 | P216: 335 | Q216: 334 | R216: 553 | S216: 605 | T216: 100 | U216: M
A217: 2008 | B217: 4 | C217: 5,913 | D217: 159 | E217: 88 | F217: 95 | G217: 211 | H217: 83 | I217: 99 | J217: 192 | L217: 1,355 | M217: 506 | N217: 483 | O217: 492 | P217: 408 | Q217: 373 | R217: 677 | S217: 626 | T217: 66 | U217: A
A218: 2008 | B218: 5 | C218: 5,182 | D218: 160 | E218: 55 | F218: 57 | G218: 131 | H218: 0 | I218: 92 | J218: 124 | L218: 1,280 | M218: 500 | N218: 394 | O218: 389 | P218: 284 | Q218: 300 | R218: 725 | S218: 638 | T218: 53 | U218: M
A219: 2008 | B219: 6 | C219: 4,604 | D219: 90 | E219: 48 | F219: 75 | G219: 175 | H219: (151) | I219: 45 | J219: 123 | L219: 1,445 | M219: 378 | N219: 283 | O219: 335 | P219: 279 | Q219: 259 | R219: 650 | S219: 522 | T219: 48 | U219: J
... 463 more rows

Sheet 48. 공사종류별 수주액
A1: 48. 공사종류별 수주액 Value of Construction Orders Received by Construction Type
A3: 단위 : 억원 | I3: Hundred million won
A4: 연월중 | C4: 총액1) | D4: 건축 Building
F5: 주택 House | H5: 기타 Others
A6: During | C6: Total | D6: 금액 | E6: 비중(%) | F6: 금액 | G6: 비중(%) | H6: 금액 | I6: 비중(%)
D7: Amount | E7: Percent | F7: Amount | G7: Percent | H7: Amount | I7: Percent
A8: 2004 | C8: =SUM(C19:C30) -> 777,744 | D8: =SUM(D19:D30) -> 529,188 | E8: =(D8/C8)*100 -> 68.0 | F8: =SUM(F19:F30) -> 351,606 | G8: =(F8/D8)*100 -> 66.4 | H8: =D8-F8 -> 177,581 | I8: =100-G8 -> 33.6
A9: 2005 | C9: =SUM(C32:C43) -> 834,894 | D9: =SUM(D32:D43) -> 603,768 | E9: =(D9/C9)*100 -> 72.3 | F9: =SUM(F32:F43) -> 424,546 | G9: =(F9/D9)*100 -> 70.3 | H9: =D9-F9 -> 179,221 | I9: =100-G9 -> 29.7
A10: 2006 | C10: =SUM(C45:C56) -> 910,011 | D10: =SUM(D45:D56) -> 695,730 | E10: 76.5 | F10: =SUM(F45:F56) -> 527,555 | G10: 75.8 | H10: 168,175 | I10: 24.2
A11: 2007 | C11: =SUM(C58:C69) -> 1,125,016 | D11: =SUM(D58:D69) -> 824,421 | E11: =(D11/C11)*100 -> 73.3 | F11: =SUM(F58:F69) -> 584,088 | G11: =(F11/D11)*100 -> 70.8 | H11: 240,332 | I11: 29.2
A12: 2008 | C12: =SUM(C71:C82) -> 1,039,068 | D12: =SUM(D71:D82) -> 697,761 | E12: 67.2 | F12: =SUM(F71:F82) -> 446,792 | G12: 64.0 | H12: 250,969 | I12: 36.0
A13: 2009 | C13: =SUM(C84:C95) -> 1,090,885 | D13: =SUM(D84:D95) -> 598,406 | E13: 54.9 | F13: =SUM(F84:F95) -> 398,306 | G13: 66.6 | H13: 200,100 | I13: 33.4
A14: 2010 | C14: =SUM(C97:C108) -> 898,143 | D14: =SUM(D97:D108) -> 545,226 | E14: 60.7 | F14: =SUM(F97:F108) -> 313,529 | G14: 57.5 | H14: =SUM(H97:H108) -> 231,697 | I14: 42.5
A15: 2011 | C15: =SUM(C110:C121) -> 953,319 | D15: =SUM(D110:D121) -> 621,630 | E15: 65.2 | F15: =SUM(F110:F121) -> 379,082 | G15: 61.0 | H15: =SUM(H110:H121) -> 242,548 | I15: 39.0
A16: 2012 | C16: =SUM(C123:C134) -> 893,950 | D16: =SUM(D123:D134) -> 592,295 | E16: 66.3 | F16: =SUM(F123:F134) -> 342,525 | G16: 57.8 | H16: =SUM(H123:H134) -> 249,771 | I16: 42.2
A17: 2013 | C17: =SUM(C136:C147) -> 756,441 | D17: =SUM(D136:D147) -> 512,848 | E17: 67.8 | F17: =SUM(F136:F147) -> 289,708 | G17: 56.5 | H17: =SUM(H136:H147) -> 223,140 | I17: 43.5
A19: 2004 | B19: 1 | C19: 49,547 | D19: 34,680 | E19: =(D19/C19)*100 -> 70.0 | F19: 23,722 | G19: =(F19/D19)*100 -> 68.4 | H19: =D19-F19 -> 10,959 | I19: =100-G19 -> 31.6
A20: 2004 | B20: 2 | C20: 46,821 | D20: 34,341 | E20: 73.3 | F20: 17,126 | G20: 49.9 | H20: 17,215 | I20: 50.1
A21: 2004 | B21: 2 | C21: 53,957 | D21: 40,025 | E21: 74.2 | F21: 22,938 | G21: 57.3 | H21: 17,088 | I21: 42.7
A22: 2004 | B22: 4 | C22: 51,794 | D22: 36,824 | E22: 71.1 | F22: 25,102 | G22: 68.2 | H22: 11,722 | I22: 31.8
A23: 2004 | B23: 5 | C23: 57,312 | D23: 48,441 | E23: 84.5 | F23: 34,541 | G23: 71.3 | H23: 13,900 | I23: 28.7
A24: 2004 | B24: 6 | C24: 73,195 | D24: 55,705 | E24: 76.1 | F24: 40,480 | G24: 72.7 | H24: 15,226 | I24: 27.3
A25: 2004 | B25: 7 | C25: 63,947 | D25: 46,643 | E25: 72.9 | F25: 24,024 | G25: 51.5 | H25: 22,619 | I25: 48.5
A26: 2004 | B26: 8 | C26: 43,464 | D26: 34,277 | E26: 78.9 | F26: 23,525 | G26: 68.6 | H26: 10,752 | I26: 31.4
A27: 2004 | B27: 9 | C27: 41,222 | D27: 25,483 | E27: 61.8 | F27: 17,535 | G27: 68.8 | H27: 7,948 | I27: 31.2
A28: 2004 | B28: 10 | C28: 82,807 | D28: 52,017 | E28: 62.8 | F28: 38,463 | G28: 73.9 | H28: 13,555 | I28: 26.1
A29: 2004 | B29: 11 | C29: 61,815 | D29: 42,215 | E29: 68.3 | F29: 29,572 | G29: 70.1 | H29: 12,643 | I29: 29.9
A30: 2004 | B30: 12 | C30: 151,863 | D30: 78,536 | E30: 51.7 | F30: 54,580 | G30: 69.5 | H30: 23,956 | I30: 30.5
A32: 2005 | B32: 1 | C32: 52,690 | D32: 32,284 | E32: =(D32/C32)*100 -> 61.3 | F32: 20,877 | G32: =(F32/D32)*100 -> 64.7 | H32: =D32-F32 -> 11,407 | I32: =100-G32 -> 35.3
A33: 2005 | B33: 2 | C33: 34,998 | D33: 26,333 | E33: 75.2 | F33: 13,139 | G33: 49.9 | H33: 13,193 | I33: 50.1
A34: 2005 | B34: 3 | C34: 91,327 | D34: 60,719 | E34: 66.5 | F34: 45,458 | G34: 74.9 | H34: 15,261 | I34: 25.1
A35: 2005 | B35: 4 | C35: 63,945 | D35: 47,995 | E35: 75.1 | F35: 35,043 | G35: 73.0 | H35: 12,951 | I35: 27.0
A36: 2005 | B36: 5 | C36: 86,094 | D36: 64,168 | E36: 74.5 | F36: 45,938 | G36: 71.6 | H36: 18,230 | I36: 28.4
A37: 2005 | B37: 6 | C37: 99,106 | D37: 76,944 | E37: 77.6 | F37: 53,102 | G37: 69.0 | H37: 23,842 | I37: 31.0
A38: 2005 | B38: 7 | C38: 66,672 | D38: 49,429 | E38: 74.1 | F38: 38,887 | G38: 78.7 | H38: 10,543 | I38: 21.3
A39: 2005 | B39: 8 | C39: 50,522 | D39: 41,135 | E39: 81.4 | F39: 28,282 | G39: 68.8 | H39: 12,854 | I39: 31.2
A40: 2005 | B40: 9 | C40: 50,978 | D40: 35,836 | E40: 70.3 | F40: 25,880 | G40: 72.2 | H40: 9,956 | I40: 27.8
A41: 2005 | B41: 10 | C41: 52,548 | D41: 42,527 | E41: 80.9 | F41: 31,738 | G41: 74.6 | H41: 10,789 | I41: 25.4
A42: 2005 | B42: 11 | C42: 62,333 | D42: 47,063 | E42: 75.5 | F42: 28,857 | G42: 61.3 | H42: 18,205 | I42: 38.7
A43: 2005 | B43: 12 | C43: 123,681 | D43: 79,335 | E43: 64.1 | F43: 57,345 | G43: 72.3 | H43: 21,990 | I43: 27.7
A45: 2006 | B45: 1 | C45: 58,457 | D45: 46,627 | E45: =(D45/C45)*100 -> 79.8 | F45: 25,788 | G45: =(F45/D45)*100 -> 55.3 | H45: =D45-F45 -> 20,839 | I45: =100-G45 -> 44.7
A46: 2006 | B46: 2 | C46: 45,146 | D46: 29,128 | E46: 64.5 | F46: 20,516 | G46: 70.4 | H46: 8,612 | I46: 29.6
A47: 2006 | B47: 3 | C47: 60,170 | D47: 42,691 | E47: 71.0 | F47: 34,754 | G47: 81.4 | H47: 7,937 | I47: 18.6
A48: 2006 | B48: 4 | C48: 52,657 | D48: 43,863 | E48: 83.3 | F48: 34,915 | G48: 79.6 | H48: 8,948 | I48: 20.4
A49: 2006 | B49: 5 | C49: 67,438 | D49: 57,917 | E49: 85.9 | F49: 39,873 | G49: 68.8 | H49: 18,044 | I49: 31.2
A50: 2006 | B50: 6 | C50: 92,391 | D50: 75,423 | E50: 81.6 | F50: 58,456 | G50: 77.5 | H50: 16,966 | I50: 22.5
A51: 2006 | B51: 7 | C51: 71,228 | D51: 62,089 | E51: 87.2 | F51: 49,343 | G51: 79.5 | H51: 12,746 | I51: 20.5
A52: 2006 | B52: 8 | C52: 58,079 | D52: 45,493 | E52: 78.3 | F52: 29,569 | G52: 65.0 | H52: 15,924 | I52: 35.0
A53: 2006 | B53: 9 | C53: 101,178 | D53: 84,017 | E53: 83.0 | F53: 68,209 | G53: 81.2 | H53: 15,808 | I53: 18.8
A54: 2006 | B54: 10 | C54: 52,450 | D54: 41,209 | E54: 78.6 | F54: 32,127 | G54: 78.0 | H54: 9,081 | I54: 22.0
A55: 2006 | B55: 11 | C55: 90,309 | D55: 70,621 | E55: 78.2 | F55: 57,223 | G55: 81.0 | H55: 13,398 | I55: 19.0
A56: 2006 | B56: 12 | C56: 160,508 | D56: 96,652 | E56: 60.2 | F56: 76,782 | G56: 79.4 | H56: 19,870 | I56: 20.6
A58: 2007 | B58: 1 | C58: 69,219 | D58: 50,858 | E58: =(D58/C58)*100 -> 73.5 | F58: 36,700 | G58: =(F58/D58)*100 -> 72.2 | H58: =D58-F58 -> 14,158 | I58: =100-G58 -> 27.8
A59: 2007 | B59: 2 | C59: 66,163 | D59: 48,958 | E59: 74.0 | F59: 33,476 | G59: 68.4 | H59: 15,482 | I59: 31.6
A60: 2007 | B60: 3 | C60: 83,244 | D60: 49,970 | E60: 60.0 | F60: 27,356 | G60: 54.7 | H60: 22,615 | I60: 45.3
A61: 2007 | B61: 4 | C61: 79,202 | D61: 60,987 | E61: 77.0 | F61: 43,932 | G61: 72.0 | H61: 17,055 | I61: 28.0
A62: 2007 | B62: 5 | C62: 73,687 | D62: 52,887 | E62: 71.8 | F62: 39,448 | G62: 74.6 | H62: 13,440 | I62: 25.4
A63: 2007 | B63: 6 | C63: 123,838 | D63: 92,610 | E63: 74.8 | F63: 75,904 | G63: 82.0 | H63: 16,706 | I63: 18.0
A64: 2007 | B64: 7 | C64: 61,858 | D64: 39,704 | E64: 64.2 | F64: 21,330 | G64: 53.7 | H64: 18,374 | I64: 46.3
A65: 2007 | B65: 8 | C65: 67,117 | D65: 49,763 | E65: 74.1 | F65: 34,363 | G65: 69.1 | H65: 15,399 | I65: 30.9
A66: 2007 | B66: 9 | C66: 91,758 | D66: 71,710 | E66: =(D66/C66)*100 -> 78.2 | F66: 58,635 | G66: 81.8 | H66: 13,075 | I66: =100-G66 -> 18.2
A67: 2007 | B67: 10 | C67: 107,297 | D67: 86,424 | E67: =(D67/C67)*100 -> 80.5 | F67: 63,590 | G67: 73.6 | H67: 22,834 | I67: =100-G67 -> 26.4
A68: 2007 | B68: 11 | C68: 134,293 | D68: 100,792 | E68: =(D68/C68)*100 -> 75.1 | F68: 72,872 | G68: 72.3 | H68: 27,920 | I68: =100-G68 -> 27.7
A69: 2007 | B69: 12 | C69: 167,341 | D69: 119,757 | E69: =(D69/C69)*100 -> 71.6 | F69: 76,482 | G69: 63.9 | H69: 43,275 | I69: =100-G69 -> 36.1
A71: 2008 | B71: 1 | C71: 56,585 | D71: 50,375 | E71: =(D71/C71)*100 -> 89.0 | F71: 33,518 | G71: =(F71/D71)*100 -> 66.5 | H71: =D71-F71 -> 16,857 | I71: =100-G71 -> 33.5
A72: 2008 | B72: 2 | C72: 61,133 | D72: 44,981 | E72: 73.6 | F72: 34,819 | G72: 77.4 | H72: 10,162 | I72: 22.6
A73: 2008 | B73: 3 | C73: 87,917 | D73: 61,894 | E73: 70.4 | F73: 48,662 | G73: 78.6 | H73: 13,232 | I73: 21.4
A74: 2008 | B74: 4 | C74: 84,163 | D74: 72,135 | E74: 85.7 | F74: 41,806 | G74: 58.0 | H74: 30,329 | I74: 42.0
A75: 2008 | B75: 5 | C75: 87,047 | D75: 60,831 | E75: 69.9 | F75: 35,424 | G75: 58.2 | H75: 25,407 | I75: 41.8
A76: 2008 | B76: 6 | C76: 95,579 | D76: 68,360 | E76: 71.5 | F76: 41,870 | G76: 61.2 | H76: 26,490 | I76: 38.8
A77: 2008 | B77: 7 | C77: 61,175 | D77: 42,320 | E77: 69.2 | F77: 22,146 | G77: 52.3 | H77: 20,174 | I77: 47.7
A78: 2008 | B78: 8 | C78: 63,839 | D78: 30,558 | E78: 47.9 | F78: 18,599 | G78: 60.9 | H78: 11,959 | I78: 39.1
A79: 2008 | B79: 9 | C79: 58,271 | D79: 37,849 | E79: 65.0 | F79: 18,946 | G79: 50.1 | H79: 18,903 | I79: 49.9
A80: 2008 | B80: 10 | C80: 82,057 | D80: 45,435 | E80: 55.4 | F80: 26,936 | G80: 59.3 | H80: 18,499 | I80: 40.7
A81: 2008 | B81: 11 | C81: 81,301 | D81: 49,048 | E81: 60.3 | F81: 39,962 | G81: 81.5 | H81: 9,086 | I81: 18.5
A82: 2008 | B82: 12 | C82: 220,002 | D82: 133,975 | E82: 60.9 | F82: 84,103 | G82: 62.8 | H82: 49,871 | I82: 37.2
A84: 2009 | B84: 1 | C84: 58,595 | D84: 32,865 | E84: =(D84/C84)*100 -> 56.1 | F84: 23,007 | G84: =(F84/D84)*100 -> 70.0 | H84: =D84-F84 -> 9,857 | I84: =100-G84 -> 30.0
A85: 2009 | B85: 2 | C85: 49,813 | D85: 19,286 | E85: 38.7 | F85: 11,413 | G85: 59.2 | H85: 7,873 | I85: 40.8
A86: 2009 | B86: 3 | C86: 75,594 | D86: 44,292 | E86: 58.6 | F86: 22,898 | G86: 51.7 | H86: 21,394 | I86: 48.3
A87: 2009 | B87: 4 | C87: 77,254 | D87: 22,775 | E87: 29.5 | F87: 9,892 | G87: 43.4 | H87: 12,884 | I87: 56.6
A88: 2009 | B88: 5 | C88: 74,229 | D88: 39,932 | E88: 53.8 | F88: 26,807 | G88: 67.1 | H88: 13,125 | I88: 32.9
A89: 2009 | B89: 6 | C89: 119,562 | D89: 48,424 | E89: 40.5 | F89: 27,718 | G89: 57.2 | H89: 20,706 | I89: 42.8
A90: 2009 | B90: 7 | C90: 59,502 | D90: 35,994 | E90: 60.5 | F90: 20,786 | G90: 57.7 | H90: 15,209 | I90: 42.3
A91: 2009 | B91: 8 | C91: 47,350 | D91: 36,803 | E91: 77.7 | F91: 27,442 | G91: 74.6 | H91: 9,361 | I91: 25.4
A92: 2009 | B92: 9 | C92: 91,229 | D92: 44,444 | E92: 48.7 | F92: 31,837 | G92: 71.6 | H92: 12,607 | I92: 28.4
A93: 2009 | B93: 10 | C93: 107,242 | D93: 54,028 | E93: 50.4 | F93: 40,323 | G93: 74.6 | H93: 13,705 | I93: 25.4
A94: 2009 | B94: 11 | C94: 147,059 | D94: 97,327 | E94: 66.2 | F94: 56,576 | G94: 58.1 | H94: 40,752 | I94: 41.9
A95: 2009 | B95: 12 | C95: 183,455 | D95: 122,235 | E95: 66.6 | F95: 99,607 | G95: 81.5 | H95: 22,628 | I95: 18.5
A97: 2010 | B97: 1 | C97: 72,302 | D97: 51,706 | E97: 71.5 | F97: 29,251 | G97: =(F97/D97)*100 -> 56.6 | H97: 22,456 | I97: =100-G97 -> 43.4
A98: 2010 | B98: 2 | C98: 48,638 | D98: 25,847 | E98: =(D98/C98)*100 -> 53.1 | F98: 12,750 | G98: 49.3 | H98: 13,098 | I98: 50.7
A99: 2010 | B99: 3 | C99: 63,564 | D99: 27,977 | E99: 44.0 | F99: 13,755 | G99: 49.2 | H99: 14,222 | I99: 50.8
A100: 2010 | B100: 4 | C100: 66,647 | D100: 44,362 | E100: 66.6 | F100: 29,891 | G100: 67.4 | H100: 14,471 | I100: 32.6
A101: 2010 | B101: 5 | C101: 88,449 | D101: 65,867 | E101: 74.5 | F101: 35,672 | G101: 54.2 | H101: 30,195 | I101: 45.8
A102: 2010 | B102: 6 | C102: 100,302 | D102: 63,868 | E102: 63.7 | F102: 35,081 | G102: 54.9 | H102: 28,788 | I102: 45.1
A103: 2010 | B103: 7 | C103: 75,885 | D103: 38,972 | E103: 51.4 | F103: 24,534 | G103: 63.0 | H103: 14,438 | I103: 37.0
A104: 2010 | B104: 8 | C104: 42,259 | D104: 27,826 | E104: 65.8 | F104: 13,383 | G104: 48.1 | H104: 14,443 | I104: 51.9
A105: 2010 | B105: 9 | C105: 75,373 | D105: 49,390 | E105: 65.5 | F105: 36,054 | G105: =(F105/D105)*100 -> 73.0 | H105: 13,336 | I105: 27.0
A106: 2010 | B106: 10 | C106: 44,074 | D106: 34,161 | E106: 77.5 | F106: 14,827 | G106: 43.4 | H106: 19,334 | I106: 56.6
A107: 2010 | B107: 11 | C107: 76,666 | D107: 50,871 | E107: 66.4 | F107: 28,278 | G107: 55.6 | H107: 22,593 | I107: 44.4
A108: 2010 | B108: 12 | C108: 143,984 | D108: 64,378 | E108: 44.7 | F108: 40,053 | G108: 62.2 | H108: 24,325 | I108: 37.8
A110: 2011 | B110: 1 | C110: 49,125 | D110: 28,394 | E110: =D110/C110*100 -> 57.8 | F110: 17,926 | G110: =F110/D110*100 -> 63.1 | H110: 10,468 | I110: =100-G110 -> 36.9
A111: 2011 | B111: 2 | C111: 40,795 | D111: 23,050 | E111: 56.5 | F111: 12,314 | G111: 53.4 | H111: 10,735 | I111: 46.6
A112: 2011 | B112: 3 | C112: 73,432 | D112: 46,344 | E112: 63.1 | F112: 23,526 | G112: 50.8 | H112: 22,818 | I112: 49.2
A113: 2011 | B113: 4 | C113: 67,102 | D113: 47,375 | E113: 70.6 | F113: 28,009 | G113: 59.1 | H113: 19,366 | I113: 40.9
A114: 2011 | B114: 5 | C114: 71,483 | D114: 54,953 | E114: 76.9 | F114: 24,328 | G114: 44.3 | H114: 30,626 | I114: 55.7
A115: 2011 | B115: 6 | C115: 114,609 | D115: 69,348 | E115: 60.5 | F115: 36,823 | G115: 53.1 | H115: 32,525 | I115: 46.9
A116: 2011 | B116: 7 | C116: 51,567 | D116: 23,857 | E116: 46.3 | F116: 12,735 | G116: 53.4 | H116: 11,122 | I116: 46.6
A117: 2011 | B117: 8 | C117: 75,735 | D117: 54,707 | E117: 72.2 | F117: 35,620 | G117: 65.1 | H117: 19,086 | I117: 34.9
A118: 2011 | B118: 9 | C118: 77,142 | D118: 56,456 | E118: 73.2 | F118: 37,856 | G118: 67.1 | H118: 18,601 | I118: 32.9
A119: 2011 | B119: 10 | C119: 74,910 | D119: 51,872 | E119: 69.2 | F119: 37,604 | G119: 72.5 | H119: 14,269 | I119: 27.5
A120: 2011 | B120: 11 | C120: 90,389 | D120: 63,348 | E120: =D120/C120*100 -> 70.1 | F120: 33,870 | G120: =F120/D120*100 -> 53.5 | H120: 29,477 | I120: =100-G120 -> 46.5
A121: 2011 | B121: 12 | C121: 167,030 | D121: 101,925 | E121: =D121/C121*100 -> 61.0 | F121: 78,470 | G121: =F121/D121*100 -> 77.0 | H121: 23,455 | I121: =100-G121 -> 23.0
A123: 2012 | B123: 1 | C123: 74,685 | D123: 53,680 | E123: =D123/C123*100 -> 71.9 | F123: 40,567 | G123: =F123/D123*100 -> 75.6 | H123: 13,113 | I123: =100-G123 -> 24.4
A124: 2012 | B124: 2 | C124: 84,886 | D124: 35,636 | E124: 42.0 | F124: 19,396 | G124: 54.4 | H124: 16,241 | I124: 45.6
A125: 2012 | B125: 3 | C125: 67,143 | D125: 43,592 | E125: 64.9 | F125: 18,124 | G125: 41.6 | H125: 25,468 | I125: 58.4
A126: 2012 | B126: 4 | C126: 64,284 | D126: 45,110 | E126: 70.2 | F126: 29,337 | G126: 65.0 | H126: 15,773 | I126: 35.0
A127: 2012 | B127: 5 | C127: 73,107 | D127: 57,166 | E127: 78.2 | F127: 26,543 | G127: 46.4 | H127: 30,623 | I127: 53.6
B128: 6 | C128: 119,932 | D128: 62,888 | E128: 52.4 | F128: 37,713 | G128: 60.0 | H128: 25,175 | I128: 40.0
B129: 7 | C129: 68,237 | D129: 43,118 | E129: 63.2 | F129: 20,919 | G129: 48.5 | H129: 22,199 | I129: 51.5
B130: 8 | C130: 53,904 | D130: 43,132 | E130: 80.0 | F130: 32,934 | G130: 76.4 | H130: 10,198 | I130: 23.6
B131: 9 | C131: 61,813 | D131: 46,999 | E131: 76.0 | F131: 30,428 | G131: 64.7 | H131: 16,572 | I131: 35.3
B132: 10 | C132: 58,000 | D132: 43,706 | E132: 75.4 | F132: 24,437 | G132: 55.9 | H132: 19,269 | I132: 44.1
B133: 11 | C133: 72,395 | D133: 53,225 | E133: 73.5 | F133: 28,818 | G133: 54.1 | H133: 24,407 | I133: 45.9
B134: 12 | C134: 95,565 | D134: 64,041 | E134: 67.0 | F134: 33,309 | G134: 52.0 | H134: 30,732 | I134: 48.0
A136: 2013 | B136: 1 | C136: 35,462 | D136: 18,324 | E136: 51.7 | F136: 8,234 | G136: 44.9 | H136: 10,090 | I136: 55.1
B137: 2 | C137: 44,311 | D137: 30,814 | E137: 69.5 | F137: 15,318 | G137: 49.7 | H137: 15,496 | I137: 50.3
B138: 3 | C138: 54,479 | D138: 38,610 | E138: 70.9 | F138: 16,936 | G138: 43.9 | H138: 21,674 | I138: 56.1
B139: 4 | C139: 49,462 | D139: 30,418 | E139: 61.5 | F139: 18,740 | G139: 61.6 | H139: 11,678 | I139: 38.4
B140: 5 | C140: 60,731 | D140: 31,914 | E140: 52.5 | F140: 14,188 | G140: 44.5 | H140: 17,726 | I140: 55.5
B141: 6 | C141: 71,242 | D141: 54,009 | E141: 75.8 | F141: 33,678 | G141: 62.4 | H141: 20,331 | I141: 37.6
B142: 7 | C142: 56,753 | D142: 45,362 | E142: 79.9 | F142: 30,349 | G142: 66.9 | H142: 15,013 | I142: 33.1
B143: 8 | C143: 47,088 | D143: 32,898 | E143: 69.9 | F143: 15,697 | G143: 47.7 | H143: 17,201 | I143: 52.3
B144: 9 | C144: 60,702 | D144: 40,639 | E144: 66.9 | F144: 22,842 | G144: 56.2 | H144: 17,797 | I144: 43.8
B145: 10 | C145: 73,466 | D145: 49,491 | E145: 67.4 | F145: 33,076 | G145: 66.8 | H145: 16,415 | I145: 33.2
B146: 11 | C146: 78,952 | D146: 56,158 | E146: 71.1 | F146: 34,979 | G146: 62.3 | H146: 21,179 | I146: 37.7
B147: 12 | C147: 123,792 | D147: 84,211 | E147: 68.0 | F147: 45,671 | G147: 54.2 | H147: 38,541 | I147: 45.8
A149: 2014 | B149: 1p | C149: 52,596 | D149: 30,885 | E149: 58.7 | F149: 22,562 | G149: 73.1 | H149: 8,323 | I149: 26.9
A151: 1) 총액 : 건축, 토목공사를 합한 금액.
A152: 2010년부터 공종분류 건축, 토목, 전문공사를 건축, 토목으로 조정함에 따라 과거계열 전체 보정
A153: 2011.3월 기업체 결산자료 반영, 대표도 보정으로 2009.1~2010.12월 자료 보정
A154: * 최근 수치는 잠정치로서 다음달에 확정치로 수정되며, 연 1회 연간 보정시(매년 2월) 최대 2년전 자료까지 수정될 수 있음
A155: ** 2012~2013년 통계자료는 보정으로 수정(2014년 2월)
A156: 자료 : 통계청

Sheet 49. 건설투자 및 건설업의 부가가치
A1: 49. 건설투자 및 건설업의 부가가치 Gross Fixed Capital Formation and Gross Value Added by Construction
A3: 단위 : 억원, % | H3: Hundred million won, %
C4: 국내총생산(a) (시장가격) 1) | F4: 건설투자에 의한 총고정자본형성(실질) (c)
A5: 기간중 | D5: 건설업의 부가가치 (기초가격)(b) | E5: 건설업의 부가가치 비중 | G5: 주거용건물(d) | H5: 주거용건물 비중
A6: During | C6: Gross domestic product at market prices | D6: Gross value added at basic prices by construction | E6: (b/a) | F6: Gross fixed capital formation by construction | G6: Residential buildings | H6: (d/c)
B8: 1/4 | C8: 2,027,792 | D8: 144,591 | E8: 5.9 | F8: 301,380 | G8: 100,124 | H8: =G8/F8*100 -> 33.2
B9: 2/4 | C9: 2,059,208 | D9: 144,923 | E9: 7.9 | F9: 422,583 | G9: 117,092 | H9: 27.7
B10: 3/4 | C10: 2,083,542 | D10: 145,083 | E10: 7.6 | F10: 389,010 | G10: 114,333 | H10: 29.4
A11: 2004 | B11: 4/4 | C11: 2,098,386 | D11: 143,735 | E11: =D11*100/C11 -> 6.8 | F11: 446,482 | G11: 118,932 | H11: 26.6
A12: 2005 | B12: 1/4 | C12: 2,115,903 | D12: 144,754 | E12: 6.8 | F12: 291,958 | G12: 95,513 | H12: 32.7
B13: 2/4 | C13: 2,136,342 | D13: 150,870 | E13: 7.1 | F13: 426,278 | G13: 121,973 | H13: 28.6
B14: 3/4 | C14: 2,180,975 | D14: 149,427 | E14: 6.9 | F14: 387,702 | G14: 117,351 | H14: 30.3
B15: 4/4 | C15: 2,219,188 | D15: 147,795 | E15: 6.7 | F15: 447,716 | G15: 126,379 | H15: 28.2
B16: 1/4 | C16: 2,235,983 | D16: 149,025 | E16: 6.7 | F16: 297,394 | G16: 99,012 | H16: 33.3
B17: 2/4 | C17: 2,241,131 | D17: 150,010 | E17: 6.7 | F17: 408,189 | G17: 115,899 | H17: 28.4
B18: 3/4 | C18: 2,286,602 | D18: 155,611 | E18: =D18*100/C18 -> 6.8 | F18: 385,620 | G18: 113,038 | H18: =G18/F18*100 -> 29.3
A19: 2006 | B19: 4/4 | C19: 2,323,723 | D19: 158,948 | E19: 6.8 | F19: 470,643 | G19: 122,410 | H19: 26.0
A21: 2007 | B21: 1/4 | C21: 2,373,482 | D21: 159,980 | E21: 6.7 | F21: 310,444 | G21: 100,744 | H21: 32.5
A22: 2007 | B22: 2/4 | C22: 2,406,735 | D22: 159,994 | E22: 6.6 | F22: 416,344 | G22: 110,658 | H22: 26.6
A23: 2007 | B23: 3/4 | C23: 2,444,650 | D23: 162,695 | E23: 6.7 | F23: 384,955 | G23: 106,962 | H23: 27.8
A24: 2007 | B24: 4/4 | C24: 2,525,263 | D24: 167,121 | E24: 6.6 | F24: 472,524 | G24: 118,327 | H24: 25.0
A26: 2008 | B26: 1/4 | C26: 2,555,573 | D26: 165,487 | E26: 6.5 | F26: 302,586 | G26: 92,687 | H26: 30.6
B27: 2/4 | C27: 2,602,256 | D27: 159,756 | E27: 6.1 | F27: 414,071 | G27: 106,187 | H27: 25.6
B28: 3/4 | C28: 2,599,158 | D28: 163,067 | E28: 6.3 | F28: 386,484 | G28: 108,047 | H28: 28.0
B29: 4/4 | C29: 2,507,531 | D29: 157,812 | E29: 6.3 | F29: 436,279 | G29: 95,532 | H29: 21.9
A31: 2009 | B31: 1/4 | C31: 2,533,659 | D31: 165,371 | E31: =D31/C31*100 -> 6.5 | F31: 307,533 | G31: 81,059 | H31: 26.4
B32: 2/4 | C32: 2,638,916 | D32: 169,664 | E32: =D32/C32*100 -> 6.4 | F32: 431,714 | G32: 108,369 | H32: 25.1
B33: 3/4 | C33: 2,726,103 | D33: 166,143 | E33: =D33*100/C33 -> 6.1 | F33: 398,931 | G33: 108,328 | H33: 27.2
B34: 4/4 | C34: 2,751,690 | D34: 164,589 | E34: =D34*100/C34 -> 6.0 | F34: 453,682 | G34: 96,791 | H34: 21.3
A36: 2010 | B36: 1/4 | C36: 2,845,209 | D36: 166,052 | E36: =D36*100/C36 -> 5.8 | F36: 312,973 | G36: 82,583 | H36: 26.4
B37: 2/4 | C37: 2,923,044 | D37: 166,509 | E37: 5.7 | F37: 411,347 | G37: 89,320 | H37: 21.7
B38: 3/4 | C38: 2,945,998 | D38: 165,947 | E38: 5.6 | F38: 379,342 | G38: 83,907 | H38: 22.1
B39: 4/4 | C39: 3,018,498 | D39: 163,058 | E39: 5.4 | F39: 429,939 | G39: 85,848 | H39: 20.0
A41: 2011 | B41: 1/4 | C41: 3,042,674 | D41: 156,498 | E41: 5.1 | F41: 281,739 | G41: 62,641 | H41: 22.2
B42: 2/4 | C42: 3,059,963 | D42: 161,993 | E42: 5.3 | F42: 392,091 | G42: 77,053 | H42: 19.7
B43: 3/4 | C43: 3,097,356 | D43: 167,724 | E43: =D43*100/C43 -> 5.4 | F43: 365,625 | G43: 71,610 | H43: 19.6
B44: 4/4 | C44: 3,151,612 | D44: 170,430 | E44: =D44*100/C44 -> 5.4 | F44: 422,491 | G44: 81,185 | H44: =G44/F44*100 -> 19.2
A46: 2012 | B46: 1/4 | C46: 3,177,440 | D46: 167,549 | E46: 5.3 | F46: 280,706 | G46: 62,661 | H46: =G46/F46*100 -> 22.3
B47: 2/4 | C47: 3,171,657 | D47: 164,182 | E47: 5.2 | F47: 380,107 | G47: 71,398 | H47: =G47/F47*100 -> 18.8
B48: 3/4 | C48: 3,177,412 | D48: 169,475 | E48: 5.3 | F48: 364,362 | G48: 66,923 | H48: =G48/F48*100 -> 18.4
B49: 4/4 | C49: 3,198,085 | D49: 167,415 | E49: 5.2 | F49: 404,548 | G49: 74,948 | H49: 18.5
A51: 2013(p) | B51: 1/4 | C51: 3,251,591 | D51: 173,588 | E51: 5.3 | F51: 287,334 | G51: 67,346 | H51: 23.4
B52: 2/4 | C52: 3,281,620 | D52: 176,877 | E52: 5.4 | F52: 407,661 | G52: 85,147 | H52: 20.9
B53: 3/4 | C53: 3,315,005 | D53: 185,825 | E53: 5.6 | F53: 395,720 | G53: 86,044 | H53: 21.7
A55: 1) 당해년가격 (계절조정계열)
A57: 자료 : 한국은행, 통계청

Sheet 50. 지역별 미분양 주택현황
A1: 50. 지역별 미분양 주택현황 Unsold Housing by Region
A3: 단위 : 호 | T3: House
A4: 연월말 | C4: 전국 | D4: 서울 | E4: 부산 | F4: 대구 | G4: 인천 | H4: 광주 | I4: 대전 | J4: 울산 | K4: 세종 | L4: 경기 | M4: 강원 | N4: 충북 | O4: 충남 | P4: 전북 | Q4: 전남 | R4: 경북 | S4: 경남 | T4: 제주
A6: End of | C6: Total | D6: Seoul | E6: Busan | F6: Daegu | G6: In-cheon | H6: Gwang-ju | I6: Dae-jeon | J6: Ulsan | K6: Sejong | L6: Gyeong-gi | M6: Gang-won | N6: Chung-buk | O6: Chung-nam | P6: Jeon-buk | Q6: Jeon-nam | R6: Gyeong-buk | S6: Gyeong-nam | T6: Jeju
A8: 2004 | C8: 69,133 | D8: 612 | E8: 6,895 | F8: 3,250 | G8: 1,770 | H8: 5,609 | I8: 2,192 | J8: 839 | L8: 13,076 | M8: 3,628 | N8: 4,652 | O8: 9,715 | P8: 4,562 | Q8: 2,133 | R8: 2,790 | S8: 6,954 | T8: 456
A9: 2005 | C9: 57,215 | D9: 574 | E9: 5,295 | F9: 3,274 | G9: 1,196 | H9: 2,156 | I9: 398 | J9: 2,089 | L9: 10,472 | M9: 4,491 | N9: 2,011 | O9: 6,715 | P9: 2,483 | Q9: 3,800 | R9: 3,316 | S9: 8,662 | T9: 283
A10: 2006 | C10: 73,772 | D10: 529 | E10: 9,009 | F10: 8,732 | G10: 426 | H10: 6,506 | I10: 597 | J10: 996 | L10: 3,769 | M10: 5,314 | N10: 2,608 | O10: 7,764 | P10: 5,163 | Q10: 4,515 | R10: 5,971 | S10: 11,784 | T10: 89
A11: 2007 | C11: 112,254 | D11: 454 | E11: 11,502 | F11: 12,199 | G11: 527 | H11: 7,940 | I11: 1,881 | J11: 7,672 | K11: - | L11: 13,643 | M11: 7,114 | N11: 4,374 | O11: 12,770 | P11: 4,082 | Q11: 4,456 | R11: 8,662 | S11: 14,857 | T11: 121
A12: 2008 | C12: 165,599 | D12: 2,486 | E12: 13,997 | F12: 21,379 | G12: 1,647 | H12: 12,384 | I12: 3,802 | J12: 9,569 | K12: - | L12: 22,795 | M12: 10,581 | N12: 6,412 | O12: 15,918 | P12: 4,617 | Q12: 6,530 | R12: 16,106 | S12: 17,107 | T12: 269
A13: 2009 | C13: 123,297 | D13: 1,803 | E13: 9,200 | F13: 16,009 | G13: 4,539 | H13: 4,678 | I13: 3,101 | J13: 7,106 | K13: - | L13: 19,325 | M13: 7,157 | N13: 5,128 | O13: 14,277 | P13: 3,498 | Q13: 5,690 | R13: 12,808 | S13: 8,698 | T13: 280
A14: 2010 | C14: 88,706 | D14: 2,729 | E14: 3,458 | F14: 13,163 | G14: 4,265 | H14: 1,809 | I14: 2,205 | J14: 5,575 | K14: - | L14: 22,418 | M14: 3,837 | N14: 3,428 | O14: 9,020 | P14: 1,311 | Q14: 2,504 | R14: 8,042 | S14: 4,780 | T14: 162
A15: 2011 | C15: 69,807 | D15: 1,861 | E15: 4,193 | F15: 8,672 | G15: 3,642 | H15: 784 | I15: 1,557 | J15: 3,510 | K15: - | L15: 22,378 | M15: 2,244 | N15: 1,031 | O15: 7,471 | P15: 355 | Q15: 1,527 | R15: 4,110 | S15: 6,375 | T15: 97
A16: 2012 | C16: =C134 -> 74,835 | D16: =D134 -> 3,481 | E16: 5,784 | F16: 3,288 | G16: 4,026 | H16: 3,348 | I16: 1,441 | J16: 3,659 | K16: - | L16: 25,040 | M16: 4,421 | N16: 585 | O16: 2,942 | P16: 629 | Q16: 2,478 | R16: 3,201 | S16: 9,558 | T16: 954
A17: 2013 | C17: =C147 -> 61,091 | D17: =D147 -> 3,157 | E17: 4,259 | F17: 1,234 | G17: 5,275 | H17: 323 | I17: 1,146 | J17: 3,310 | K17: 54 | L17: 24,760 | M17: 3,055 | N17: 599 | O17: 3,566 | P17: 1,470 | Q17: 1,981 | R17: 1,405 | S17: 4,909 | T17: 588
A19: 2004 | B19: 1 | C19: 41,137 | D19: 686 | E19: 4,069 | F19: 3,943 | G19: 435 | H19: 3,528 | I19: 891 | J19: 788 | L19: 6,474 | M19: 2,547 | N19: 1,897 | O19: 4,143 | P19: 1,457 | Q19: 2,225 | R19: 4,478 | S19: 3,057 | T19: 519
B20: 2 | C20: 40,224 | D20: 840 | E20: 3,824 | F20: 3,873 | G20: 428 | H20: 3,512 | I20: 761 | J20: 794 | L20: 6,404 | M20: 2,345 | N20: 1,831 | O20: 4,068 | P20: 1,535 | Q20: 2,043 | R20: 4,258 | S20: 3,216 | T20: 492
B21: 2 | C21: 40,224 | D21: 840 | E21: 3,824 | F21: 3,873 | G21: 428 | H21: 3,512 | I21: 761 | J21: 794 | L21: 6,404 | M21: 2,345 | N21: 1,831 | O21: 4,068 | P21: 1,535 | Q21: 2,043 | R21: 4,258 | S21: 3,216 | T21: 492
B22: 4 | C22: 39,589 | D22: 705 | E22: 4,769 | F22: 3,287 | G22: 586 | H22: 3,498 | I22: 516 | J22: 671 | L22: 4,363 | M22: 1,897 | N22: 2,385 | O22: 3,752 | P22: 2,959 | Q22: 2,045 | R22: 4,125 | S22: 3,614 | T22: 417
B23: 5 | C23: 45,164 | D23: 703 | E23: 4,281 | F23: 3,193 | G23: 530 | H23: 5,723 | I23: 630 | J23: 478 | L23: 7,483 | M23: 2,174 | N23: 1,962 | O23: 4,658 | P23: 2,943 | Q23: 2,324 | R23: 3,751 | S23: 3,899 | T23: 432
B24: 6 | C24: 50,097 | D24: 526 | E24: 4,630 | F24: 3,414 | G24: 1,921 | H24: 5,568 | I24: 427 | J24: 462 | L24: 8,017 | M24: 2,687 | N24: 1,936 | O24: 6,452 | P24: 3,391 | Q24: 2,569 | R24: 3,367 | S24: 4,303 | T24: 427
B25: 7 | C25: 49,568 | D25: 593 | E25: 5,213 | F25: 3,386 | G25: 1,737 | H25: 5,233 | I25: 351 | J25: 413 | L25: 9,024 | M25: 2,752 | N25: 1,936 | O25: 5,893 | P25: 2,809 | Q25: 2,113 | R25: 3,324 | S25: 4,421 | T25: 370
B26: 8 | C26: 50,584 | D26: 612 | E26: 5,131 | F26: 3,009 | G26: 1,490 | H26: 5,166 | I26: 717 | J26: 343 | L26: 9,383 | M26: 3,015 | N26: 2,386 | O26: 5,496 | P26: 2,711 | Q26: 2,133 | R26: 3,169 | S26: 5,434 | T26: 389
B27: 9 | C27: 52,674 | D27: 572 | E27: 5,191 | F27: 2,904 | G27: 1,685 | H27: 5,166 | I27: 2,211 | J27: 356 | L27: 10,680 | M27: 3,002 | N27: 2,358 | O27: 5,617 | P27: 2,895 | Q27: 2,145 | R27: 2,779 | S27: 4,724 | T27: 389
B28: 10 | C28: 58,905 | D28: 552 | E28: 5,007 | F28: 3,292 | G28: 2,102 | H28: 5,417 | I28: 2,898 | J28: 323 | L28: 12,395 | M28: 2,940 | N28: 2,287 | O28: 8,189 | P28: 3,248 | Q28: 2,269 | R28: 3,033 | S28: 4,582 | T28: 371
B29: 11 | C29: 64,660 | D29: 628 | E29: 5,280 | F29: 2,686 | G29: 1,644 | H29: 5,098 | I29: 2,717 | J29: 1,592 | L29: 15,016 | M29: 3,040 | N29: 2,772 | O29: 10,052 | P29: 4,083 | Q29: 2,017 | R29: 3,182 | S29: 4,513 | T29: 340
B30: 12 | C30: 69,133 | D30: 612 | E30: 6,895 | F30: 3,250 | G30: 1,770 | H30: 5,609 | I30: 2,192 | J30: 839 | L30: 13,076 | M30: 3,628 | N30: 4,652 | O30: 9,715 | P30: 4,562 | Q30: 2,133 | R30: 2,790 | S30: 6,954 | T30: 456
A32: 2005 | B32: 1 | C32: 67,353 | D32: 594 | E32: 6,949 | F32: 2,865 | G32: 1,585 | H32: 4,707 | I32: 2,166 | J32: 781 | L32: 12,287 | M32: 3,755 | N32: 4,410 | O32: 10,762 | P32: 4,523 | Q32: 2,143 | R32: 2,594 | S32: 6,802 | T32: 430
B33: 2 | C33: 64,644 | D33: 605 | E33: 6,882 | F33: 2,645 | G33: 1,225 | H33: 5,043 | I33: 2,182 | J33: 666 | L33: 11,306 | M33: 4,143 | N33: 3,918 | O33: 9,886 | P33: 4,304 | Q33: 2,006 | R33: 2,440 | S33: 7,029 | T33: 364
B34: 3 | C34: 58,447 | D34: 852 | E34: 6,455 | F34: 1,912 | G34: 1,043 | H34: 4,226 | I34: 1,711 | J34: 445 | L34: 9,716 | M34: 4,348 | N34: 3,022 | O34: 8,852 | P34: 3,989 | Q34: 1,612 | R34: 2,315 | S34: 7,624 | T34: 325
B35: 4 | C35: 56,460 | D35: 802 | E35: 6,229 | F35: 1,152 | G35: 1,698 | H35: 3,955 | I35: 957 | J35: 241 | L35: 9,456 | M35: 4,758 | N35: 2,732 | O35: 7,935 | P35: 3,626 | Q35: 1,977 | R35: 2,185 | S35: 8,437 | T35: 320
B36: 5 | C36: 52,071 | D36: 796 | E36: 5,829 | F36: 1,239 | G36: 1,269 | H36: 3,551 | I36: 736 | J36: 546 | L36: 7,763 | M36: 4,475 | N36: 2,164 | O36: 7,295 | P36: 3,476 | Q36: 2,985 | R36: 2,256 | S36: 7,401 | T36: 290
B37: 6 | C37: 50,617 | D37: 594 | E37: 5,388 | F37: 802 | G37: 1,078 | H37: 3,142 | I37: 634 | J37: 457 | L37: 7,698 | M37: 4,997 | N37: 2,257 | O37: 6,160 | P37: 3,004 | Q37: 4,090 | R37: 2,336 | S37: 7,705 | T37: 275
B38: 7 | C38: 51,952 | D38: 523 | E38: 5,806 | F38: 719 | G38: 1,030 | H38: 2,963 | I38: 675 | J38: 2,378 | L38: 8,116 | M38: 5,417 | N38: 1,953 | O38: 4,685 | P38: 2,915 | Q38: 3,691 | R38: 2,746 | S38: 8,063 | T38: 272
B39: 8 | C39: 48,587 | D39: 516 | E39: 5,420 | F39: 564 | G39: 1,021 | H39: 2,903 | I39: 551 | J39: 1,838 | L39: 7,236 | M39: 5,091 | N39: 1,636 | O39: 4,363 | P39: 2,464 | Q39: 4,397 | R39: 2,814 | S39: 7,514 | T39: 259
B40: 9 | C40: 50,107 | D40: 454 | E40: 5,108 | F40: 1,791 | G40: 1,808 | H40: 2,706 | I40: 515 | J40: 1,639 | L40: 7,191 | M40: 5,048 | N40: 1,958 | O40: 4,831 | P40: 2,505 | Q40: 4,606 | R40: 2,696 | S40: 6,993 | T40: 258
B41: 10 | C41: 49,495 | D41: 447 | E41: 5,584 | F41: 2,032 | G41: 1,274 | H41: 2,327 | I41: 441 | J41: 1,617 | L41: 7,664 | M41: 4,897 | N41: 1,705 | O41: 4,360 | P41: 2,531 | Q41: 4,034 | R41: 2,806 | S41: 7,529 | T41: 247
B42: 11 | C42: 51,077 | D42: 437 | E42: 5,438 | F42: 2,215 | G42: 1,439 | H42: 2,195 | I42: 431 | J42: 2,126 | L42: 7,587 | M42: 4,820 | N42: 2,162 | O42: 4,577 | P42: 2,240 | Q42: 4,020 | R42: 2,826 | S42: 8,282 | T42: 282
B43: 12 | C43: 57,215 | D43: 574 | E43: 5,295 | F43: 3,274 | G43: 1,196 | H43: 2,156 | I43: 398 | J43: 2,089 | L43: 10,472 | M43: 4,491 | N43: 2,011 | O43: 6,715 | P43: 2,483 | Q43: 3,800 | R43: 3,316 | S43: 8,662 | T43: 283
A45: 2006 | B45: 1 | C45: 55,847 | D45: 346 | E45: 5,231 | F45: 3,595 | G45: 1,552 | H45: 1,982 | I45: 362 | J45: 1,856 | L45: 7,415 | M45: 4,536 | N45: 2,019 | O45: 6,917 | P45: 2,748 | Q45: 4,223 | R45: 3,989 | S45: 8,744 | T45: 332
B46: 2 | C46: 52,218 | D46: 346 | E46: 5,086 | F46: 3,303 | G46: 1,442 | H46: 1,817 | I46: 340 | J46: 1,713 | L46: 6,588 | M46: 4,612 | N46: 1,949 | O46: 6,344 | P46: 2,613 | Q46: 3,968 | R46: 3,464 | S46: 8,370 | T46: 263
B47: 3 | C47: 53,349 | D47: 380 | E47: 5,523 | F47: 3,914 | G47: 1,442 | H47: 2,847 | I47: 364 | J47: 1,518 | L47: 5,869 | M47: 5,306 | N47: 2,126 | O47: 5,860 | P47: 2,474 | Q47: 3,824 | R47: 3,278 | S47: 8,376 | T47: 248
B48: 4 | C48: 55,465 | D48: 367 | E48: 6,890 | F48: 3,829 | G48: 1,608 | H48: 2,695 | I48: 569 | J48: 1,428 | L48: 5,381 | M48: 5,514 | N48: 1,970 | O48: 5,832 | P48: 2,541 | Q48: 3,775 | R48: 4,362 | S48: 8,499 | T48: 205
B49: 5 | C49: 58,505 | D49: 367 | E49: 6,553 | F49: 5,451 | G49: 1,383 | H49: 2,631 | I49: 572 | J49: 1,742 | L49: 6,155 | M49: 5,641 | N49: 1,856 | O49: 6,428 | P49: 2,423 | Q49: 3,815 | R49: 4,848 | S49: 8,439 | T49: 201
B50: 6 | C50: 64,365 | D50: 369 | E50: 6,523 | F50: 6,162 | G50: 1,391 | H50: 2,645 | I50: 735 | J50: 1,873 | L50: 7,583 | M50: 5,854 | N50: 2,180 | O50: 7,259 | P50: 3,861 | Q50: 3,281 | R50: 5,067 | S50: 9,381 | T50: 201
B51: 7 | C51: =SUM(D51:T51) -> 70,280 | D51: 399 | E51: 9,070 | F51: 6,654 | G51: 1,343 | H51: 2,090 | I51: 730 | J51: 1,920 | L51: 7,406 | M51: 5,970 | N51: 2,334 | O51: 7,147 | P51: 4,455 | Q51: 3,196 | R51: 4,964 | S51: 12,431 | T51: 171
B52: 8 | C52: 70,970 | D52: 377 | E52: 8,676 | F52: 7,949 | G52: 1,283 | H52: 2,183 | I52: 726 | J52: 1,849 | L52: 7,937 | M52: 5,711 | N52: 1,970 | O52: 6,940 | P52: 5,229 | Q52: 3,631 | R52: 4,501 | S52: 11,852 | T52: 156
B53: 9 | C53: 73,134 | D53: 87 | E53: 8,119 | F53: 7,899 | G53: 1,272 | H53: 6,986 | I53: 702 | J53: 1,620 | L53: 6,442 | M53: 5,267 | N53: 2,515 | O53: 7,421 | P53: 4,428 | Q53: 3,323 | R53: 4,920 | S53: 11,977 | T53: 156
B54: 10 | C54: 69,857 | D54: 508 | E54: 7,764 | F54: 7,531 | G54: 954 | H54: 6,582 | I54: 690 | J54: 1,441 | L54: 4,535 | M54: 5,218 | N54: 2,353 | O54: 7,580 | P54: 5,010 | Q54: 3,455 | R54: 4,378 | S54: 11,729 | T54: 129
B55: 11 | C55: 69,597 | D55: 506 | E55: 8,299 | F55: 7,987 | G55: 466 | H55: 6,297 | I55: 564 | J55: 1,218 | L55: 3,631 | M55: 4,853 | N55: 2,394 | O55: 7,478 | P55: 5,182 | Q55: 4,374 | R55: 4,040 | S55: 12,179 | T55: 129
B56: 12 | C56: 73,772 | D56: 529 | E56: 9,009 | F56: 8,732 | G56: 426 | H56: 6,506 | I56: 597 | J56: 996 | L56: 3,769 | M56: 5,314 | N56: 2,608 | O56: 7,764 | P56: 5,163 | Q56: 4,515 | R56: 5,971 | S56: 11,784 | T56: 89
A58: 2007 | B58: 1 | C58: 75,616 | D58: 697 | E58: 8,680 | F58: 9,467 | G58: 243 | H58: 7,005 | I58: 819 | J58: 1,180 | L58: 3,604 | M58: 5,312 | N58: 2,548 | O58: 7,449 | P58: 5,179 | Q58: 5,374 | R58: 6,210 | S58: 11,772 | T58: 77
B59: 2 | C59: 73,619 | D59: 590 | E59: 8,653 | F59: 9,134 | G59: 312 | H59: 6,246 | I59: 803 | J59: 1,210 | L59: 3,361 | M59: 5,344 | N59: 2,645 | O59: 7,363 | P59: 5,098 | Q59: 5,253 | R59: 5,948 | S59: 11,563 | T59: 96
B60: 3 | C60: 73,162 | D60: 687 | E60: 8,548 | F60: 9,189 | G60: 266 | H60: 5,905 | I60: 1,048 | J60: 1,687 | L60: 2,579 | M60: 5,801 | N60: 2,565 | O60: 7,446 | P60: 5,184 | Q60: 4,887 | R60: 5,854 | S60: 11,328 | T60: 188
B61: 4 | C61: 73,393 | D61: 685 | E61: 8,074 | F61: 9,009 | G61: 219 | H61: 5,829 | I61: 1,020 | J61: 1,521 | L61: 2,488 | M61: 5,460 | N61: 3,632 | O61: 8,250 | P61: 4,812 | Q61: 4,664 | R61: 5,419 | S61: 12,149 | T61: 162
B62: 5 | C62: 78,571 | D62: 704 | E62: 7,964 | F62: 10,888 | G62: 362 | H62: 7,842 | I62: 957 | J62: 1,500 | L62: 2,488 | M62: 5,212 | N62: 4,012 | O62: 9,195 | P62: 4,625 | Q62: 4,640 | R62: 6,303 | S62: 11,723 | T62: 156
B63: 6 | C63: 89,924 | D63: 778 | E63: 9,212 | F63: 12,489 | G63: 883 | H63: 8,272 | I63: 1,179 | J63: 1,528 | L63: 3,899 | M63: 6,642 | N63: 4,078 | O63: 11,245 | P63: 4,662 | Q63: 5,168 | R63: 7,665 | S63: 12,072 | T63: 152
B64: 7 | C64: 90,658 | D64: 840 | E64: 9,557 | F64: 12,179 | G64: 797 | H64: 7,186 | I64: 1,191 | J64: 1,741 | L64: 3,883 | M64: 6,850 | N64: 4,263 | O64: 10,707 | P64: 5,289 | Q64: 5,041 | R64: 8,541 | S64: 12,414 | T64: 179
A65: 2007 | B65: 8 | C65: 91,714 | D65: 730 | E65: 9,925 | F65: 12,075 | G65: 635 | H65: 7,433 | I65: 1,478 | J65: 1,564 | L65: 4,452 | M65: 6,625 | N65: 4,378 | O65: 10,930 | P65: 5,202 | Q65: 5,150 | R65: 8,389 | S65: 12,576 | T65: 172
B66: 9 | C66: 98,235 | D66: 724 | E66: 10,739 | F66: 11,944 | G66: 507 | H66: 7,294 | I66: 2,095 | J66: 3,240 | L66: 7,906 | M66: 6,558 | N66: 4,167 | O66: 10,963 | P66: 4,903 | Q66: 5,532 | R66: 8,683 | S66: 12,811 | T66: 169
B67: 10 | C67: 100,887 | D67: 977 | E67: 12,012 | F67: 11,879 | G67: 330 | H67: 7,600 | I67: 2,088 | J67: 3,590 | L67: 8,573 | M67: 6,673 | N67: 4,152 | O67: 11,332 | P67: 4,536 | Q67: 5,641 | R67: 8,676 | S67: 12,694 | T67: 134
B68: 11 | C68: 101,500 | D68: 1,081 | E68: 11,213 | F68: 12,212 | G68: 308 | H68: 7,911 | I68: 2,017 | J68: 3,536 | L68: 9,453 | M68: 6,739 | N68: 4,234 | O68: 11,500 | P68: 4,030 | Q68: 4,726 | R68: 8,523 | S68: 13,884 | T68: 133
B69: 12 | C69: 112,254 | D69: 454 | E69: 11,502 | F69: 12,199 | G69: 527 | H69: 7,940 | I69: 1,881 | J69: 7,672 | L69: 13,643 | M69: 7,114 | N69: 4,374 | O69: 12,770 | P69: 4,082 | Q69: 4,456 | R69: 8,662 | S69: 14,857 | T69: 121
A71: 2008 | B71: 1 | C71: 123,371 | D71: 524 | E71: 10,860 | F71: 13,434 | G71: 509 | H71: 8,009 | I71: 2,442 | J71: 6,922 | L71: 20,691 | M71: 6,861 | N71: 5,333 | O71: 14,075 | P71: 4,186 | Q71: 4,291 | R71: 10,516 | S71: 14,602 | T71: 116
A72: 2008 | B72: 2 | C72: 129,652 | D72: 788 | E72: 12,184 | F72: 15,638 | G72: 1,487 | H72: 7,779 | I72: 2,414 | J72: 7,350 | L72: 21,178 | M72: 6,583 | N72: 5,503 | O72: 14,888 | P72: 4,315 | Q72: 4,375 | R72: 10,591 | S72: 14,400 | T72: 179
A73: 2008 | B73: 3 | C73: 131,757 | D73: 799 | E73: 13,289 | F73: 15,557 | G73: 1,594 | H73: 8,009 | I73: 2,890 | J73: 8,496 | L73: 20,685 | M73: 6,239 | N73: 5,459 | O73: 15,633 | P73: 4,120 | Q73: 4,116 | R73: 10,844 | S73: 13,872 | T73: 155
A74: 2008 | B74: 4 | C74: 129,859 | D74: 764 | E74: 13,642 | F74: 15,873 | G74: 1,365 | H74: 7,279 | I74: 2,343 | J74: 9,105 | L74: 18,104 | M74: 6,264 | N74: 5,688 | O74: 16,227 | P74: 3,756 | Q74: 3,890 | R74: 11,858 | S74: 13,549 | T74: 152
A75: 2008 | B75: 5 | C75: 128,170 | D75: 1,016 | E75: 12,611 | F75: 16,590 | G75: 1,116 | H75: 6,952 | I75: 2,270 | J75: 9,575 | L75: 17,661 | M75: 6,217 | N75: 5,436 | O75: 16,910 | P75: 3,281 | Q75: 3,616 | R75: 11,124 | S75: 13,648 | T75: 147
A76: 2008 | B76: 6 | C76: 147,230 | D76: 1,090 | E76: 11,542 | F76: 20,535 | G76: 1,099 | H76: 7,490 | I76: 3,076 | J76: 9,633 | L76: 16,733 | M76: 11,246 | N76: 6,074 | O76: 16,750 | P76: 3,163 | Q76: 7,313 | R76: 13,813 | S76: 17,380 | T76: 293
A77: 2008 | B77: 7 | C77: 160,595 | D77: 1,437 | E77: 13,612 | F77: 21,378 | G77: 1,026 | H77: 10,774 | I77: 3,000 | J77: 9,718 | L77: 20,514 | M77: 10,769 | N77: 6,523 | O77: 16,646 | P77: 4,004 | Q77: 7,853 | R77: 15,177 | S77: 17,832 | T77: 332
A78: 2008 | B78: 8 | C78: 157,291 | D78: 1,491 | E78: 12,971 | F78: 21,410 | G78: 976 | H78: 11,043 | I78: 2,718 | J78: 9,728 | L78: 19,922 | M78: 10,377 | N78: 6,298 | O78: 16,069 | P78: 3,594 | Q78: 7,697 | R78: 15,464 | S78: 17,214 | T78: 319
A79: 2008 | B79: 9 | C79: 157,241 | D79: 1,530 | E79: 12,619 | F79: 21,403 | G79: 933 | H79: 10,628 | I79: 2,619 | J79: 9,520 | L79: 22,455 | M79: 10,125 | N79: 5,732 | O79: 16,186 | P79: 3,541 | Q79: 7,170 | R79: 15,483 | S79: 17,000 | T79: 297
A80: 2008 | B80: 10 | C80: 155,720 | D80: 1,981 | E80: 12,407 | F80: 21,246 | G80: 921 | H80: 11,323 | I80: 2,788 | J80: 9,449 | L80: 22,360 | M80: 9,383 | N80: 5,346 | O80: 15,662 | P80: 3,428 | Q80: 6,844 | R80: 15,153 | S80: 17,140 | T80: 289
A81: 2008 | B81: 11 | C81: 162,570 | D81: 2,263 | E81: 14,292 | F81: 21,324 | G81: 1,492 | H81: 12,672 | I81: 4,008 | J81: 9,471 | L81: 22,111 | M81: 10,930 | N81: 6,565 | O81: 15,277 | P81: 3,236 | Q81: 6,725 | R81: 15,054 | S81: 16,877 | T81: 273
A82: 2008 | B82: 12 | C82: 165,599 | D82: 2,486 | E82: 13,997 | F82: 21,379 | G82: 1,647 | H82: 12,384 | I82: 3,802 | J82: 9,569 | L82: 22,795 | M82: 10,581 | N82: 6,412 | O82: 15,918 | P82: 4,617 | Q82: 6,530 | R82: 16,106 | S82: 17,107 | T82: 269
A84: 2009 | B84: 1 | C84: 162,693 | D84: 2,511 | E84: 13,882 | F84: 21,560 | G84: 1,605 | H84: 12,395 | I84: 3,715 | J84: 9,486 | L84: 21,415 | M84: 10,072 | N84: 6,291 | O84: 16,349 | P84: 4,579 | Q84: 6,069 | R84: 16,189 | S84: 16,311 | T84: 264
A85: 2009 | B85: 2 | C85: 161,972 | D85: 2,460 | E85: 13,763 | F85: 21,380 | G85: 2,320 | H85: 12,669 | I85: 3,676 | J85: 9,668 | L85: 20,405 | M85: 9,940 | N85: 6,385 | O85: 16,926 | P85: 4,392 | Q85: 6,221 | R85: 15,468 | S85: 16,043 | T85: 256
A86: 2009 | B86: 3 | C86: 165,641 | D86: 2,459 | E86: 13,828 | F86: 20,402 | G86: 2,101 | H86: 12,821 | I86: 3,360 | J86: 9,577 | L86: 24,040 | M86: 9,780 | N86: 8,087 | O86: 18,251 | P86: 4,264 | Q86: 5,944 | R86: 15,985 | S86: 14,460 | T86: 282
A87: 2009 | B87: 4 | C87: 163,856 | D87: 2,295 | E87: 14,790 | F87: 20,691 | G87: 2,157 | H87: 11,384 | I87: 3,169 | J87: 9,084 | L87: 24,704 | M87: 9,746 | N87: 7,403 | O87: 17,939 | P87: 4,876 | Q87: 5,843 | R87: 14,871 | S87: 14,479 | T87: 425
A88: 2009 | B88: 5 | C88: 151,938 | D88: 2,136 | E88: 13,602 | F88: 19,851 | G88: 2,016 | H88: 8,565 | I88: 3,012 | J88: 7,991 | L88: 23,192 | M88: 9,249 | N88: 6,821 | O88: 17,229 | P88: 4,643 | Q88: 6,178 | R88: 14,929 | S88: 12,124 | T88: 400
A89: 2009 | B89: 6 | C89: 145,585 | D89: 2,085 | E89: 12,685 | F89: 19,257 | G89: 1,840 | H89: 8,209 | I89: 3,696 | J89: 8,032 | L89: 21,699 | M89: 8,987 | N89: 6,262 | O89: 16,063 | P89: 4,395 | Q89: 5,789 | R89: 14,233 | S89: 11,988 | T89: 365
A90: 2009 | B90: 7 | C90: 140,186 | D90: 2,060 | E90: 12,253 | F90: 18,473 | G90: 1,702 | H90: 7,264 | I90: 3,428 | J90: 7,962 | L90: 20,248 | M90: 8,788 | N90: 6,245 | O90: 16,342 | P90: 4,206 | Q90: 5,510 | R90: 13,943 | S90: 11,430 | T90: 332
A91: 2009 | B91: 8 | C91: 133,779 | D91: 1,960 | E91: 11,451 | F91: 17,920 | G91: 1,664 | H91: 6,799 | I91: 3,150 | J91: 7,769 | L91: 19,738 | M91: 8,577 | N91: 6,027 | O91: 14,595 | P91: 3,899 | Q91: 5,376 | R91: 13,582 | S91: 10,948 | T91: 324
A92: 2009 | B92: 9 | C92: 126,424 | D92: 1,887 | E92: 10,436 | F92: 17,043 | G92: 1,541 | H92: 6,102 | I92: 3,300 | J92: 7,478 | L92: 17,534 | M92: 7,817 | N92: 5,568 | O92: 14,195 | P92: 4,194 | Q92: 5,380 | R92: 13,311 | S92: 10,340 | T92: 298
A93: 2009 | B93: 10 | C93: 120,437 | D93: 1,778 | E93: 9,891 | F93: 16,467 | G93: 1,432 | H93: 5,751 | I93: 2,928 | J93: 7,488 | L93: 16,638 | M93: 7,530 | N93: 5,425 | O93: 13,656 | P93: 3,954 | Q93: 5,067 | R93: 12,678 | S93: 9,427 | T93: 327
A94: 2009 | B94: 11 | C94: 122,542 | D94: 1,814 | E94: 9,287 | F94: 16,119 | G94: 4,578 | H94: 4,974 | I94: 2,776 | J94: 8,025 | L94: 16,473 | M94: 7,353 | N94: 5,351 | O94: 14,148 | P94: 3,743 | Q94: 6,232 | R94: 12,525 | S94: 8,818 | T94: 326
A95: 2009 | B95: 12 | C95: 123,297 | D95: 1,803 | E95: 9,200 | F95: 16,009 | G95: 4,539 | H95: 4,678 | I95: 3,101 | J95: 7,106 | L95: 19,325 | M95: 7,157 | N95: 5,128 | O95: 14,277 | P95: 3,498 | Q95: 5,690 | R95: 12,808 | S95: 8,698 | T95: 280
A97: 2010 | B97: 1 | C97: 119,039 | D97: 1,803 | E97: 8,279 | F97: 15,875 | G97: 3,591 | H97: 4,304 | I97: 3,042 | J97: 7,041 | L97: 20,432 | M97: 5,691 | N97: 4,918 | O97: 13,950 | P97: 3,327 | Q97: 5,387 | R97: 12,915 | S97: 8,187 | T97: 297
A98: 2010 | B98: 2 | C98: 116,438 | D98: 1,813 | E98: 7,657 | F98: 16,053 | G98: 3,046 | H98: 3,889 | I98: 2,839 | J98: 6,930 | L98: 22,467 | M98: 5,416 | N98: 4,671 | O98: 13,188 | P98: 3,172 | Q98: 5,238 | R98: 12,324 | S98: 7,474 | T98: 261
A99: 2010 | B99: 3 | C99: 112,910 | D99: 1,658 | E99: 7,595 | F99: 16,002 | G99: 3,033 | H99: 3,457 | I99: 2,768 | J99: 6,482 | L99: 21,408 | M99: 5,274 | N99: 4,581 | O99: 12,906 | P99: 2,852 | Q99: 5,330 | R99: 12,100 | S99: 7,231 | T99: 233
A100: 2010 | B100: 4 | C100: 110,409 | D100: 1,575 | E100: 7,814 | F100: 16,467 | G100: 2,949 | H100: 3,775 | I100: 2,662 | J100: 6,362 | L100: 21,386 | M100: 5,108 | N100: 3,938 | O100: 12,973 | P100: 2,731 | Q100: 3,736 | R100: 11,897 | S100: 6,815 | T100: 221
A101: 2010 | B101: 5 | C101: 110,460 | D101: 1,957 | E101: 7,272 | F101: 16,303 | G101: 3,341 | H101: 3,824 | I101: 2,508 | J101: 6,401 | L101: 22,349 | M101: 5,105 | N101: 3,736 | O101: 12,621 | P101: 2,569 | Q101: 3,492 | R101: 12,195 | S101: 6,570 | T101: 217
A102: 2010 | B102: 6 | C102: 110,020 | D102: 1,979 | E102: 6,910 | F102: 16,389 | G102: 4,320 | H102: 2,822 | I102: 2,987 | J102: 6,392 | L102: 21,969 | M102: 5,009 | N102: 5,039 | O102: 12,513 | P102: 2,568 | Q102: 3,397 | R102: 11,253 | S102: 6,282 | T102: 191
A103: 2010 | B103: 7 | C103: 106,464 | D103: 1,941 | E103: 6,747 | F103: 16,325 | G103: 4,344 | H103: 2,859 | I103: 2,880 | J103: 6,128 | L103: 21,866 | M103: 4,741 | N103: 3,887 | O103: 12,222 | P103: 2,419 | Q103: 3,293 | R103: 10,627 | S103: 6,005 | T103: 180
A104: 2010 | B104: 8 | C104: 103,981 | D104: 2,085 | E104: 6,131 | F104: 16,066 | G104: 3,741 | H104: 2,474 | I104: 2,741 | J104: 6,085 | L104: 22,326 | M104: 4,556 | N104: 3,858 | O104: 11,593 | P104: 2,394 | Q104: 3,142 | R104: 10,664 | S104: 5,950 | T104: 175
A105: 2010 | B105: 9 | C105: 100,325 | D105: 2,169 | E105: 5,223 | F105: 14,743 | G105: 3,847 | H105: 2,150 | I105: 2,639 | J105: 5,994 | L105: 23,185 | M105: 4,413 | N105: 3,793 | O105: 10,851 | P105: 1,893 | Q105: 2,988 | R105: 9,830 | S105: 6,435 | T105: 172
A106: 2010 | B106: 10 | C106: 99,033 | D106: 2,506 | E106: 6,051 | F106: 15,304 | G106: 4,127 | H106: 1,899 | I106: 2,461 | J106: 5,841 | L106: 22,701 | M106: 4,163 | N106: 3,667 | O106: 10,285 | P106: 1,722 | Q106: 2,848 | R106: 9,512 | S106: 5,791 | T106: 155
A107: 2010 | B107: 11 | C107: 94,539 | D107: 2,842 | E107: 4,136 | F107: 14,505 | G107: 4,100 | H107: 2,359 | I107: 2,357 | J107: 5,680 | L107: 22,247 | M107: 3,988 | N107: 3,572 | O107: 9,824 | P107: 1,488 | Q107: 2,724 | R107: 8,777 | S107: 5,754 | T107: 186
A108: 2010 | B108: 12 | C108: 88,706 | D108: 2,729 | E108: 3,458 | F108: 13,163 | G108: 4,265 | H108: 1,809 | I108: 2,205 | J108: 5,575 | L108: 22,418 | M108: 3,837 | N108: 3,428 | O108: 9,020 | P108: 1,311 | Q108: 2,504 | R108: 8,042 | S108: 4,780 | T108: 162
A110: 2011 | B110: 1 | C110: 84,923 | D110: 2,269 | E110: 3,064 | F110: 12,380 | G110: 4,474 | H110: 1,259 | I110: 2,068 | J110: 5,472 | K110: - | L110: 22,153 | M110: 3,720 | N110: 3,282 | O110: 8,750 | P110: 1,144 | Q110: 2,378 | R110: 7,693 | S110: 4,586 | T110: 231
A111: 2011 | B111: 2 | C111: 80,588 | D111: 2,216 | E111: 2,824 | F111: 11,929 | G111: 4,173 | H111: 964 | I111: 1,847 | J111: 5,567 | K111: - | L111: 21,028 | M111: 3,544 | N111: 3,154 | O111: 8,477 | P111: 1,015 | Q111: 2,106 | R111: 7,278 | S111: 4,257 | T111: 209
A112: 2011 | B112: 3 | C112: 77,572 | D112: 2,104 | E112: 2,734 | F112: 11,325 | G112: 3,823 | H112: 805 | I112: 1,651 | J112: 5,469 | K112: - | L112: 21,162 | M112: 3,376 | N112: 3,016 | O112: 8,082 | P112: 925 | Q112: 2,040 | R112: 6,974 | S112: 3,871 | T112: 215
A113: 2011 | B113: 4 | C113: 72,232 | D113: 1,855 | E113: 2,305 | F113: 10,561 | G113: 3,438 | H113: 717 | I113: 1,530 | J113: 5,354 | K113: - | L113: 19,715 | M113: 3,252 | N113: 2,915 | O113: 7,620 | P113: 843 | Q113: 1,885 | R113: 6,397 | S113: 3,668 | T113: 177
A114: 2011 | B114: 5 | C114: 71,360 | D114: 1,785 | E114: 2,671 | F114: 9,916 | G114: 3,945 | H114: 721 | I114: 1,272 | J114: 5,419 | K114: - | L114: 21,303 | M114: 3,363 | N114: 1,943 | O114: 7,459 | P114: 750 | Q114: 1,792 | R114: 5,984 | S114: 2,896 | T114: 141
A115: 2011 | B115: 6 | C115: 72,667 | D115: 1,825 | E115: 2,682 | F115: 11,577 | G115: 3,821 | H115: 655 | I115: 1,629 | J115: 5,200 | K115: - | L115: 21,579 | M115: 3,214 | N115: 1,835 | O115: 7,229 | P115: 687 | Q115: 1,655 | R115: 5,885 | S115: 3,048 | T115: 146
A116: 2011 | B116: 7 | C116: 70,087 | D116: 1,826 | E116: 3,158 | F116: 10,828 | G116: 3,749 | H116: 682 | I116: 1,189 | J116: 5,014 | K116: - | L116: 20,819 | M116: 3,114 | N116: 1,685 | O116: 6,903 | P116: 639 | Q116: 1,800 | R116: 5,655 | S116: 2,896 | T116: 130
A117: 2011 | B117: 8 | C117: 68,593 | D117: 1,767 | E117: 3,046 | F117: 10,152 | G117: 3,730 | H117: 458 | I117: 997 | J117: 4,942 | K117: - | L117: 22,137 | M117: 2,922 | N117: 1,515 | O117: 6,546 | P117: 541 | Q117: 1,728 | R117: 5,093 | S117: 2,729 | T117: 290
A118: 2011 | B118: 9 | C118: 68,039 | D118: 1,776 | E118: 2,842 | F118: 9,861 | G118: 3,783 | H118: 619 | I118: 913 | J118: 4,713 | K118: - | L118: 21,724 | M118: 2,690 | N118: 1,350 | O118: 6,379 | P118: 478 | Q118: 2,191 | R118: 4,723 | S118: 3,748 | T118: 249
A119: 2011 | B119: 10 | C119: 66,462 | D119: 1,821 | E119: 3,008 | F119: 9,295 | G119: 3,724 | H119: 806 | I119: 854 | J119: 4,501 | K119: - | L119: 21,556 | M119: 2,460 | N119: 1,195 | O119: 5,903 | P119: 428 | Q119: 1,847 | R119: 4,434 | S119: 4,454 | T119: 176
A120: 2011 | B120: 11 | C120: 67,040 | D120: 1,801 | E120: 2,887 | F120: 9,384 | G120: 3,873 | H120: 770 | I120: 1,482 | J120: 3,780 | K120: - | L120: 21,595 | M120: 2,207 | N120: 1,100 | O120: 7,391 | P120: 386 | Q120: 1,728 | R120: 4,274 | S120: 4,235 | T120: 147
A121: 2011 | B121: 12 | C121: 69,807 | D121: 1,861 | E121: 4,193 | F121: 8,672 | G121: 3,642 | H121: 784 | I121: 1,557 | J121: 3,510 | K121: - | L121: 22,378 | M121: 2,244 | N121: 1,031 | O121: 7,471 | P121: 355 | Q121: 1,527 | R121: 4,110 | S121: 6,375 | T121: 97
A123: 2012 | B123: 1 | C123: 67,786 | D123: 1,890 | E123: 3,909 | F123: 7,477 | G123: 3,532 | H123: 865 | I123: 1,400 | J123: 3,363 | K123: - | L123: 23,539 | M123: 2,318 | N123: 1,077 | O123: 7,159 | P123: 354 | Q123: 1,436 | R123: 3,508 | S123: 5,888 | T123: 71
A124: 2012 | B124: 2 | C124: 64,850 | D124: 1,703 | E124: 3,970 | F124: 6,807 | G124: 3,694 | H124: 818 | I124: 1,301 | J124: 3,507 | K124: - | L124: 22,206 | M124: 2,642 | N124: 995 | O124: 6,746 | P124: 285 | Q124: 1,376 | R124: 3,228 | S124: 5,488 | T124: 84
A125: 2012 | B125: 3 | C125: 62,949 | D125: 1,732 | E125: 4,191 | F125: 6,104 | G125: 3,802 | H125: 1,142 | I125: 1,227 | J125: 3,144 | K125: - | L125: 21,427 | M125: 2,567 | N125: 982 | O125: 6,502 | P125: 259 | Q125: 1,285 | R125: 3,010 | S125: 5,518 | T125: 57
A126: 2012 | B126: 4 | C126: 61,385 | D126: 1,691 | E126: 4,063 | F126: 5,895 | G126: 3,829 | H126: 940 | I126: 1,192 | J126: 2,916 | K126: - | L126: 20,595 | M126: 3,034 | N126: 833 | O126: 6,180 | P126: 247 | Q126: 1,063 | R126: 3,562 | S126: 5,297 | T126: 48
B127: 5 | C127: 62,325 | D127: 1,703 | E127: 4,014 | F127: 5,721 | G127: 4,002 | H127: 1,104 | I127: 1,179 | J127: 3,549 | K127: - | L127: 20,890 | M127: 2,809 | N127: 833 | O127: 6,065 | P127: 249 | Q127: 1,719 | R127: 3,361 | S127: 4,817 | T127: 310
B128: 6 | C128: 62,288 | D128: 1,698 | E128: 4,448 | F128: 5,564 | G128: 4,058 | H128: 1,108 | I128: 1,228 | J128: 3,047 | K128: - | L128: 21,173 | M128: 3,086 | N128: 786 | O128: 6,156 | P128: 239 | Q128: 1,486 | R128: 3,258 | S128: 4,663 | T128: 290
B129: 7 | C129: 67,060 | D129: 3,146 | E129: 5,630 | F129: 5,289 | G129: 4,212 | H129: 1,313 | I129: 1,197 | J129: 3,291 | K129: 50 | L129: 22,034 | M129: 3,244 | N129: 700 | O129: 6,035 | P129: 341 | Q129: 1,766 | R129: 3,503 | S129: 5,025 | T129: 284
B130: 8 | C130: 69,511 | D130: 3,847 | E130: 5,484 | F130: 5,202 | G130: 4,212 | H130: 3,051 | I130: 1,501 | J130: 2,975 | K130: 42 | L130: 21,938 | M130: 3,184 | N130: 631 | O130: 5,965 | P130: 332 | Q130: 1,875 | R130: 3,277 | S130: 5,730 | T130: 265
B131: 9 | C131: 71,552 | D131: 3,754 | E131: 5,393 | F131: 4,993 | G131: 4,420 | H131: 3,017 | I131: 1,561 | J131: 3,018 | K131: 21 | L131: 21,864 | M131: 3,616 | N131: 653 | O131: 6,187 | P131: 537 | Q131: 1,548 | R131: 2,640 | S131: 7,348 | T131: 982
B132: 10 | C132: 72,739 | D132: 3,700 | E132: 5,261 | F132: 4,678 | G132: 4,181 | H132: 2,792 | I132: 1,377 | J132: 3,071 | K132: 3 | L132: 24,567 | M132: 3,769 | N132: 628 | O132: 4,148 | P132: 481 | Q132: 1,850 | R132: 3,149 | S132: 8,243 | T132: 841
B133: 11 | C133: 76,319 | D133: 3,594 | E133: 5,199 | F133: 3,707 | G133: 4,059 | H133: 3,608 | I133: 1,484 | J133: 3,474 | K133: - | L133: 26,732 | M133: 4,367 | N133: 703 | O133: 3,608 | P133: 401 | Q133: 1,740 | R133: 2,728 | S133: 9,941 | T133: 974
B134: 12 | C134: 74,835 | D134: 3,481 | E134: 5,784 | F134: 3,288 | G134: 4,026 | H134: 3,348 | I134: 1,441 | J134: 3,659 | K134: - | L134: 25,040 | M134: 4,421 | N134: 585 | O134: 2,942 | P134: 629 | Q134: 2,478 | R134: 3,201 | S134: 9,558 | T134: 954
A136: 2013 | B136: 1 | C136: 75,180 | D136: 3,415 | E136: 6,985 | F136: 2,898 | G136: 4,637 | H136: 3,369 | I136: 1,404 | J136: 3,245 | K136: - | L136: 25,732 | M136: 4,159 | N136: 504 | O136: 2,691 | P136: 443 | Q136: 2,348 | R136: 3,096 | S136: 9,203 | T136: 1,051
B137: 2 | C137: 73,386 | D137: 3,308 | E137: 6,568 | F137: 2,622 | G137: 4,478 | H137: 3,235 | I137: 1,300 | J137: 3,035 | K137: 102 | L137: 25,888 | M137: 4,220 | N137: 455 | O137: 2,563 | P137: 868 | Q137: 2,069 | R137: 2,647 | S137: 8,965 | T137: 1,063
B138: 3 | C138: 70,633 | D138: 3,168 | E138: 6,896 | F138: 2,347 | G138: 5,080 | H138: 1,612 | I138: 1,303 | J138: 2,792 | K138: 721 | L138: 24,511 | M138: 3,846 | N138: 902 | O138: 2,697 | P138: 1,041 | Q138: 1,993 | R138: 2,375 | S138: 8,353 | T138: 996
B139: 4 | C139: 70,201 | D139: 3,035 | E139: 6,131 | F139: 2,089 | G139: 5,068 | H139: 1,471 | I139: 1,399 | J139: 2,438 | K139: 424 | L139: 25,164 | M139: 4,149 | N139: 811 | O139: 2,555 | P139: 1,565 | Q139: 1,946 | R139: 2,270 | S139: 8,703 | T139: 983
B140: 5 | C140: 66,896 | D140: 2,908 | E140: 5,485 | F140: 1,939 | G140: 4,920 | H140: 1,350 | I140: 1,253 | J140: 2,210 | K140: 619 | L140: 24,941 | M140: 3,751 | N140: 763 | O140: 2,351 | P140: 1,873 | Q140: 1,920 | R140: 2,071 | S140: 7,617 | T140: 925
B141: 6 | C141: 65,072 | D141: 2,722 | E141: 4,956 | F141: 1,760 | G141: 5,223 | H141: 1,233 | I141: 1,187 | J141: 1,924 | K141: 414 | L141: 24,556 | M141: 3,461 | N141: 684 | O141: 2,961 | P141: 1,903 | Q141: 2,271 | R141: 2,081 | S141: 6,992 | T141: 744
B142: 7 | C142: 67,672 | D142: 2,581 | E142: 4,575 | F142: 1,649 | G142: 5,281 | H142: 1,116 | I142: 1,163 | J142: 1,830 | K142: 739 | L142: 27,464 | M142: 3,582 | N142: 914 | O142: 2,565 | P142: 1,982 | Q142: 2,183 | R142: 1,963 | S142: 7,401 | T142: 684
B143: 8 | C143: 68,119 | D143: 3,970 | E143: 4,848 | F143: 1,492 | G143: 5,130 | H143: 1,064 | I143: 1,066 | J143: 1,685 | K143: 180 | L143: 27,803 | M143: 3,446 | N143: 883 | O143: 2,321 | P143: 1,884 | Q143: 2,087 | R143: 1,817 | S143: 7,829 | T143: 614
B144: 9 | C144: 66,110 | D144: 4,331 | E144: 4,954 | F144: 1,602 | G144: 4,840 | H144: 913 | I144: 981 | J144: 2,816 | K144: 43 | L144: 25,500 | M144: 3,572 | N144: 797 | O144: 2,346 | P144: 1,694 | Q144: 2,021 | R144: 1,917 | S144: 7,202 | T144: 581
B145: 10 | C145: 64,433 | D145: 3,808 | E145: 4,385 | F145: 1,359 | G145: 4,335 | H145: 817 | I145: 876 | J145: 2,499 | K145: 14 | L145: 28,399 | M145: 3,283 | N145: 725 | O145: 2,007 | P145: 1,595 | Q145: 1,829 | R145: 1,590 | S145: 6,396 | T145: 516
B146: 11 | C146: 63,709 | D146: 3,568 | E146: 5,350 | F146: 1,196 | G146: 4,222 | H146: 377 | I146: 989 | J146: 2,895 | K146: 158 | L146: 26,413 | M146: 3,156 | N146: 685 | O146: 3,265 | P146: 1,511 | Q146: 2,065 | R146: 1,542 | S146: 5,840 | T146: 477
B147: 12 | C147: 61,091 | D147: 3,157 | E147: 4,259 | F147: 1,234 | G147: 5,275 | H147: 323 | I147: 1,146 | J147: 3,310 | K147: 54 | L147: 24,760 | M147: 3,055 | N147: 599 | O147: 3,566 | P147: 1,470 | Q147: 1,981 | R147: 1,405 | S147: 4,909 | T147: 588
A149: 2014 | B149: 1 | C149: 58,576 | D149: 2,905 | E149: 4,131 | F149: 955 | G149: 7,267 | H149: 340 | I149: 867 | J149: 2,943 | K149: 4 | L149: 22,525 | M149: 2,936 | N149: 670 | O149: 3,204 | P149: 1,383 | Q149: 1,921 | R149: 1,167 | S149: 4,801 | T149: 557
A151: 자료 : 국토교통부

Sheet 51. 건설경기종합 BSI
A1: 51. 건설경기종합 BSI Construction BSI(Business Survey Index)
A4: 연월중 | C4: 종합 | D4: 규모별 | G4: 지역별
D5: By size | G5: By region
A6: During | C6: Total | D6: 대형 | E6: 중견 | F6: 중소 | G6: 서울 | H6: 지방
D7: Big | E7: Middle | F7: Small | G7: Seoul | H7: Others
A8: 2004. 12 | C8: 56.6 | D8: 87.5 | E8: 38.2 | F8: 41.3 | G8: 64.4 | H8: 43.8
A9: 2005. 12 | C9: 76.1 | D9: 100.0 | E9: 79.4 | F9: 44.4 | G9: 87.4 | H9: 38.8
A10: 2006. 12 | C10: 78.7 | D10: 90.0 | E10: 85.0 | F10: 58.3 | G10: 82.1 | H10: 71.8
A11: 2007. 12 | C11: 75.7 | D11: 81.8 | E11: 76.9 | F11: 67.2 | G11: 82.6 | H11: 61.6
A12: 2008. 12 | C12: 37.3 | D12: 46.2 | E12: 35.7 | F12: 28.8 | G12: 41.0 | H12: 31.6
A13: 2009. 12 | C13: 82.5 | D13: 100.0 | E13: 77.8 | F13: 67.2 | G13: 90.6 | H13: 70.2
A14: 2010. 12 | C14: 67.9 | D14: 76.9 | E14: 70.4 | F14: 54.4 | G14: 75.3 | H14: 56.7
A15: 2011. 12 | C15: 71.6 | D15: 83.3 | E15: 68.0 | F15: 61.8 | G15: 72.5 | H15: 70.1
A16: 2012. 12 | C16: 68.9 | D16: 92.9 | E16: 64.0 | F16: 46.3 | G16: 79.3 | H16: 52.1
A17: 2013. 12 | C17: 64.5 | D17: 92.9 | E17: 50.0 | F17: 47.9 | G17: 73.2 | H17: 51.6
A19: 2004 | B19: 1 | C19: 53.3 | D19: 45.5 | E19: 63.3 | F19: 51.1 | G19: 55.5 | H19: 49.2
B20: 2 | C20: 55.4 | D20: 45.5 | E20: 56.8 | F20: 65.5 | G20: 55.2 | H20: 57.8
B21: 2 | C21: 55.4 | D21: 45.5 | E21: 56.8 | F21: 65.5 | G21: 55.2 | H21: 57.8
B22: 4 | C22: 74.4 | D22: 90.9 | E22: 77.5 | F22: 51.7 | G22: 90.2 | H22: 53.6
B23: 5 | C23: 68.5 | D23: 84.6 | E23: 70.7 | F23: 47.2 | G23: 84.3 | H23: 45.9
B24: 6 | C24: 59.7 | D24: 66.7 | E24: 62.0 | F24: 49.0 | G24: 69.4 | H24: 45.2
B25: 7 | C25: 43.6 | D25: 46.7 | E25: 40.4 | F25: 43.8 | G25: 44.9 | H25: 42.8
B26: 8 | C26: 36.5 | D26: 35.7 | E26: 44.0 | F26: 28.8 | G26: 42.4 | H26: 35.2
B27: 9 | C27: 41.7 | D27: 37.5 | E27: 48.8 | F27: 38.5 | G27: 45.1 | H27: 37.1
B28: 10 | C28: 38.2 | D28: 33.3 | E28: 43.8 | F28: 37.5 | G28: 38.9 | H28: 37.2
B29: 11 | C29: 44.8 | D29: 50.0 | E29: 42.1 | F29: 41.7 | G29: 44.9 | H29: 44.8
B30: 12 | C30: 56.6 | D30: 87.5 | E30: 38.2 | F30: 41.3 | G30: 64.4 | H30: 43.8
A32: 2005 | B32: 1 | C32: 47.4 | D32: 50.0 | E32: 56.4 | F32: 34.1 | G32: 50.9 | H32: 41.2
B33: 2 | C33: 78.1 | D33: 100.0 | E33: 74.5 | F33: 56.5 | G33: 91.3 | H33: 60.0
B34: 3 | C34: 78.4 | D34: 100.0 | E34: 81.8 | F34: 49.1 | G34: 98.1 | H34: 50.4
B35: 4 | C35: 81.2 | D35: 100.0 | E35: 81.6 | F35: 58.8 | G35: 96.1 | H35: 57.7
B36: 5 | C36: 82.9 | D36: 109.1 | E36: 71.0 | F36: 65.9 | G36: 101.6 | H36: 54.4
B37: 6 | C37: 86.4 | D37: 107.1 | E37: 90.5 | F37: 57.4 | G37: 98.5 | H37: 63.3
B38: 7 | C38: 74.2 | D38: 100.0 | E38: 76.5 | F38: 41.5 | G38: 86.4 | H38: 59.8
B39: 8 | C39: 67.8 | D39: 83.3 | E39: 63.9 | F39: 54.0 | G39: 80.9 | H39: 57.6
B40: 9 | C40: 51.3 | D40: 41.7 | E40: 59.1 | F40: 53.7 | G40: 50.1 | H40: 55.5
B41: 10 | C41: 63.0 | D41: 61.5 | E41: 76.9 | F41: 48.9 | G41: 71.0 | H41: 60.3
B42: 11 | C42: 63.3 | D42: 72.7 | E42: 59.3 | F42: 56.9 | G42: 69.5 | H42: 53.2
B43: 12 | C43: 76.1 | D43: 100.0 | E43: 79.4 | F43: 44.4 | G43: 87.4 | H43: 38.8
A45: 2006 | B45: 1 | C45: 70.1 | D45: 80.0 | E45: 70.6 | F45: 58.0 | G45: 79.3 | H45: 57.3
B46: 2 | C46: 77.2 | D46: 100.0 | E46: 71.1 | F46: 57.4 | G46: 87.5 | H46: 62.3
B47: 3 | C47: 70.8 | D47: 88.9 | E47: 70.6 | F47: 50.0 | G47: 84.5 | H47: 49.8
B48: 4 | C48: 70.0 | D48: 85.7 | E48: 55.9 | F48: 67.6 | G48: 75.5 | H48: 64.6
B49: 5 | C49: 73.1 | D49: 100.0 | E49: 62.5 | F49: 53.7 | G49: 87.2 | H49: 52.3
B50: 6 | C50: 55.7 | D50: 83.3 | E50: 45.5 | F50: 35.0 | G50: 66.5 | H50: 39.9
B51: 7 | C51: 45.6 | D51: 46.2 | E51: 48.6 | F51: 41.7 | G51: 50.2 | H51: 38.5
B52: 8 | C52: 37.8 | D52: 33.3 | E52: 48.0 | F52: 31.4 | G52: 33.4 | H52: 45.0
B53: 9 | C53: 50.9 | D53: 60.0 | E53: 48.1 | F53: 43.5 | G53: 58.0 | H53: 40.0
B54: 10 | C54: 70.1 | D54: 70.0 | E54: 84.6 | F54: 53.7 | G54: 71.5 | H54: 67.7
B55: 11 | C55: 82.8 | D55: 100.0 | E55: 91.7 | F55: 52.6 | G55: 89.9 | H55: 67.7
B56: 12 | C56: 78.7 | D56: 90.0 | E56: 85.0 | F56: 58.3 | G56: 82.1 | H56: 71.8
A58: 2007 | B58: 1 | C58: 58.9 | D58: 70.0 | E58: 57.7 | F58: 47.4 | G58: 67.4 | H58: 42.6
B59: 2 | C59: 62.3 | D59: 81.8 | E59: 56.0 | F59: 46.7 | G59: 72.0 | H59: 45.9
B60: 3 | C60: 75.8 | D60: 84.6 | E60: 82.1 | F60: 58.1 | G60: 89.4 | H60: 52.8
B61: 4 | C61: 81.3 | D61: 91.7 | E61: 86.7 | F61: 63.0 | G61: 89.4 | H61: 71.3
B62: 5 | C62: 83.2 | D62: 92.3 | E62: 90.6 | F62: 64.0 | G62: 94.8 | H62: 66.7
B63: 6 | C63: 75.1 | D63: 83.3 | E63: 76.7 | F63: 63.6 | G63: 87.9 | H63: 57.9
B64: 7 | C64: 80.1 | D64: 100.0 | E64: 81.3 | F64: 55.4 | G64: 92.9 | H64: 60.1
B65: 8 | C65: 74.0 | D65: 91.7 | E65: 76.9 | F65: 50.0 | G65: 85.1 | H65: 56.3
A66: 2007 | B66: 9 | C66: 73.1 | D66: 100.0 | E66: 64.0 | F66: 52.0 | G66: 88.5 | H66: 48.5
B67: 10 | C67: 67.2 | D67: 77.8 | E67: 73.3 | F67: 47.9 | G67: 76.6 | H67: 50.5
B68: 11 | C68: 66.4 | D68: 70.0 | E68: 73.1 | F68: 54.7 | G68: 75.8 | H68: 51.9
B69: 12 | C69: 75.7 | D69: 81.8 | E69: 76.9 | F69: 67.2 | G69: 82.6 | H69: 61.6
A71: 2008 | B71: 1 | C71: 67.6 | D71: 72.7 | E71: 75.9 | F71: 52.1 | G71: 76.3 | H71: 53.1
A72: 2008 | B72: 2 | C72: 75.0 | D72: 87.5 | E72: 79.3 | F72: 55.4 | G72: 86.2 | H72: 55.6
A73: 2008 | B73: 3 | C73: 58.2 | D73: 55.6 | E73: 75.0 | F73: 42.2 | G73: 63.7 | H73: 61.6
A74: 2008 | B74: 4 | C74: 51.4 | D74: 63.6 | E74: 46.2 | F74: 43.1 | G74: 60.0 | H74: 36.6
A75: 2008 | B75: 5 | C75: 49.3 | D75: 72.7 | E75: 39.3 | F75: 33.3 | G75: 58.9 | H75: 33.3
A76: 2008 | B76: 6 | C76: 51.7 | D76: 90.0 | E76: 34.5 | F76: 26.5 | G76: 69.7 | H76: 22.9
A77: 2008 | B77: 7 | C77: 52.5 | D77: 80.0 | E77: 46.4 | F77: 27.1 | G77: 68.7 | H77: 25.5
A78: 2008 | B78: 8 | C78: 52.3 | D78: 66.7 | E78: 50.0 | F78: 38.1 | G78: 62.6 | H78: 33.7
A79: 2008 | B79: 9 | C79: 50.1 | D79: 66.7 | E79: 44.4 | F79: 37.1 | G79: 57.8 | H79: 38.3
A80: 2008 | B80: 10 | C80: 31.1 | D80: 44.4 | E80: 17.9 | F80: 30.6 | G80: 33.6 | H80: 26.7
A81: 2008 | B81: 11 | C81: 14.6 | D81: 7.7 | E81: 17.2 | F81: 19.7 | G81: 9.8 | H81: 22.3
A82: 2008 | B82: 12 | C82: 37.3 | D82: 46.2 | E82: 35.7 | F82: 28.8 | G82: 41.0 | H82: 31.6
A84: 2009 | B84: 1 | C84: 48.9 | D84: 53.8 | E84: 42.9 | F84: 50.0 | G84: 49.2 | H84: 48.4
A85: 2009 | B85: 2 | C85: 50.0 | D85: 58.3 | E85: 40.6 | F85: 50.8 | G85: 50.9 | H85: 48.5
A86: 2009 | B86: 3 | C86: 72.3 | D86: 84.6 | E86: 66.7 | F86: 64.4 | G86: 78.0 | H86: 63.8
A87: 2009 | B87: 4 | C87: 80.0 | D87: 83.3 | E87: 91.9 | F87: 62.5 | G87: 89.7 | H87: 65.0
A88: 2009 | B88: 5 | C88: 86.6 | D88: 100.0 | E88: 78.1 | F88: 80.5 | G88: 97.5 | H88: 66.5
A89: 2009 | B89: 6 | C89: 92.2 | D89: 92.3 | E89: 97.2 | F89: 86.4 | G89: 93.9 | H89: 83.6
